Workbook

Sheet Formulacion
A1: Hoja | B1: Tipo1 | C1: Tipo2 | D1: Tipo3 | E1: Tipo4 | F1: Fecha | G1: Materiales | H1: MObra | I1: Postes | J1: Conductor | K1: VolumenZanja | L1: CostoTotal | M1: Cantidad | N1: CostoReferencia | O1: FactorAsimetria | P1: Condicion | Q1: Valor | R1: rango | S1: Codigo | T1: FactorEficienciaCantidad | U1: m2 | V1: CantMobPCComOt | W1: CantTrbtOtC
A2: AINAP | F2: SI | G2: SI | H2: SI | I2: NA | J2: NA | K2: NA | L2: NA | M2: NA | N2: NA | O2: 1 | P2: NA | Q2: NA | R2: NA | S2: NA | T2: 1 | U2: NA | V2: NA | W2: NA
A3: CEQOT | F3: SI | G3: NA | H3: SI | I3: NA | J3: NA | K3: NA | L3: SI | M3: NA | N3: NA | O3: 1 | P3: NA | Q3: NA | R3: NA | S3: NA | T3: 1 | U3: NA | V3: NA | W3: SI
A4: CMEDI | F4: SI | G4: NA | H4: NA | I4: NA | J4: NA | K4: NA | L4: NA | M4: NA | N4: NA | O4: 0.8 | P4: NA | Q4: NA | R4: NA | S4: NA | T4: 1 | U4: NA | V4: NA | W4: SI
A5: CMESM | F5: SI | G5: SI | H5: SI | I5: NA | J5: NA | K5: NA | L5: SI | M5: NA | N5: NA | O5: 1 | P5: NA | Q5: NA | R5: NA | S5: NA | T5: 1 | U5: NA | V5: NA | W5: NA
A6: DACBT | F6: SI | G6: SI | H6: SI | I6: NA | J6: NA | K6: NA | L6: NA | M6: NA | N6: NA | O6: 1 | P6: NA | Q6: NA | R6: NA | S6: 02060906 | T6: 1 | U6: NA | V6: NA | W6: NA
A7: DCRMM | F7: SI | G7: SI | H7: SI | I7: NA | J7: NA | K7: NA | L7: SI | M7: NA | N7: NA | O7: 1 | P7: NA | Q7: NA | R7: NA | S7: NA | T7: 1 | U7: NA | V7: NA | W7: NA
A8: DEQDM | F8: SI | G8: NA | H8: NA | I8: NA | J8: NA | K8: NA | L8: SI | M8: NA | N8: NA | O8: 1 | P8: NA | Q8: NA | R8: NA | S8: NA | T8: 1 | U8: NA | V8: SI | W8: NA
A9: DEQMC | F9: SI | G9: NA | H9: NA | I9: NA | J9: NA | K9: NA | L9: SI | M9: NA | N9: NA | O9: 1 | P9: NA | Q9: NA | R9: NA | S9: NA | T9: 1 | U9: NA | V9: SI | W9: NA
A10: DEQOT | F10: SI | G10: SI | H10: SI | I10: NA | J10: NA | K10: NA | L10: SI | M10: NA | N10: NA | O10: 1 | P10: NA | Q10: NA | R10: NA | S10: NA | T10: 1 | U10: NA | V10: SI | W10: NA
A11: DLAAT-115 | B11: DLA | F11: SI | G11: SI | H11: SI | I11: SI | J11: SI | K11: NA | L11: SI | M11: Conductor | N11: SI | O11: 1 | P11: vano | Q11: 100 | R11: 0.3 | S11: NA | T11: 1 | U11: NA | V11: NA | W11: NA
A12: DLAAT-230 | B12: DLA | F12: SI | G12: SI | H12: SI | I12: SI | J12: SI | K12: NA | L12: SI | M12: Conductor | N12: SI | O12: 1 | P12: vano | Q12: 60 | R12: 0.3 | S12: NA | T12: 1 | U12: NA | V12: NA | W12: NA
A13: DLABT | B13: DLA | F13: SI | G13: SI | H13: SI | I13: SI | J13: SI | K13: NA | L13: SI | M13: Conductor | N13: SI | O13: 1 | P13: vano | Q13: 30 | R13: 0.3 | S13: 0206170220032403 | T13: 1 | U13: NA | V13: NA | W13: NA
A14: DLAMT-13,8 | B14: DLA | F14: SI | G14: SI | H14: SI | I14: SI | J14: SI | K14: NA | L14: SI | M14: Conductor | N14: SI | O14: 1 | P14: vano | Q14: 45 | R14: 0.3 | S14: 0209200223022603 | T14: 1 | U14: NA | V14: NA | W14: NA
A15: DLAMT-34,5 | B15: DLA | F15: SI | G15: SI | H15: SI | I15: SI | J15: SI | K15: NA | L15: SI | M15: Conductor | N15: SI | O15: 1 | P15: vano | Q15: 45 | R15: 0.3 | S15: 0209200223022603 | T15: 0.95 | U15: NA | V15: NA | W15: NA
A16: DLAMT-Otras | B16: DLA | F16: SI | G16: SI | H16: SI | I16: SI | J16: SI | K16: NA | L16: SI | M16: Conductor | N16: SI | O16: 1 | P16: vano | Q16: 45 | R16: 0.3 | S16: 0209200223022603 | T16: 1 | U16: NA | V16: NA | W16: NA
A17: DLSAT-115 | B17: DLS | F17: SI | G17: SI | H17: SI | I17: NA | J17: SI | K17: SI | L17: SI | M17: NA | N17: NA | O17: 1 | P17: NA | Q17: NA | R17: NA | S17: NA | T17: 1 | U17: NA | V17: NA | W17: NA
A18: DLSAT-230 | B18: DLS | F18: SI | G18: SI | H18: SI | I18: NA | J18: SI | K18: SI | L18: SI | M18: NA | N18: NA | O18: 1 | P18: NA | Q18: NA | R18: NA | S18: NA | T18: 1 | U18: NA | V18: NA | W18: NA
A19: DLSBT | B19: DLS | F19: SI | G19: SI | H19: SI | I19: NA | J19: SI | K19: SI | L19: SI | M19: Conductor | N19: SI | O19: 1 | P19: VolumenZanja | Q19: 1000 | R19: 0.5 | S19: 020624022703 | T19: 1 | U19: NA | V19: NA | W19: NA
A20: DLSMT-13,8 | B20: DLS | F20: SI | G20: SI | H20: SI | I20: NA | J20: SI | K20: SI | L20: SI | M20: Conductor | N20: SI | O20: 1 | P20: VolumenZanja | Q20: 1000 | R20: 0.5 | S20: 020826043103 | T20: 1 | U20: NA | V20: NA | W20: NA
A21: DLSMT-34,5 | B21: DLS | F21: SI | G21: SI | H21: SI | I21: NA | J21: SI | K21: SI | L21: SI | M21: NA | N21: SI | O21: 1 | P21: NA | Q21: 1000 | R21: 0.5 | S21: NA | T21: 1 | U21: NA | V21: NA | W21: NA
A22: DLSMT-Otras | B22: DLS | F22: SI | G22: SI | H22: SI | I22: NA | J22: SI | K22: SI | L22: SI | M22: NA | N22: NA | O22: 1 | P22: NA | Q22: NA | R22: NA | S22: NA | T22: 1 | U22: NA | V22: NA | W22: NA
A23: DTRAM-115 | F23: SI | G23: NA | H23: NA | I23: NA | J23: NA | K23: NA | L23: SI | M23: NA | N23: NA | O23: 1 | P23: NA | Q23: NA | R23: NA | S23: NA | T23: 1 | U23: NA | V23: NA | W23: NA
A24: DTRAM-230 | F24: SI | G24: NA | H24: NA | I24: NA | J24: NA | K24: NA | L24: SI | M24: NA | N24: NA | O24: 1 | P24: NA | Q24: NA | R24: NA | S24: NA | T24: 1 | U24: NA | V24: NA | W24: NA
A25: DTRMB-13,8 | F25: SI | G25: SI | H25: SI | I25: NA | J25: NA | K25: NA | L25: SI | M25: CantTrbtOtC | N25: SI | O25: 1 | P25: NA | Q25: NA | R25: NA | S25: 02081106 | T25: 1 | U25: NA | V25: NA | W25: SI
A26: DTRMB-34,5 | F26: SI | G26: SI | H26: SI | I26: NA | J26: NA | K26: NA | L26: SI | M26: CantTrbtOtC | N26: SI | O26: 1 | P26: NA | Q26: NA | R26: NA | S26: 02081106 | T26: 1 | U26: NA | V26: NA | W26: SI
A27: DTRMB-Otras | F27: SI | G27: SI | H27: SI | I27: NA | J27: NA | K27: NA | L27: SI | M27: CantTrbtOtC | N27: SI | O27: 1 | P27: NA | Q27: NA | R27: NA | S27: 02081106 | T27: 1 | U27: NA | V27: NA | W27: SI
A28: DTRMM-13,8 | F28: SI | G28: NA | H28: NA | I28: NA | J28: NA | K28: NA | L28: SI | M28: NA | N28: NA | O28: 1 | P28: NA | Q28: NA | R28: NA | S28: NA | T28: 1 | U28: NA | V28: NA | W28: NA
A29: DTRMM-34,5 | F29: SI | G29: NA | H29: NA | I29: NA | J29: NA | K29: NA | L29: SI | M29: NA | N29: NA | O29: 1 | P29: NA | Q29: NA | R29: NA | S29: NA | T29: 1 | U29: NA | V29: NA | W29: NA
A30: DTRMM-Otras | F30: SI | G30: NA | H30: NA | I30: NA | J30: NA | K30: NA | L30: SI | M30: NA | N30: NA | O30: 1 | P30: NA | Q30: NA | R30: NA | S30: NA | T30: 1 | U30: NA | V30: NA | W30: NA
A31: PEDYM | F31: SI | G31: NA | H31: NA | I31: NA | J31: NA | K31: NA | L31: NA | M31: NA | N31: NA | O31: 1 | P31: NA | Q31: NA | R31: NA | S31: NA | T31: 1 | U31: SI | V31: NA | W31: NA
A32: PEQCM | F32: SI | G32: NA | H32: NA | I32: NA | J32: NA | K32: NA | L32: NA | M32: NA | N32: NA | O32: 1 | P32: NA | Q32: NA | R32: NA | S32: NA | T32: 1 | U32: NA | V32: SI | W32: NA
A33: PEQCO | F33: SI | G33: NA | H33: NA | I33: NA | J33: NA | K33: NA | L33: NA | M33: NA | N33: NA | O33: 1 | P33: NA | Q33: NA | R33: NA | S33: NA | T33: 1 | U33: NA | V33: SI | W33: NA
A34: PEQOT | F34: SI | G34: NA | H34: NA | I34: NA | J34: NA | K34: NA | L34: NA | M34: NA | N34: NA | O34: 1 | P34: NA | Q34: NA | R34: NA | S34: NA | T34: 1 | U34: NA | V34: Si | W34: NA
A35: PEQTC | F35: SI | G35: NA | H35: NA | I35: NA | J35: NA | K35: NA | L35: NA | M35: NA | N35: NA | O35: 1 | P35: NA | Q35: NA | R35: NA | S35: NA | T35: 1 | U35: NA | V35: NA | W35: NA
A36: PMOBI | F36: SI | G36: NA | H36: NA | I36: NA | J36: NA | K36: NA | L36: NA | M36: NA | N36: NA | O36: 1 | P36: NA | Q36: NA | R36: NA | S36: NA | T36: 1 | U36: NA | V36: Si | W36: NA
A37: PPLIN | F37: SI | G37: NA | H37: NA | I37: NA | J37: NA | K37: NA | L37: NA | M37: NA | N37: NA | O37: 1 | P37: NA | Q37: NA | R37: NA | S37: NA | T37: 1 | U37: NA | V37: NA | W37: NA
A38: PTERR | F38: SI | G38: NA | H38: NA | I38: NA | J38: NA | K38: NA | L38: NA | M38: m2 | N38: Si | O38: 1 | P38: NA | Q38: NA | R38: NA | S38: 0105 | T38: 1 | U38: SI | V38: NA | W38: NA

Sheet Parametros
A1: Parámetro | B1: Valor
A2: FechaMin | B2: 2009-12-31
A3: FechaMax | B3: 2011-12-31
A4: MaterialesMin | B4: 0
A5: MObraMin | B5: 0.01
A6: MObraMax | B6: 0.99
A7: PosteInicio | B7: 17
A8: PosteFin | B8: 19
A9: PosteInicioBT | B9: 14
A10: PosteFinBT | B10: 16
A11: DLA | B11: 50
A12: DLS | B12: 20
A13: CondInicio | B13: 11
A14: CondFin | B14: 15
A15: CondInicioBT | B15: 8
A16: CondFinBT | B16: 12
A17: ZanjaInicio | B17: 18
A18: ZanjaFin | B18: 21
A19: ZanjaInicioBT | B19: 15
A20: ZanjaFinBT | B20: 18
A21: CostoTotalMin | B21: 100
A22: PostesMin | B22: 2
A23: FactorAsig | B23: 0.5
A24: m2Inicio | B24: 15
A25: m2Fin | B25: 20
A26: m2Min | B26: 0 | C26: <=
A27: PEDYM | B27: 1
A28: PTERR | B28: 0
A29: CantMobPCComOtMin | B29: 0 | C29: <=
A30: CantTrbtOtCMin | B30: 0 | C30: >
A31: MDOmin | B31: 0

Sheet ValoresReferenciales
A1: Activo | B1: Valor Referencial | C1: Factor Ajuste Asignaciòn | D1: Valor Comparativo
A2: X | B2: 0 | C2: 0 | D2: NA
A12: =[1]ValoresReferenciales!A12 -> LABTM1HO3AL002 | B12: =[1]ValoresReferenciales!B12 -> 13.02876403 | C12: =[1]ValoresReferenciales!C12 -> 0.2 | D12: =B12*(1+C12) -> 15.63451684
A13: =[1]ValoresReferenciales!A13 -> LABTM1HO3AL006 | B13: =[1]ValoresReferenciales!B13 -> 12.30494381 | C13: =[1]ValoresReferenciales!C13 -> 0.2 | D13: =B13*(1+C13) -> 14.76593257
A14: =[1]ValoresReferenciales!A14 -> LABTT1HO4AL4/0 | B14: =[1]ValoresReferenciales!B14 -> 25.42945378 | C14: =[1]ValoresReferenciales!C14 -> 0.2 | D14: 30.51534454
A15: =[1]ValoresReferenciales!A15 -> LABTM1HO3AL4/0 | B15: =[1]ValoresReferenciales!B15 -> 15.92404492 | C15: =[1]ValoresReferenciales!C15 -> 0.2 | D15: 19.10885391
A16: =[1]ValoresReferenciales!A16 -> LABTM1HO3AL1/0 | B16: =[1]ValoresReferenciales!B16 -> 14.47640448 | C16: =[1]ValoresReferenciales!C16 -> 0.2 | D16: 17.37168537
A17: =[1]ValoresReferenciales!A17 -> LABTT1HO4AL336 | B17: =[1]ValoresReferenciales!B17 -> 30.32307549 | C17: =[1]ValoresReferenciales!C17 -> 0.2 | D17: 36.38769059
A18: =[1]ValoresReferenciales!A18 -> LABTM1HO2AL006 | B18: =[1]ValoresReferenciales!B18 -> 15.08046384 | C18: =[1]ValoresReferenciales!C18 -> 0.2 | D18: 18.09655661
A19: =[1]ValoresReferenciales!A19 -> LABTM1HO3AL004 | B19: =[1]ValoresReferenciales!B19 -> 12.66685392 | C19: =[1]ValoresReferenciales!C19 -> 0.2 | D19: 15.2002247
A20: =[1]ValoresReferenciales!A20 -> LABTT1HO4AL1/0 | B20: =[1]ValoresReferenciales!B20 -> 16.03440238 | C20: =[1]ValoresReferenciales!C20 -> 0.2 | D20: 19.24128285
A21: =[1]ValoresReferenciales!A21 -> LABTM1HO1CU004 | B21: =[1]ValoresReferenciales!B21 -> 17.74172216 | C21: =[1]ValoresReferenciales!C21 -> 0.2 | D21: 21.2900666
A22: =[1]ValoresReferenciales!A22 -> LABTM1HO1CU006 | B22: =[1]ValoresReferenciales!B22 -> 17.74172216 | C22: =[1]ValoresReferenciales!C22 -> 0.2 | D22: 21.2900666
A23: =[1]ValoresReferenciales!A23 -> LAMT138T1HOAS477 | B23: =[1]ValoresReferenciales!B23 -> 26.58703333 | C23: =[1]ValoresReferenciales!C23 -> 0.2 | D23: 31.90443999
A24: =[1]ValoresReferenciales!A24 -> LAMT138T1HOAS1/0 | B24: =[1]ValoresReferenciales!B24 -> 20.07613049 | C24: =[1]ValoresReferenciales!C24 -> 0.2 | D24: 24.09135659
A25: =[1]ValoresReferenciales!A25 -> LAMT138M1HOAS1/0 | B25: =[1]ValoresReferenciales!B25 -> 15.21701129 | C25: =[1]ValoresReferenciales!C25 -> 0.2 | D25: 18.26041354
A26: =[1]ValoresReferenciales!A26 -> LAMT138T1HOOO477 | B26: =[1]ValoresReferenciales!B26 -> 26.58703333 | C26: =[1]ValoresReferenciales!C26 -> 0.2 | D26: 31.90443999 | N26: º
A27: =[1]ValoresReferenciales!A27 -> LAMT138T1HOOO1/0 | B27: =[1]ValoresReferenciales!B27 -> 20.07613049 | C27: =[1]ValoresReferenciales!C27 -> 0.2 | D27: 24.09135659
A28: =[1]ValoresReferenciales!A28 -> LAMT138T1HOAS266 | B28: =[1]ValoresReferenciales!B28 -> 35.18443006 | C28: =[1]ValoresReferenciales!C28 -> 0.2 | D28: 42.22131607
A29: =[1]ValoresReferenciales!A29 -> LAMT138M1HOAS004 | B29: =[1]ValoresReferenciales!B29 -> 15.21701129 | C29: =[1]ValoresReferenciales!C29 -> 0.2 | D29: 18.26041354
A30: =[1]ValoresReferenciales!A30 -> LAMT345M1HOAS1/0 | B30: =[1]ValoresReferenciales!B30 -> 15.72825409 | C30: =[1]ValoresReferenciales!C30 -> 0.2 | D30: 18.8739049
A31: =[1]ValoresReferenciales!A31 -> LAMT345T1HOAS1/0 | B31: =[1]ValoresReferenciales!B31 -> 21.32806781 | C31: =[1]ValoresReferenciales!C31 -> 0.2 | D31: 25.59368137
A32: =[1]ValoresReferenciales!A32 -> LAMT345T1HOAS477 | B32: =[1]ValoresReferenciales!B32 -> 27.83897065 | C32: =[1]ValoresReferenciales!C32 -> 0.2 | D32: 33.40676477
A33: =[1]ValoresReferenciales!A33 -> LAMT345T1HOAS266 | B33: =[1]ValoresReferenciales!B33 -> 23.6219547 | C33: =[1]ValoresReferenciales!C33 -> 0.2 | D33: 28.34634564
A34: =[1]ValoresReferenciales!A34 -> LAMT345T2HOAL477 | B34: =[1]ValoresReferenciales!B34 -> 27.83897065 | C34: =[1]ValoresReferenciales!C34 -> 0.2 | D34: 33.40676477
A35: =[1]ValoresReferenciales!A35 -> LSBTT1AL4/0 | B35: =[1]ValoresReferenciales!B35 -> 77.88783589 | C35: =[1]ValoresReferenciales!C35 -> 0.2 | D35: 93.46540306
A36: =[1]ValoresReferenciales!A36 -> LSBTT1AL500 | B36: =[1]ValoresReferenciales!B36 -> 88.01362292 | C36: =[1]ValoresReferenciales!C36 -> 0.2 | D36: 105.6163475
A37: =[1]ValoresReferenciales!A37 -> LSBTT1AL1/0 | B37: =[1]ValoresReferenciales!B37 -> 70.74921995 | C37: =[1]ValoresReferenciales!C37 -> 0.2 | D37: 84.89906394
A38: =[1]ValoresReferenciales!A38 -> LSBTM1AL002 | B38: =[1]ValoresReferenciales!B38 -> 62.59084859 | C38: =[1]ValoresReferenciales!C38 -> 0.2 | D38: 75.1090183
A39: =[1]ValoresReferenciales!A39 -> LSBTM1AL1/0 | B39: =[1]ValoresReferenciales!B39 -> 65.88510377 | C39: =[1]ValoresReferenciales!C39 -> 0.2 | D39: 79.06212453
A40: =[1]ValoresReferenciales!A40 -> LSBTM1AL500 | B40: =[1]ValoresReferenciales!B40 -> 75.4191993 | C40: =[1]ValoresReferenciales!C40 -> 0.2 | D40: 90.50303917
A41: =[1]ValoresReferenciales!A41 -> LSBTM1AL4/0 | B41: =[1]ValoresReferenciales!B41 -> 71.99105388 | C41: =[1]ValoresReferenciales!C41 -> 0.2 | D41: 86.38926466
A42: =[1]ValoresReferenciales!A42 -> LSBTM1AL006 | B42: =[1]ValoresReferenciales!B42 -> 62.59084859 | C42: =[1]ValoresReferenciales!C42 -> 0.2 | D42: 75.1090183
A43: =[1]ValoresReferenciales!A43 -> LSBTM1CU008 | B43: =[1]ValoresReferenciales!B43 -> 62.59084859 | C43: =[1]ValoresReferenciales!C43 -> 0.2 | D43: 75.1090183
A44: =[1]ValoresReferenciales!A44 -> LSMT138TLAAL4/0 | B44: =[1]ValoresReferenciales!B44 -> 123.6163839 | C44: =[1]ValoresReferenciales!C44 -> 0.2 | D44: 148.3396607
A45: =[1]ValoresReferenciales!A45 -> LSMT138TLAAL500 | B45: =[1]ValoresReferenciales!B45 -> 149.467061 | C45: =[1]ValoresReferenciales!C45 -> 0.2 | D45: 179.3604732
A46: =[1]ValoresReferenciales!A46 -> LSMT138TLAAL750 | B46: =[1]ValoresReferenciales!B46 -> 156.940414 | C46: =[1]ValoresReferenciales!C46 -> 0.2 | D46: 188.3284968
A47: =[1]ValoresReferenciales!A47 -> LSMT138TLACU500 | B47: =[1]ValoresReferenciales!B47 -> 256.7811942 | C47: =[1]ValoresReferenciales!C47 -> 0.2 | D47: 308.1374331
A48: =[1]ValoresReferenciales!A48 -> LSMT138TLAAL1/0 | B48: =[1]ValoresReferenciales!B48 -> 110.085221 | C48: =[1]ValoresReferenciales!C48 -> 0.2 | D48: 132.1022652
A49: =[1]ValoresReferenciales!A49 -> LSMT138MLAAL1/0 | B49: =[1]ValoresReferenciales!B49 -> 69.79251929 | C49: =[1]ValoresReferenciales!C49 -> 0.2 | D49: 83.75102315
A50: =[1]ValoresReferenciales!A50 -> TRMB138T0500IG | B50: =[1]ValoresReferenciales!B50 -> 28462.99228 | C50: =[1]ValoresReferenciales!C50 -> 0.2 | D50: 34155.59074
A51: =[1]ValoresReferenciales!A51 -> TRMB138M0010IP | B51: =[1]ValoresReferenciales!B51 -> 1651.366833 | C51: =[1]ValoresReferenciales!C51 -> 0.2 | D51: 1981.640199
A52: =[1]ValoresReferenciales!A52 -> TRMB138T0750SG | B52: =[1]ValoresReferenciales!B52 -> 46993.88534 | C52: =[1]ValoresReferenciales!C52 -> 0.2 | D52: 56392.66241
A53: =[1]ValoresReferenciales!A53 -> TRMB138T1000IG | B53: =[1]ValoresReferenciales!B53 -> 54079.68534 | C53: =[1]ValoresReferenciales!C53 -> 0.2 | D53: 64895.62241
A54: =[1]ValoresReferenciales!A54 -> TRMB138T0750IG | B54: =[1]ValoresReferenciales!B54 -> 42694.48843 | C54: =[1]ValoresReferenciales!C54 -> 0.2 | D54: 51233.38611
A55: =[1]ValoresReferenciales!A55 -> TRMB138T0300IG | B55: =[1]ValoresReferenciales!B55 -> 27629.11796 | C55: =[1]ValoresReferenciales!C55 -> 0.2 | D55: 33154.94155
A56: =[1]ValoresReferenciales!A56 -> TRMB138M0075IP | B56: =[1]ValoresReferenciales!B56 -> 4641.060867 | C56: =[1]ValoresReferenciales!C56 -> 0.2 | D56: 5569.273041
A57: =[1]ValoresReferenciales!A57 -> TRMB138T0150IG | B57: =[1]ValoresReferenciales!B57 -> 15709.36758 | C57: =[1]ValoresReferenciales!C57 -> 0.2 | D57: 18851.24109
A58: =[1]ValoresReferenciales!A58 -> TRMB138T1500IG | B58: =[1]ValoresReferenciales!B58 -> 76850.07917 | C58: =[1]ValoresReferenciales!C58 -> 0.2 | D58: 92220.095
A59: =[1]ValoresReferenciales!A59 -> TRMB138T0075IP | B59: =[1]ValoresReferenciales!B59 -> 4545.332899 | C59: =[1]ValoresReferenciales!C59 -> 0.2 | D59: 5454.399478
A60: =[1]ValoresReferenciales!A60 -> TRMB138T0225IP | B60: =[1]ValoresReferenciales!B60 -> 13923.1826 | C60: =[1]ValoresReferenciales!C60 -> 0.2 | D60: 16707.81912
A61: =[1]ValoresReferenciales!A61 -> TRMB138T0150IP | B61: =[1]ValoresReferenciales!B61 -> 12758.94146 | C61: =[1]ValoresReferenciales!C61 -> 0.2 | D61: 15310.72975
A62: =[1]ValoresReferenciales!A62 -> TRMB138M0025IP | B62: =[1]ValoresReferenciales!B62 -> 1957.122122 | C62: =[1]ValoresReferenciales!C62 -> 0.2 | D62: 2348.546547
A63: =[1]ValoresReferenciales!A63 -> TRMB138M0050IP | B63: =[1]ValoresReferenciales!B63 -> 4252.980487 | C63: =[1]ValoresReferenciales!C63 -> 0.2 | D63: 5103.576585
A64: =[1]ValoresReferenciales!A64 -> TRMB138M0075IG | B64: =[1]ValoresReferenciales!B64 -> 6747.596982 | C64: =[1]ValoresReferenciales!C64 -> 0.2 | D64: 8097.116379
A65: =[1]ValoresReferenciales!A65 -> TRMB138T2500IG | B65: =[1]ValoresReferenciales!B65 -> 113851.9691 | C65: =[1]ValoresReferenciales!C65 -> 0.2 | D65: 136622.363
A66: =[1]ValoresReferenciales!A66 -> TRMB138M0100IG | B66: =[1]ValoresReferenciales!B66 -> 8355.222062 | C66: =[1]ValoresReferenciales!C66 -> 0.2 | D66: 10026.26647
A67: =[1]ValoresReferenciales!A67 -> TRMB138M0167IP | B67: =[1]ValoresReferenciales!B67 -> 14204.95483 | C67: =[1]ValoresReferenciales!C67 -> 0.2 | D67: 17045.94579
A68: =[1]ValoresReferenciales!A68 -> TRMB138T0030IP | B68: =[1]ValoresReferenciales!B68 -> 4504.433475 | C68: =[1]ValoresReferenciales!C68 -> 0.2 | D68: 5405.32017
A69: =[1]ValoresReferenciales!A69 -> TRMB138M0050IG | B69: =[1]ValoresReferenciales!B69 -> 7854.58017 | C69: =[1]ValoresReferenciales!C69 -> 0.2 | D69: 9425.496205
A70: =[1]ValoresReferenciales!A70 -> TRMB138T0100IP | B70: =[1]ValoresReferenciales!B70 -> 5537.456341 | C70: =[1]ValoresReferenciales!C70 -> 0.2 | D70: 6644.947609
A71: =[1]ValoresReferenciales!A71 -> TRMB138T0050IP | B71: =[1]ValoresReferenciales!B71 -> 4717.189028 | C71: =[1]ValoresReferenciales!C71 -> 0.2 | D71: 5660.626834
A72: =[1]ValoresReferenciales!A72 -> TRMB138M0015IP | B72: =[1]ValoresReferenciales!B72 -> 1777.886183 | C72: =[1]ValoresReferenciales!C72 -> 0.2 | D72: 2133.463419
A73: =[1]ValoresReferenciales!A73 -> TRMB138M0037IP | B73: =[1]ValoresReferenciales!B73 -> 3370.977507 | C73: =[1]ValoresReferenciales!C73 -> 0.2 | D73: 4045.173008
A74: =[1]ValoresReferenciales!A74 -> TRMB345T0050IP | B74: =[1]ValoresReferenciales!B74 -> 6958.433588 | C74: =[1]ValoresReferenciales!C74 -> 0.2 | D74: 8350.120306
A75: =[1]ValoresReferenciales!A75 -> TRMB345M0010IP | B75: =[1]ValoresReferenciales!B75 -> 2719.862152 | C75: =[1]ValoresReferenciales!C75 -> 0.2 | D75: 3263.834583
A76: =[1]ValoresReferenciales!A76 -> TRMB345M0025IP | B76: =[1]ValoresReferenciales!B76 -> 3366.972477 | C76: =[1]ValoresReferenciales!C76 -> 0.2 | D76: 4040.366972
A77: =[1]ValoresReferenciales!A77 -> TRMB345M0050IP | B77: =[1]ValoresReferenciales!B77 -> 4860.525621 | C77: =[1]ValoresReferenciales!C77 -> 0.2 | D77: =B77*(1+C77) -> 5832.630746
A78: =[1]ValoresReferenciales!A78 -> TRMB345T1500IG | B78: =[1]ValoresReferenciales!B78 -> 88941.60574 | C78: =[1]ValoresReferenciales!C78 -> 0.2 | D78: 106729.9269
A79: =[1]ValoresReferenciales!A79 -> TRMB345M0100IG | B79: =[1]ValoresReferenciales!B79 -> 15247.13136 | C79: =[1]ValoresReferenciales!C79 -> 0.2 | D79: 18296.55764
A80: =[1]ValoresReferenciales!A80 -> TRMB345M0075IP | B80: =[1]ValoresReferenciales!B80 -> 5850.726494 | C80: =[1]ValoresReferenciales!C80 -> 0.2 | D80: 7020.871792
A81: =[1]ValoresReferenciales!A81 -> TRMB345T0500IG | B81: =[1]ValoresReferenciales!B81 -> 29647.20191 | C81: =[1]ValoresReferenciales!C81 -> 0.2 | D81: 35576.64229
A82: =[1]ValoresReferenciales!A82 -> TRMB345T0225IP | B82: =[1]ValoresReferenciales!B82 -> 17552.17948 | C82: =[1]ValoresReferenciales!C82 -> 0.2 | D82: 21062.61538
A83: =[1]ValoresReferenciales!A83 -> TRMB345T0150IP | B83: =[1]ValoresReferenciales!B83 -> 14581.57686 | C83: =[1]ValoresReferenciales!C83 -> 0.2 | D83: 17497.89224
A84: =[1]ValoresReferenciales!A84 -> TRMB345T0075IP | B84: =[1]ValoresReferenciales!B84 -> 9053.348391 | C84: =[1]ValoresReferenciales!C84 -> 0.2 | D84: 10864.01807
A85: =[1]ValoresReferenciales!A85 -> TRMB345M0050IG | B85: =[1]ValoresReferenciales!B85 -> 9931.870514 | C85: =[1]ValoresReferenciales!C85 -> 0.2 | D85: 11918.24462
A86: =[1]ValoresReferenciales!A86 -> TRMB345M0167IG | B86: =[1]ValoresReferenciales!B86 -> 19977.27163 | C86: =[1]ValoresReferenciales!C86 -> 0.2 | D86: 23972.72595
A87: =[1]ValoresReferenciales!A87 -> TRMB345T0150IG | B87: =[1]ValoresReferenciales!B87 -> 17943.65715 | C87: =[1]ValoresReferenciales!C87 -> 0.2 | D87: 21532.38858
A88: =[1]ValoresReferenciales!A88 -> TRMB345T0300IG | B88: =[1]ValoresReferenciales!B88 -> 28813.32759 | C88: =[1]ValoresReferenciales!C88 -> 0.2 | D88: 34575.99311
A89: =[1]ValoresReferenciales!A89 -> TRMB345T0750IG | B89: =[1]ValoresReferenciales!B89 -> 44470.80287 | C89: =[1]ValoresReferenciales!C89 -> 0.2 | D89: 53364.96344
A90: =[1]ValoresReferenciales!A90 -> TRMB345T1000IG | B90: =[1]ValoresReferenciales!B90 -> 59294.40382 | C90: =[1]ValoresReferenciales!C90 -> 0.2 | D90: 71153.28459
A91: =[1]ValoresReferenciales!A91 -> TRMB345T0030IP | B91: =[1]ValoresReferenciales!B91 -> 5768.059113 | C91: =[1]ValoresReferenciales!C91 -> 0.2 | D91: 6921.670936
A92: =[1]ValoresReferenciales!A92 -> TRMB345T0100IP | B92: =[1]ValoresReferenciales!B92 -> 12091.13729 | C92: =[1]ValoresReferenciales!C92 -> 0.2 | D92: 14509.36475
A93: =[1]ValoresReferenciales!A93 -> TRMB345M0037IP | B93: =[1]ValoresReferenciales!B93 -> 4299.247117 | C93: =[1]ValoresReferenciales!C93 -> 0.2 | D93: 5159.09654
A94: =[1]ValoresReferenciales!A94 -> LABTM1HO1CU008 | B94: =[1]ValoresReferenciales!B94 -> 17.74172216 | C94: =[1]ValoresReferenciales!C94 -> 0.2 | D94: 21.2900666
A95: =[1]ValoresReferenciales!A95 -> LABTM1HO1AL1/0 | B95: =[1]ValoresReferenciales!B95 -> 17.74172216 | C95: =[1]ValoresReferenciales!C95 -> 0.2 | D95: 21.2900666
A96: =[1]ValoresReferenciales!A96 -> LAMT138T1HOAL1/0 | B96: =[1]ValoresReferenciales!B96 -> 20.07613049 | C96: =[1]ValoresReferenciales!C96 -> 0.2 | D96: 24.09135659
A97: =[1]ValoresReferenciales!A97 -> LAMT138M1MEAS1/0 | B97: =[1]ValoresReferenciales!B97 -> 15.21701129 | C97: =[1]ValoresReferenciales!C97 -> 0.2 | D97: 18.26041354
A98: =[1]ValoresReferenciales!A98 -> LAMT138T1HOAS004 | B98: =[1]ValoresReferenciales!B98 -> 20.07613049 | C98: =[1]ValoresReferenciales!C98 -> 0.2 | D98: 24.09135659
A99: =[1]ValoresReferenciales!A99 -> LAMT138T1MEAS477 | B99: =[1]ValoresReferenciales!B99 -> 26.58703333 | C99: =[1]ValoresReferenciales!C99 -> 0.2 | D99: 31.90443999
A100: =[1]ValoresReferenciales!A100 -> LAMT138M1HOAL1/0 | B100: =[1]ValoresReferenciales!B100 -> 15.21701129 | C100: =[1]ValoresReferenciales!C100 -> 0.2 | D100: 18.26041354
A101: =[1]ValoresReferenciales!A101 -> LAMT138T1MEAL1/0 | B101: =[1]ValoresReferenciales!B101 -> 20.07613049 | C101: =[1]ValoresReferenciales!C101 -> 0.2 | D101: 24.09135659
A102: =[1]ValoresReferenciales!A102 -> LAMT345M1MEAS1/0 | B102: =[1]ValoresReferenciales!B102 -> 15.72825409 | C102: =[1]ValoresReferenciales!C102 -> 0.2 | D102: 18.8739049
A103: =[1]ValoresReferenciales!A103 -> LAMT345T16HCAC47 | B103: =[1]ValoresReferenciales!B103 -> 27.83897065 | C103: =[1]ValoresReferenciales!C103 -> 0.2 | D103: 33.40676477
A104: =[1]ValoresReferenciales!A104 -> LAMT345T1MEAS1/0 | B104: =[1]ValoresReferenciales!B104 -> 21.32806781 | C104: =[1]ValoresReferenciales!C104 -> 0.2 | D104: 25.59368137
A105: =[1]ValoresReferenciales!A105 -> LAMT345T1HOAL1/0 | B105: =[1]ValoresReferenciales!B105 -> 21.32806781 | C105: =[1]ValoresReferenciales!C105 -> 0.2 | D105: 25.59368137
A106: =[1]ValoresReferenciales!A106 -> LAMT345M1HOAL1/0 | B106: =[1]ValoresReferenciales!B106 -> 15.72825409 | C106: =[1]ValoresReferenciales!C106 -> 0.2 | D106: 18.8739049
A107: =[1]ValoresReferenciales!A107 -> LAMT345T1MEAS477 | B107: =[1]ValoresReferenciales!B107 -> 27.83897065 | C107: =[1]ValoresReferenciales!C107 -> 0.2 | D107: 33.40676477
A108: =[1]ValoresReferenciales!A108 -> LAMT345M1HOAS04 | B108: =[1]ValoresReferenciales!B108 -> 15.72825409 | C108: =[1]ValoresReferenciales!C108 -> 0.2 | D108: 18.8739049
A109: =[1]ValoresReferenciales!A109 -> LAMT345T1HOOO477 | B109: =[1]ValoresReferenciales!B109 -> 27.83897065 | C109: =[1]ValoresReferenciales!C109 -> 0.2 | D109: 33.40676477
A110: =[1]ValoresReferenciales!A110 -> LSBTM1AL008 | B110: =[1]ValoresReferenciales!B110 -> 62.59084859 | C110: =[1]ValoresReferenciales!C110 -> 0.2 | D110: 75.1090183
A111: =[1]ValoresReferenciales!A111 -> LSBTT1AL336 | B111: =[1]ValoresReferenciales!B111 -> 83.82249802 | C111: =[1]ValoresReferenciales!C111 -> 0.2 | D111: 100.5869976
A112: =[1]ValoresReferenciales!A112 -> LSBTM1AL004 | B112: =[1]ValoresReferenciales!B112 -> 62.59084859 | C112: =[1]ValoresReferenciales!C112 -> 0.2 | D112: 75.1090183
A113: =[1]ValoresReferenciales!A113 -> LSBTT1CU500 | B113: =[1]ValoresReferenciales!B113 -> 92.20474782 | C113: =[1]ValoresReferenciales!C113 -> 0.2 | D113: 110.6456974
A114: =[1]ValoresReferenciales!A114 -> LSBTT1CU004 | B114: =[1]ValoresReferenciales!B114 -> 67.21175895 | C114: =[1]ValoresReferenciales!C114 -> 0.2 | D114: 80.65411074
A115: =[1]ValoresReferenciales!A115 -> LSBTT1AL004 | B115: =[1]ValoresReferenciales!B115 -> 67.21175895 | C115: =[1]ValoresReferenciales!C115 -> 0.2 | D115: 80.65411074
A116: =[1]ValoresReferenciales!A116 -> LSBTM1CU006 | B116: =[1]ValoresReferenciales!B116 -> 62.59084859 | C116: =[1]ValoresReferenciales!C116 -> 0.2 | D116: 75.1090183
A117: =[1]ValoresReferenciales!A117 -> LSMT138TLACU4/0 | B117: =[1]ValoresReferenciales!B117 -> 168.0848758 | C117: =[1]ValoresReferenciales!C117 -> 0.2 | D117: 201.7018509
A118: =[1]ValoresReferenciales!A118 -> TRMB138M0167IG | B118: =[1]ValoresReferenciales!B118 -> 17489.76257 | C118: =[1]ValoresReferenciales!C118 -> 0.2 | D118: 20987.71508
A119: =[1]ValoresReferenciales!A119 -> TRMB138M0100IP | B119: =[1]ValoresReferenciales!B119 -> 8505.960974 | C119: =[1]ValoresReferenciales!C119 -> 0.2 | D119: 10207.15317
A120: =[1]ValoresReferenciales!A120 -> TRMB345M0250IP | B120: =[1]ValoresReferenciales!B120 -> 19502.42165 | C120: =[1]ValoresReferenciales!C120 -> 0.2 | D120: 23402.90597
A121: =[1]ValoresReferenciales!A121 -> TRMB345T0025IP | B121: =[1]ValoresReferenciales!B121 -> 4806.715927 | C121: =[1]ValoresReferenciales!C121 -> 0.2 | D121: 5768.059113
A122: =[1]ValoresReferenciales!A122 -> LABTM1HO1AL002 | B122: =[1]ValoresReferenciales!B122 -> 15.96754995 | C122: =[1]ValoresReferenciales!C122 -> 0.2 | D122: 19.16105994
A123: =[1]ValoresReferenciales!A123 -> LAMT138T1HOAL477 | B123: =[1]ValoresReferenciales!B123 -> 26.58703333 | C123: =[1]ValoresReferenciales!C123 -> 0.2 | D123: 31.90443999
A124: =[1]ValoresReferenciales!A124 -> LAMT345T1HOAL477 | B124: =[1]ValoresReferenciales!B124 -> 27.83897065 | C124: =[1]ValoresReferenciales!C124 -> 0.2 | D124: 33.40676477
A125: =[1]ValoresReferenciales!A125 -> LAMT345T1HOOO1/0 | B125: =[1]ValoresReferenciales!B125 -> 21.32806781 | C125: =[1]ValoresReferenciales!C125 -> 0.2 | D125: 25.59368137
A126: =[1]ValoresReferenciales!A126 -> LSMT138TLACU002 | B126: =[1]ValoresReferenciales!B126 -> 136.5880724 | C126: =[1]ValoresReferenciales!C126 -> 0.2 | D126: 163.9056869
A127: =[1]ValoresReferenciales!A127 -> LSMT138TLACU004 | B127: =[1]ValoresReferenciales!B127 -> 136.5880724 | C127: =[1]ValoresReferenciales!C127 -> 0.2 | D127: 163.9056869
A128: =[1]ValoresReferenciales!A128 -> LSMT138MLACU020 | B128: =[1]ValoresReferenciales!B128 -> 81.02308558 | C128: =[1]ValoresReferenciales!C128 -> 0.2 | D128: 97.2277027
A129: =[1]ValoresReferenciales!A129 -> TRMB138M2500IG | B129: =[1]ValoresReferenciales!B129 -> 28462.99228 | C129: =[1]ValoresReferenciales!C129 -> 0.2 | D129: 34155.59074
A130: =[1]ValoresReferenciales!A130 -> TRMB138T0300IP | B130: =[1]ValoresReferenciales!B130 -> 18564.24347 | C130: =[1]ValoresReferenciales!C130 -> 0.2 | D130: 22277.09216
A131: =[1]ValoresReferenciales!A131 -> TRMB138M1500IG | B131: =[1]ValoresReferenciales!B131 -> 85388.97685 | C131: =[1]ValoresReferenciales!C131 -> 0.2 | D131: 102466.7722
A132: =[1]ValoresReferenciales!A132 -> TRMB138M0250IP | B132: =[1]ValoresReferenciales!B132 -> 15470.20289 | C132: =[1]ValoresReferenciales!C132 -> 0.2 | D132: 18564.24347
A133: =[1]ValoresReferenciales!A133 -> TRMB345M0015IP | B133: =[1]ValoresReferenciales!B133 -> 3463.066797 | C133: =[1]ValoresReferenciales!C133 -> 0.2 | D133: 4155.680156
A134: =[1]ValoresReferenciales!A134 -> TRMB345M0100IP | B134: =[1]ValoresReferenciales!B134 -> 9721.051243 | C134: =[1]ValoresReferenciales!C134 -> 0.2 | D134: 11665.26149
A135: =[1]ValoresReferenciales!A135 -> TRMB345M0167IP | B135: =[1]ValoresReferenciales!B135 -> 13027.61766 | C135: =[1]ValoresReferenciales!C135 -> 0.2 | D135: 15633.14119
A136: =[1]ValoresReferenciales!A136 -> LABTM1MA3AL1/0 | B136: =[1]ValoresReferenciales!B136 -> 14.47640448 | C136: =[1]ValoresReferenciales!C136 -> 0.2 | D136: 17.37168537
A137: =[1]ValoresReferenciales!A137 -> LABTM1MA0AL1/0 | B137: =[1]ValoresReferenciales!B137 -> 17.74172216 | C137: =[1]ValoresReferenciales!C137 -> 0.2 | D137: 21.2900666
A138: =[1]ValoresReferenciales!A138 -> LABTM1HO0AL1/0 | B138: =[1]ValoresReferenciales!B138 -> 17.74172216 | C138: =[1]ValoresReferenciales!C138 -> 0.2 | D138: 21.2900666
A139: =[1]ValoresReferenciales!A139 -> LABTM1MA1AL1/0 | B139: =[1]ValoresReferenciales!B139 -> 17.74172216 | C139: =[1]ValoresReferenciales!C139 -> 0.2 | D139: 21.2900666
A140: =[1]ValoresReferenciales!A140 -> LAMT138M1MAAL1/0 | B140: =[1]ValoresReferenciales!B140 -> 14.32828048 | C140: =[1]ValoresReferenciales!C140 -> 0.2 | D140: 17.19393657
A141: =[1]ValoresReferenciales!A141 -> LAMT138T1MAAL1/0 | B141: =[1]ValoresReferenciales!B141 -> 19.88547168 | C141: =[1]ValoresReferenciales!C141 -> 0.2 | D141: =B141*(1+C141) -> 23.86256601
A142: =[1]ValoresReferenciales!A142 -> LAMT138T2HOAL477 | B142: =[1]ValoresReferenciales!B142 -> 34.56314333 | C142: =[1]ValoresReferenciales!C142 -> 0.2 | D142: 41.47577199
A143: =[1]ValoresReferenciales!A143 -> LAMT138T2MAAL477 | B143: =[1]ValoresReferenciales!B143 -> 35.1443363 | C143: =[1]ValoresReferenciales!C143 -> 0.2 | D143: 42.17320356
A144: =[1]ValoresReferenciales!A144 -> LAMT138T1HOAL266 | B144: =[1]ValoresReferenciales!B144 -> 29.94367656 | C144: =[1]ValoresReferenciales!C144 -> 0.2 | D144: 35.93241187
A145: =[1]ValoresReferenciales!A145 -> LAMT138T1MAAL477 | B145: =[1]ValoresReferenciales!B145 -> 27.03410484 | C145: =[1]ValoresReferenciales!C145 -> 0.2 | D145: 32.44092581
A146: =[1]ValoresReferenciales!A146 -> LAMT138T2HOAL266 | B146: =[1]ValoresReferenciales!B146 -> 38.92677952 | C146: =[1]ValoresReferenciales!C146 -> 0.2 | D146: 46.71213543
A147: =[1]ValoresReferenciales!A147 -> LAMT138T2HOAL1/0 | B147: =[1]ValoresReferenciales!B147 -> 26.09896964 | C147: =[1]ValoresReferenciales!C147 -> 0.2 | D147: 31.31876356
A148: =[1]ValoresReferenciales!A148 -> LAMT138B1HOAL1/0 | B148: =[1]ValoresReferenciales!B148 -> 17.40150499 | C148: =[1]ValoresReferenciales!C148 -> 0.2 | D148: 20.88180599
A149: =[1]ValoresReferenciales!A149 -> LAMT138B1MAAL1/0 | B149: =[1]ValoresReferenciales!B149 -> 18.06055356 | C149: =[1]ValoresReferenciales!C149 -> 0.2 | D149: 21.67266428
A150: =[1]ValoresReferenciales!A150 -> LAMT138T2MAAL1/0 | B150: =[1]ValoresReferenciales!B150 -> 25.85111318 | C150: =[1]ValoresReferenciales!C150 -> 0.2 | D150: 31.02133582
A151: =[1]ValoresReferenciales!A151 -> LAMT138T2HOAS477 | B151: =[1]ValoresReferenciales!B151 -> 34.56314333 | C151: =[1]ValoresReferenciales!C151 -> 0.2 | D151: 41.47577199
A152: =[1]ValoresReferenciales!A152 -> LAMT438T1HOAL477 | B152: =[1]ValoresReferenciales!B152 -> 32.01481624 | C152: =[1]ValoresReferenciales!C152 -> 0.2 | D152: 38.41777949
A153: =[1]ValoresReferenciales!A153 -> LAMT042M1MAAL1/0 | B153: =[1]ValoresReferenciales!B153 -> 14.32828048 | C153: =[1]ValoresReferenciales!C153 -> 0.2 | D153: 17.19393657
A154: =[1]ValoresReferenciales!A154 -> LSBTM1CU000 | B154: =[1]ValoresReferenciales!B154 -> 62.59084859 | C154: =[1]ValoresReferenciales!C154 -> 0.2 | D154: 75.1090183
A155: =[1]ValoresReferenciales!A155 -> LSBTT1CU000 | B155: =[1]ValoresReferenciales!B155 -> 67.21175895 | C155: =[1]ValoresReferenciales!C155 -> 0.2 | D155: 80.65411074
A156: =[1]ValoresReferenciales!A156 -> LSMT138MLACU002 | B156: =[1]ValoresReferenciales!B156 -> 76.9719313 | C156: =[1]ValoresReferenciales!C156 -> 0.2 | D156: 92.36631756
A157: =[1]ValoresReferenciales!A157 -> LSMT138MLACU4/0 | B157: =[1]ValoresReferenciales!B157 -> 92.98158874 | C157: =[1]ValoresReferenciales!C157 -> 0.2 | D157: 111.5779065
A158: =[1]ValoresReferenciales!A158 -> LSMT138TLACU000 | B158: =[1]ValoresReferenciales!B158 -> 136.5880724 | C158: =[1]ValoresReferenciales!C158 -> 0.2 | D158: 163.9056869
A159: =[1]ValoresReferenciales!A159 -> LSMT138TSLACA00 | B159: =[1]ValoresReferenciales!B159 -> 104.5809599 | C159: =[1]ValoresReferenciales!C159 -> 0.2 | D159: 125.4971519
A160: =[1]ValoresReferenciales!A160 -> LSMT138TSLACA4/ | B160: =[1]ValoresReferenciales!B160 -> 123.6163839 | C160: =[1]ValoresReferenciales!C160 -> 0.2 | D160: 148.3396607
A161: =[1]ValoresReferenciales!A161 -> TRMB138T0062IP | B161: =[1]ValoresReferenciales!B161 -> 4545.332899 | C161: =[1]ValoresReferenciales!C161 -> 0.2 | D161: 5454.399478
A162: =[1]ValoresReferenciales!A162 -> TRMB138T0087IP | B162: =[1]ValoresReferenciales!B162 -> 4545.332899 | C162: =[1]ValoresReferenciales!C162 -> 0.2 | D162: 5454.399478
A163: =[1]ValoresReferenciales!A163 -> TRMB138T0125IP | B163: =[1]ValoresReferenciales!B163 -> 5537.456341 | C163: =[1]ValoresReferenciales!C163 -> 0.2 | D163: 6644.947609
A164: =[1]ValoresReferenciales!A164 -> TRMB138T0040IP | B164: =[1]ValoresReferenciales!B164 -> 4717.189028 | C164: =[1]ValoresReferenciales!C164 -> 0.2 | D164: 5660.626834
A165: =[1]ValoresReferenciales!A165 -> TRMB138T0065IP | B165: =[1]ValoresReferenciales!B165 -> 4545.332899 | C165: =[1]ValoresReferenciales!C165 -> 0.2 | D165: 5454.399478
A166: =[1]ValoresReferenciales!A166 -> TRMB138M0025IG | B166: =[1]ValoresReferenciales!B166 -> 5875.244881 | C166: =[1]ValoresReferenciales!C166 -> 0.2 | D166: 7050.293857
A167: =[1]ValoresReferenciales!A167 -> TRMB138M0500IG | B167: =[1]ValoresReferenciales!B167 -> 28462.99228 | C167: =[1]ValoresReferenciales!C167 -> 0.2 | D167: 34155.59074
A168: =[1]ValoresReferenciales!A168 -> TRMB138T0225IG | B168: =[1]ValoresReferenciales!B168 -> 19695.82033 | C168: =[1]ValoresReferenciales!C168 -> 0.2 | D168: 23634.9844
A169: =[1]ValoresReferenciales!A169 -> TRMB138T0112IG | B169: =[1]ValoresReferenciales!B169 -> 14842.49833 | C169: =[1]ValoresReferenciales!C169 -> 0.2 | D169: 17810.998
A170: =[1]ValoresReferenciales!A170 -> TRMB138T0075IG | B170: =[1]ValoresReferenciales!B170 -> 12663.51542 | C170: =[1]ValoresReferenciales!C170 -> 0.2 | D170: 15196.21851
A171: =[1]ValoresReferenciales!A171 -> TRMB138M0037IG | B171: =[1]ValoresReferenciales!B171 -> 6121.957807 | C171: =[1]ValoresReferenciales!C171 -> 0.2 | D171: 7346.349369
A172: =[1]ValoresReferenciales!A172 -> TRMB042M0025IP | B172: =[1]ValoresReferenciales!B172 -> 1957.122122 | C172: =[1]ValoresReferenciales!C172 -> 0.2 | D172: 2348.546547
A173: =[1]ValoresReferenciales!A173 -> TRMB042M0037IP | B173: =[1]ValoresReferenciales!B173 -> 3370.977507 | C173: =[1]ValoresReferenciales!C173 -> 0.2 | D173: 4045.173008
A174: =[1]ValoresReferenciales!A174 -> TRMB042M0050IP | B174: =[1]ValoresReferenciales!B174 -> 4252.980487 | C174: =[1]ValoresReferenciales!C174 -> 0.2 | D174: 5103.576585
A175: =[1]ValoresReferenciales!A175 -> TRMB042M0075IP | B175: =[1]ValoresReferenciales!B175 -> 4641.060867 | C175: =[1]ValoresReferenciales!C175 -> 0.2 | D175: 5569.273041
A176: =[1]ValoresReferenciales!A176 -> TRMB120M0037IP | B176: =[1]ValoresReferenciales!B176 -> 3370.977507 | C176: =[1]ValoresReferenciales!C176 -> 0.2 | D176: 4045.173008
A177: =[1]ValoresReferenciales!A177 -> TRMB120M0050IP | B177: =[1]ValoresReferenciales!B177 -> 4252.980487 | C177: =[1]ValoresReferenciales!C177 -> 0.2 | D177: 5103.576585
A178: =[1]ValoresReferenciales!A178 -> TRMB042M0167IP | B178: =[1]ValoresReferenciales!B178 -> 14204.95483 | C178: =[1]ValoresReferenciales!C178 -> 0.2 | D178: 17045.94579
A179: =[1]ValoresReferenciales!A179 -> TRMB042M0010IP | B179: =[1]ValoresReferenciales!B179 -> 1651.366833 | C179: =[1]ValoresReferenciales!C179 -> 0.2 | D179: 1981.640199
A180: =[1]ValoresReferenciales!A180 -> TRMB042M0100IP | B180: =[1]ValoresReferenciales!B180 -> 8505.960974 | C180: =[1]ValoresReferenciales!C180 -> 0.2 | D180: 10207.15317
A181: =[1]ValoresReferenciales!A181 -> TRMB042M0015IP | B181: =[1]ValoresReferenciales!B181 -> 1777.886183 | C181: =[1]ValoresReferenciales!C181 -> 0.2 | D181: 2133.463419
A182: =[1]ValoresReferenciales!A182 -> TRMB120T0500IG | B182: =[1]ValoresReferenciales!B182 -> 28462.99228 | C182: =[1]ValoresReferenciales!C182 -> 0.2 | D182: 34155.59074
A183: =[1]ValoresReferenciales!A183 -> TRMB120M0025IP | B183: =[1]ValoresReferenciales!B183 -> 1957.122122 | C183: =[1]ValoresReferenciales!C183 -> 0.2 | D183: 2348.546547
A184: =[1]ValoresReferenciales!A184 -> LABTM1FV0AL1/0 | B184: =[1]ValoresReferenciales!B184 -> 19.51589438 | C184: =[1]ValoresReferenciales!C184 -> 0.2 | D184: 23.41907325
A185: =[1]ValoresReferenciales!A185 -> LABTM1ACALA/0 | B185: =[1]ValoresReferenciales!B185 -> 17.74172216 | C185: =[1]ValoresReferenciales!C185 -> 0.2 | D185: 21.2900666
A186: =[1]ValoresReferenciales!A186 -> LABTT1MA0AL1/0 | B186: =[1]ValoresReferenciales!B186 -> 16.03440238 | C186: =[1]ValoresReferenciales!C186 -> 0.2 | D186: 19.24128285
A187: =[1]ValoresReferenciales!A187 -> LABTM1FV3AL1/0 | B187: =[1]ValoresReferenciales!B187 -> 15.92404492 | C187: =[1]ValoresReferenciales!C187 -> 0.2 | D187: 19.10885391
A188: =[1]ValoresReferenciales!A188 -> LABTM1FVAC3LA1 | B188: =[1]ValoresReferenciales!B188 -> 19.51589438 | C188: =[1]ValoresReferenciales!C188 -> 0.2 | D188: 23.41907325
A189: =[1]ValoresReferenciales!A189 -> LABTM1FV1AL1/0 | B189: =[1]ValoresReferenciales!B189 -> 19.51589438 | C189: =[1]ValoresReferenciales!C189 -> 0.2 | D189: 23.41907325
A190: =[1]ValoresReferenciales!A190 -> LAMT138M16HCAA1/ | B190: =[1]ValoresReferenciales!B190 -> 15.21701129 | C190: =[1]ValoresReferenciales!C190 -> 0.2 | D190: 18.26041354
A191: =[1]ValoresReferenciales!A191 -> LAMT138T1OCLA/0 | B191: =[1]ValoresReferenciales!B191 -> 20.07613049 | C191: =[1]ValoresReferenciales!C191 -> 0.2 | D191: 24.09135659
A192: =[1]ValoresReferenciales!A192 -> LAMT138T1FVAL1/0 | B192: =[1]ValoresReferenciales!B192 -> 22.08374354 | C192: =[1]ValoresReferenciales!C192 -> 0.2 | D192: 26.50049225
A193: =[1]ValoresReferenciales!A193 -> LAMT138T1SPAL477 | B193: =[1]ValoresReferenciales!B193 -> 16.22046291 | C193: =[1]ValoresReferenciales!C193 -> 0.2 | D193: 19.46455549
A194: =[1]ValoresReferenciales!A194 -> LAMT138M1FVAL1/0 | B194: =[1]ValoresReferenciales!B194 -> 16.73871241 | C194: =[1]ValoresReferenciales!C194 -> 0.2 | D194: 20.0864549
A195: =[1]ValoresReferenciales!A195 -> LAMT138N1HOAL1/0 | B195: =[1]ValoresReferenciales!B195 -> 20.07613049 | C195: =[1]ValoresReferenciales!C195 -> 0.2 | D195: 24.09135659
A196: =[1]ValoresReferenciales!A196 -> LAMT042T1HOAL1/0 | B196: =[1]ValoresReferenciales!B196 -> 20.07613049 | C196: =[1]ValoresReferenciales!C196 -> 0.2 | D196: 24.09135659
A197: =[1]ValoresReferenciales!A197 -> LAMT042T1HOAL477 | B197: =[1]ValoresReferenciales!B197 -> 26.58703333 | C197: =[1]ValoresReferenciales!C197 -> 0.2 | D197: 31.90443999
A198: =[1]ValoresReferenciales!A198 -> LAMT042T2HOAL477 | B198: =[1]ValoresReferenciales!B198 -> 34.56314333 | C198: =[1]ValoresReferenciales!C198 -> 0.2 | D198: 41.47577199
A199: =[1]ValoresReferenciales!A199 -> LAMT042B1HOAL1/0 | B199: =[1]ValoresReferenciales!B199 -> 17.40150499 | C199: =[1]ValoresReferenciales!C199 -> 0.2 | D199: 20.88180599
A200: =[1]ValoresReferenciales!A200 -> LSMT138MLACU500 | B200: =[1]ValoresReferenciales!B200 -> 97.40928344 | C200: =[1]ValoresReferenciales!C200 -> 0.2 | D200: 116.8911401
A201: =[1]ValoresReferenciales!A201 -> LSMT138MLACU000 | B201: =[1]ValoresReferenciales!B201 -> 76.9719313 | C201: =[1]ValoresReferenciales!C201 -> 0.2 | D201: 92.36631756
A202: =[1]ValoresReferenciales!A202 -> TRMB138T0750IS | B202: =[1]ValoresReferenciales!B202 -> 46993.88534 | C202: =[1]ValoresReferenciales!C202 -> 0.2 | D202: 56392.66241
A203: =[1]ValoresReferenciales!A203 -> TRMB120M0075IP | B203: =[1]ValoresReferenciales!B203 -> 4641.060867 | C203: =[1]ValoresReferenciales!C203 -> 0.2 | D203: 5569.273041
A204: =[1]ValoresReferenciales!A204 -> TRMB120T0750IG | B204: =[1]ValoresReferenciales!B204 -> 42694.48843 | C204: =[1]ValoresReferenciales!C204 -> 0.2 | D204: 51233.38611
A205: =[1]ValoresReferenciales!A205 -> TRMB042T0300IG | B205: =[1]ValoresReferenciales!B205 -> 27629.11796 | C205: =[1]ValoresReferenciales!C205 -> 0.2 | D205: =B205*(1+C205) -> 33154.94155
A206: =[1]ValoresReferenciales!A206 -> TRMB042M0037IG | B206: =[1]ValoresReferenciales!B206 -> 6121.957807 | C206: =[1]ValoresReferenciales!C206 -> 0.2 | D206: 7346.349369
A207: =[1]ValoresReferenciales!A207 -> LABTM1FVC3AA1/ | B207: =[1]ValoresReferenciales!B207 -> 19.51589438 | C207: =[1]ValoresReferenciales!C207 -> 0.2 | D207: 23.41907325
A208: =[1]ValoresReferenciales!A208 -> LAMT138T1MAAL266 | B208: =[1]ValoresReferenciales!B208 -> 22.32069809 | C208: =[1]ValoresReferenciales!C208 -> 0.2 | D208: 26.7848377
A209: =[1]ValoresReferenciales!A209 -> LAMT138T1FVAL477 | B209: =[1]ValoresReferenciales!B209 -> 29.24573666 | C209: =[1]ValoresReferenciales!C209 -> 0.2 | D209: 35.09488399
... 15 more rows

Sheet Datos
A1: Archivo | B1: Hoja | C1: CódigoProyecto | D1: CódigoDescriptivo | E1: Fecha | F1: ÁreaGeográfica | G1: Cant | H1: SumOfMateriales$ | I1: SumOfManoObra$ | J1: SumOfIngenieria$ | K1: SumOfExtras$ | L1: SumOfFinancieros$ | M1: SumOfDerechos$ | N1: SumOfCostoTotal$ | O1: Row | P1: SumOfATR$ | Q1: Postes | R1: Conductor | S1: Vano | T1: VolumenZanja | U1: Unidad | V1: m2 | W1: CantMobPCComOt | X1: CantTrbtOtC | Y1: Cant | Z1: m2 | AA1: Fecha | AB1: Materiales | AC1: Mobra | AD1: CostoTotal | AE1: Postes | AF1: Conductor | AG1: Finv | AH1: Inversiones | AJ1: Condicion | AK1: Valor | AL1: Rango | AN1: Codigo | AV1: CostoReferencia | AW1: Cantidad | AX1: CostoReal | AY1: FactorEficienciaPrecio | AZ1: FactorAsimetria | BA1: FactorEficienciaCantidad | BB1: CostoEficiente | BC1: Costo no eficiente
A2: CC-01-AD EDECHI 2011.xls | B2: AINAP | C2: AINAP002 | D2: AINAPS045A00000000 | E2: 2011-12-31 | F2: BOCAS DEL TORO | G2: 45 | H2: 4270.662819 | I2: 1135.239483 | J2: 0 | K2: 0 | L2: 0 | M2: 0 | N2: 5405.902302 | O2: 9 | P2: 0 | Q2: =IF(OR(VLOOKUP($B2,Formulacion!$A:$BE,MATCH(Q$1,Formulacion!$1:$1,0),FALSE)="NA",$D2=0),"NA",IF($B2="DLABT",MID($D2,PosteInicioBT,PosteFinBT-PosteInicioBT+1)*1,MID($D2,PosteInicio,PosteFin-PosteInicio+1)*1)) -> NA | R2: =IF(OR(VLOOKUP($B2,Formulacion!$A:$BE,MATCH(R$1,Formulacion!$1:$1,0),FALSE)="NA",$D2=0),"NA",IF(OR($B2="DLABT",$B2="DLSBT"),MID($D2,CondInicioBT,CondFinBT-CondInicioBT+1)*1,MID($D2,CondInicio,CondFin-CondInicio+1)*1)) -> NA | S2: =IF(Q2="NA","NA",IF(Q2=0,"SP",R2/Q2)) -> NA | T2: =IF(OR(VLOOKUP($B2,Formulacion!$A:$BE,MATCH(T$1,Formulacion!$1:$1,0),FALSE)="NA",$D2=0),"NA",IF($B2="DLSBT",MID($D2,ZanjaInicioBT,ZanjaFinBT-ZanjaInicioBT+1)*1,MID($D2,ZanjaInicio,ZanjaFin-ZanjaInicio+1)*1)) -> NA | U2: 1 | V2: =IF(OR(VLOOKUP($B2,Formulacion!$A:$BE,MATCH(V$1,Formulacion!$1:$1,0),FALSE)="NA",$D2=0),"NA",MID($D2,m2Inicio+INDIRECT(B2),m2Fin-m2Inicio+1)*1) -> NA | W2: =IF(OR(VLOOKUP($B2,Formulacion!$A:$BE,MATCH(W$1,Formulacion!$1:$1,0),FALSE)="NA",$D2=0),"NA",RIGHT($D2,4)*1) -> NA | X2: =IF(OR(VLOOKUP($B2,Formulacion!$A:$BE,MATCH(X$1,Formulacion!$1:$1,0),FALSE)="NA",$D2=0),"NA",RIGHT($D2,3)*1) -> NA | Y2: =IF(OR(AND(W2="NA",X2="NA"),AND(W2="NA",X2>CantTrbtOtCMin),AND(W2>CantTrbtOtCMin,X2="NA")),1,0) -> 1 | Z2: =IF(VLOOKUP($B2,Formulacion!$A:$BE,MATCH(Z$1,Formulacion!$1:$1,0),FALSE)="NA",1,IF(V2<=m2Min,0,1)) -> 1 | AA2: =IF(VLOOKUP($B2,Formulacion!$A:$BE,MATCH(AA$1,Formulacion!$1:$1,0),FALSE)="NA",1,IF(OR(E2<=FechaMin,E2>FechaMax),0,1)) -> 1 | AB2: =IF(VLOOKUP($B2,Formulacion!$A:$BE,MATCH(AB$1,Formulacion!$1:$1,0),FALSE)="NA",1,IF(H2<=MaterialesMin,0,1)) -> 1 | AC2: =IF(VLOOKUP($B2,Formulacion!$A:$BE,MATCH(AC$1,Formulacion!$1:$1,0),FALSE)="NA",1,IF(N2=0,0,IF(OR(I2/N2<=MObraMin,I2/N2>=MObraMax),MDOmin,1))) -> 1 | AD2: =IF(VLOOKUP($B2,Formulacion!$A:$BE,MATCH(AD$1,Formulacion!$1:$1,0),FALSE)="NA",1,IF(N2<=CostoTotalMin,0,1)) -> 1 | AE2: =IF(VLOOKUP($B2,Formulacion!$A:$BE,MATCH(AE$1,Formulacion!$1:$1,0),FALSE)="NA",1,IF(Q2<=PostesMin,0,1)) -> 1 | AF2: =IF(VLOOKUP($B2,Formulacion!$A:$BE,MATCH(AF$1,Formulacion!$1:$1,0),FALSE)="NA",1,IF(R2<=INDIRECT(VLOOKUP(B2,Formulacion!$A:$BE,2,FALSE)),0,1)) -> 1 | AG2: =Y2*Z2*AA2*AB2*AC2*AD2*MAX(AE2,AF2) -> 1 | AH2: =N2*AG2 -> 5405.902302 | AJ2: =IF(VLOOKUP($B2,Formulacion!$A:$BE,MATCH(AJ$1,Formulacion!$1:$1,0),FALSE)="NA","NA",HLOOKUP(VLOOKUP($B2,Formulacion!$A:$BE,MATCH(AJ$1,Formulacion!$1:$1,0),FALSE),$Q:$Z,ROW(AJ2),FALSE)) -> NA | AK2: =IF(VLOOKUP($B2,Formulacion!$A:$BE,MATCH(AK$1,Formulacion!$1:$1,0),FALSE)="NA",1,VLOOKUP($B2,Formulacion!$A:$BE,MATCH(AK$1,Formulacion!$1:$1,0),FALSE)) -> 1 | AL2: =IF(VLOOKUP($B2,Formulacion!$A:$BE,MATCH(AL$1,Formulacion!$1:$1,0),FALSE)="NA",1,VLOOKUP($B2,Formulacion!$A:$BE,MATCH(AL$1,Formulacion!$1:$1,0),FALSE)) -> 1 | AM2: =IF(AJ2="NA",1,IF(AJ2<=AK2*(1+AL2),"CU","NC")) -> 1 | AN2: =IF(VLOOKUP($B2,Formulacion!$A:$BE,MATCH(AN$1,Formulacion!$1:$1,0),FALSE)="NA","NA",IF(D2=0,"",VLOOKUP($B2,Formulacion!$A:$BE,MATCH(AN$1,Formulacion!$1:$1,0),FALSE))) -> NA | AO2: =IF(OR(MID(AN2,1,2)="",MID(AN2,1,2)="NA"),"X",MID(D2,MID(AN2,1,2),MID(AN2,3,2))) -> X | AP2: =IF(MID(AN2,5,2)="","",MID(D2,MID(AN2,5,2),MID(AN2,7,2))) ->  | AQ2: =IF(MID(AN2,9,2)="","",MID(D2,MID(AN2,9,2),MID(AN2,11,2))) ->  | AR2: =IF(MID(AN2,13,2)="","",MID(D2,MID(AN2,13,2),MID(AN2,15,2))) ->  | AS2: =IF(MID(AN2,17,2)="","",MID(D2,MID(AN2,17,2),MID(AN2,19,2))) ->  | AT2: =IF(MID(AN2,21,2)="","",MID(D2,MID(AN2,21,2),MID(AN2,23,2))) ->  | AU2: =IF(MID(AN2,25,2)="","",MID(D2,MID(AN2,25,2),MID(AN2,27,2))) ->  | AV2: =IF(VLOOKUP($B2,Formulacion!$A:$BE,MATCH(AV$1,Formulacion!$1:$1,0),FALSE)="NA","NA",VLOOKUP(CONCATENATE(AO2,AP2,AQ2,AR2,AS2,AT2,AU2),ValoresReferenciales!$A:$D,4,FALSE)) -> NA | AW2: =IF(VLOOKUP($B2,Formulacion!$A:$BE,MATCH(AW$1,Formulacion!$1:$1,0),FALSE)="NA","NA",HLOOKUP(VLOOKUP($B2,Formulacion!$A:$BE,MATCH(AW$1,Formulacion!$1:$1,0),FALSE),$Q:$Z,ROW(AW2),FALSE)) -> NA | AX2: =IF(AV2="NA","NA",IF(AW2=0,0,N2/AW2)) -> NA | AY2: =IFERROR(IF(OR(AX2="NA",AM2="NC"),1,IF(AX2<AV2,1,AV2/AX2)),100%) -> 1 | AZ2: =IF(VLOOKUP($B2,Formulacion!$A:$BE,MATCH(AZ$1,Formulacion!$1:$1,0),FALSE)="NA",1,VLOOKUP($B2,Formulacion!$A:$BE,MATCH(AZ$1,Formulacion!$1:$1,0),FALSE)) -> 1 | BA2: =IF(VLOOKUP($B2,Formulacion!$A:$BE,MATCH(BA$1,Formulacion!$1:$1,0),FALSE)="NA",1,VLOOKUP($B2,Formulacion!$A:$BE,MATCH(BA$1,Formulacion!$1:$1,0),FALSE)) -> 1 | BB2: =AH2*AY2*AZ2*BA2 -> 5405.902302 | BC2: =+N2*AA2 -> 5405.902302
A3: CC-01-AD EDECHI 2011.xls | B3: AINAP | C3: AINAP004 | D3: AINAPS194A00000000 | E3: 2011-12-31 | F3: CHIRIQUI | G3: 194 | H3: 19110.46529 | I3: 4194.980186 | J3: 0 | K3: 0 | L3: 0 | M3: 0 | N3: 23305.44548 | O3: 11 | P3: 0 | Q3: =IF(OR(VLOOKUP($B3,Formulacion!$A:$BE,MATCH(Q$1,Formulacion!$1:$1,0),FALSE)="NA",$D3=0),"NA",IF($B3="DLABT",MID($D3,PosteInicioBT,PosteFinBT-PosteInicioBT+1)*1,MID($D3,PosteInicio,PosteFin-PosteInicio+1)*1)) -> NA | R3: =IF(OR(VLOOKUP($B3,Formulacion!$A:$BE,MATCH(R$1,Formulacion!$1:$1,0),FALSE)="NA",$D3=0),"NA",IF(OR($B3="DLABT",$B3="DLSBT"),MID($D3,CondInicioBT,CondFinBT-CondInicioBT+1)*1,MID($D3,CondInicio,CondFin-CondInicio+1)*1)) -> NA | S3: =IF(Q3="NA","NA",IF(Q3=0,"SP",R3/Q3)) -> NA | T3: =IF(OR(VLOOKUP($B3,Formulacion!$A:$BE,MATCH(T$1,Formulacion!$1:$1,0),FALSE)="NA",$D3=0),"NA",IF($B3="DLSBT",MID($D3,ZanjaInicioBT,ZanjaFinBT-ZanjaInicioBT+1)*1,MID($D3,ZanjaInicio,ZanjaFin-ZanjaInicio+1)*1)) -> NA | U3: 1 | V3: =IF(OR(VLOOKUP($B3,Formulacion!$A:$BE,MATCH(V$1,Formulacion!$1:$1,0),FALSE)="NA",$D3=0),"NA",MID($D3,m2Inicio+INDIRECT(B3),m2Fin-m2Inicio+1)*1) -> NA | W3: =IF(OR(VLOOKUP($B3,Formulacion!$A:$BE,MATCH(W$1,Formulacion!$1:$1,0),FALSE)="NA",$D3=0),"NA",RIGHT($D3,4)*1) -> NA | X3: =IF(OR(VLOOKUP($B3,Formulacion!$A:$BE,MATCH(X$1,Formulacion!$1:$1,0),FALSE)="NA",$D3=0),"NA",RIGHT($D3,3)*1) -> NA | Y3: 1 | Z3: =IF(VLOOKUP($B3,Formulacion!$A:$BE,MATCH(Z$1,Formulacion!$1:$1,0),FALSE)="NA",1,IF(V3<=m2Min,0,1)) -> 1 | AA3: =IF(VLOOKUP($B3,Formulacion!$A:$BE,MATCH(AA$1,Formulacion!$1:$1,0),FALSE)="NA",1,IF(OR(E3<=FechaMin,E3>FechaMax),0,1)) -> 1 | AB3: =IF(VLOOKUP($B3,Formulacion!$A:$BE,MATCH(AB$1,Formulacion!$1:$1,0),FALSE)="NA",1,IF(H3<=MaterialesMin,0,1)) -> 1 | AC3: =IF(VLOOKUP($B3,Formulacion!$A:$BE,MATCH(AC$1,Formulacion!$1:$1,0),FALSE)="NA",1,IF(N3=0,0,IF(OR(I3/N3<=MObraMin,I3/N3>=MObraMax),MDOmin,1))) -> 1 | AD3: =IF(VLOOKUP($B3,Formulacion!$A:$BE,MATCH(AD$1,Formulacion!$1:$1,0),FALSE)="NA",1,IF(N3<=CostoTotalMin,0,1)) -> 1 | AE3: =IF(VLOOKUP($B3,Formulacion!$A:$BE,MATCH(AE$1,Formulacion!$1:$1,0),FALSE)="NA",1,IF(Q3<=PostesMin,0,1)) -> 1 | AF3: =IF(VLOOKUP($B3,Formulacion!$A:$BE,MATCH(AF$1,Formulacion!$1:$1,0),FALSE)="NA",1,IF(R3<=INDIRECT(VLOOKUP(B3,Formulacion!$A:$BE,2,FALSE)),0,1)) -> 1 | AG3: =Y3*Z3*AA3*AB3*AC3*AD3*MAX(AE3,AF3) -> 1 | AH3: =N3*AG3 -> 23305.44548 | AJ3: =IF(VLOOKUP($B3,Formulacion!$A:$BE,MATCH(AJ$1,Formulacion!$1:$1,0),FALSE)="NA","NA",HLOOKUP(VLOOKUP($B3,Formulacion!$A:$BE,MATCH(AJ$1,Formulacion!$1:$1,0),FALSE),$Q:$Z,ROW(AJ3),FALSE)) -> NA | AK3: =IF(VLOOKUP($B3,Formulacion!$A:$BE,MATCH(AK$1,Formulacion!$1:$1,0),FALSE)="NA",1,VLOOKUP($B3,Formulacion!$A:$BE,MATCH(AK$1,Formulacion!$1:$1,0),FALSE)) -> 1 | AL3: =IF(VLOOKUP($B3,Formulacion!$A:$BE,MATCH(AL$1,Formulacion!$1:$1,0),FALSE)="NA",1,VLOOKUP($B3,Formulacion!$A:$BE,MATCH(AL$1,Formulacion!$1:$1,0),FALSE)) -> 1 | AM3: 1 | AN3: =IF(VLOOKUP($B3,Formulacion!$A:$BE,MATCH(AN$1,Formulacion!$1:$1,0),FALSE)="NA","NA",IF(D3=0,"",VLOOKUP($B3,Formulacion!$A:$BE,MATCH(AN$1,Formulacion!$1:$1,0),FALSE))) -> NA | AO3: =IF(OR(MID(AN3,1,2)="",MID(AN3,1,2)="NA"),"X",MID(D3,MID(AN3,1,2),MID(AN3,3,2))) -> X | AV3: =IF(VLOOKUP($B3,Formulacion!$A:$BE,MATCH(AV$1,Formulacion!$1:$1,0),FALSE)="NA","NA",VLOOKUP(CONCATENATE(AO3,AP3,AQ3,AR3,AS3,AT3,AU3),ValoresReferenciales!$A:$D,4,FALSE)) -> NA | AW3: =IF(VLOOKUP($B3,Formulacion!$A:$BE,MATCH(AW$1,Formulacion!$1:$1,0),FALSE)="NA","NA",HLOOKUP(VLOOKUP($B3,Formulacion!$A:$BE,MATCH(AW$1,Formulacion!$1:$1,0),FALSE),$Q:$Z,ROW(AW3),FALSE)) -> NA | AX3: NA | AY3: =IFERROR(IF(OR(AX3="NA",AM3="NC"),1,IF(AX3<AV3,1,AV3/AX3)),100%) -> 1 | AZ3: =IF(VLOOKUP($B3,Formulacion!$A:$BE,MATCH(AZ$1,Formulacion!$1:$1,0),FALSE)="NA",1,VLOOKUP($B3,Formulacion!$A:$BE,MATCH(AZ$1,Formulacion!$1:$1,0),FALSE)) -> 1 | BA3: =IF(VLOOKUP($B3,Formulacion!$A:$BE,MATCH(BA$1,Formulacion!$1:$1,0),FALSE)="NA",1,VLOOKUP($B3,Formulacion!$A:$BE,MATCH(BA$1,Formulacion!$1:$1,0),FALSE)) -> 1 | BB3: =AH3*AY3*AZ3*BA3 -> 23305.44548 | BC3: =+N3*AA3 -> 23305.44548
A4: CC-01-AD EDECHI 2011.xls | B4: AINAP | C4: AINAP004 | D4: AINAPS999A00000000 | E4: 2011-12-31 | F4: CHIRIQUI | G4: 999 | H4: 98409.04551 | I4: 21601.9856 | J4: 0 | K4: 0 | L4: 0 | M4: 0 | N4: 120011.0311 | O4: 10 | P4: 0 | Q4: =IF(OR(VLOOKUP($B4,Formulacion!$A:$BE,MATCH(Q$1,Formulacion!$1:$1,0),FALSE)="NA",$D4=0),"NA",IF($B4="DLABT",MID($D4,PosteInicioBT,PosteFinBT-PosteInicioBT+1)*1,MID($D4,PosteInicio,PosteFin-PosteInicio+1)*1)) -> NA | R4: =IF(OR(VLOOKUP($B4,Formulacion!$A:$BE,MATCH(R$1,Formulacion!$1:$1,0),FALSE)="NA",$D4=0),"NA",IF(OR($B4="DLABT",$B4="DLSBT"),MID($D4,CondInicioBT,CondFinBT-CondInicioBT+1)*1,MID($D4,CondInicio,CondFin-CondInicio+1)*1)) -> NA | S4: NA | T4: =IF(OR(VLOOKUP($B4,Formulacion!$A:$BE,MATCH(T$1,Formulacion!$1:$1,0),FALSE)="NA",$D4=0),"NA",IF($B4="DLSBT",MID($D4,ZanjaInicioBT,ZanjaFinBT-ZanjaInicioBT+1)*1,MID($D4,ZanjaInicio,ZanjaFin-ZanjaInicio+1)*1)) -> NA | U4: 1 | V4: =IF(OR(VLOOKUP($B4,Formulacion!$A:$BE,MATCH(V$1,Formulacion!$1:$1,0),FALSE)="NA",$D4=0),"NA",MID($D4,m2Inicio+INDIRECT(B4),m2Fin-m2Inicio+1)*1) -> NA | W4: =IF(OR(VLOOKUP($B4,Formulacion!$A:$BE,MATCH(W$1,Formulacion!$1:$1,0),FALSE)="NA",$D4=0),"NA",RIGHT($D4,4)*1) -> NA | X4: =IF(OR(VLOOKUP($B4,Formulacion!$A:$BE,MATCH(X$1,Formulacion!$1:$1,0),FALSE)="NA",$D4=0),"NA",RIGHT($D4,3)*1) -> NA | Y4: 1 | Z4: =IF(VLOOKUP($B4,Formulacion!$A:$BE,MATCH(Z$1,Formulacion!$1:$1,0),FALSE)="NA",1,IF(V4<=m2Min,0,1)) -> 1 | AA4: =IF(VLOOKUP($B4,Formulacion!$A:$BE,MATCH(AA$1,Formulacion!$1:$1,0),FALSE)="NA",1,IF(OR(E4<=FechaMin,E4>FechaMax),0,1)) -> 1 | AB4: =IF(VLOOKUP($B4,Formulacion!$A:$BE,MATCH(AB$1,Formulacion!$1:$1,0),FALSE)="NA",1,IF(H4<=MaterialesMin,0,1)) -> 1 | AC4: =IF(VLOOKUP($B4,Formulacion!$A:$BE,MATCH(AC$1,Formulacion!$1:$1,0),FALSE)="NA",1,IF(N4=0,0,IF(OR(I4/N4<=MObraMin,I4/N4>=MObraMax),MDOmin,1))) -> 1 | AD4: =IF(VLOOKUP($B4,Formulacion!$A:$BE,MATCH(AD$1,Formulacion!$1:$1,0),FALSE)="NA",1,IF(N4<=CostoTotalMin,0,1)) -> 1 | AE4: =IF(VLOOKUP($B4,Formulacion!$A:$BE,MATCH(AE$1,Formulacion!$1:$1,0),FALSE)="NA",1,IF(Q4<=PostesMin,0,1)) -> 1 | AF4: =IF(VLOOKUP($B4,Formulacion!$A:$BE,MATCH(AF$1,Formulacion!$1:$1,0),FALSE)="NA",1,IF(R4<=INDIRECT(VLOOKUP(B4,Formulacion!$A:$BE,2,FALSE)),0,1)) -> 1 | AG4: 1 | AH4: 120011.0311 | AJ4: =IF(VLOOKUP($B4,Formulacion!$A:$BE,MATCH(AJ$1,Formulacion!$1:$1,0),FALSE)="NA","NA",HLOOKUP(VLOOKUP($B4,Formulacion!$A:$BE,MATCH(AJ$1,Formulacion!$1:$1,0),FALSE),$Q:$Z,ROW(AJ4),FALSE)) -> NA | AK4: =IF(VLOOKUP($B4,Formulacion!$A:$BE,MATCH(AK$1,Formulacion!$1:$1,0),FALSE)="NA",1,VLOOKUP($B4,Formulacion!$A:$BE,MATCH(AK$1,Formulacion!$1:$1,0),FALSE)) -> 1 | AL4: =IF(VLOOKUP($B4,Formulacion!$A:$BE,MATCH(AL$1,Formulacion!$1:$1,0),FALSE)="NA",1,VLOOKUP($B4,Formulacion!$A:$BE,MATCH(AL$1,Formulacion!$1:$1,0),FALSE)) -> 1 | AM4: 1 | AN4: =IF(VLOOKUP($B4,Formulacion!$A:$BE,MATCH(AN$1,Formulacion!$1:$1,0),FALSE)="NA","NA",IF(D4=0,"",VLOOKUP($B4,Formulacion!$A:$BE,MATCH(AN$1,Formulacion!$1:$1,0),FALSE))) -> NA | AO4: X | AV4: =IF(VLOOKUP($B4,Formulacion!$A:$BE,MATCH(AV$1,Formulacion!$1:$1,0),FALSE)="NA","NA",VLOOKUP(CONCATENATE(AO4,AP4,AQ4,AR4,AS4,AT4,AU4),ValoresReferenciales!$A:$D,4,FALSE)) -> NA | AW4: =IF(VLOOKUP($B4,Formulacion!$A:$BE,MATCH(AW$1,Formulacion!$1:$1,0),FALSE)="NA","NA",HLOOKUP(VLOOKUP($B4,Formulacion!$A:$BE,MATCH(AW$1,Formulacion!$1:$1,0),FALSE),$Q:$Z,ROW(AW4),FALSE)) -> NA | AX4: NA | AY4: 1 | AZ4: =IF(VLOOKUP($B4,Formulacion!$A:$BE,MATCH(AZ$1,Formulacion!$1:$1,0),FALSE)="NA",1,VLOOKUP($B4,Formulacion!$A:$BE,MATCH(AZ$1,Formulacion!$1:$1,0),FALSE)) -> 1 | BA4: =IF(VLOOKUP($B4,Formulacion!$A:$BE,MATCH(BA$1,Formulacion!$1:$1,0),FALSE)="NA",1,VLOOKUP($B4,Formulacion!$A:$BE,MATCH(BA$1,Formulacion!$1:$1,0),FALSE)) -> 1 | BB4: 120011.0311 | BC4: 120011.0311
A5: CC-01-AD EDECHI 2011.xls | B5: CEQOT | C5: 0 | D5: 0 | E5: 00:00:00 | F5: 0 | G5: 0 | H5: 0 | I5: 0 | J5: 0 | K5: 0 | L5: 0 | M5: 0 | N5: 0 | O5: 9 | P5: 0 | Q5: =IF(OR(VLOOKUP($B5,Formulacion!$A:$BE,MATCH(Q$1,Formulacion!$1:$1,0),FALSE)="NA",$D5=0),"NA",IF($B5="DLABT",MID($D5,PosteInicioBT,PosteFinBT-PosteInicioBT+1)*1,MID($D5,PosteInicio,PosteFin-PosteInicio+1)*1)) -> NA | R5: =IF(OR(VLOOKUP($B5,Formulacion!$A:$BE,MATCH(R$1,Formulacion!$1:$1,0),FALSE)="NA",$D5=0),"NA",IF(OR($B5="DLABT",$B5="DLSBT"),MID($D5,CondInicioBT,CondFinBT-CondInicioBT+1)*1,MID($D5,CondInicio,CondFin-CondInicio+1)*1)) -> NA | S5: NA | T5: =IF(OR(VLOOKUP($B5,Formulacion!$A:$BE,MATCH(T$1,Formulacion!$1:$1,0),FALSE)="NA",$D5=0),"NA",IF($B5="DLSBT",MID($D5,ZanjaInicioBT,ZanjaFinBT-ZanjaInicioBT+1)*1,MID($D5,ZanjaInicio,ZanjaFin-ZanjaInicio+1)*1)) -> NA | U5: 1 | V5: =IF(OR(VLOOKUP($B5,Formulacion!$A:$BE,MATCH(V$1,Formulacion!$1:$1,0),FALSE)="NA",$D5=0),"NA",MID($D5,m2Inicio+INDIRECT(B5),m2Fin-m2Inicio+1)*1) -> NA | W5: =IF(OR(VLOOKUP($B5,Formulacion!$A:$BE,MATCH(W$1,Formulacion!$1:$1,0),FALSE)="NA",$D5=0),"NA",RIGHT($D5,4)*1) -> NA | X5: =IF(OR(VLOOKUP($B5,Formulacion!$A:$BE,MATCH(X$1,Formulacion!$1:$1,0),FALSE)="NA",$D5=0),"NA",RIGHT($D5,3)*1) -> NA | Y5: 1 | Z5: =IF(VLOOKUP($B5,Formulacion!$A:$BE,MATCH(Z$1,Formulacion!$1:$1,0),FALSE)="NA",1,IF(V5<=m2Min,0,1)) -> 1 | AA5: =IF(VLOOKUP($B5,Formulacion!$A:$BE,MATCH(AA$1,Formulacion!$1:$1,0),FALSE)="NA",1,IF(OR(E5<=FechaMin,E5>FechaMax),0,1)) -> 0 | AB5: =IF(VLOOKUP($B5,Formulacion!$A:$BE,MATCH(AB$1,Formulacion!$1:$1,0),FALSE)="NA",1,IF(H5<=MaterialesMin,0,1)) -> 1 | AC5: =IF(VLOOKUP($B5,Formulacion!$A:$BE,MATCH(AC$1,Formulacion!$1:$1,0),FALSE)="NA",1,IF(N5=0,0,IF(OR(I5/N5<=MObraMin,I5/N5>=MObraMax),MDOmin,1))) -> 0 | AD5: =IF(VLOOKUP($B5,Formulacion!$A:$BE,MATCH(AD$1,Formulacion!$1:$1,0),FALSE)="NA",1,IF(N5<=CostoTotalMin,0,1)) -> 0 | AE5: =IF(VLOOKUP($B5,Formulacion!$A:$BE,MATCH(AE$1,Formulacion!$1:$1,0),FALSE)="NA",1,IF(Q5<=PostesMin,0,1)) -> 1 | AF5: =IF(VLOOKUP($B5,Formulacion!$A:$BE,MATCH(AF$1,Formulacion!$1:$1,0),FALSE)="NA",1,IF(R5<=INDIRECT(VLOOKUP(B5,Formulacion!$A:$BE,2,FALSE)),0,1)) -> 1 | AG5: 0 | AH5: 0 | AJ5: =IF(VLOOKUP($B5,Formulacion!$A:$BE,MATCH(AJ$1,Formulacion!$1:$1,0),FALSE)="NA","NA",HLOOKUP(VLOOKUP($B5,Formulacion!$A:$BE,MATCH(AJ$1,Formulacion!$1:$1,0),FALSE),$Q:$Z,ROW(AJ5),FALSE)) -> NA | AK5: =IF(VLOOKUP($B5,Formulacion!$A:$BE,MATCH(AK$1,Formulacion!$1:$1,0),FALSE)="NA",1,VLOOKUP($B5,Formulacion!$A:$BE,MATCH(AK$1,Formulacion!$1:$1,0),FALSE)) -> 1 | AL5: =IF(VLOOKUP($B5,Formulacion!$A:$BE,MATCH(AL$1,Formulacion!$1:$1,0),FALSE)="NA",1,VLOOKUP($B5,Formulacion!$A:$BE,MATCH(AL$1,Formulacion!$1:$1,0),FALSE)) -> 1 | AM5: 1 | AN5: =IF(VLOOKUP($B5,Formulacion!$A:$BE,MATCH(AN$1,Formulacion!$1:$1,0),FALSE)="NA","NA",IF(D5=0,"",VLOOKUP($B5,Formulacion!$A:$BE,MATCH(AN$1,Formulacion!$1:$1,0),FALSE))) -> NA | AO5: X | AV5: =IF(VLOOKUP($B5,Formulacion!$A:$BE,MATCH(AV$1,Formulacion!$1:$1,0),FALSE)="NA","NA",VLOOKUP(CONCATENATE(AO5,AP5,AQ5,AR5,AS5,AT5,AU5),ValoresReferenciales!$A:$D,4,FALSE)) -> NA | AW5: =IF(VLOOKUP($B5,Formulacion!$A:$BE,MATCH(AW$1,Formulacion!$1:$1,0),FALSE)="NA","NA",HLOOKUP(VLOOKUP($B5,Formulacion!$A:$BE,MATCH(AW$1,Formulacion!$1:$1,0),FALSE),$Q:$Z,ROW(AW5),FALSE)) -> NA | AX5: NA | AY5: 1 | AZ5: =IF(VLOOKUP($B5,Formulacion!$A:$BE,MATCH(AZ$1,Formulacion!$1:$1,0),FALSE)="NA",1,VLOOKUP($B5,Formulacion!$A:$BE,MATCH(AZ$1,Formulacion!$1:$1,0),FALSE)) -> 1 | BA5: =IF(VLOOKUP($B5,Formulacion!$A:$BE,MATCH(BA$1,Formulacion!$1:$1,0),FALSE)="NA",1,VLOOKUP($B5,Formulacion!$A:$BE,MATCH(BA$1,Formulacion!$1:$1,0),FALSE)) -> 1 | BB5: 0 | BC5: 0
A6: CC-01-AD EDECHI 2011.xls | B6: CMEDI | C6: CMEDI001 | D6: CMEDIMBDNO007 | E6: 2011-12-31 | F6: BOCAS DEL TORO | G6: 0 | H6: 1216.67 | I6: 0 | J6: 0 | K6: 0 | L6: 0 | M6: 0 | N6: 1216.67 | O6: 17 | P6: 0 | Q6: =IF(OR(VLOOKUP($B6,Formulacion!$A:$BE,MATCH(Q$1,Formulacion!$1:$1,0),FALSE)="NA",$D6=0),"NA",IF($B6="DLABT",MID($D6,PosteInicioBT,PosteFinBT-PosteInicioBT+1)*1,MID($D6,PosteInicio,PosteFin-PosteInicio+1)*1)) -> NA | R6: =IF(OR(VLOOKUP($B6,Formulacion!$A:$BE,MATCH(R$1,Formulacion!$1:$1,0),FALSE)="NA",$D6=0),"NA",IF(OR($B6="DLABT",$B6="DLSBT"),MID($D6,CondInicioBT,CondFinBT-CondInicioBT+1)*1,MID($D6,CondInicio,CondFin-CondInicio+1)*1)) -> NA | S6: NA | T6: =IF(OR(VLOOKUP($B6,Formulacion!$A:$BE,MATCH(T$1,Formulacion!$1:$1,0),FALSE)="NA",$D6=0),"NA",IF($B6="DLSBT",MID($D6,ZanjaInicioBT,ZanjaFinBT-ZanjaInicioBT+1)*1,MID($D6,ZanjaInicio,ZanjaFin-ZanjaInicio+1)*1)) -> NA | U6: 1 | V6: =IF(OR(VLOOKUP($B6,Formulacion!$A:$BE,MATCH(V$1,Formulacion!$1:$1,0),FALSE)="NA",$D6=0),"NA",MID($D6,m2Inicio+INDIRECT(B6),m2Fin-m2Inicio+1)*1) -> NA | W6: =IF(OR(VLOOKUP($B6,Formulacion!$A:$BE,MATCH(W$1,Formulacion!$1:$1,0),FALSE)="NA",$D6=0),"NA",RIGHT($D6,4)*1) -> NA | X6: =IF(OR(VLOOKUP($B6,Formulacion!$A:$BE,MATCH(X$1,Formulacion!$1:$1,0),FALSE)="NA",$D6=0),"NA",RIGHT($D6,3)*1) -> 7 | Y6: 1 | Z6: =IF(VLOOKUP($B6,Formulacion!$A:$BE,MATCH(Z$1,Formulacion!$1:$1,0),FALSE)="NA",1,IF(V6<=m2Min,0,1)) -> 1 | AA6: =IF(VLOOKUP($B6,Formulacion!$A:$BE,MATCH(AA$1,Formulacion!$1:$1,0),FALSE)="NA",1,IF(OR(E6<=FechaMin,E6>FechaMax),0,1)) -> 1 | AB6: =IF(VLOOKUP($B6,Formulacion!$A:$BE,MATCH(AB$1,Formulacion!$1:$1,0),FALSE)="NA",1,IF(H6<=MaterialesMin,0,1)) -> 1 | AC6: =IF(VLOOKUP($B6,Formulacion!$A:$BE,MATCH(AC$1,Formulacion!$1:$1,0),FALSE)="NA",1,IF(N6=0,0,IF(OR(I6/N6<=MObraMin,I6/N6>=MObraMax),MDOmin,1))) -> 1 | AD6: =IF(VLOOKUP($B6,Formulacion!$A:$BE,MATCH(AD$1,Formulacion!$1:$1,0),FALSE)="NA",1,IF(N6<=CostoTotalMin,0,1)) -> 1 | AE6: =IF(VLOOKUP($B6,Formulacion!$A:$BE,MATCH(AE$1,Formulacion!$1:$1,0),FALSE)="NA",1,IF(Q6<=PostesMin,0,1)) -> 1 | AF6: =IF(VLOOKUP($B6,Formulacion!$A:$BE,MATCH(AF$1,Formulacion!$1:$1,0),FALSE)="NA",1,IF(R6<=INDIRECT(VLOOKUP(B6,Formulacion!$A:$BE,2,FALSE)),0,1)) -> 1 | AG6: 1 | AH6: 1216.67 | AJ6: =IF(VLOOKUP($B6,Formulacion!$A:$BE,MATCH(AJ$1,Formulacion!$1:$1,0),FALSE)="NA","NA",HLOOKUP(VLOOKUP($B6,Formulacion!$A:$BE,MATCH(AJ$1,Formulacion!$1:$1,0),FALSE),$Q:$Z,ROW(AJ6),FALSE)) -> NA | AK6: =IF(VLOOKUP($B6,Formulacion!$A:$BE,MATCH(AK$1,Formulacion!$1:$1,0),FALSE)="NA",1,VLOOKUP($B6,Formulacion!$A:$BE,MATCH(AK$1,Formulacion!$1:$1,0),FALSE)) -> 1 | AL6: =IF(VLOOKUP($B6,Formulacion!$A:$BE,MATCH(AL$1,Formulacion!$1:$1,0),FALSE)="NA",1,VLOOKUP($B6,Formulacion!$A:$BE,MATCH(AL$1,Formulacion!$1:$1,0),FALSE)) -> 1 | AM6: 1 | AN6: =IF(VLOOKUP($B6,Formulacion!$A:$BE,MATCH(AN$1,Formulacion!$1:$1,0),FALSE)="NA","NA",IF(D6=0,"",VLOOKUP($B6,Formulacion!$A:$BE,MATCH(AN$1,Formulacion!$1:$1,0),FALSE))) -> NA | AO6: X | AV6: =IF(VLOOKUP($B6,Formulacion!$A:$BE,MATCH(AV$1,Formulacion!$1:$1,0),FALSE)="NA","NA",VLOOKUP(CONCATENATE(AO6,AP6,AQ6,AR6,AS6,AT6,AU6),ValoresReferenciales!$A:$D,4,FALSE)) -> NA | AW6: =IF(VLOOKUP($B6,Formulacion!$A:$BE,MATCH(AW$1,Formulacion!$1:$1,0),FALSE)="NA","NA",HLOOKUP(VLOOKUP($B6,Formulacion!$A:$BE,MATCH(AW$1,Formulacion!$1:$1,0),FALSE),$Q:$Z,ROW(AW6),FALSE)) -> NA | AX6: NA | AY6: 1 | AZ6: =IF(VLOOKUP($B6,Formulacion!$A:$BE,MATCH(AZ$1,Formulacion!$1:$1,0),FALSE)="NA",1,VLOOKUP($B6,Formulacion!$A:$BE,MATCH(AZ$1,Formulacion!$1:$1,0),FALSE)) -> 0.8 | BA6: =IF(VLOOKUP($B6,Formulacion!$A:$BE,MATCH(BA$1,Formulacion!$1:$1,0),FALSE)="NA",1,VLOOKUP($B6,Formulacion!$A:$BE,MATCH(BA$1,Formulacion!$1:$1,0),FALSE)) -> 1 | BB6: 973.336 | BC6: 1216.67
A7: CC-01-AD EDECHI 2011.xls | B7: CMEDI | C7: CMEDI001 | D7: CMEDIMBSNO228 | E7: 2011-12-31 | F7: BOCAS DEL TORO | G7: 0 | H7: 8294.64 | I7: 0 | J7: 0 | K7: 0 | L7: 0 | M7: 0 | N7: 8294.64 | O7: 15 | P7: 0 | Q7: =IF(OR(VLOOKUP($B7,Formulacion!$A:$BE,MATCH(Q$1,Formulacion!$1:$1,0),FALSE)="NA",$D7=0),"NA",IF($B7="DLABT",MID($D7,PosteInicioBT,PosteFinBT-PosteInicioBT+1)*1,MID($D7,PosteInicio,PosteFin-PosteInicio+1)*1)) -> NA | R7: =IF(OR(VLOOKUP($B7,Formulacion!$A:$BE,MATCH(R$1,Formulacion!$1:$1,0),FALSE)="NA",$D7=0),"NA",IF(OR($B7="DLABT",$B7="DLSBT"),MID($D7,CondInicioBT,CondFinBT-CondInicioBT+1)*1,MID($D7,CondInicio,CondFin-CondInicio+1)*1)) -> NA | S7: NA | T7: =IF(OR(VLOOKUP($B7,Formulacion!$A:$BE,MATCH(T$1,Formulacion!$1:$1,0),FALSE)="NA",$D7=0),"NA",IF($B7="DLSBT",MID($D7,ZanjaInicioBT,ZanjaFinBT-ZanjaInicioBT+1)*1,MID($D7,ZanjaInicio,ZanjaFin-ZanjaInicio+1)*1)) -> NA | U7: 1 | V7: =IF(OR(VLOOKUP($B7,Formulacion!$A:$BE,MATCH(V$1,Formulacion!$1:$1,0),FALSE)="NA",$D7=0),"NA",MID($D7,m2Inicio+INDIRECT(B7),m2Fin-m2Inicio+1)*1) -> NA | W7: =IF(OR(VLOOKUP($B7,Formulacion!$A:$BE,MATCH(W$1,Formulacion!$1:$1,0),FALSE)="NA",$D7=0),"NA",RIGHT($D7,4)*1) -> NA | X7: =IF(OR(VLOOKUP($B7,Formulacion!$A:$BE,MATCH(X$1,Formulacion!$1:$1,0),FALSE)="NA",$D7=0),"NA",RIGHT($D7,3)*1) -> 228 | Y7: 1 | Z7: =IF(VLOOKUP($B7,Formulacion!$A:$BE,MATCH(Z$1,Formulacion!$1:$1,0),FALSE)="NA",1,IF(V7<=m2Min,0,1)) -> 1 | AA7: =IF(VLOOKUP($B7,Formulacion!$A:$BE,MATCH(AA$1,Formulacion!$1:$1,0),FALSE)="NA",1,IF(OR(E7<=FechaMin,E7>FechaMax),0,1)) -> 1 | AB7: =IF(VLOOKUP($B7,Formulacion!$A:$BE,MATCH(AB$1,Formulacion!$1:$1,0),FALSE)="NA",1,IF(H7<=MaterialesMin,0,1)) -> 1 | AC7: =IF(VLOOKUP($B7,Formulacion!$A:$BE,MATCH(AC$1,Formulacion!$1:$1,0),FALSE)="NA",1,IF(N7=0,0,IF(OR(I7/N7<=MObraMin,I7/N7>=MObraMax),MDOmin,1))) -> 1 | AD7: =IF(VLOOKUP($B7,Formulacion!$A:$BE,MATCH(AD$1,Formulacion!$1:$1,0),FALSE)="NA",1,IF(N7<=CostoTotalMin,0,1)) -> 1 | AE7: =IF(VLOOKUP($B7,Formulacion!$A:$BE,MATCH(AE$1,Formulacion!$1:$1,0),FALSE)="NA",1,IF(Q7<=PostesMin,0,1)) -> 1 | AF7: =IF(VLOOKUP($B7,Formulacion!$A:$BE,MATCH(AF$1,Formulacion!$1:$1,0),FALSE)="NA",1,IF(R7<=INDIRECT(VLOOKUP(B7,Formulacion!$A:$BE,2,FALSE)),0,1)) -> 1 | AG7: 1 | AH7: 8294.64 | AJ7: =IF(VLOOKUP($B7,Formulacion!$A:$BE,MATCH(AJ$1,Formulacion!$1:$1,0),FALSE)="NA","NA",HLOOKUP(VLOOKUP($B7,Formulacion!$A:$BE,MATCH(AJ$1,Formulacion!$1:$1,0),FALSE),$Q:$Z,ROW(AJ7),FALSE)) -> NA | AK7: =IF(VLOOKUP($B7,Formulacion!$A:$BE,MATCH(AK$1,Formulacion!$1:$1,0),FALSE)="NA",1,VLOOKUP($B7,Formulacion!$A:$BE,MATCH(AK$1,Formulacion!$1:$1,0),FALSE)) -> 1 | AL7: =IF(VLOOKUP($B7,Formulacion!$A:$BE,MATCH(AL$1,Formulacion!$1:$1,0),FALSE)="NA",1,VLOOKUP($B7,Formulacion!$A:$BE,MATCH(AL$1,Formulacion!$1:$1,0),FALSE)) -> 1 | AM7: 1 | AN7: =IF(VLOOKUP($B7,Formulacion!$A:$BE,MATCH(AN$1,Formulacion!$1:$1,0),FALSE)="NA","NA",IF(D7=0,"",VLOOKUP($B7,Formulacion!$A:$BE,MATCH(AN$1,Formulacion!$1:$1,0),FALSE))) -> NA | AO7: X | AV7: =IF(VLOOKUP($B7,Formulacion!$A:$BE,MATCH(AV$1,Formulacion!$1:$1,0),FALSE)="NA","NA",VLOOKUP(CONCATENATE(AO7,AP7,AQ7,AR7,AS7,AT7,AU7),ValoresReferenciales!$A:$D,4,FALSE)) -> NA | AW7: =IF(VLOOKUP($B7,Formulacion!$A:$BE,MATCH(AW$1,Formulacion!$1:$1,0),FALSE)="NA","NA",HLOOKUP(VLOOKUP($B7,Formulacion!$A:$BE,MATCH(AW$1,Formulacion!$1:$1,0),FALSE),$Q:$Z,ROW(AW7),FALSE)) -> NA | AX7: NA | AY7: 1 | AZ7: =IF(VLOOKUP($B7,Formulacion!$A:$BE,MATCH(AZ$1,Formulacion!$1:$1,0),FALSE)="NA",1,VLOOKUP($B7,Formulacion!$A:$BE,MATCH(AZ$1,Formulacion!$1:$1,0),FALSE)) -> 0.8 | BA7: =IF(VLOOKUP($B7,Formulacion!$A:$BE,MATCH(BA$1,Formulacion!$1:$1,0),FALSE)="NA",1,VLOOKUP($B7,Formulacion!$A:$BE,MATCH(BA$1,Formulacion!$1:$1,0),FALSE)) -> 1 | BB7: 6635.712 | BC7: 8294.64
A8: CC-01-AD EDECHI 2011.xls | B8: CMEDI | C8: CMEDI001 | D8: CMEDITBDTI004 | E8: 2011-12-31 | F8: BOCAS DEL TORO | G8: 0 | H8: 2261.4 | I8: 0 | J8: 0 | K8: 0 | L8: 0 | M8: 0 | N8: 2261.4 | O8: 16 | P8: 0 | Q8: =IF(OR(VLOOKUP($B8,Formulacion!$A:$BE,MATCH(Q$1,Formulacion!$1:$1,0),FALSE)="NA",$D8=0),"NA",IF($B8="DLABT",MID($D8,PosteInicioBT,PosteFinBT-PosteInicioBT+1)*1,MID($D8,PosteInicio,PosteFin-PosteInicio+1)*1)) -> NA | R8: =IF(OR(VLOOKUP($B8,Formulacion!$A:$BE,MATCH(R$1,Formulacion!$1:$1,0),FALSE)="NA",$D8=0),"NA",IF(OR($B8="DLABT",$B8="DLSBT"),MID($D8,CondInicioBT,CondFinBT-CondInicioBT+1)*1,MID($D8,CondInicio,CondFin-CondInicio+1)*1)) -> NA | S8: NA | T8: =IF(OR(VLOOKUP($B8,Formulacion!$A:$BE,MATCH(T$1,Formulacion!$1:$1,0),FALSE)="NA",$D8=0),"NA",IF($B8="DLSBT",MID($D8,ZanjaInicioBT,ZanjaFinBT-ZanjaInicioBT+1)*1,MID($D8,ZanjaInicio,ZanjaFin-ZanjaInicio+1)*1)) -> NA | U8: 1 | V8: =IF(OR(VLOOKUP($B8,Formulacion!$A:$BE,MATCH(V$1,Formulacion!$1:$1,0),FALSE)="NA",$D8=0),"NA",MID($D8,m2Inicio+INDIRECT(B8),m2Fin-m2Inicio+1)*1) -> NA | W8: =IF(OR(VLOOKUP($B8,Formulacion!$A:$BE,MATCH(W$1,Formulacion!$1:$1,0),FALSE)="NA",$D8=0),"NA",RIGHT($D8,4)*1) -> NA | X8: =IF(OR(VLOOKUP($B8,Formulacion!$A:$BE,MATCH(X$1,Formulacion!$1:$1,0),FALSE)="NA",$D8=0),"NA",RIGHT($D8,3)*1) -> 4 | Y8: 1 | Z8: =IF(VLOOKUP($B8,Formulacion!$A:$BE,MATCH(Z$1,Formulacion!$1:$1,0),FALSE)="NA",1,IF(V8<=m2Min,0,1)) -> 1 | AA8: =IF(VLOOKUP($B8,Formulacion!$A:$BE,MATCH(AA$1,Formulacion!$1:$1,0),FALSE)="NA",1,IF(OR(E8<=FechaMin,E8>FechaMax),0,1)) -> 1 | AB8: =IF(VLOOKUP($B8,Formulacion!$A:$BE,MATCH(AB$1,Formulacion!$1:$1,0),FALSE)="NA",1,IF(H8<=MaterialesMin,0,1)) -> 1 | AC8: =IF(VLOOKUP($B8,Formulacion!$A:$BE,MATCH(AC$1,Formulacion!$1:$1,0),FALSE)="NA",1,IF(N8=0,0,IF(OR(I8/N8<=MObraMin,I8/N8>=MObraMax),MDOmin,1))) -> 1 | AD8: =IF(VLOOKUP($B8,Formulacion!$A:$BE,MATCH(AD$1,Formulacion!$1:$1,0),FALSE)="NA",1,IF(N8<=CostoTotalMin,0,1)) -> 1 | AE8: =IF(VLOOKUP($B8,Formulacion!$A:$BE,MATCH(AE$1,Formulacion!$1:$1,0),FALSE)="NA",1,IF(Q8<=PostesMin,0,1)) -> 1 | AF8: =IF(VLOOKUP($B8,Formulacion!$A:$BE,MATCH(AF$1,Formulacion!$1:$1,0),FALSE)="NA",1,IF(R8<=INDIRECT(VLOOKUP(B8,Formulacion!$A:$BE,2,FALSE)),0,1)) -> 1 | AG8: 1 | AH8: 2261.4 | AJ8: =IF(VLOOKUP($B8,Formulacion!$A:$BE,MATCH(AJ$1,Formulacion!$1:$1,0),FALSE)="NA","NA",HLOOKUP(VLOOKUP($B8,Formulacion!$A:$BE,MATCH(AJ$1,Formulacion!$1:$1,0),FALSE),$Q:$Z,ROW(AJ8),FALSE)) -> NA | AK8: =IF(VLOOKUP($B8,Formulacion!$A:$BE,MATCH(AK$1,Formulacion!$1:$1,0),FALSE)="NA",1,VLOOKUP($B8,Formulacion!$A:$BE,MATCH(AK$1,Formulacion!$1:$1,0),FALSE)) -> 1 | AL8: =IF(VLOOKUP($B8,Formulacion!$A:$BE,MATCH(AL$1,Formulacion!$1:$1,0),FALSE)="NA",1,VLOOKUP($B8,Formulacion!$A:$BE,MATCH(AL$1,Formulacion!$1:$1,0),FALSE)) -> 1 | AM8: 1 | AN8: =IF(VLOOKUP($B8,Formulacion!$A:$BE,MATCH(AN$1,Formulacion!$1:$1,0),FALSE)="NA","NA",IF(D8=0,"",VLOOKUP($B8,Formulacion!$A:$BE,MATCH(AN$1,Formulacion!$1:$1,0),FALSE))) -> NA | AO8: X | AV8: =IF(VLOOKUP($B8,Formulacion!$A:$BE,MATCH(AV$1,Formulacion!$1:$1,0),FALSE)="NA","NA",VLOOKUP(CONCATENATE(AO8,AP8,AQ8,AR8,AS8,AT8,AU8),ValoresReferenciales!$A:$D,4,FALSE)) -> NA | AW8: =IF(VLOOKUP($B8,Formulacion!$A:$BE,MATCH(AW$1,Formulacion!$1:$1,0),FALSE)="NA","NA",HLOOKUP(VLOOKUP($B8,Formulacion!$A:$BE,MATCH(AW$1,Formulacion!$1:$1,0),FALSE),$Q:$Z,ROW(AW8),FALSE)) -> NA | AX8: NA | AY8: 1 | AZ8: =IF(VLOOKUP($B8,Formulacion!$A:$BE,MATCH(AZ$1,Formulacion!$1:$1,0),FALSE)="NA",1,VLOOKUP($B8,Formulacion!$A:$BE,MATCH(AZ$1,Formulacion!$1:$1,0),FALSE)) -> 0.8 | BA8: =IF(VLOOKUP($B8,Formulacion!$A:$BE,MATCH(BA$1,Formulacion!$1:$1,0),FALSE)="NA",1,VLOOKUP($B8,Formulacion!$A:$BE,MATCH(BA$1,Formulacion!$1:$1,0),FALSE)) -> 1 | BB8: 1809.12 | BC8: 2261.4
A9: CC-01-AD EDECHI 2011.xls | B9: CMEDI | C9: CMEDI004 | D9: CMEDIMBDNO062 | E9: 2011-12-31 | F9: CHIRIQUI | G9: 0 | H9: 10776.22 | I9: 0 | J9: 0 | K9: 0 | L9: 0 | M9: 0 | N9: 10776.22 | O9: 12 | P9: 0 | Q9: =IF(OR(VLOOKUP($B9,Formulacion!$A:$BE,MATCH(Q$1,Formulacion!$1:$1,0),FALSE)="NA",$D9=0),"NA",IF($B9="DLABT",MID($D9,PosteInicioBT,PosteFinBT-PosteInicioBT+1)*1,MID($D9,PosteInicio,PosteFin-PosteInicio+1)*1)) -> NA | R9: =IF(OR(VLOOKUP($B9,Formulacion!$A:$BE,MATCH(R$1,Formulacion!$1:$1,0),FALSE)="NA",$D9=0),"NA",IF(OR($B9="DLABT",$B9="DLSBT"),MID($D9,CondInicioBT,CondFinBT-CondInicioBT+1)*1,MID($D9,CondInicio,CondFin-CondInicio+1)*1)) -> NA | S9: NA | T9: =IF(OR(VLOOKUP($B9,Formulacion!$A:$BE,MATCH(T$1,Formulacion!$1:$1,0),FALSE)="NA",$D9=0),"NA",IF($B9="DLSBT",MID($D9,ZanjaInicioBT,ZanjaFinBT-ZanjaInicioBT+1)*1,MID($D9,ZanjaInicio,ZanjaFin-ZanjaInicio+1)*1)) -> NA | U9: 1 | V9: =IF(OR(VLOOKUP($B9,Formulacion!$A:$BE,MATCH(V$1,Formulacion!$1:$1,0),FALSE)="NA",$D9=0),"NA",MID($D9,m2Inicio+INDIRECT(B9),m2Fin-m2Inicio+1)*1) -> NA | W9: =IF(OR(VLOOKUP($B9,Formulacion!$A:$BE,MATCH(W$1,Formulacion!$1:$1,0),FALSE)="NA",$D9=0),"NA",RIGHT($D9,4)*1) -> NA | X9: =IF(OR(VLOOKUP($B9,Formulacion!$A:$BE,MATCH(X$1,Formulacion!$1:$1,0),FALSE)="NA",$D9=0),"NA",RIGHT($D9,3)*1) -> 62 | Y9: 1 | Z9: =IF(VLOOKUP($B9,Formulacion!$A:$BE,MATCH(Z$1,Formulacion!$1:$1,0),FALSE)="NA",1,IF(V9<=m2Min,0,1)) -> 1 | AA9: =IF(VLOOKUP($B9,Formulacion!$A:$BE,MATCH(AA$1,Formulacion!$1:$1,0),FALSE)="NA",1,IF(OR(E9<=FechaMin,E9>FechaMax),0,1)) -> 1 | AB9: =IF(VLOOKUP($B9,Formulacion!$A:$BE,MATCH(AB$1,Formulacion!$1:$1,0),FALSE)="NA",1,IF(H9<=MaterialesMin,0,1)) -> 1 | AC9: =IF(VLOOKUP($B9,Formulacion!$A:$BE,MATCH(AC$1,Formulacion!$1:$1,0),FALSE)="NA",1,IF(N9=0,0,IF(OR(I9/N9<=MObraMin,I9/N9>=MObraMax),MDOmin,1))) -> 1 | AD9: =IF(VLOOKUP($B9,Formulacion!$A:$BE,MATCH(AD$1,Formulacion!$1:$1,0),FALSE)="NA",1,IF(N9<=CostoTotalMin,0,1)) -> 1 | AE9: =IF(VLOOKUP($B9,Formulacion!$A:$BE,MATCH(AE$1,Formulacion!$1:$1,0),FALSE)="NA",1,IF(Q9<=PostesMin,0,1)) -> 1 | AF9: =IF(VLOOKUP($B9,Formulacion!$A:$BE,MATCH(AF$1,Formulacion!$1:$1,0),FALSE)="NA",1,IF(R9<=INDIRECT(VLOOKUP(B9,Formulacion!$A:$BE,2,FALSE)),0,1)) -> 1 | AG9: 1 | AH9: 10776.22 | AJ9: =IF(VLOOKUP($B9,Formulacion!$A:$BE,MATCH(AJ$1,Formulacion!$1:$1,0),FALSE)="NA","NA",HLOOKUP(VLOOKUP($B9,Formulacion!$A:$BE,MATCH(AJ$1,Formulacion!$1:$1,0),FALSE),$Q:$Z,ROW(AJ9),FALSE)) -> NA | AK9: =IF(VLOOKUP($B9,Formulacion!$A:$BE,MATCH(AK$1,Formulacion!$1:$1,0),FALSE)="NA",1,VLOOKUP($B9,Formulacion!$A:$BE,MATCH(AK$1,Formulacion!$1:$1,0),FALSE)) -> 1 | AL9: =IF(VLOOKUP($B9,Formulacion!$A:$BE,MATCH(AL$1,Formulacion!$1:$1,0),FALSE)="NA",1,VLOOKUP($B9,Formulacion!$A:$BE,MATCH(AL$1,Formulacion!$1:$1,0),FALSE)) -> 1 | AM9: 1 | AN9: =IF(VLOOKUP($B9,Formulacion!$A:$BE,MATCH(AN$1,Formulacion!$1:$1,0),FALSE)="NA","NA",IF(D9=0,"",VLOOKUP($B9,Formulacion!$A:$BE,MATCH(AN$1,Formulacion!$1:$1,0),FALSE))) -> NA | AO9: X | AV9: =IF(VLOOKUP($B9,Formulacion!$A:$BE,MATCH(AV$1,Formulacion!$1:$1,0),FALSE)="NA","NA",VLOOKUP(CONCATENATE(AO9,AP9,AQ9,AR9,AS9,AT9,AU9),ValoresReferenciales!$A:$D,4,FALSE)) -> NA | AW9: =IF(VLOOKUP($B9,Formulacion!$A:$BE,MATCH(AW$1,Formulacion!$1:$1,0),FALSE)="NA","NA",HLOOKUP(VLOOKUP($B9,Formulacion!$A:$BE,MATCH(AW$1,Formulacion!$1:$1,0),FALSE),$Q:$Z,ROW(AW9),FALSE)) -> NA | AX9: NA | AY9: 1 | AZ9: =IF(VLOOKUP($B9,Formulacion!$A:$BE,MATCH(AZ$1,Formulacion!$1:$1,0),FALSE)="NA",1,VLOOKUP($B9,Formulacion!$A:$BE,MATCH(AZ$1,Formulacion!$1:$1,0),FALSE)) -> 0.8 | BA9: =IF(VLOOKUP($B9,Formulacion!$A:$BE,MATCH(BA$1,Formulacion!$1:$1,0),FALSE)="NA",1,VLOOKUP($B9,Formulacion!$A:$BE,MATCH(BA$1,Formulacion!$1:$1,0),FALSE)) -> 1 | BB9: 8620.976 | BC9: 10776.22
A10: CC-01-AD EDECHI 2011.xls | B10: CMEDI | C10: CMEDI004 | D10: CMEDIMBSNO591 | E10: 2011-12-31 | F10: CHIRIQUI | G10: 0 | H10: 21500.58 | I10: 0 | J10: 0 | K10: 0 | L10: 0 | M10: 0 | N10: 21500.58 | O10: 10 | P10: 0 | Q10: =IF(OR(VLOOKUP($B10,Formulacion!$A:$BE,MATCH(Q$1,Formulacion!$1:$1,0),FALSE)="NA",$D10=0),"NA",IF($B10="DLABT",MID($D10,PosteInicioBT,PosteFinBT-PosteInicioBT+1)*1,MID($D10,PosteInicio,PosteFin-PosteInicio+1)*1)) -> NA | R10: =IF(OR(VLOOKUP($B10,Formulacion!$A:$BE,MATCH(R$1,Formulacion!$1:$1,0),FALSE)="NA",$D10=0),"NA",IF(OR($B10="DLABT",$B10="DLSBT"),MID($D10,CondInicioBT,CondFinBT-CondInicioBT+1)*1,MID($D10,CondInicio,CondFin-CondInicio+1)*1)) -> NA | S10: NA | T10: =IF(OR(VLOOKUP($B10,Formulacion!$A:$BE,MATCH(T$1,Formulacion!$1:$1,0),FALSE)="NA",$D10=0),"NA",IF($B10="DLSBT",MID($D10,ZanjaInicioBT,ZanjaFinBT-ZanjaInicioBT+1)*1,MID($D10,ZanjaInicio,ZanjaFin-ZanjaInicio+1)*1)) -> NA | U10: 1 | V10: =IF(OR(VLOOKUP($B10,Formulacion!$A:$BE,MATCH(V$1,Formulacion!$1:$1,0),FALSE)="NA",$D10=0),"NA",MID($D10,m2Inicio+INDIRECT(B10),m2Fin-m2Inicio+1)*1) -> NA | W10: =IF(OR(VLOOKUP($B10,Formulacion!$A:$BE,MATCH(W$1,Formulacion!$1:$1,0),FALSE)="NA",$D10=0),"NA",RIGHT($D10,4)*1) -> NA | X10: =IF(OR(VLOOKUP($B10,Formulacion!$A:$BE,MATCH(X$1,Formulacion!$1:$1,0),FALSE)="NA",$D10=0),"NA",RIGHT($D10,3)*1) -> 591 | Y10: 1 | Z10: =IF(VLOOKUP($B10,Formulacion!$A:$BE,MATCH(Z$1,Formulacion!$1:$1,0),FALSE)="NA",1,IF(V10<=m2Min,0,1)) -> 1 | AA10: =IF(VLOOKUP($B10,Formulacion!$A:$BE,MATCH(AA$1,Formulacion!$1:$1,0),FALSE)="NA",1,IF(OR(E10<=FechaMin,E10>FechaMax),0,1)) -> 1 | AB10: =IF(VLOOKUP($B10,Formulacion!$A:$BE,MATCH(AB$1,Formulacion!$1:$1,0),FALSE)="NA",1,IF(H10<=MaterialesMin,0,1)) -> 1 | AC10: =IF(VLOOKUP($B10,Formulacion!$A:$BE,MATCH(AC$1,Formulacion!$1:$1,0),FALSE)="NA",1,IF(N10=0,0,IF(OR(I10/N10<=MObraMin,I10/N10>=MObraMax),MDOmin,1))) -> 1 | AD10: =IF(VLOOKUP($B10,Formulacion!$A:$BE,MATCH(AD$1,Formulacion!$1:$1,0),FALSE)="NA",1,IF(N10<=CostoTotalMin,0,1)) -> 1 | AE10: =IF(VLOOKUP($B10,Formulacion!$A:$BE,MATCH(AE$1,Formulacion!$1:$1,0),FALSE)="NA",1,IF(Q10<=PostesMin,0,1)) -> 1 | AF10: =IF(VLOOKUP($B10,Formulacion!$A:$BE,MATCH(AF$1,Formulacion!$1:$1,0),FALSE)="NA",1,IF(R10<=INDIRECT(VLOOKUP(B10,Formulacion!$A:$BE,2,FALSE)),0,1)) -> 1 | AG10: 1 | AH10: 21500.58 | AJ10: =IF(VLOOKUP($B10,Formulacion!$A:$BE,MATCH(AJ$1,Formulacion!$1:$1,0),FALSE)="NA","NA",HLOOKUP(VLOOKUP($B10,Formulacion!$A:$BE,MATCH(AJ$1,Formulacion!$1:$1,0),FALSE),$Q:$Z,ROW(AJ10),FALSE)) -> NA | AK10: =IF(VLOOKUP($B10,Formulacion!$A:$BE,MATCH(AK$1,Formulacion!$1:$1,0),FALSE)="NA",1,VLOOKUP($B10,Formulacion!$A:$BE,MATCH(AK$1,Formulacion!$1:$1,0),FALSE)) -> 1 | AL10: =IF(VLOOKUP($B10,Formulacion!$A:$BE,MATCH(AL$1,Formulacion!$1:$1,0),FALSE)="NA",1,VLOOKUP($B10,Formulacion!$A:$BE,MATCH(AL$1,Formulacion!$1:$1,0),FALSE)) -> 1 | AM10: 1 | AN10: =IF(VLOOKUP($B10,Formulacion!$A:$BE,MATCH(AN$1,Formulacion!$1:$1,0),FALSE)="NA","NA",IF(D10=0,"",VLOOKUP($B10,Formulacion!$A:$BE,MATCH(AN$1,Formulacion!$1:$1,0),FALSE))) -> NA | AO10: X | AV10: =IF(VLOOKUP($B10,Formulacion!$A:$BE,MATCH(AV$1,Formulacion!$1:$1,0),FALSE)="NA","NA",VLOOKUP(CONCATENATE(AO10,AP10,AQ10,AR10,AS10,AT10,AU10),ValoresReferenciales!$A:$D,4,FALSE)) -> NA | AW10: =IF(VLOOKUP($B10,Formulacion!$A:$BE,MATCH(AW$1,Formulacion!$1:$1,0),FALSE)="NA","NA",HLOOKUP(VLOOKUP($B10,Formulacion!$A:$BE,MATCH(AW$1,Formulacion!$1:$1,0),FALSE),$Q:$Z,ROW(AW10),FALSE)) -> NA | AX10: NA | AY10: 1 | AZ10: =IF(VLOOKUP($B10,Formulacion!$A:$BE,MATCH(AZ$1,Formulacion!$1:$1,0),FALSE)="NA",1,VLOOKUP($B10,Formulacion!$A:$BE,MATCH(AZ$1,Formulacion!$1:$1,0),FALSE)) -> 0.8 | BA10: =IF(VLOOKUP($B10,Formulacion!$A:$BE,MATCH(BA$1,Formulacion!$1:$1,0),FALSE)="NA",1,VLOOKUP($B10,Formulacion!$A:$BE,MATCH(BA$1,Formulacion!$1:$1,0),FALSE)) -> 1 | BB10: 17200.464 | BC10: 21500.58
A11: CC-01-AD EDECHI 2011.xls | B11: CMEDI | C11: CMEDI004 | D11: CMEDIMBSNO999 | E11: 2011-12-31 | F11: CHIRIQUI | G11: 0 | H11: 36343.62 | I11: 0 | J11: 0 | K11: 0 | L11: 0 | M11: 0 | N11: 36343.62 | O11: 9 | P11: 0 | Q11: =IF(OR(VLOOKUP($B11,Formulacion!$A:$BE,MATCH(Q$1,Formulacion!$1:$1,0),FALSE)="NA",$D11=0),"NA",IF($B11="DLABT",MID($D11,PosteInicioBT,PosteFinBT-PosteInicioBT+1)*1,MID($D11,PosteInicio,PosteFin-PosteInicio+1)*1)) -> NA | R11: =IF(OR(VLOOKUP($B11,Formulacion!$A:$BE,MATCH(R$1,Formulacion!$1:$1,0),FALSE)="NA",$D11=0),"NA",IF(OR($B11="DLABT",$B11="DLSBT"),MID($D11,CondInicioBT,CondFinBT-CondInicioBT+1)*1,MID($D11,CondInicio,CondFin-CondInicio+1)*1)) -> NA | S11: NA | T11: =IF(OR(VLOOKUP($B11,Formulacion!$A:$BE,MATCH(T$1,Formulacion!$1:$1,0),FALSE)="NA",$D11=0),"NA",IF($B11="DLSBT",MID($D11,ZanjaInicioBT,ZanjaFinBT-ZanjaInicioBT+1)*1,MID($D11,ZanjaInicio,ZanjaFin-ZanjaInicio+1)*1)) -> NA | U11: 1 | V11: =IF(OR(VLOOKUP($B11,Formulacion!$A:$BE,MATCH(V$1,Formulacion!$1:$1,0),FALSE)="NA",$D11=0),"NA",MID($D11,m2Inicio+INDIRECT(B11),m2Fin-m2Inicio+1)*1) -> NA | W11: =IF(OR(VLOOKUP($B11,Formulacion!$A:$BE,MATCH(W$1,Formulacion!$1:$1,0),FALSE)="NA",$D11=0),"NA",RIGHT($D11,4)*1) -> NA | X11: =IF(OR(VLOOKUP($B11,Formulacion!$A:$BE,MATCH(X$1,Formulacion!$1:$1,0),FALSE)="NA",$D11=0),"NA",RIGHT($D11,3)*1) -> 999 | Y11: 1 | Z11: =IF(VLOOKUP($B11,Formulacion!$A:$BE,MATCH(Z$1,Formulacion!$1:$1,0),FALSE)="NA",1,IF(V11<=m2Min,0,1)) -> 1 | AA11: =IF(VLOOKUP($B11,Formulacion!$A:$BE,MATCH(AA$1,Formulacion!$1:$1,0),FALSE)="NA",1,IF(OR(E11<=FechaMin,E11>FechaMax),0,1)) -> 1 | AB11: =IF(VLOOKUP($B11,Formulacion!$A:$BE,MATCH(AB$1,Formulacion!$1:$1,0),FALSE)="NA",1,IF(H11<=MaterialesMin,0,1)) -> 1 | AC11: =IF(VLOOKUP($B11,Formulacion!$A:$BE,MATCH(AC$1,Formulacion!$1:$1,0),FALSE)="NA",1,IF(N11=0,0,IF(OR(I11/N11<=MObraMin,I11/N11>=MObraMax),MDOmin,1))) -> 1 | AD11: =IF(VLOOKUP($B11,Formulacion!$A:$BE,MATCH(AD$1,Formulacion!$1:$1,0),FALSE)="NA",1,IF(N11<=CostoTotalMin,0,1)) -> 1 | AE11: =IF(VLOOKUP($B11,Formulacion!$A:$BE,MATCH(AE$1,Formulacion!$1:$1,0),FALSE)="NA",1,IF(Q11<=PostesMin,0,1)) -> 1 | AF11: =IF(VLOOKUP($B11,Formulacion!$A:$BE,MATCH(AF$1,Formulacion!$1:$1,0),FALSE)="NA",1,IF(R11<=INDIRECT(VLOOKUP(B11,Formulacion!$A:$BE,2,FALSE)),0,1)) -> 1 | AG11: 1 | AH11: 36343.62 | AJ11: =IF(VLOOKUP($B11,Formulacion!$A:$BE,MATCH(AJ$1,Formulacion!$1:$1,0),FALSE)="NA","NA",HLOOKUP(VLOOKUP($B11,Formulacion!$A:$BE,MATCH(AJ$1,Formulacion!$1:$1,0),FALSE),$Q:$Z,ROW(AJ11),FALSE)) -> NA | AK11: =IF(VLOOKUP($B11,Formulacion!$A:$BE,MATCH(AK$1,Formulacion!$1:$1,0),FALSE)="NA",1,VLOOKUP($B11,Formulacion!$A:$BE,MATCH(AK$1,Formulacion!$1:$1,0),FALSE)) -> 1 | AL11: =IF(VLOOKUP($B11,Formulacion!$A:$BE,MATCH(AL$1,Formulacion!$1:$1,0),FALSE)="NA",1,VLOOKUP($B11,Formulacion!$A:$BE,MATCH(AL$1,Formulacion!$1:$1,0),FALSE)) -> 1 | AM11: 1 | AN11: =IF(VLOOKUP($B11,Formulacion!$A:$BE,MATCH(AN$1,Formulacion!$1:$1,0),FALSE)="NA","NA",IF(D11=0,"",VLOOKUP($B11,Formulacion!$A:$BE,MATCH(AN$1,Formulacion!$1:$1,0),FALSE))) -> NA | AO11: X | AV11: =IF(VLOOKUP($B11,Formulacion!$A:$BE,MATCH(AV$1,Formulacion!$1:$1,0),FALSE)="NA","NA",VLOOKUP(CONCATENATE(AO11,AP11,AQ11,AR11,AS11,AT11,AU11),ValoresReferenciales!$A:$D,4,FALSE)) -> NA | AW11: =IF(VLOOKUP($B11,Formulacion!$A:$BE,MATCH(AW$1,Formulacion!$1:$1,0),FALSE)="NA","NA",HLOOKUP(VLOOKUP($B11,Formulacion!$A:$BE,MATCH(AW$1,Formulacion!$1:$1,0),FALSE),$Q:$Z,ROW(AW11),FALSE)) -> NA | AX11: NA | AY11: 1 | AZ11: =IF(VLOOKUP($B11,Formulacion!$A:$BE,MATCH(AZ$1,Formulacion!$1:$1,0),FALSE)="NA",1,VLOOKUP($B11,Formulacion!$A:$BE,MATCH(AZ$1,Formulacion!$1:$1,0),FALSE)) -> 0.8 | BA11: =IF(VLOOKUP($B11,Formulacion!$A:$BE,MATCH(BA$1,Formulacion!$1:$1,0),FALSE)="NA",1,VLOOKUP($B11,Formulacion!$A:$BE,MATCH(BA$1,Formulacion!$1:$1,0),FALSE)) -> 1 | BB11: 29074.896 | BC11: 36343.62
A12: CC-01-AD EDECHI 2011.xls | B12: CMEDI | C12: CMEDI004 | D12: CMEDITBDTI037 | E12: 2011-12-31 | F12: CHIRIQUI | G12: 0 | H12: 20917.95 | I12: 0 | J12: 0 | K12: 0 | L12: 0 | M12: 0 | N12: 20917.95 | O12: 11 | P12: 0 | Q12: =IF(OR(VLOOKUP($B12,Formulacion!$A:$BE,MATCH(Q$1,Formulacion!$1:$1,0),FALSE)="NA",$D12=0),"NA",IF($B12="DLABT",MID($D12,PosteInicioBT,PosteFinBT-PosteInicioBT+1)*1,MID($D12,PosteInicio,PosteFin-PosteInicio+1)*1)) -> NA | R12: =IF(OR(VLOOKUP($B12,Formulacion!$A:$BE,MATCH(R$1,Formulacion!$1:$1,0),FALSE)="NA",$D12=0),"NA",IF(OR($B12="DLABT",$B12="DLSBT"),MID($D12,CondInicioBT,CondFinBT-CondInicioBT+1)*1,MID($D12,CondInicio,CondFin-CondInicio+1)*1)) -> NA | S12: NA | T12: =IF(OR(VLOOKUP($B12,Formulacion!$A:$BE,MATCH(T$1,Formulacion!$1:$1,0),FALSE)="NA",$D12=0),"NA",IF($B12="DLSBT",MID($D12,ZanjaInicioBT,ZanjaFinBT-ZanjaInicioBT+1)*1,MID($D12,ZanjaInicio,ZanjaFin-ZanjaInicio+1)*1)) -> NA | U12: 1 | V12: =IF(OR(VLOOKUP($B12,Formulacion!$A:$BE,MATCH(V$1,Formulacion!$1:$1,0),FALSE)="NA",$D12=0),"NA",MID($D12,m2Inicio+INDIRECT(B12),m2Fin-m2Inicio+1)*1) -> NA | W12: =IF(OR(VLOOKUP($B12,Formulacion!$A:$BE,MATCH(W$1,Formulacion!$1:$1,0),FALSE)="NA",$D12=0),"NA",RIGHT($D12,4)*1) -> NA | X12: =IF(OR(VLOOKUP($B12,Formulacion!$A:$BE,MATCH(X$1,Formulacion!$1:$1,0),FALSE)="NA",$D12=0),"NA",RIGHT($D12,3)*1) -> 37 | Y12: 1 | Z12: =IF(VLOOKUP($B12,Formulacion!$A:$BE,MATCH(Z$1,Formulacion!$1:$1,0),FALSE)="NA",1,IF(V12<=m2Min,0,1)) -> 1 | AA12: =IF(VLOOKUP($B12,Formulacion!$A:$BE,MATCH(AA$1,Formulacion!$1:$1,0),FALSE)="NA",1,IF(OR(E12<=FechaMin,E12>FechaMax),0,1)) -> 1 | AB12: =IF(VLOOKUP($B12,Formulacion!$A:$BE,MATCH(AB$1,Formulacion!$1:$1,0),FALSE)="NA",1,IF(H12<=MaterialesMin,0,1)) -> 1 | AC12: =IF(VLOOKUP($B12,Formulacion!$A:$BE,MATCH(AC$1,Formulacion!$1:$1,0),FALSE)="NA",1,IF(N12=0,0,IF(OR(I12/N12<=MObraMin,I12/N12>=MObraMax),MDOmin,1))) -> 1 | AD12: =IF(VLOOKUP($B12,Formulacion!$A:$BE,MATCH(AD$1,Formulacion!$1:$1,0),FALSE)="NA",1,IF(N12<=CostoTotalMin,0,1)) -> 1 | AE12: =IF(VLOOKUP($B12,Formulacion!$A:$BE,MATCH(AE$1,Formulacion!$1:$1,0),FALSE)="NA",1,IF(Q12<=PostesMin,0,1)) -> 1 | AF12: =IF(VLOOKUP($B12,Formulacion!$A:$BE,MATCH(AF$1,Formulacion!$1:$1,0),FALSE)="NA",1,IF(R12<=INDIRECT(VLOOKUP(B12,Formulacion!$A:$BE,2,FALSE)),0,1)) -> 1 | AG12: 1 | AH12: 20917.95 | AJ12: =IF(VLOOKUP($B12,Formulacion!$A:$BE,MATCH(AJ$1,Formulacion!$1:$1,0),FALSE)="NA","NA",HLOOKUP(VLOOKUP($B12,Formulacion!$A:$BE,MATCH(AJ$1,Formulacion!$1:$1,0),FALSE),$Q:$Z,ROW(AJ12),FALSE)) -> NA | AK12: =IF(VLOOKUP($B12,Formulacion!$A:$BE,MATCH(AK$1,Formulacion!$1:$1,0),FALSE)="NA",1,VLOOKUP($B12,Formulacion!$A:$BE,MATCH(AK$1,Formulacion!$1:$1,0),FALSE)) -> 1 | AL12: =IF(VLOOKUP($B12,Formulacion!$A:$BE,MATCH(AL$1,Formulacion!$1:$1,0),FALSE)="NA",1,VLOOKUP($B12,Formulacion!$A:$BE,MATCH(AL$1,Formulacion!$1:$1,0),FALSE)) -> 1 | AM12: 1 | AN12: =IF(VLOOKUP($B12,Formulacion!$A:$BE,MATCH(AN$1,Formulacion!$1:$1,0),FALSE)="NA","NA",IF(D12=0,"",VLOOKUP($B12,Formulacion!$A:$BE,MATCH(AN$1,Formulacion!$1:$1,0),FALSE))) -> NA | AO12: X | AV12: =IF(VLOOKUP($B12,Formulacion!$A:$BE,MATCH(AV$1,Formulacion!$1:$1,0),FALSE)="NA","NA",VLOOKUP(CONCATENATE(AO12,AP12,AQ12,AR12,AS12,AT12,AU12),ValoresReferenciales!$A:$D,4,FALSE)) -> NA | AW12: =IF(VLOOKUP($B12,Formulacion!$A:$BE,MATCH(AW$1,Formulacion!$1:$1,0),FALSE)="NA","NA",HLOOKUP(VLOOKUP($B12,Formulacion!$A:$BE,MATCH(AW$1,Formulacion!$1:$1,0),FALSE),$Q:$Z,ROW(AW12),FALSE)) -> NA | AX12: NA | AY12: 1 | AZ12: =IF(VLOOKUP($B12,Formulacion!$A:$BE,MATCH(AZ$1,Formulacion!$1:$1,0),FALSE)="NA",1,VLOOKUP($B12,Formulacion!$A:$BE,MATCH(AZ$1,Formulacion!$1:$1,0),FALSE)) -> 0.8 | BA12: =IF(VLOOKUP($B12,Formulacion!$A:$BE,MATCH(BA$1,Formulacion!$1:$1,0),FALSE)="NA",1,VLOOKUP($B12,Formulacion!$A:$BE,MATCH(BA$1,Formulacion!$1:$1,0),FALSE)) -> 1 | BB12: 16734.36 | BC12: 20917.95
A13: CC-01-AD EDECHI 2011.xls | B13: CMEDI | C13: CMEDI004 | D13: CMEDITMTTT021 | E13: 2011-12-31 | F13: CHIRIQUI | G13: 0 | H13: 127965.81 | I13: 0 | J13: 0 | K13: 0 | L13: 0 | M13: 0 | N13: 127965.81 | O13: 13 | P13: 0 | Q13: =IF(OR(VLOOKUP($B13,Formulacion!$A:$BE,MATCH(Q$1,Formulacion!$1:$1,0),FALSE)="NA",$D13=0),"NA",IF($B13="DLABT",MID($D13,PosteInicioBT,PosteFinBT-PosteInicioBT+1)*1,MID($D13,PosteInicio,PosteFin-PosteInicio+1)*1)) -> NA | R13: =IF(OR(VLOOKUP($B13,Formulacion!$A:$BE,MATCH(R$1,Formulacion!$1:$1,0),FALSE)="NA",$D13=0),"NA",IF(OR($B13="DLABT",$B13="DLSBT"),MID($D13,CondInicioBT,CondFinBT-CondInicioBT+1)*1,MID($D13,CondInicio,CondFin-CondInicio+1)*1)) -> NA | S13: NA | T13: =IF(OR(VLOOKUP($B13,Formulacion!$A:$BE,MATCH(T$1,Formulacion!$1:$1,0),FALSE)="NA",$D13=0),"NA",IF($B13="DLSBT",MID($D13,ZanjaInicioBT,ZanjaFinBT-ZanjaInicioBT+1)*1,MID($D13,ZanjaInicio,ZanjaFin-ZanjaInicio+1)*1)) -> NA | U13: 1 | V13: =IF(OR(VLOOKUP($B13,Formulacion!$A:$BE,MATCH(V$1,Formulacion!$1:$1,0),FALSE)="NA",$D13=0),"NA",MID($D13,m2Inicio+INDIRECT(B13),m2Fin-m2Inicio+1)*1) -> NA | W13: =IF(OR(VLOOKUP($B13,Formulacion!$A:$BE,MATCH(W$1,Formulacion!$1:$1,0),FALSE)="NA",$D13=0),"NA",RIGHT($D13,4)*1) -> NA | X13: =IF(OR(VLOOKUP($B13,Formulacion!$A:$BE,MATCH(X$1,Formulacion!$1:$1,0),FALSE)="NA",$D13=0),"NA",RIGHT($D13,3)*1) -> 21 | Y13: 1 | Z13: =IF(VLOOKUP($B13,Formulacion!$A:$BE,MATCH(Z$1,Formulacion!$1:$1,0),FALSE)="NA",1,IF(V13<=m2Min,0,1)) -> 1 | AA13: =IF(VLOOKUP($B13,Formulacion!$A:$BE,MATCH(AA$1,Formulacion!$1:$1,0),FALSE)="NA",1,IF(OR(E13<=FechaMin,E13>FechaMax),0,1)) -> 1 | AB13: =IF(VLOOKUP($B13,Formulacion!$A:$BE,MATCH(AB$1,Formulacion!$1:$1,0),FALSE)="NA",1,IF(H13<=MaterialesMin,0,1)) -> 1 | AC13: =IF(VLOOKUP($B13,Formulacion!$A:$BE,MATCH(AC$1,Formulacion!$1:$1,0),FALSE)="NA",1,IF(N13=0,0,IF(OR(I13/N13<=MObraMin,I13/N13>=MObraMax),MDOmin,1))) -> 1 | AD13: =IF(VLOOKUP($B13,Formulacion!$A:$BE,MATCH(AD$1,Formulacion!$1:$1,0),FALSE)="NA",1,IF(N13<=CostoTotalMin,0,1)) -> 1 | AE13: =IF(VLOOKUP($B13,Formulacion!$A:$BE,MATCH(AE$1,Formulacion!$1:$1,0),FALSE)="NA",1,IF(Q13<=PostesMin,0,1)) -> 1 | AF13: =IF(VLOOKUP($B13,Formulacion!$A:$BE,MATCH(AF$1,Formulacion!$1:$1,0),FALSE)="NA",1,IF(R13<=INDIRECT(VLOOKUP(B13,Formulacion!$A:$BE,2,FALSE)),0,1)) -> 1 | AG13: 1 | AH13: 127965.81 | AJ13: =IF(VLOOKUP($B13,Formulacion!$A:$BE,MATCH(AJ$1,Formulacion!$1:$1,0),FALSE)="NA","NA",HLOOKUP(VLOOKUP($B13,Formulacion!$A:$BE,MATCH(AJ$1,Formulacion!$1:$1,0),FALSE),$Q:$Z,ROW(AJ13),FALSE)) -> NA | AK13: =IF(VLOOKUP($B13,Formulacion!$A:$BE,MATCH(AK$1,Formulacion!$1:$1,0),FALSE)="NA",1,VLOOKUP($B13,Formulacion!$A:$BE,MATCH(AK$1,Formulacion!$1:$1,0),FALSE)) -> 1 | AL13: =IF(VLOOKUP($B13,Formulacion!$A:$BE,MATCH(AL$1,Formulacion!$1:$1,0),FALSE)="NA",1,VLOOKUP($B13,Formulacion!$A:$BE,MATCH(AL$1,Formulacion!$1:$1,0),FALSE)) -> 1 | AM13: 1 | AN13: =IF(VLOOKUP($B13,Formulacion!$A:$BE,MATCH(AN$1,Formulacion!$1:$1,0),FALSE)="NA","NA",IF(D13=0,"",VLOOKUP($B13,Formulacion!$A:$BE,MATCH(AN$1,Formulacion!$1:$1,0),FALSE))) -> NA | AO13: X | AV13: =IF(VLOOKUP($B13,Formulacion!$A:$BE,MATCH(AV$1,Formulacion!$1:$1,0),FALSE)="NA","NA",VLOOKUP(CONCATENATE(AO13,AP13,AQ13,AR13,AS13,AT13,AU13),ValoresReferenciales!$A:$D,4,FALSE)) -> NA | AW13: =IF(VLOOKUP($B13,Formulacion!$A:$BE,MATCH(AW$1,Formulacion!$1:$1,0),FALSE)="NA","NA",HLOOKUP(VLOOKUP($B13,Formulacion!$A:$BE,MATCH(AW$1,Formulacion!$1:$1,0),FALSE),$Q:$Z,ROW(AW13),FALSE)) -> NA | AX13: NA | AY13: 1 | AZ13: =IF(VLOOKUP($B13,Formulacion!$A:$BE,MATCH(AZ$1,Formulacion!$1:$1,0),FALSE)="NA",1,VLOOKUP($B13,Formulacion!$A:$BE,MATCH(AZ$1,Formulacion!$1:$1,0),FALSE)) -> 0.8 | BA13: =IF(VLOOKUP($B13,Formulacion!$A:$BE,MATCH(BA$1,Formulacion!$1:$1,0),FALSE)="NA",1,VLOOKUP($B13,Formulacion!$A:$BE,MATCH(BA$1,Formulacion!$1:$1,0),FALSE)) -> 1 | BB13: 102372.648 | BC13: 127965.81
A14: CC-01-AD EDECHI 2011.xls | B14: CMEDI | C14: CMEDI004 | D14: CMEDITMTTT028 | E14: 2011-12-31 | F14: CHIRIQUI | G14: 0 | H14: 63416.08 | I14: 0 | J14: 0 | K14: 0 | L14: 0 | M14: 0 | N14: 63416.08 | O14: 14 | P14: 0 | Q14: =IF(OR(VLOOKUP($B14,Formulacion!$A:$BE,MATCH(Q$1,Formulacion!$1:$1,0),FALSE)="NA",$D14=0),"NA",IF($B14="DLABT",MID($D14,PosteInicioBT,PosteFinBT-PosteInicioBT+1)*1,MID($D14,PosteInicio,PosteFin-PosteInicio+1)*1)) -> NA | R14: =IF(OR(VLOOKUP($B14,Formulacion!$A:$BE,MATCH(R$1,Formulacion!$1:$1,0),FALSE)="NA",$D14=0),"NA",IF(OR($B14="DLABT",$B14="DLSBT"),MID($D14,CondInicioBT,CondFinBT-CondInicioBT+1)*1,MID($D14,CondInicio,CondFin-CondInicio+1)*1)) -> NA | S14: NA | T14: =IF(OR(VLOOKUP($B14,Formulacion!$A:$BE,MATCH(T$1,Formulacion!$1:$1,0),FALSE)="NA",$D14=0),"NA",IF($B14="DLSBT",MID($D14,ZanjaInicioBT,ZanjaFinBT-ZanjaInicioBT+1)*1,MID($D14,ZanjaInicio,ZanjaFin-ZanjaInicio+1)*1)) -> NA | U14: 1 | V14: =IF(OR(VLOOKUP($B14,Formulacion!$A:$BE,MATCH(V$1,Formulacion!$1:$1,0),FALSE)="NA",$D14=0),"NA",MID($D14,m2Inicio+INDIRECT(B14),m2Fin-m2Inicio+1)*1) -> NA | W14: =IF(OR(VLOOKUP($B14,Formulacion!$A:$BE,MATCH(W$1,Formulacion!$1:$1,0),FALSE)="NA",$D14=0),"NA",RIGHT($D14,4)*1) -> NA | X14: =IF(OR(VLOOKUP($B14,Formulacion!$A:$BE,MATCH(X$1,Formulacion!$1:$1,0),FALSE)="NA",$D14=0),"NA",RIGHT($D14,3)*1) -> 28 | Y14: 1 | Z14: =IF(VLOOKUP($B14,Formulacion!$A:$BE,MATCH(Z$1,Formulacion!$1:$1,0),FALSE)="NA",1,IF(V14<=m2Min,0,1)) -> 1 | AA14: =IF(VLOOKUP($B14,Formulacion!$A:$BE,MATCH(AA$1,Formulacion!$1:$1,0),FALSE)="NA",1,IF(OR(E14<=FechaMin,E14>FechaMax),0,1)) -> 1 | AB14: =IF(VLOOKUP($B14,Formulacion!$A:$BE,MATCH(AB$1,Formulacion!$1:$1,0),FALSE)="NA",1,IF(H14<=MaterialesMin,0,1)) -> 1 | AC14: =IF(VLOOKUP($B14,Formulacion!$A:$BE,MATCH(AC$1,Formulacion!$1:$1,0),FALSE)="NA",1,IF(N14=0,0,IF(OR(I14/N14<=MObraMin,I14/N14>=MObraMax),MDOmin,1))) -> 1 | AD14: =IF(VLOOKUP($B14,Formulacion!$A:$BE,MATCH(AD$1,Formulacion!$1:$1,0),FALSE)="NA",1,IF(N14<=CostoTotalMin,0,1)) -> 1 | AE14: =IF(VLOOKUP($B14,Formulacion!$A:$BE,MATCH(AE$1,Formulacion!$1:$1,0),FALSE)="NA",1,IF(Q14<=PostesMin,0,1)) -> 1 | AF14: =IF(VLOOKUP($B14,Formulacion!$A:$BE,MATCH(AF$1,Formulacion!$1:$1,0),FALSE)="NA",1,IF(R14<=INDIRECT(VLOOKUP(B14,Formulacion!$A:$BE,2,FALSE)),0,1)) -> 1 | AG14: 1 | AH14: 63416.08 | AJ14: =IF(VLOOKUP($B14,Formulacion!$A:$BE,MATCH(AJ$1,Formulacion!$1:$1,0),FALSE)="NA","NA",HLOOKUP(VLOOKUP($B14,Formulacion!$A:$BE,MATCH(AJ$1,Formulacion!$1:$1,0),FALSE),$Q:$Z,ROW(AJ14),FALSE)) -> NA | AK14: =IF(VLOOKUP($B14,Formulacion!$A:$BE,MATCH(AK$1,Formulacion!$1:$1,0),FALSE)="NA",1,VLOOKUP($B14,Formulacion!$A:$BE,MATCH(AK$1,Formulacion!$1:$1,0),FALSE)) -> 1 | AL14: =IF(VLOOKUP($B14,Formulacion!$A:$BE,MATCH(AL$1,Formulacion!$1:$1,0),FALSE)="NA",1,VLOOKUP($B14,Formulacion!$A:$BE,MATCH(AL$1,Formulacion!$1:$1,0),FALSE)) -> 1 | AM14: 1 | AN14: =IF(VLOOKUP($B14,Formulacion!$A:$BE,MATCH(AN$1,Formulacion!$1:$1,0),FALSE)="NA","NA",IF(D14=0,"",VLOOKUP($B14,Formulacion!$A:$BE,MATCH(AN$1,Formulacion!$1:$1,0),FALSE))) -> NA | AO14: X | AV14: =IF(VLOOKUP($B14,Formulacion!$A:$BE,MATCH(AV$1,Formulacion!$1:$1,0),FALSE)="NA","NA",VLOOKUP(CONCATENATE(AO14,AP14,AQ14,AR14,AS14,AT14,AU14),ValoresReferenciales!$A:$D,4,FALSE)) -> NA | AW14: =IF(VLOOKUP($B14,Formulacion!$A:$BE,MATCH(AW$1,Formulacion!$1:$1,0),FALSE)="NA","NA",HLOOKUP(VLOOKUP($B14,Formulacion!$A:$BE,MATCH(AW$1,Formulacion!$1:$1,0),FALSE),$Q:$Z,ROW(AW14),FALSE)) -> NA | AX14: NA | AY14: 1 | AZ14: =IF(VLOOKUP($B14,Formulacion!$A:$BE,MATCH(AZ$1,Formulacion!$1:$1,0),FALSE)="NA",1,VLOOKUP($B14,Formulacion!$A:$BE,MATCH(AZ$1,Formulacion!$1:$1,0),FALSE)) -> 0.8 | BA14: =IF(VLOOKUP($B14,Formulacion!$A:$BE,MATCH(BA$1,Formulacion!$1:$1,0),FALSE)="NA",1,VLOOKUP($B14,Formulacion!$A:$BE,MATCH(BA$1,Formulacion!$1:$1,0),FALSE)) -> 1 | BB14: 50732.864 | BC14: 63416.08
A15: CC-01-AD EDECHI 2011.xls | B15: CMESM | C15: 0 | D15: 0 | E15: 00:00:00 | F15: 0 | G15: 0 | H15: 0 | I15: 0 | J15: 0 | K15: 0 | L15: 0 | M15: 0 | N15: 0 | O15: 9 | P15: 0 | Q15: =IF(OR(VLOOKUP($B15,Formulacion!$A:$BE,MATCH(Q$1,Formulacion!$1:$1,0),FALSE)="NA",$D15=0),"NA",IF($B15="DLABT",MID($D15,PosteInicioBT,PosteFinBT-PosteInicioBT+1)*1,MID($D15,PosteInicio,PosteFin-PosteInicio+1)*1)) -> NA | R15: =IF(OR(VLOOKUP($B15,Formulacion!$A:$BE,MATCH(R$1,Formulacion!$1:$1,0),FALSE)="NA",$D15=0),"NA",IF(OR($B15="DLABT",$B15="DLSBT"),MID($D15,CondInicioBT,CondFinBT-CondInicioBT+1)*1,MID($D15,CondInicio,CondFin-CondInicio+1)*1)) -> NA | S15: NA | T15: =IF(OR(VLOOKUP($B15,Formulacion!$A:$BE,MATCH(T$1,Formulacion!$1:$1,0),FALSE)="NA",$D15=0),"NA",IF($B15="DLSBT",MID($D15,ZanjaInicioBT,ZanjaFinBT-ZanjaInicioBT+1)*1,MID($D15,ZanjaInicio,ZanjaFin-ZanjaInicio+1)*1)) -> NA | U15: 1 | V15: =IF(OR(VLOOKUP($B15,Formulacion!$A:$BE,MATCH(V$1,Formulacion!$1:$1,0),FALSE)="NA",$D15=0),"NA",MID($D15,m2Inicio+INDIRECT(B15),m2Fin-m2Inicio+1)*1) -> NA | W15: =IF(OR(VLOOKUP($B15,Formulacion!$A:$BE,MATCH(W$1,Formulacion!$1:$1,0),FALSE)="NA",$D15=0),"NA",RIGHT($D15,4)*1) -> NA | X15: =IF(OR(VLOOKUP($B15,Formulacion!$A:$BE,MATCH(X$1,Formulacion!$1:$1,0),FALSE)="NA",$D15=0),"NA",RIGHT($D15,3)*1) -> NA | Y15: 1 | Z15: =IF(VLOOKUP($B15,Formulacion!$A:$BE,MATCH(Z$1,Formulacion!$1:$1,0),FALSE)="NA",1,IF(V15<=m2Min,0,1)) -> 1 | AA15: =IF(VLOOKUP($B15,Formulacion!$A:$BE,MATCH(AA$1,Formulacion!$1:$1,0),FALSE)="NA",1,IF(OR(E15<=FechaMin,E15>FechaMax),0,1)) -> 0 | AB15: =IF(VLOOKUP($B15,Formulacion!$A:$BE,MATCH(AB$1,Formulacion!$1:$1,0),FALSE)="NA",1,IF(H15<=MaterialesMin,0,1)) -> 0 | AC15: =IF(VLOOKUP($B15,Formulacion!$A:$BE,MATCH(AC$1,Formulacion!$1:$1,0),FALSE)="NA",1,IF(N15=0,0,IF(OR(I15/N15<=MObraMin,I15/N15>=MObraMax),MDOmin,1))) -> 0 | AD15: =IF(VLOOKUP($B15,Formulacion!$A:$BE,MATCH(AD$1,Formulacion!$1:$1,0),FALSE)="NA",1,IF(N15<=CostoTotalMin,0,1)) -> 0 | AE15: =IF(VLOOKUP($B15,Formulacion!$A:$BE,MATCH(AE$1,Formulacion!$1:$1,0),FALSE)="NA",1,IF(Q15<=PostesMin,0,1)) -> 1 | AF15: =IF(VLOOKUP($B15,Formulacion!$A:$BE,MATCH(AF$1,Formulacion!$1:$1,0),FALSE)="NA",1,IF(R15<=INDIRECT(VLOOKUP(B15,Formulacion!$A:$BE,2,FALSE)),0,1)) -> 1 | AG15: 0 | AH15: 0 | AJ15: =IF(VLOOKUP($B15,Formulacion!$A:$BE,MATCH(AJ$1,Formulacion!$1:$1,0),FALSE)="NA","NA",HLOOKUP(VLOOKUP($B15,Formulacion!$A:$BE,MATCH(AJ$1,Formulacion!$1:$1,0),FALSE),$Q:$Z,ROW(AJ15),FALSE)) -> NA | AK15: =IF(VLOOKUP($B15,Formulacion!$A:$BE,MATCH(AK$1,Formulacion!$1:$1,0),FALSE)="NA",1,VLOOKUP($B15,Formulacion!$A:$BE,MATCH(AK$1,Formulacion!$1:$1,0),FALSE)) -> 1 | AL15: =IF(VLOOKUP($B15,Formulacion!$A:$BE,MATCH(AL$1,Formulacion!$1:$1,0),FALSE)="NA",1,VLOOKUP($B15,Formulacion!$A:$BE,MATCH(AL$1,Formulacion!$1:$1,0),FALSE)) -> 1 | AM15: 1 | AN15: =IF(VLOOKUP($B15,Formulacion!$A:$BE,MATCH(AN$1,Formulacion!$1:$1,0),FALSE)="NA","NA",IF(D15=0,"",VLOOKUP($B15,Formulacion!$A:$BE,MATCH(AN$1,Formulacion!$1:$1,0),FALSE))) -> NA | AO15: X | AV15: =IF(VLOOKUP($B15,Formulacion!$A:$BE,MATCH(AV$1,Formulacion!$1:$1,0),FALSE)="NA","NA",VLOOKUP(CONCATENATE(AO15,AP15,AQ15,AR15,AS15,AT15,AU15),ValoresReferenciales!$A:$D,4,FALSE)) -> NA | AW15: =IF(VLOOKUP($B15,Formulacion!$A:$BE,MATCH(AW$1,Formulacion!$1:$1,0),FALSE)="NA","NA",HLOOKUP(VLOOKUP($B15,Formulacion!$A:$BE,MATCH(AW$1,Formulacion!$1:$1,0),FALSE),$Q:$Z,ROW(AW15),FALSE)) -> NA | AX15: NA | AY15: 1 | AZ15: =IF(VLOOKUP($B15,Formulacion!$A:$BE,MATCH(AZ$1,Formulacion!$1:$1,0),FALSE)="NA",1,VLOOKUP($B15,Formulacion!$A:$BE,MATCH(AZ$1,Formulacion!$1:$1,0),FALSE)) -> 1 | BA15: =IF(VLOOKUP($B15,Formulacion!$A:$BE,MATCH(BA$1,Formulacion!$1:$1,0),FALSE)="NA",1,VLOOKUP($B15,Formulacion!$A:$BE,MATCH(BA$1,Formulacion!$1:$1,0),FALSE)) -> 1 | BB15: 0 | BC15: 0
A16: CC-01-AD EDECHI 2011.xls | B16: DACBT | C16: DACBT004 | D16: DACBTAM3ALA00616704168 | E16: 2011-12-31 | F16: CHIRIQUI | G16: 4168 | H16: 4604.25 | I16: 2704.06 | J16: 0 | K16: 0 | L16: 0 | M16: 0 | N16: 7308.31 | O16: 10 | P16: 0 | Q16: =IF(OR(VLOOKUP($B16,Formulacion!$A:$BE,MATCH(Q$1,Formulacion!$1:$1,0),FALSE)="NA",$D16=0),"NA",IF($B16="DLABT",MID($D16,PosteInicioBT,PosteFinBT-PosteInicioBT+1)*1,MID($D16,PosteInicio,PosteFin-PosteInicio+1)*1)) -> NA | R16: =IF(OR(VLOOKUP($B16,Formulacion!$A:$BE,MATCH(R$1,Formulacion!$1:$1,0),FALSE)="NA",$D16=0),"NA",IF(OR($B16="DLABT",$B16="DLSBT"),MID($D16,CondInicioBT,CondFinBT-CondInicioBT+1)*1,MID($D16,CondInicio,CondFin-CondInicio+1)*1)) -> NA | S16: NA | T16: =IF(OR(VLOOKUP($B16,Formulacion!$A:$BE,MATCH(T$1,Formulacion!$1:$1,0),FALSE)="NA",$D16=0),"NA",IF($B16="DLSBT",MID($D16,ZanjaInicioBT,ZanjaFinBT-ZanjaInicioBT+1)*1,MID($D16,ZanjaInicio,ZanjaFin-ZanjaInicio+1)*1)) -> NA | U16: 1 | V16: =IF(OR(VLOOKUP($B16,Formulacion!$A:$BE,MATCH(V$1,Formulacion!$1:$1,0),FALSE)="NA",$D16=0),"NA",MID($D16,m2Inicio+INDIRECT(B16),m2Fin-m2Inicio+1)*1) -> NA | W16: =IF(OR(VLOOKUP($B16,Formulacion!$A:$BE,MATCH(W$1,Formulacion!$1:$1,0),FALSE)="NA",$D16=0),"NA",RIGHT($D16,4)*1) -> NA | X16: =IF(OR(VLOOKUP($B16,Formulacion!$A:$BE,MATCH(X$1,Formulacion!$1:$1,0),FALSE)="NA",$D16=0),"NA",RIGHT($D16,3)*1) -> NA | Y16: 1 | Z16: =IF(VLOOKUP($B16,Formulacion!$A:$BE,MATCH(Z$1,Formulacion!$1:$1,0),FALSE)="NA",1,IF(V16<=m2Min,0,1)) -> 1 | AA16: =IF(VLOOKUP($B16,Formulacion!$A:$BE,MATCH(AA$1,Formulacion!$1:$1,0),FALSE)="NA",1,IF(OR(E16<=FechaMin,E16>FechaMax),0,1)) -> 1 | AB16: =IF(VLOOKUP($B16,Formulacion!$A:$BE,MATCH(AB$1,Formulacion!$1:$1,0),FALSE)="NA",1,IF(H16<=MaterialesMin,0,1)) -> 1 | AC16: =IF(VLOOKUP($B16,Formulacion!$A:$BE,MATCH(AC$1,Formulacion!$1:$1,0),FALSE)="NA",1,IF(N16=0,0,IF(OR(I16/N16<=MObraMin,I16/N16>=MObraMax),MDOmin,1))) -> 1 | AD16: =IF(VLOOKUP($B16,Formulacion!$A:$BE,MATCH(AD$1,Formulacion!$1:$1,0),FALSE)="NA",1,IF(N16<=CostoTotalMin,0,1)) -> 1 | AE16: =IF(VLOOKUP($B16,Formulacion!$A:$BE,MATCH(AE$1,Formulacion!$1:$1,0),FALSE)="NA",1,IF(Q16<=PostesMin,0,1)) -> 1 | AF16: =IF(VLOOKUP($B16,Formulacion!$A:$BE,MATCH(AF$1,Formulacion!$1:$1,0),FALSE)="NA",1,IF(R16<=INDIRECT(VLOOKUP(B16,Formulacion!$A:$BE,2,FALSE)),0,1)) -> 1 | AG16: 1 | AH16: 7308.31 | AJ16: =IF(VLOOKUP($B16,Formulacion!$A:$BE,MATCH(AJ$1,Formulacion!$1:$1,0),FALSE)="NA","NA",HLOOKUP(VLOOKUP($B16,Formulacion!$A:$BE,MATCH(AJ$1,Formulacion!$1:$1,0),FALSE),$Q:$Z,ROW(AJ16),FALSE)) -> NA | AK16: =IF(VLOOKUP($B16,Formulacion!$A:$BE,MATCH(AK$1,Formulacion!$1:$1,0),FALSE)="NA",1,VLOOKUP($B16,Formulacion!$A:$BE,MATCH(AK$1,Formulacion!$1:$1,0),FALSE)) -> 1 | AL16: =IF(VLOOKUP($B16,Formulacion!$A:$BE,MATCH(AL$1,Formulacion!$1:$1,0),FALSE)="NA",1,VLOOKUP($B16,Formulacion!$A:$BE,MATCH(AL$1,Formulacion!$1:$1,0),FALSE)) -> 1 | AM16: 1 | AN16: =IF(VLOOKUP($B16,Formulacion!$A:$BE,MATCH(AN$1,Formulacion!$1:$1,0),FALSE)="NA","NA",IF(D16=0,"",VLOOKUP($B16,Formulacion!$A:$BE,MATCH(AN$1,Formulacion!$1:$1,0),FALSE))) -> 02060906 | AO16: ACBTAM | AP16: ALA006 | AV16: =IF(VLOOKUP($B16,Formulacion!$A:$BE,MATCH(AV$1,Formulacion!$1:$1,0),FALSE)="NA","NA",VLOOKUP(CONCATENATE(AO16,AP16,AQ16,AR16,AS16,AT16,AU16),ValoresReferenciales!$A:$D,4,FALSE)) -> NA | AW16: =IF(VLOOKUP($B16,Formulacion!$A:$BE,MATCH(AW$1,Formulacion!$1:$1,0),FALSE)="NA","NA",HLOOKUP(VLOOKUP($B16,Formulacion!$A:$BE,MATCH(AW$1,Formulacion!$1:$1,0),FALSE),$Q:$Z,ROW(AW16),FALSE)) -> NA | AX16: NA | AY16: 1 | AZ16: =IF(VLOOKUP($B16,Formulacion!$A:$BE,MATCH(AZ$1,Formulacion!$1:$1,0),FALSE)="NA",1,VLOOKUP($B16,Formulacion!$A:$BE,MATCH(AZ$1,Formulacion!$1:$1,0),FALSE)) -> 1 | BA16: =IF(VLOOKUP($B16,Formulacion!$A:$BE,MATCH(BA$1,Formulacion!$1:$1,0),FALSE)="NA",1,VLOOKUP($B16,Formulacion!$A:$BE,MATCH(BA$1,Formulacion!$1:$1,0),FALSE)) -> 1 | BB16: 7308.31 | BC16: 7308.31
A17: CC-01-AD EDECHI 2011.xls | B17: DACBT | C17: DACBT004 | D17: DACBTAM3ALA00699924834 | E17: 2011-12-31 | F17: CHIRIQUI | G17: 24834 | H17: 27433.04 | I17: 16111.47 | J17: 0 | K17: 0 | L17: 0 | M17: 0 | N17: 43544.51 | O17: 9 | P17: 0 | Q17: =IF(OR(VLOOKUP($B17,Formulacion!$A:$BE,MATCH(Q$1,Formulacion!$1:$1,0),FALSE)="NA",$D17=0),"NA",IF($B17="DLABT",MID($D17,PosteInicioBT,PosteFinBT-PosteInicioBT+1)*1,MID($D17,PosteInicio,PosteFin-PosteInicio+1)*1)) -> NA | R17: =IF(OR(VLOOKUP($B17,Formulacion!$A:$BE,MATCH(R$1,Formulacion!$1:$1,0),FALSE)="NA",$D17=0),"NA",IF(OR($B17="DLABT",$B17="DLSBT"),MID($D17,CondInicioBT,CondFinBT-CondInicioBT+1)*1,MID($D17,CondInicio,CondFin-CondInicio+1)*1)) -> NA | S17: NA | T17: =IF(OR(VLOOKUP($B17,Formulacion!$A:$BE,MATCH(T$1,Formulacion!$1:$1,0),FALSE)="NA",$D17=0),"NA",IF($B17="DLSBT",MID($D17,ZanjaInicioBT,ZanjaFinBT-ZanjaInicioBT+1)*1,MID($D17,ZanjaInicio,ZanjaFin-ZanjaInicio+1)*1)) -> NA | U17: 1 | V17: =IF(OR(VLOOKUP($B17,Formulacion!$A:$BE,MATCH(V$1,Formulacion!$1:$1,0),FALSE)="NA",$D17=0),"NA",MID($D17,m2Inicio+INDIRECT(B17),m2Fin-m2Inicio+1)*1) -> NA | W17: =IF(OR(VLOOKUP($B17,Formulacion!$A:$BE,MATCH(W$1,Formulacion!$1:$1,0),FALSE)="NA",$D17=0),"NA",RIGHT($D17,4)*1) -> NA | X17: =IF(OR(VLOOKUP($B17,Formulacion!$A:$BE,MATCH(X$1,Formulacion!$1:$1,0),FALSE)="NA",$D17=0),"NA",RIGHT($D17,3)*1) -> NA | Y17: 1 | Z17: =IF(VLOOKUP($B17,Formulacion!$A:$BE,MATCH(Z$1,Formulacion!$1:$1,0),FALSE)="NA",1,IF(V17<=m2Min,0,1)) -> 1 | AA17: =IF(VLOOKUP($B17,Formulacion!$A:$BE,MATCH(AA$1,Formulacion!$1:$1,0),FALSE)="NA",1,IF(OR(E17<=FechaMin,E17>FechaMax),0,1)) -> 1 | AB17: =IF(VLOOKUP($B17,Formulacion!$A:$BE,MATCH(AB$1,Formulacion!$1:$1,0),FALSE)="NA",1,IF(H17<=MaterialesMin,0,1)) -> 1 | AC17: =IF(VLOOKUP($B17,Formulacion!$A:$BE,MATCH(AC$1,Formulacion!$1:$1,0),FALSE)="NA",1,IF(N17=0,0,IF(OR(I17/N17<=MObraMin,I17/N17>=MObraMax),MDOmin,1))) -> 1 | AD17: =IF(VLOOKUP($B17,Formulacion!$A:$BE,MATCH(AD$1,Formulacion!$1:$1,0),FALSE)="NA",1,IF(N17<=CostoTotalMin,0,1)) -> 1 | AE17: =IF(VLOOKUP($B17,Formulacion!$A:$BE,MATCH(AE$1,Formulacion!$1:$1,0),FALSE)="NA",1,IF(Q17<=PostesMin,0,1)) -> 1 | AF17: =IF(VLOOKUP($B17,Formulacion!$A:$BE,MATCH(AF$1,Formulacion!$1:$1,0),FALSE)="NA",1,IF(R17<=INDIRECT(VLOOKUP(B17,Formulacion!$A:$BE,2,FALSE)),0,1)) -> 1 | AG17: 1 | AH17: 43544.51 | AJ17: =IF(VLOOKUP($B17,Formulacion!$A:$BE,MATCH(AJ$1,Formulacion!$1:$1,0),FALSE)="NA","NA",HLOOKUP(VLOOKUP($B17,Formulacion!$A:$BE,MATCH(AJ$1,Formulacion!$1:$1,0),FALSE),$Q:$Z,ROW(AJ17),FALSE)) -> NA | AK17: =IF(VLOOKUP($B17,Formulacion!$A:$BE,MATCH(AK$1,Formulacion!$1:$1,0),FALSE)="NA",1,VLOOKUP($B17,Formulacion!$A:$BE,MATCH(AK$1,Formulacion!$1:$1,0),FALSE)) -> 1 | AL17: =IF(VLOOKUP($B17,Formulacion!$A:$BE,MATCH(AL$1,Formulacion!$1:$1,0),FALSE)="NA",1,VLOOKUP($B17,Formulacion!$A:$BE,MATCH(AL$1,Formulacion!$1:$1,0),FALSE)) -> 1 | AM17: 1 | AN17: =IF(VLOOKUP($B17,Formulacion!$A:$BE,MATCH(AN$1,Formulacion!$1:$1,0),FALSE)="NA","NA",IF(D17=0,"",VLOOKUP($B17,Formulacion!$A:$BE,MATCH(AN$1,Formulacion!$1:$1,0),FALSE))) -> 02060906 | AO17: ACBTAM | AP17: ALA006 | AV17: =IF(VLOOKUP($B17,Formulacion!$A:$BE,MATCH(AV$1,Formulacion!$1:$1,0),FALSE)="NA","NA",VLOOKUP(CONCATENATE(AO17,AP17,AQ17,AR17,AS17,AT17,AU17),ValoresReferenciales!$A:$D,4,FALSE)) -> NA | AW17: =IF(VLOOKUP($B17,Formulacion!$A:$BE,MATCH(AW$1,Formulacion!$1:$1,0),FALSE)="NA","NA",HLOOKUP(VLOOKUP($B17,Formulacion!$A:$BE,MATCH(AW$1,Formulacion!$1:$1,0),FALSE),$Q:$Z,ROW(AW17),FALSE)) -> NA | AX17: NA | AY17: 1 | AZ17: =IF(VLOOKUP($B17,Formulacion!$A:$BE,MATCH(AZ$1,Formulacion!$1:$1,0),FALSE)="NA",1,VLOOKUP($B17,Formulacion!$A:$BE,MATCH(AZ$1,Formulacion!$1:$1,0),FALSE)) -> 1 | BA17: =IF(VLOOKUP($B17,Formulacion!$A:$BE,MATCH(BA$1,Formulacion!$1:$1,0),FALSE)="NA",1,VLOOKUP($B17,Formulacion!$A:$BE,MATCH(BA$1,Formulacion!$1:$1,0),FALSE)) -> 1 | BB17: 43544.51 | BC17: 43544.51
A18: CC-01-AD EDECHI 2011.xls | B18: DCRMM | C18: 0 | D18: 0 | E18: 00:00:00 | F18: 0 | G18: 0 | H18: 0 | I18: 0 | J18: 0 | K18: 0 | L18: 0 | M18: 0 | N18: 0 | O18: 9 | P18: 0 | Q18: =IF(OR(VLOOKUP($B18,Formulacion!$A:$BE,MATCH(Q$1,Formulacion!$1:$1,0),FALSE)="NA",$D18=0),"NA",IF($B18="DLABT",MID($D18,PosteInicioBT,PosteFinBT-PosteInicioBT+1)*1,MID($D18,PosteInicio,PosteFin-PosteInicio+1)*1)) -> NA | R18: =IF(OR(VLOOKUP($B18,Formulacion!$A:$BE,MATCH(R$1,Formulacion!$1:$1,0),FALSE)="NA",$D18=0),"NA",IF(OR($B18="DLABT",$B18="DLSBT"),MID($D18,CondInicioBT,CondFinBT-CondInicioBT+1)*1,MID($D18,CondInicio,CondFin-CondInicio+1)*1)) -> NA | S18: NA | T18: =IF(OR(VLOOKUP($B18,Formulacion!$A:$BE,MATCH(T$1,Formulacion!$1:$1,0),FALSE)="NA",$D18=0),"NA",IF($B18="DLSBT",MID($D18,ZanjaInicioBT,ZanjaFinBT-ZanjaInicioBT+1)*1,MID($D18,ZanjaInicio,ZanjaFin-ZanjaInicio+1)*1)) -> NA | U18: 1 | V18: =IF(OR(VLOOKUP($B18,Formulacion!$A:$BE,MATCH(V$1,Formulacion!$1:$1,0),FALSE)="NA",$D18=0),"NA",MID($D18,m2Inicio+INDIRECT(B18),m2Fin-m2Inicio+1)*1) -> NA | W18: =IF(OR(VLOOKUP($B18,Formulacion!$A:$BE,MATCH(W$1,Formulacion!$1:$1,0),FALSE)="NA",$D18=0),"NA",RIGHT($D18,4)*1) -> NA | X18: =IF(OR(VLOOKUP($B18,Formulacion!$A:$BE,MATCH(X$1,Formulacion!$1:$1,0),FALSE)="NA",$D18=0),"NA",RIGHT($D18,3)*1) -> NA | Y18: 1 | Z18: =IF(VLOOKUP($B18,Formulacion!$A:$BE,MATCH(Z$1,Formulacion!$1:$1,0),FALSE)="NA",1,IF(V18<=m2Min,0,1)) -> 1 | AA18: =IF(VLOOKUP($B18,Formulacion!$A:$BE,MATCH(AA$1,Formulacion!$1:$1,0),FALSE)="NA",1,IF(OR(E18<=FechaMin,E18>FechaMax),0,1)) -> 0 | AB18: =IF(VLOOKUP($B18,Formulacion!$A:$BE,MATCH(AB$1,Formulacion!$1:$1,0),FALSE)="NA",1,IF(H18<=MaterialesMin,0,1)) -> 0 | AC18: =IF(VLOOKUP($B18,Formulacion!$A:$BE,MATCH(AC$1,Formulacion!$1:$1,0),FALSE)="NA",1,IF(N18=0,0,IF(OR(I18/N18<=MObraMin,I18/N18>=MObraMax),MDOmin,1))) -> 0 | AD18: =IF(VLOOKUP($B18,Formulacion!$A:$BE,MATCH(AD$1,Formulacion!$1:$1,0),FALSE)="NA",1,IF(N18<=CostoTotalMin,0,1)) -> 0 | AE18: =IF(VLOOKUP($B18,Formulacion!$A:$BE,MATCH(AE$1,Formulacion!$1:$1,0),FALSE)="NA",1,IF(Q18<=PostesMin,0,1)) -> 1 | AF18: =IF(VLOOKUP($B18,Formulacion!$A:$BE,MATCH(AF$1,Formulacion!$1:$1,0),FALSE)="NA",1,IF(R18<=INDIRECT(VLOOKUP(B18,Formulacion!$A:$BE,2,FALSE)),0,1)) -> 1 | AG18: 0 | AH18: 0 | AJ18: =IF(VLOOKUP($B18,Formulacion!$A:$BE,MATCH(AJ$1,Formulacion!$1:$1,0),FALSE)="NA","NA",HLOOKUP(VLOOKUP($B18,Formulacion!$A:$BE,MATCH(AJ$1,Formulacion!$1:$1,0),FALSE),$Q:$Z,ROW(AJ18),FALSE)) -> NA | AK18: =IF(VLOOKUP($B18,Formulacion!$A:$BE,MATCH(AK$1,Formulacion!$1:$1,0),FALSE)="NA",1,VLOOKUP($B18,Formulacion!$A:$BE,MATCH(AK$1,Formulacion!$1:$1,0),FALSE)) -> 1 | AL18: =IF(VLOOKUP($B18,Formulacion!$A:$BE,MATCH(AL$1,Formulacion!$1:$1,0),FALSE)="NA",1,VLOOKUP($B18,Formulacion!$A:$BE,MATCH(AL$1,Formulacion!$1:$1,0),FALSE)) -> 1 | AM18: 1 | AN18: =IF(VLOOKUP($B18,Formulacion!$A:$BE,MATCH(AN$1,Formulacion!$1:$1,0),FALSE)="NA","NA",IF(D18=0,"",VLOOKUP($B18,Formulacion!$A:$BE,MATCH(AN$1,Formulacion!$1:$1,0),FALSE))) -> NA | AO18: X | AV18: =IF(VLOOKUP($B18,Formulacion!$A:$BE,MATCH(AV$1,Formulacion!$1:$1,0),FALSE)="NA","NA",VLOOKUP(CONCATENATE(AO18,AP18,AQ18,AR18,AS18,AT18,AU18),ValoresReferenciales!$A:$D,4,FALSE)) -> NA | AW18: =IF(VLOOKUP($B18,Formulacion!$A:$BE,MATCH(AW$1,Formulacion!$1:$1,0),FALSE)="NA","NA",HLOOKUP(VLOOKUP($B18,Formulacion!$A:$BE,MATCH(AW$1,Formulacion!$1:$1,0),FALSE),$Q:$Z,ROW(AW18),FALSE)) -> NA | AX18: NA | AY18: 1 | AZ18: =IF(VLOOKUP($B18,Formulacion!$A:$BE,MATCH(AZ$1,Formulacion!$1:$1,0),FALSE)="NA",1,VLOOKUP($B18,Formulacion!$A:$BE,MATCH(AZ$1,Formulacion!$1:$1,0),FALSE)) -> 1 | BA18: =IF(VLOOKUP($B18,Formulacion!$A:$BE,MATCH(BA$1,Formulacion!$1:$1,0),FALSE)="NA",1,VLOOKUP($B18,Formulacion!$A:$BE,MATCH(BA$1,Formulacion!$1:$1,0),FALSE)) -> 1 | BB18: 0 | BC18: 0
A19: CC-01-AD EDECHI 2011.xls | B19: DEQDM | C19: DEQDM1 | D19: DEQDMUR0001 | E19: 2011-12-31 | F19: CHIRIQUI | G19: 1 | H19: 15539.74 | I19: 0 | J19: 0 | K19: 0 | L19: 0 | M19: 0 | N19: 15539.74 | O19: 9 | P19: 0 | Q19: =IF(OR(VLOOKUP($B19,Formulacion!$A:$BE,MATCH(Q$1,Formulacion!$1:$1,0),FALSE)="NA",$D19=0),"NA",IF($B19="DLABT",MID($D19,PosteInicioBT,PosteFinBT-PosteInicioBT+1)*1,MID($D19,PosteInicio,PosteFin-PosteInicio+1)*1)) -> NA | R19: =IF(OR(VLOOKUP($B19,Formulacion!$A:$BE,MATCH(R$1,Formulacion!$1:$1,0),FALSE)="NA",$D19=0),"NA",IF(OR($B19="DLABT",$B19="DLSBT"),MID($D19,CondInicioBT,CondFinBT-CondInicioBT+1)*1,MID($D19,CondInicio,CondFin-CondInicio+1)*1)) -> NA | S19: NA | T19: =IF(OR(VLOOKUP($B19,Formulacion!$A:$BE,MATCH(T$1,Formulacion!$1:$1,0),FALSE)="NA",$D19=0),"NA",IF($B19="DLSBT",MID($D19,ZanjaInicioBT,ZanjaFinBT-ZanjaInicioBT+1)*1,MID($D19,ZanjaInicio,ZanjaFin-ZanjaInicio+1)*1)) -> NA | U19: 1 | V19: =IF(OR(VLOOKUP($B19,Formulacion!$A:$BE,MATCH(V$1,Formulacion!$1:$1,0),FALSE)="NA",$D19=0),"NA",MID($D19,m2Inicio+INDIRECT(B19),m2Fin-m2Inicio+1)*1) -> NA | W19: =IF(OR(VLOOKUP($B19,Formulacion!$A:$BE,MATCH(W$1,Formulacion!$1:$1,0),FALSE)="NA",$D19=0),"NA",RIGHT($D19,4)*1) -> 1 | X19: =IF(OR(VLOOKUP($B19,Formulacion!$A:$BE,MATCH(X$1,Formulacion!$1:$1,0),FALSE)="NA",$D19=0),"NA",RIGHT($D19,3)*1) -> NA | Y19: 1 | Z19: =IF(VLOOKUP($B19,Formulacion!$A:$BE,MATCH(Z$1,Formulacion!$1:$1,0),FALSE)="NA",1,IF(V19<=m2Min,0,1)) -> 1 | AA19: =IF(VLOOKUP($B19,Formulacion!$A:$BE,MATCH(AA$1,Formulacion!$1:$1,0),FALSE)="NA",1,IF(OR(E19<=FechaMin,E19>FechaMax),0,1)) -> 1 | AB19: =IF(VLOOKUP($B19,Formulacion!$A:$BE,MATCH(AB$1,Formulacion!$1:$1,0),FALSE)="NA",1,IF(H19<=MaterialesMin,0,1)) -> 1 | AC19: =IF(VLOOKUP($B19,Formulacion!$A:$BE,MATCH(AC$1,Formulacion!$1:$1,0),FALSE)="NA",1,IF(N19=0,0,IF(OR(I19/N19<=MObraMin,I19/N19>=MObraMax),MDOmin,1))) -> 1 | AD19: =IF(VLOOKUP($B19,Formulacion!$A:$BE,MATCH(AD$1,Formulacion!$1:$1,0),FALSE)="NA",1,IF(N19<=CostoTotalMin,0,1)) -> 1 | AE19: =IF(VLOOKUP($B19,Formulacion!$A:$BE,MATCH(AE$1,Formulacion!$1:$1,0),FALSE)="NA",1,IF(Q19<=PostesMin,0,1)) -> 1 | AF19: =IF(VLOOKUP($B19,Formulacion!$A:$BE,MATCH(AF$1,Formulacion!$1:$1,0),FALSE)="NA",1,IF(R19<=INDIRECT(VLOOKUP(B19,Formulacion!$A:$BE,2,FALSE)),0,1)) -> 1 | AG19: 1 | AH19: 15539.74 | AJ19: =IF(VLOOKUP($B19,Formulacion!$A:$BE,MATCH(AJ$1,Formulacion!$1:$1,0),FALSE)="NA","NA",HLOOKUP(VLOOKUP($B19,Formulacion!$A:$BE,MATCH(AJ$1,Formulacion!$1:$1,0),FALSE),$Q:$Z,ROW(AJ19),FALSE)) -> NA | AK19: =IF(VLOOKUP($B19,Formulacion!$A:$BE,MATCH(AK$1,Formulacion!$1:$1,0),FALSE)="NA",1,VLOOKUP($B19,Formulacion!$A:$BE,MATCH(AK$1,Formulacion!$1:$1,0),FALSE)) -> 1 | AL19: =IF(VLOOKUP($B19,Formulacion!$A:$BE,MATCH(AL$1,Formulacion!$1:$1,0),FALSE)="NA",1,VLOOKUP($B19,Formulacion!$A:$BE,MATCH(AL$1,Formulacion!$1:$1,0),FALSE)) -> 1 | AM19: 1 | AN19: =IF(VLOOKUP($B19,Formulacion!$A:$BE,MATCH(AN$1,Formulacion!$1:$1,0),FALSE)="NA","NA",IF(D19=0,"",VLOOKUP($B19,Formulacion!$A:$BE,MATCH(AN$1,Formulacion!$1:$1,0),FALSE))) -> NA | AO19: X | AV19: =IF(VLOOKUP($B19,Formulacion!$A:$BE,MATCH(AV$1,Formulacion!$1:$1,0),FALSE)="NA","NA",VLOOKUP(CONCATENATE(AO19,AP19,AQ19,AR19,AS19,AT19,AU19),ValoresReferenciales!$A:$D,4,FALSE)) -> NA | AW19: =IF(VLOOKUP($B19,Formulacion!$A:$BE,MATCH(AW$1,Formulacion!$1:$1,0),FALSE)="NA","NA",HLOOKUP(VLOOKUP($B19,Formulacion!$A:$BE,MATCH(AW$1,Formulacion!$1:$1,0),FALSE),$Q:$Z,ROW(AW19),FALSE)) -> NA | AX19: NA | AY19: 1 | AZ19: =IF(VLOOKUP($B19,Formulacion!$A:$BE,MATCH(AZ$1,Formulacion!$1:$1,0),FALSE)="NA",1,VLOOKUP($B19,Formulacion!$A:$BE,MATCH(AZ$1,Formulacion!$1:$1,0),FALSE)) -> 1 | BA19: =IF(VLOOKUP($B19,Formulacion!$A:$BE,MATCH(BA$1,Formulacion!$1:$1,0),FALSE)="NA",1,VLOOKUP($B19,Formulacion!$A:$BE,MATCH(BA$1,Formulacion!$1:$1,0),FALSE)) -> 1 | BB19: 15539.74 | BC19: 15539.74
A20: CC-01-AD EDECHI 2011.xls | B20: DEQMC | C20: 0 | D20: 0 | E20: 00:00:00 | F20: 0 | G20: 0 | H20: 0 | I20: 0 | J20: 0 | K20: 0 | L20: 0 | M20: 0 | N20: 0 | O20: 9 | P20: 0 | Q20: =IF(OR(VLOOKUP($B20,Formulacion!$A:$BE,MATCH(Q$1,Formulacion!$1:$1,0),FALSE)="NA",$D20=0),"NA",IF($B20="DLABT",MID($D20,PosteInicioBT,PosteFinBT-PosteInicioBT+1)*1,MID($D20,PosteInicio,PosteFin-PosteInicio+1)*1)) -> NA | R20: =IF(OR(VLOOKUP($B20,Formulacion!$A:$BE,MATCH(R$1,Formulacion!$1:$1,0),FALSE)="NA",$D20=0),"NA",IF(OR($B20="DLABT",$B20="DLSBT"),MID($D20,CondInicioBT,CondFinBT-CondInicioBT+1)*1,MID($D20,CondInicio,CondFin-CondInicio+1)*1)) -> NA | S20: NA | T20: =IF(OR(VLOOKUP($B20,Formulacion!$A:$BE,MATCH(T$1,Formulacion!$1:$1,0),FALSE)="NA",$D20=0),"NA",IF($B20="DLSBT",MID($D20,ZanjaInicioBT,ZanjaFinBT-ZanjaInicioBT+1)*1,MID($D20,ZanjaInicio,ZanjaFin-ZanjaInicio+1)*1)) -> NA | U20: 1 | V20: =IF(OR(VLOOKUP($B20,Formulacion!$A:$BE,MATCH(V$1,Formulacion!$1:$1,0),FALSE)="NA",$D20=0),"NA",MID($D20,m2Inicio+INDIRECT(B20),m2Fin-m2Inicio+1)*1) -> NA | W20: =IF(OR(VLOOKUP($B20,Formulacion!$A:$BE,MATCH(W$1,Formulacion!$1:$1,0),FALSE)="NA",$D20=0),"NA",RIGHT($D20,4)*1) -> NA | X20: =IF(OR(VLOOKUP($B20,Formulacion!$A:$BE,MATCH(X$1,Formulacion!$1:$1,0),FALSE)="NA",$D20=0),"NA",RIGHT($D20,3)*1) -> NA | Y20: 1 | Z20: =IF(VLOOKUP($B20,Formulacion!$A:$BE,MATCH(Z$1,Formulacion!$1:$1,0),FALSE)="NA",1,IF(V20<=m2Min,0,1)) -> 1 | AA20: =IF(VLOOKUP($B20,Formulacion!$A:$BE,MATCH(AA$1,Formulacion!$1:$1,0),FALSE)="NA",1,IF(OR(E20<=FechaMin,E20>FechaMax),0,1)) -> 0 | AB20: =IF(VLOOKUP($B20,Formulacion!$A:$BE,MATCH(AB$1,Formulacion!$1:$1,0),FALSE)="NA",1,IF(H20<=MaterialesMin,0,1)) -> 1 | AC20: =IF(VLOOKUP($B20,Formulacion!$A:$BE,MATCH(AC$1,Formulacion!$1:$1,0),FALSE)="NA",1,IF(N20=0,0,IF(OR(I20/N20<=MObraMin,I20/N20>=MObraMax),MDOmin,1))) -> 1 | AD20: =IF(VLOOKUP($B20,Formulacion!$A:$BE,MATCH(AD$1,Formulacion!$1:$1,0),FALSE)="NA",1,IF(N20<=CostoTotalMin,0,1)) -> 0 | AE20: =IF(VLOOKUP($B20,Formulacion!$A:$BE,MATCH(AE$1,Formulacion!$1:$1,0),FALSE)="NA",1,IF(Q20<=PostesMin,0,1)) -> 1 | AF20: =IF(VLOOKUP($B20,Formulacion!$A:$BE,MATCH(AF$1,Formulacion!$1:$1,0),FALSE)="NA",1,IF(R20<=INDIRECT(VLOOKUP(B20,Formulacion!$A:$BE,2,FALSE)),0,1)) -> 1 | AG20: 0 | AH20: 0 | AJ20: =IF(VLOOKUP($B20,Formulacion!$A:$BE,MATCH(AJ$1,Formulacion!$1:$1,0),FALSE)="NA","NA",HLOOKUP(VLOOKUP($B20,Formulacion!$A:$BE,MATCH(AJ$1,Formulacion!$1:$1,0),FALSE),$Q:$Z,ROW(AJ20),FALSE)) -> NA | AK20: =IF(VLOOKUP($B20,Formulacion!$A:$BE,MATCH(AK$1,Formulacion!$1:$1,0),FALSE)="NA",1,VLOOKUP($B20,Formulacion!$A:$BE,MATCH(AK$1,Formulacion!$1:$1,0),FALSE)) -> 1 | AL20: =IF(VLOOKUP($B20,Formulacion!$A:$BE,MATCH(AL$1,Formulacion!$1:$1,0),FALSE)="NA",1,VLOOKUP($B20,Formulacion!$A:$BE,MATCH(AL$1,Formulacion!$1:$1,0),FALSE)) -> 1 | AM20: 1 | AN20: =IF(VLOOKUP($B20,Formulacion!$A:$BE,MATCH(AN$1,Formulacion!$1:$1,0),FALSE)="NA","NA",IF(D20=0,"",VLOOKUP($B20,Formulacion!$A:$BE,MATCH(AN$1,Formulacion!$1:$1,0),FALSE))) -> NA | AO20: X | AV20: =IF(VLOOKUP($B20,Formulacion!$A:$BE,MATCH(AV$1,Formulacion!$1:$1,0),FALSE)="NA","NA",VLOOKUP(CONCATENATE(AO20,AP20,AQ20,AR20,AS20,AT20,AU20),ValoresReferenciales!$A:$D,4,FALSE)) -> NA | AW20: =IF(VLOOKUP($B20,Formulacion!$A:$BE,MATCH(AW$1,Formulacion!$1:$1,0),FALSE)="NA","NA",HLOOKUP(VLOOKUP($B20,Formulacion!$A:$BE,MATCH(AW$1,Formulacion!$1:$1,0),FALSE),$Q:$Z,ROW(AW20),FALSE)) -> NA | AX20: NA | AY20: 1 | AZ20: =IF(VLOOKUP($B20,Formulacion!$A:$BE,MATCH(AZ$1,Formulacion!$1:$1,0),FALSE)="NA",1,VLOOKUP($B20,Formulacion!$A:$BE,MATCH(AZ$1,Formulacion!$1:$1,0),FALSE)) -> 1 | BA20: =IF(VLOOKUP($B20,Formulacion!$A:$BE,MATCH(BA$1,Formulacion!$1:$1,0),FALSE)="NA",1,VLOOKUP($B20,Formulacion!$A:$BE,MATCH(BA$1,Formulacion!$1:$1,0),FALSE)) -> 1 | BB20: 0 | BC20: 0
A21: CC-01-AD EDECHI 2011.xls | B21: DEQOT | C21: 0 | D21: 0 | E21: 00:00:00 | F21: 0 | G21: 0 | H21: 0 | I21: 0 | J21: 0 | K21: 0 | L21: 0 | M21: 0 | N21: 0 | O21: 9 | P21: 0 | Q21: =IF(OR(VLOOKUP($B21,Formulacion!$A:$BE,MATCH(Q$1,Formulacion!$1:$1,0),FALSE)="NA",$D21=0),"NA",IF($B21="DLABT",MID($D21,PosteInicioBT,PosteFinBT-PosteInicioBT+1)*1,MID($D21,PosteInicio,PosteFin-PosteInicio+1)*1)) -> NA | R21: =IF(OR(VLOOKUP($B21,Formulacion!$A:$BE,MATCH(R$1,Formulacion!$1:$1,0),FALSE)="NA",$D21=0),"NA",IF(OR($B21="DLABT",$B21="DLSBT"),MID($D21,CondInicioBT,CondFinBT-CondInicioBT+1)*1,MID($D21,CondInicio,CondFin-CondInicio+1)*1)) -> NA | S21: NA | T21: =IF(OR(VLOOKUP($B21,Formulacion!$A:$BE,MATCH(T$1,Formulacion!$1:$1,0),FALSE)="NA",$D21=0),"NA",IF($B21="DLSBT",MID($D21,ZanjaInicioBT,ZanjaFinBT-ZanjaInicioBT+1)*1,MID($D21,ZanjaInicio,ZanjaFin-ZanjaInicio+1)*1)) -> NA | U21: 1 | V21: =IF(OR(VLOOKUP($B21,Formulacion!$A:$BE,MATCH(V$1,Formulacion!$1:$1,0),FALSE)="NA",$D21=0),"NA",MID($D21,m2Inicio+INDIRECT(B21),m2Fin-m2Inicio+1)*1) -> NA | W21: =IF(OR(VLOOKUP($B21,Formulacion!$A:$BE,MATCH(W$1,Formulacion!$1:$1,0),FALSE)="NA",$D21=0),"NA",RIGHT($D21,4)*1) -> NA | X21: =IF(OR(VLOOKUP($B21,Formulacion!$A:$BE,MATCH(X$1,Formulacion!$1:$1,0),FALSE)="NA",$D21=0),"NA",RIGHT($D21,3)*1) -> NA | Y21: 1 | Z21: =IF(VLOOKUP($B21,Formulacion!$A:$BE,MATCH(Z$1,Formulacion!$1:$1,0),FALSE)="NA",1,IF(V21<=m2Min,0,1)) -> 1 | AA21: =IF(VLOOKUP($B21,Formulacion!$A:$BE,MATCH(AA$1,Formulacion!$1:$1,0),FALSE)="NA",1,IF(OR(E21<=FechaMin,E21>FechaMax),0,1)) -> 0 | AB21: =IF(VLOOKUP($B21,Formulacion!$A:$BE,MATCH(AB$1,Formulacion!$1:$1,0),FALSE)="NA",1,IF(H21<=MaterialesMin,0,1)) -> 0 | AC21: =IF(VLOOKUP($B21,Formulacion!$A:$BE,MATCH(AC$1,Formulacion!$1:$1,0),FALSE)="NA",1,IF(N21=0,0,IF(OR(I21/N21<=MObraMin,I21/N21>=MObraMax),MDOmin,1))) -> 0 | AD21: =IF(VLOOKUP($B21,Formulacion!$A:$BE,MATCH(AD$1,Formulacion!$1:$1,0),FALSE)="NA",1,IF(N21<=CostoTotalMin,0,1)) -> 0 | AE21: =IF(VLOOKUP($B21,Formulacion!$A:$BE,MATCH(AE$1,Formulacion!$1:$1,0),FALSE)="NA",1,IF(Q21<=PostesMin,0,1)) -> 1 | AF21: =IF(VLOOKUP($B21,Formulacion!$A:$BE,MATCH(AF$1,Formulacion!$1:$1,0),FALSE)="NA",1,IF(R21<=INDIRECT(VLOOKUP(B21,Formulacion!$A:$BE,2,FALSE)),0,1)) -> 1 | AG21: 0 | AH21: 0 | AJ21: =IF(VLOOKUP($B21,Formulacion!$A:$BE,MATCH(AJ$1,Formulacion!$1:$1,0),FALSE)="NA","NA",HLOOKUP(VLOOKUP($B21,Formulacion!$A:$BE,MATCH(AJ$1,Formulacion!$1:$1,0),FALSE),$Q:$Z,ROW(AJ21),FALSE)) -> NA | AK21: =IF(VLOOKUP($B21,Formulacion!$A:$BE,MATCH(AK$1,Formulacion!$1:$1,0),FALSE)="NA",1,VLOOKUP($B21,Formulacion!$A:$BE,MATCH(AK$1,Formulacion!$1:$1,0),FALSE)) -> 1 | AL21: =IF(VLOOKUP($B21,Formulacion!$A:$BE,MATCH(AL$1,Formulacion!$1:$1,0),FALSE)="NA",1,VLOOKUP($B21,Formulacion!$A:$BE,MATCH(AL$1,Formulacion!$1:$1,0),FALSE)) -> 1 | AM21: 1 | AN21: =IF(VLOOKUP($B21,Formulacion!$A:$BE,MATCH(AN$1,Formulacion!$1:$1,0),FALSE)="NA","NA",IF(D21=0,"",VLOOKUP($B21,Formulacion!$A:$BE,MATCH(AN$1,Formulacion!$1:$1,0),FALSE))) -> NA | AO21: X | AV21: =IF(VLOOKUP($B21,Formulacion!$A:$BE,MATCH(AV$1,Formulacion!$1:$1,0),FALSE)="NA","NA",VLOOKUP(CONCATENATE(AO21,AP21,AQ21,AR21,AS21,AT21,AU21),ValoresReferenciales!$A:$D,4,FALSE)) -> NA | AW21: =IF(VLOOKUP($B21,Formulacion!$A:$BE,MATCH(AW$1,Formulacion!$1:$1,0),FALSE)="NA","NA",HLOOKUP(VLOOKUP($B21,Formulacion!$A:$BE,MATCH(AW$1,Formulacion!$1:$1,0),FALSE),$Q:$Z,ROW(AW21),FALSE)) -> NA | AX21: NA | AY21: 1 | AZ21: =IF(VLOOKUP($B21,Formulacion!$A:$BE,MATCH(AZ$1,Formulacion!$1:$1,0),FALSE)="NA",1,VLOOKUP($B21,Formulacion!$A:$BE,MATCH(AZ$1,Formulacion!$1:$1,0),FALSE)) -> 1 | BA21: =IF(VLOOKUP($B21,Formulacion!$A:$BE,MATCH(BA$1,Formulacion!$1:$1,0),FALSE)="NA",1,VLOOKUP($B21,Formulacion!$A:$BE,MATCH(BA$1,Formulacion!$1:$1,0),FALSE)) -> 1 | BB21: 0 | BC21: 0
A22: CC-01-AD EDECHI 2011.xls | B22: DLAAT-115 | C22: 0 | D22: 0 | E22: 00:00:00 | F22: 0 | G22: 0 | H22: 0 | I22: 0 | J22: 0 | K22: 0 | L22: 0 | M22: 0 | N22: 0 | O22: 9 | P22: 0 | Q22: =IF(OR(VLOOKUP($B22,Formulacion!$A:$BE,MATCH(Q$1,Formulacion!$1:$1,0),FALSE)="NA",$D22=0),"NA",IF($B22="DLABT",MID($D22,PosteInicioBT,PosteFinBT-PosteInicioBT+1)*1,MID($D22,PosteInicio,PosteFin-PosteInicio+1)*1)) -> NA | R22: =IF(OR(VLOOKUP($B22,Formulacion!$A:$BE,MATCH(R$1,Formulacion!$1:$1,0),FALSE)="NA",$D22=0),"NA",IF(OR($B22="DLABT",$B22="DLSBT"),MID($D22,CondInicioBT,CondFinBT-CondInicioBT+1)*1,MID($D22,CondInicio,CondFin-CondInicio+1)*1)) -> NA | S22: NA | T22: =IF(OR(VLOOKUP($B22,Formulacion!$A:$BE,MATCH(T$1,Formulacion!$1:$1,0),FALSE)="NA",$D22=0),"NA",IF($B22="DLSBT",MID($D22,ZanjaInicioBT,ZanjaFinBT-ZanjaInicioBT+1)*1,MID($D22,ZanjaInicio,ZanjaFin-ZanjaInicio+1)*1)) -> NA | U22: 1 | V22: =IF(OR(VLOOKUP($B22,Formulacion!$A:$BE,MATCH(V$1,Formulacion!$1:$1,0),FALSE)="NA",$D22=0),"NA",MID($D22,m2Inicio+INDIRECT(B22),m2Fin-m2Inicio+1)*1) -> NA | W22: =IF(OR(VLOOKUP($B22,Formulacion!$A:$BE,MATCH(W$1,Formulacion!$1:$1,0),FALSE)="NA",$D22=0),"NA",RIGHT($D22,4)*1) -> NA | X22: =IF(OR(VLOOKUP($B22,Formulacion!$A:$BE,MATCH(X$1,Formulacion!$1:$1,0),FALSE)="NA",$D22=0),"NA",RIGHT($D22,3)*1) -> NA | Y22: 1 | Z22: =IF(VLOOKUP($B22,Formulacion!$A:$BE,MATCH(Z$1,Formulacion!$1:$1,0),FALSE)="NA",1,IF(V22<=m2Min,0,1)) -> 1 | AA22: =IF(VLOOKUP($B22,Formulacion!$A:$BE,MATCH(AA$1,Formulacion!$1:$1,0),FALSE)="NA",1,IF(OR(E22<=FechaMin,E22>FechaMax),0,1)) -> 0 | AB22: =IF(VLOOKUP($B22,Formulacion!$A:$BE,MATCH(AB$1,Formulacion!$1:$1,0),FALSE)="NA",1,IF(H22<=MaterialesMin,0,1)) -> 0 | AC22: =IF(VLOOKUP($B22,Formulacion!$A:$BE,MATCH(AC$1,Formulacion!$1:$1,0),FALSE)="NA",1,IF(N22=0,0,IF(OR(I22/N22<=MObraMin,I22/N22>=MObraMax),MDOmin,1))) -> 0 | AD22: =IF(VLOOKUP($B22,Formulacion!$A:$BE,MATCH(AD$1,Formulacion!$1:$1,0),FALSE)="NA",1,IF(N22<=CostoTotalMin,0,1)) -> 0 | AE22: =IF(VLOOKUP($B22,Formulacion!$A:$BE,MATCH(AE$1,Formulacion!$1:$1,0),FALSE)="NA",1,IF(Q22<=PostesMin,0,1)) -> 1 | AF22: =IF(VLOOKUP($B22,Formulacion!$A:$BE,MATCH(AF$1,Formulacion!$1:$1,0),FALSE)="NA",1,IF(R22<=INDIRECT(VLOOKUP(B22,Formulacion!$A:$BE,2,FALSE)),0,1)) -> 1 | AG22: 0 | AH22: 0 | AJ22: =IF(VLOOKUP($B22,Formulacion!$A:$BE,MATCH(AJ$1,Formulacion!$1:$1,0),FALSE)="NA","NA",HLOOKUP(VLOOKUP($B22,Formulacion!$A:$BE,MATCH(AJ$1,Formulacion!$1:$1,0),FALSE),$Q:$Z,ROW(AJ22),FALSE)) -> NA | AK22: =IF(VLOOKUP($B22,Formulacion!$A:$BE,MATCH(AK$1,Formulacion!$1:$1,0),FALSE)="NA",1,VLOOKUP($B22,Formulacion!$A:$BE,MATCH(AK$1,Formulacion!$1:$1,0),FALSE)) -> 100 | AL22: =IF(VLOOKUP($B22,Formulacion!$A:$BE,MATCH(AL$1,Formulacion!$1:$1,0),FALSE)="NA",1,VLOOKUP($B22,Formulacion!$A:$BE,MATCH(AL$1,Formulacion!$1:$1,0),FALSE)) -> 0.3 | AM22: 1 | AN22: =IF(VLOOKUP($B22,Formulacion!$A:$BE,MATCH(AN$1,Formulacion!$1:$1,0),FALSE)="NA","NA",IF(D22=0,"",VLOOKUP($B22,Formulacion!$A:$BE,MATCH(AN$1,Formulacion!$1:$1,0),FALSE))) -> NA | AO22: X | AV22: =IF(VLOOKUP($B22,Formulacion!$A:$BE,MATCH(AV$1,Formulacion!$1:$1,0),FALSE)="NA","NA",VLOOKUP(CONCATENATE(AO22,AP22,AQ22,AR22,AS22,AT22,AU22),ValoresReferenciales!$A:$D,4,FALSE)) -> NA | AW22: =IF(VLOOKUP($B22,Formulacion!$A:$BE,MATCH(AW$1,Formulacion!$1:$1,0),FALSE)="NA","NA",HLOOKUP(VLOOKUP($B22,Formulacion!$A:$BE,MATCH(AW$1,Formulacion!$1:$1,0),FALSE),$Q:$Z,ROW(AW22),FALSE)) -> NA | AX22: NA | AY22: 1 | AZ22: =IF(VLOOKUP($B22,Formulacion!$A:$BE,MATCH(AZ$1,Formulacion!$1:$1,0),FALSE)="NA",1,VLOOKUP($B22,Formulacion!$A:$BE,MATCH(AZ$1,Formulacion!$1:$1,0),FALSE)) -> 1 | BA22: =IF(VLOOKUP($B22,Formulacion!$A:$BE,MATCH(BA$1,Formulacion!$1:$1,0),FALSE)="NA",1,VLOOKUP($B22,Formulacion!$A:$BE,MATCH(BA$1,Formulacion!$1:$1,0),FALSE)) -> 1 | BB22: 0 | BC22: 0
A23: CC-01-AD EDECHI 2011.xls | B23: DLAAT-230 | C23: 0 | D23: 0 | E23: 00:00:00 | F23: 0 | G23: 0 | H23: 0 | I23: 0 | J23: 0 | K23: 0 | L23: 0 | M23: 0 | N23: 0 | O23: 9 | P23: 0 | Q23: =IF(OR(VLOOKUP($B23,Formulacion!$A:$BE,MATCH(Q$1,Formulacion!$1:$1,0),FALSE)="NA",$D23=0),"NA",IF($B23="DLABT",MID($D23,PosteInicioBT,PosteFinBT-PosteInicioBT+1)*1,MID($D23,PosteInicio,PosteFin-PosteInicio+1)*1)) -> NA | R23: =IF(OR(VLOOKUP($B23,Formulacion!$A:$BE,MATCH(R$1,Formulacion!$1:$1,0),FALSE)="NA",$D23=0),"NA",IF(OR($B23="DLABT",$B23="DLSBT"),MID($D23,CondInicioBT,CondFinBT-CondInicioBT+1)*1,MID($D23,CondInicio,CondFin-CondInicio+1)*1)) -> NA | S23: NA | T23: =IF(OR(VLOOKUP($B23,Formulacion!$A:$BE,MATCH(T$1,Formulacion!$1:$1,0),FALSE)="NA",$D23=0),"NA",IF($B23="DLSBT",MID($D23,ZanjaInicioBT,ZanjaFinBT-ZanjaInicioBT+1)*1,MID($D23,ZanjaInicio,ZanjaFin-ZanjaInicio+1)*1)) -> NA | U23: 1 | V23: =IF(OR(VLOOKUP($B23,Formulacion!$A:$BE,MATCH(V$1,Formulacion!$1:$1,0),FALSE)="NA",$D23=0),"NA",MID($D23,m2Inicio+INDIRECT(B23),m2Fin-m2Inicio+1)*1) -> NA | W23: =IF(OR(VLOOKUP($B23,Formulacion!$A:$BE,MATCH(W$1,Formulacion!$1:$1,0),FALSE)="NA",$D23=0),"NA",RIGHT($D23,4)*1) -> NA | X23: =IF(OR(VLOOKUP($B23,Formulacion!$A:$BE,MATCH(X$1,Formulacion!$1:$1,0),FALSE)="NA",$D23=0),"NA",RIGHT($D23,3)*1) -> NA | Y23: 1 | Z23: =IF(VLOOKUP($B23,Formulacion!$A:$BE,MATCH(Z$1,Formulacion!$1:$1,0),FALSE)="NA",1,IF(V23<=m2Min,0,1)) -> 1 | AA23: =IF(VLOOKUP($B23,Formulacion!$A:$BE,MATCH(AA$1,Formulacion!$1:$1,0),FALSE)="NA",1,IF(OR(E23<=FechaMin,E23>FechaMax),0,1)) -> 0 | AB23: =IF(VLOOKUP($B23,Formulacion!$A:$BE,MATCH(AB$1,Formulacion!$1:$1,0),FALSE)="NA",1,IF(H23<=MaterialesMin,0,1)) -> 0 | AC23: =IF(VLOOKUP($B23,Formulacion!$A:$BE,MATCH(AC$1,Formulacion!$1:$1,0),FALSE)="NA",1,IF(N23=0,0,IF(OR(I23/N23<=MObraMin,I23/N23>=MObraMax),MDOmin,1))) -> 0 | AD23: =IF(VLOOKUP($B23,Formulacion!$A:$BE,MATCH(AD$1,Formulacion!$1:$1,0),FALSE)="NA",1,IF(N23<=CostoTotalMin,0,1)) -> 0 | AE23: =IF(VLOOKUP($B23,Formulacion!$A:$BE,MATCH(AE$1,Formulacion!$1:$1,0),FALSE)="NA",1,IF(Q23<=PostesMin,0,1)) -> 1 | AF23: =IF(VLOOKUP($B23,Formulacion!$A:$BE,MATCH(AF$1,Formulacion!$1:$1,0),FALSE)="NA",1,IF(R23<=INDIRECT(VLOOKUP(B23,Formulacion!$A:$BE,2,FALSE)),0,1)) -> 1 | AG23: 0 | AH23: 0 | AJ23: =IF(VLOOKUP($B23,Formulacion!$A:$BE,MATCH(AJ$1,Formulacion!$1:$1,0),FALSE)="NA","NA",HLOOKUP(VLOOKUP($B23,Formulacion!$A:$BE,MATCH(AJ$1,Formulacion!$1:$1,0),FALSE),$Q:$Z,ROW(AJ23),FALSE)) -> NA | AK23: =IF(VLOOKUP($B23,Formulacion!$A:$BE,MATCH(AK$1,Formulacion!$1:$1,0),FALSE)="NA",1,VLOOKUP($B23,Formulacion!$A:$BE,MATCH(AK$1,Formulacion!$1:$1,0),FALSE)) -> 60 | AL23: =IF(VLOOKUP($B23,Formulacion!$A:$BE,MATCH(AL$1,Formulacion!$1:$1,0),FALSE)="NA",1,VLOOKUP($B23,Formulacion!$A:$BE,MATCH(AL$1,Formulacion!$1:$1,0),FALSE)) -> 0.3 | AM23: 1 | AN23: =IF(VLOOKUP($B23,Formulacion!$A:$BE,MATCH(AN$1,Formulacion!$1:$1,0),FALSE)="NA","NA",IF(D23=0,"",VLOOKUP($B23,Formulacion!$A:$BE,MATCH(AN$1,Formulacion!$1:$1,0),FALSE))) -> NA | AO23: X | AV23: =IF(VLOOKUP($B23,Formulacion!$A:$BE,MATCH(AV$1,Formulacion!$1:$1,0),FALSE)="NA","NA",VLOOKUP(CONCATENATE(AO23,AP23,AQ23,AR23,AS23,AT23,AU23),ValoresReferenciales!$A:$D,4,FALSE)) -> NA | AW23: =IF(VLOOKUP($B23,Formulacion!$A:$BE,MATCH(AW$1,Formulacion!$1:$1,0),FALSE)="NA","NA",HLOOKUP(VLOOKUP($B23,Formulacion!$A:$BE,MATCH(AW$1,Formulacion!$1:$1,0),FALSE),$Q:$Z,ROW(AW23),FALSE)) -> NA | AX23: NA | AY23: 1 | AZ23: =IF(VLOOKUP($B23,Formulacion!$A:$BE,MATCH(AZ$1,Formulacion!$1:$1,0),FALSE)="NA",1,VLOOKUP($B23,Formulacion!$A:$BE,MATCH(AZ$1,Formulacion!$1:$1,0),FALSE)) -> 1 | BA23: =IF(VLOOKUP($B23,Formulacion!$A:$BE,MATCH(BA$1,Formulacion!$1:$1,0),FALSE)="NA",1,VLOOKUP($B23,Formulacion!$A:$BE,MATCH(BA$1,Formulacion!$1:$1,0),FALSE)) -> 1 | BB23: 0 | BC23: 0
A24: CC-01-AD EDECHI 2011.xls | B24: DLABT | C24: 301012007010097 | D24: DLABTM100828P011HOC3ALA1/0 | E24: 2011-12-31 | F24: DAVID (CABECERA | G24: 828 | H24: 9015.81 | I24: 2980.96 | J24: 0 | K24: 0 | L24: 0 | M24: 0 | N24: 11996.77 | O24: 880 | P24: 0 | Q24: =IF(OR(VLOOKUP($B24,Formulacion!$A:$BE,MATCH(Q$1,Formulacion!$1:$1,0),FALSE)="NA",$D24=0),"NA",IF($B24="DLABT",MID($D24,PosteInicioBT,PosteFinBT-PosteInicioBT+1)*1,MID($D24,PosteInicio,PosteFin-PosteInicio+1)*1)) -> 11 | R24: =IF(OR(VLOOKUP($B24,Formulacion!$A:$BE,MATCH(R$1,Formulacion!$1:$1,0),FALSE)="NA",$D24=0),"NA",IF(OR($B24="DLABT",$B24="DLSBT"),MID($D24,CondInicioBT,CondFinBT-CondInicioBT+1)*1,MID($D24,CondInicio,CondFin-CondInicio+1)*1)) -> 828 | S24: 75.27272727 | T24: =IF(OR(VLOOKUP($B24,Formulacion!$A:$BE,MATCH(T$1,Formulacion!$1:$1,0),FALSE)="NA",$D24=0),"NA",IF($B24="DLSBT",MID($D24,ZanjaInicioBT,ZanjaFinBT-ZanjaInicioBT+1)*1,MID($D24,ZanjaInicio,ZanjaFin-ZanjaInicio+1)*1)) -> NA | U24: 1 | V24: =IF(OR(VLOOKUP($B24,Formulacion!$A:$BE,MATCH(V$1,Formulacion!$1:$1,0),FALSE)="NA",$D24=0),"NA",MID($D24,m2Inicio+INDIRECT(B24),m2Fin-m2Inicio+1)*1) -> NA | W24: =IF(OR(VLOOKUP($B24,Formulacion!$A:$BE,MATCH(W$1,Formulacion!$1:$1,0),FALSE)="NA",$D24=0),"NA",RIGHT($D24,4)*1) -> NA | X24: =IF(OR(VLOOKUP($B24,Formulacion!$A:$BE,MATCH(X$1,Formulacion!$1:$1,0),FALSE)="NA",$D24=0),"NA",RIGHT($D24,3)*1) -> NA | Y24: 1 | Z24: =IF(VLOOKUP($B24,Formulacion!$A:$BE,MATCH(Z$1,Formulacion!$1:$1,0),FALSE)="NA",1,IF(V24<=m2Min,0,1)) -> 1 | AA24: =IF(VLOOKUP($B24,Formulacion!$A:$BE,MATCH(AA$1,Formulacion!$1:$1,0),FALSE)="NA",1,IF(OR(E24<=FechaMin,E24>FechaMax),0,1)) -> 1 | AB24: =IF(VLOOKUP($B24,Formulacion!$A:$BE,MATCH(AB$1,Formulacion!$1:$1,0),FALSE)="NA",1,IF(H24<=MaterialesMin,0,1)) -> 1 | AC24: =IF(VLOOKUP($B24,Formulacion!$A:$BE,MATCH(AC$1,Formulacion!$1:$1,0),FALSE)="NA",1,IF(N24=0,0,IF(OR(I24/N24<=MObraMin,I24/N24>=MObraMax),MDOmin,1))) -> 1 | AD24: =IF(VLOOKUP($B24,Formulacion!$A:$BE,MATCH(AD$1,Formulacion!$1:$1,0),FALSE)="NA",1,IF(N24<=CostoTotalMin,0,1)) -> 1 | AE24: =IF(VLOOKUP($B24,Formulacion!$A:$BE,MATCH(AE$1,Formulacion!$1:$1,0),FALSE)="NA",1,IF(Q24<=PostesMin,0,1)) -> 1 | AF24: =IF(VLOOKUP($B24,Formulacion!$A:$BE,MATCH(AF$1,Formulacion!$1:$1,0),FALSE)="NA",1,IF(R24<=INDIRECT(VLOOKUP(B24,Formulacion!$A:$BE,2,FALSE)),0,1)) -> 1 | AG24: 1 | AH24: 11996.77 | AJ24: =IF(VLOOKUP($B24,Formulacion!$A:$BE,MATCH(AJ$1,Formulacion!$1:$1,0),FALSE)="NA","NA",HLOOKUP(VLOOKUP($B24,Formulacion!$A:$BE,MATCH(AJ$1,Formulacion!$1:$1,0),FALSE),$Q:$Z,ROW(AJ24),FALSE)) -> 75.27272727 | AK24: =IF(VLOOKUP($B24,Formulacion!$A:$BE,MATCH(AK$1,Formulacion!$1:$1,0),FALSE)="NA",1,VLOOKUP($B24,Formulacion!$A:$BE,MATCH(AK$1,Formulacion!$1:$1,0),FALSE)) -> 30 | AL24: =IF(VLOOKUP($B24,Formulacion!$A:$BE,MATCH(AL$1,Formulacion!$1:$1,0),FALSE)="NA",1,VLOOKUP($B24,Formulacion!$A:$BE,MATCH(AL$1,Formulacion!$1:$1,0),FALSE)) -> 0.3 | AM24: NC | AN24: =IF(VLOOKUP($B24,Formulacion!$A:$BE,MATCH(AN$1,Formulacion!$1:$1,0),FALSE)="NA","NA",IF(D24=0,"",VLOOKUP($B24,Formulacion!$A:$BE,MATCH(AN$1,Formulacion!$1:$1,0),FALSE))) -> 0206170220032403 | AO24: LABTM1 | AP24: HO | AQ24: 3AL | AR24: 1/0 | AV24: =IF(VLOOKUP($B24,Formulacion!$A:$BE,MATCH(AV$1,Formulacion!$1:$1,0),FALSE)="NA","NA",VLOOKUP(CONCATENATE(AO24,AP24,AQ24,AR24,AS24,AT24,AU24),ValoresReferenciales!$A:$D,4,FALSE)) -> 17.37168537 | AW24: =IF(VLOOKUP($B24,Formulacion!$A:$BE,MATCH(AW$1,Formulacion!$1:$1,0),FALSE)="NA","NA",HLOOKUP(VLOOKUP($B24,Formulacion!$A:$BE,MATCH(AW$1,Formulacion!$1:$1,0),FALSE),$Q:$Z,ROW(AW24),FALSE)) -> 828 | AX24: 14.48885266 | AY24: 1 | AZ24: =IF(VLOOKUP($B24,Formulacion!$A:$BE,MATCH(AZ$1,Formulacion!$1:$1,0),FALSE)="NA",1,VLOOKUP($B24,Formulacion!$A:$BE,MATCH(AZ$1,Formulacion!$1:$1,0),FALSE)) -> 1 | BA24: =IF(VLOOKUP($B24,Formulacion!$A:$BE,MATCH(BA$1,Formulacion!$1:$1,0),FALSE)="NA",1,VLOOKUP($B24,Formulacion!$A:$BE,MATCH(BA$1,Formulacion!$1:$1,0),FALSE)) -> 1 | BB24: 11996.77 | BC24: 11996.77
A25: CC-01-AD EDECHI 2011.xls | B25: DLABT | C25: 301012008020627 | D25: DLABTM100644P006HOC3ALA1/0 | E25: 2011-12-31 | F25: DAVID (CABECERA | G25: 644 | H25: 7464.54 | I25: 2739.67 | J25: 0 | K25: 0 | L25: 0 | M25: 0 | N25: 10204.21 | O25: 56 | P25: 0 | Q25: =IF(OR(VLOOKUP($B25,Formulacion!$A:$BE,MATCH(Q$1,Formulacion!$1:$1,0),FALSE)="NA",$D25=0),"NA",IF($B25="DLABT",MID($D25,PosteInicioBT,PosteFinBT-PosteInicioBT+1)*1,MID($D25,PosteInicio,PosteFin-PosteInicio+1)*1)) -> 6 | R25: =IF(OR(VLOOKUP($B25,Formulacion!$A:$BE,MATCH(R$1,Formulacion!$1:$1,0),FALSE)="NA",$D25=0),"NA",IF(OR($B25="DLABT",$B25="DLSBT"),MID($D25,CondInicioBT,CondFinBT-CondInicioBT+1)*1,MID($D25,CondInicio,CondFin-CondInicio+1)*1)) -> 644 | S25: 107.3333333 | T25: =IF(OR(VLOOKUP($B25,Formulacion!$A:$BE,MATCH(T$1,Formulacion!$1:$1,0),FALSE)="NA",$D25=0),"NA",IF($B25="DLSBT",MID($D25,ZanjaInicioBT,ZanjaFinBT-ZanjaInicioBT+1)*1,MID($D25,ZanjaInicio,ZanjaFin-ZanjaInicio+1)*1)) -> NA | U25: 1 | V25: =IF(OR(VLOOKUP($B25,Formulacion!$A:$BE,MATCH(V$1,Formulacion!$1:$1,0),FALSE)="NA",$D25=0),"NA",MID($D25,m2Inicio+INDIRECT(B25),m2Fin-m2Inicio+1)*1) -> NA | W25: =IF(OR(VLOOKUP($B25,Formulacion!$A:$BE,MATCH(W$1,Formulacion!$1:$1,0),FALSE)="NA",$D25=0),"NA",RIGHT($D25,4)*1) -> NA | X25: =IF(OR(VLOOKUP($B25,Formulacion!$A:$BE,MATCH(X$1,Formulacion!$1:$1,0),FALSE)="NA",$D25=0),"NA",RIGHT($D25,3)*1) -> NA | Y25: 1 | Z25: =IF(VLOOKUP($B25,Formulacion!$A:$BE,MATCH(Z$1,Formulacion!$1:$1,0),FALSE)="NA",1,IF(V25<=m2Min,0,1)) -> 1 | AA25: =IF(VLOOKUP($B25,Formulacion!$A:$BE,MATCH(AA$1,Formulacion!$1:$1,0),FALSE)="NA",1,IF(OR(E25<=FechaMin,E25>FechaMax),0,1)) -> 1 | AB25: =IF(VLOOKUP($B25,Formulacion!$A:$BE,MATCH(AB$1,Formulacion!$1:$1,0),FALSE)="NA",1,IF(H25<=MaterialesMin,0,1)) -> 1 | AC25: =IF(VLOOKUP($B25,Formulacion!$A:$BE,MATCH(AC$1,Formulacion!$1:$1,0),FALSE)="NA",1,IF(N25=0,0,IF(OR(I25/N25<=MObraMin,I25/N25>=MObraMax),MDOmin,1))) -> 1 | AD25: =IF(VLOOKUP($B25,Formulacion!$A:$BE,MATCH(AD$1,Formulacion!$1:$1,0),FALSE)="NA",1,IF(N25<=CostoTotalMin,0,1)) -> 1 | AE25: =IF(VLOOKUP($B25,Formulacion!$A:$BE,MATCH(AE$1,Formulacion!$1:$1,0),FALSE)="NA",1,IF(Q25<=PostesMin,0,1)) -> 1 | AF25: =IF(VLOOKUP($B25,Formulacion!$A:$BE,MATCH(AF$1,Formulacion!$1:$1,0),FALSE)="NA",1,IF(R25<=INDIRECT(VLOOKUP(B25,Formulacion!$A:$BE,2,FALSE)),0,1)) -> 1 | AG25: 1 | AH25: 10204.21 | AJ25: =IF(VLOOKUP($B25,Formulacion!$A:$BE,MATCH(AJ$1,Formulacion!$1:$1,0),FALSE)="NA","NA",HLOOKUP(VLOOKUP($B25,Formulacion!$A:$BE,MATCH(AJ$1,Formulacion!$1:$1,0),FALSE),$Q:$Z,ROW(AJ25),FALSE)) -> 107.3333333 | AK25: =IF(VLOOKUP($B25,Formulacion!$A:$BE,MATCH(AK$1,Formulacion!$1:$1,0),FALSE)="NA",1,VLOOKUP($B25,Formulacion!$A:$BE,MATCH(AK$1,Formulacion!$1:$1,0),FALSE)) -> 30 | AL25: =IF(VLOOKUP($B25,Formulacion!$A:$BE,MATCH(AL$1,Formulacion!$1:$1,0),FALSE)="NA",1,VLOOKUP($B25,Formulacion!$A:$BE,MATCH(AL$1,Formulacion!$1:$1,0),FALSE)) -> 0.3 | AM25: NC | AN25: =IF(VLOOKUP($B25,Formulacion!$A:$BE,MATCH(AN$1,Formulacion!$1:$1,0),FALSE)="NA","NA",IF(D25=0,"",VLOOKUP($B25,Formulacion!$A:$BE,MATCH(AN$1,Formulacion!$1:$1,0),FALSE))) -> 0206170220032403 | AO25: LABTM1 | AP25: HO | AQ25: 3AL | AR25: 1/0 | AV25: =IF(VLOOKUP($B25,Formulacion!$A:$BE,MATCH(AV$1,Formulacion!$1:$1,0),FALSE)="NA","NA",VLOOKUP(CONCATENATE(AO25,AP25,AQ25,AR25,AS25,AT25,AU25),ValoresReferenciales!$A:$D,4,FALSE)) -> 17.37168537 | AW25: =IF(VLOOKUP($B25,Formulacion!$A:$BE,MATCH(AW$1,Formulacion!$1:$1,0),FALSE)="NA","NA",HLOOKUP(VLOOKUP($B25,Formulacion!$A:$BE,MATCH(AW$1,Formulacion!$1:$1,0),FALSE),$Q:$Z,ROW(AW25),FALSE)) -> 644 | AX25: 15.84504658 | AY25: 1 | AZ25: =IF(VLOOKUP($B25,Formulacion!$A:$BE,MATCH(AZ$1,Formulacion!$1:$1,0),FALSE)="NA",1,VLOOKUP($B25,Formulacion!$A:$BE,MATCH(AZ$1,Formulacion!$1:$1,0),FALSE)) -> 1 | BA25: =IF(VLOOKUP($B25,Formulacion!$A:$BE,MATCH(BA$1,Formulacion!$1:$1,0),FALSE)="NA",1,VLOOKUP($B25,Formulacion!$A:$BE,MATCH(BA$1,Formulacion!$1:$1,0),FALSE)) -> 1 | BB25: 10204.21 | BC25: 10204.21
A26: CC-01-AD EDECHI 2011.xls | B26: DLABT | C26: 301012008070418 | D26: DLABTM103207P043HOC3ALA1/0 | E26: 2011-12-31 | F26: DAVID (CABECERA | G26: 3207 | H26: 33437.29 | I26: 15625.53 | J26: 0 | K26: 0 | L26: 0 | M26: 0 | N26: 49062.82 | O26: 870 | P26: 0 | Q26: =IF(OR(VLOOKUP($B26,Formulacion!$A:$BE,MATCH(Q$1,Formulacion!$1:$1,0),FALSE)="NA",$D26=0),"NA",IF($B26="DLABT",MID($D26,PosteInicioBT,PosteFinBT-PosteInicioBT+1)*1,MID($D26,PosteInicio,PosteFin-PosteInicio+1)*1)) -> 43 | R26: =IF(OR(VLOOKUP($B26,Formulacion!$A:$BE,MATCH(R$1,Formulacion!$1:$1,0),FALSE)="NA",$D26=0),"NA",IF(OR($B26="DLABT",$B26="DLSBT"),MID($D26,CondInicioBT,CondFinBT-CondInicioBT+1)*1,MID($D26,CondInicio,CondFin-CondInicio+1)*1)) -> 3207 | S26: 74.58139535 | T26: =IF(OR(VLOOKUP($B26,Formulacion!$A:$BE,MATCH(T$1,Formulacion!$1:$1,0),FALSE)="NA",$D26=0),"NA",IF($B26="DLSBT",MID($D26,ZanjaInicioBT,ZanjaFinBT-ZanjaInicioBT+1)*1,MID($D26,ZanjaInicio,ZanjaFin-ZanjaInicio+1)*1)) -> NA | U26: 1 | V26: =IF(OR(VLOOKUP($B26,Formulacion!$A:$BE,MATCH(V$1,Formulacion!$1:$1,0),FALSE)="NA",$D26=0),"NA",MID($D26,m2Inicio+INDIRECT(B26),m2Fin-m2Inicio+1)*1) -> NA | W26: =IF(OR(VLOOKUP($B26,Formulacion!$A:$BE,MATCH(W$1,Formulacion!$1:$1,0),FALSE)="NA",$D26=0),"NA",RIGHT($D26,4)*1) -> NA | X26: =IF(OR(VLOOKUP($B26,Formulacion!$A:$BE,MATCH(X$1,Formulacion!$1:$1,0),FALSE)="NA",$D26=0),"NA",RIGHT($D26,3)*1) -> NA | Y26: 1 | Z26: =IF(VLOOKUP($B26,Formulacion!$A:$BE,MATCH(Z$1,Formulacion!$1:$1,0),FALSE)="NA",1,IF(V26<=m2Min,0,1)) -> 1 | AA26: =IF(VLOOKUP($B26,Formulacion!$A:$BE,MATCH(AA$1,Formulacion!$1:$1,0),FALSE)="NA",1,IF(OR(E26<=FechaMin,E26>FechaMax),0,1)) -> 1 | AB26: =IF(VLOOKUP($B26,Formulacion!$A:$BE,MATCH(AB$1,Formulacion!$1:$1,0),FALSE)="NA",1,IF(H26<=MaterialesMin,0,1)) -> 1 | AC26: =IF(VLOOKUP($B26,Formulacion!$A:$BE,MATCH(AC$1,Formulacion!$1:$1,0),FALSE)="NA",1,IF(N26=0,0,IF(OR(I26/N26<=MObraMin,I26/N26>=MObraMax),MDOmin,1))) -> 1 | AD26: =IF(VLOOKUP($B26,Formulacion!$A:$BE,MATCH(AD$1,Formulacion!$1:$1,0),FALSE)="NA",1,IF(N26<=CostoTotalMin,0,1)) -> 1 | AE26: =IF(VLOOKUP($B26,Formulacion!$A:$BE,MATCH(AE$1,Formulacion!$1:$1,0),FALSE)="NA",1,IF(Q26<=PostesMin,0,1)) -> 1 | AF26: =IF(VLOOKUP($B26,Formulacion!$A:$BE,MATCH(AF$1,Formulacion!$1:$1,0),FALSE)="NA",1,IF(R26<=INDIRECT(VLOOKUP(B26,Formulacion!$A:$BE,2,FALSE)),0,1)) -> 1 | AG26: 1 | AH26: 49062.82 | AJ26: =IF(VLOOKUP($B26,Formulacion!$A:$BE,MATCH(AJ$1,Formulacion!$1:$1,0),FALSE)="NA","NA",HLOOKUP(VLOOKUP($B26,Formulacion!$A:$BE,MATCH(AJ$1,Formulacion!$1:$1,0),FALSE),$Q:$Z,ROW(AJ26),FALSE)) -> 74.58139535 | AK26: =IF(VLOOKUP($B26,Formulacion!$A:$BE,MATCH(AK$1,Formulacion!$1:$1,0),FALSE)="NA",1,VLOOKUP($B26,Formulacion!$A:$BE,MATCH(AK$1,Formulacion!$1:$1,0),FALSE)) -> 30 | AL26: =IF(VLOOKUP($B26,Formulacion!$A:$BE,MATCH(AL$1,Formulacion!$1:$1,0),FALSE)="NA",1,VLOOKUP($B26,Formulacion!$A:$BE,MATCH(AL$1,Formulacion!$1:$1,0),FALSE)) -> 0.3 | AM26: NC | AN26: =IF(VLOOKUP($B26,Formulacion!$A:$BE,MATCH(AN$1,Formulacion!$1:$1,0),FALSE)="NA","NA",IF(D26=0,"",VLOOKUP($B26,Formulacion!$A:$BE,MATCH(AN$1,Formulacion!$1:$1,0),FALSE))) -> 0206170220032403 | AO26: LABTM1 | AP26: HO | AQ26: 3AL | AR26: 1/0 | AV26: =IF(VLOOKUP($B26,Formulacion!$A:$BE,MATCH(AV$1,Formulacion!$1:$1,0),FALSE)="NA","NA",VLOOKUP(CONCATENATE(AO26,AP26,AQ26,AR26,AS26,AT26,AU26),ValoresReferenciales!$A:$D,4,FALSE)) -> 17.37168537 | AW26: =IF(VLOOKUP($B26,Formulacion!$A:$BE,MATCH(AW$1,Formulacion!$1:$1,0),FALSE)="NA","NA",HLOOKUP(VLOOKUP($B26,Formulacion!$A:$BE,MATCH(AW$1,Formulacion!$1:$1,0),FALSE),$Q:$Z,ROW(AW26),FALSE)) -> 3207 | AX26: 15.29866542 | AY26: 1 | AZ26: =IF(VLOOKUP($B26,Formulacion!$A:$BE,MATCH(AZ$1,Formulacion!$1:$1,0),FALSE)="NA",1,VLOOKUP($B26,Formulacion!$A:$BE,MATCH(AZ$1,Formulacion!$1:$1,0),FALSE)) -> 1 | BA26: =IF(VLOOKUP($B26,Formulacion!$A:$BE,MATCH(BA$1,Formulacion!$1:$1,0),FALSE)="NA",1,VLOOKUP($B26,Formulacion!$A:$BE,MATCH(BA$1,Formulacion!$1:$1,0),FALSE)) -> 1 | BB26: 49062.82 | BC26: 49062.82
A27: CC-01-AD EDECHI 2011.xls | B27: DLABT | C27: 301012008100757 | D27: DLABTM101846P019HOC3ALA1/0 | E27: 2011-12-31 | F27: DAVID (CABECERA | G27: 1846 | H27: 19275.52 | I27: 10354.46 | J27: 0 | K27: 0 | L27: 0 | M27: 0 | N27: 29629.98 | O27: 940 | P27: 0 | Q27: =IF(OR(VLOOKUP($B27,Formulacion!$A:$BE,MATCH(Q$1,Formulacion!$1:$1,0),FALSE)="NA",$D27=0),"NA",IF($B27="DLABT",MID($D27,PosteInicioBT,PosteFinBT-PosteInicioBT+1)*1,MID($D27,PosteInicio,PosteFin-PosteInicio+1)*1)) -> 19 | R27: =IF(OR(VLOOKUP($B27,Formulacion!$A:$BE,MATCH(R$1,Formulacion!$1:$1,0),FALSE)="NA",$D27=0),"NA",IF(OR($B27="DLABT",$B27="DLSBT"),MID($D27,CondInicioBT,CondFinBT-CondInicioBT+1)*1,MID($D27,CondInicio,CondFin-CondInicio+1)*1)) -> 1846 | S27: 97.15789474 | T27: =IF(OR(VLOOKUP($B27,Formulacion!$A:$BE,MATCH(T$1,Formulacion!$1:$1,0),FALSE)="NA",$D27=0),"NA",IF($B27="DLSBT",MID($D27,ZanjaInicioBT,ZanjaFinBT-ZanjaInicioBT+1)*1,MID($D27,ZanjaInicio,ZanjaFin-ZanjaInicio+1)*1)) -> NA | U27: 1 | V27: =IF(OR(VLOOKUP($B27,Formulacion!$A:$BE,MATCH(V$1,Formulacion!$1:$1,0),FALSE)="NA",$D27=0),"NA",MID($D27,m2Inicio+INDIRECT(B27),m2Fin-m2Inicio+1)*1) -> NA | W27: =IF(OR(VLOOKUP($B27,Formulacion!$A:$BE,MATCH(W$1,Formulacion!$1:$1,0),FALSE)="NA",$D27=0),"NA",RIGHT($D27,4)*1) -> NA | X27: =IF(OR(VLOOKUP($B27,Formulacion!$A:$BE,MATCH(X$1,Formulacion!$1:$1,0),FALSE)="NA",$D27=0),"NA",RIGHT($D27,3)*1) -> NA | Y27: 1 | Z27: =IF(VLOOKUP($B27,Formulacion!$A:$BE,MATCH(Z$1,Formulacion!$1:$1,0),FALSE)="NA",1,IF(V27<=m2Min,0,1)) -> 1 | AA27: =IF(VLOOKUP($B27,Formulacion!$A:$BE,MATCH(AA$1,Formulacion!$1:$1,0),FALSE)="NA",1,IF(OR(E27<=FechaMin,E27>FechaMax),0,1)) -> 1 | AB27: =IF(VLOOKUP($B27,Formulacion!$A:$BE,MATCH(AB$1,Formulacion!$1:$1,0),FALSE)="NA",1,IF(H27<=MaterialesMin,0,1)) -> 1 | AC27: =IF(VLOOKUP($B27,Formulacion!$A:$BE,MATCH(AC$1,Formulacion!$1:$1,0),FALSE)="NA",1,IF(N27=0,0,IF(OR(I27/N27<=MObraMin,I27/N27>=MObraMax),MDOmin,1))) -> 1 | AD27: =IF(VLOOKUP($B27,Formulacion!$A:$BE,MATCH(AD$1,Formulacion!$1:$1,0),FALSE)="NA",1,IF(N27<=CostoTotalMin,0,1)) -> 1 | AE27: =IF(VLOOKUP($B27,Formulacion!$A:$BE,MATCH(AE$1,Formulacion!$1:$1,0),FALSE)="NA",1,IF(Q27<=PostesMin,0,1)) -> 1 | AF27: =IF(VLOOKUP($B27,Formulacion!$A:$BE,MATCH(AF$1,Formulacion!$1:$1,0),FALSE)="NA",1,IF(R27<=INDIRECT(VLOOKUP(B27,Formulacion!$A:$BE,2,FALSE)),0,1)) -> 1 | AG27: 1 | AH27: 29629.98 | AJ27: =IF(VLOOKUP($B27,Formulacion!$A:$BE,MATCH(AJ$1,Formulacion!$1:$1,0),FALSE)="NA","NA",HLOOKUP(VLOOKUP($B27,Formulacion!$A:$BE,MATCH(AJ$1,Formulacion!$1:$1,0),FALSE),$Q:$Z,ROW(AJ27),FALSE)) -> 97.15789474 | AK27: =IF(VLOOKUP($B27,Formulacion!$A:$BE,MATCH(AK$1,Formulacion!$1:$1,0),FALSE)="NA",1,VLOOKUP($B27,Formulacion!$A:$BE,MATCH(AK$1,Formulacion!$1:$1,0),FALSE)) -> 30 | AL27: =IF(VLOOKUP($B27,Formulacion!$A:$BE,MATCH(AL$1,Formulacion!$1:$1,0),FALSE)="NA",1,VLOOKUP($B27,Formulacion!$A:$BE,MATCH(AL$1,Formulacion!$1:$1,0),FALSE)) -> 0.3 | AM27: NC | AN27: =IF(VLOOKUP($B27,Formulacion!$A:$BE,MATCH(AN$1,Formulacion!$1:$1,0),FALSE)="NA","NA",IF(D27=0,"",VLOOKUP($B27,Formulacion!$A:$BE,MATCH(AN$1,Formulacion!$1:$1,0),FALSE))) -> 0206170220032403 | AO27: LABTM1 | AP27: HO | AQ27: 3AL | AR27: 1/0 | AV27: =IF(VLOOKUP($B27,Formulacion!$A:$BE,MATCH(AV$1,Formulacion!$1:$1,0),FALSE)="NA","NA",VLOOKUP(CONCATENATE(AO27,AP27,AQ27,AR27,AS27,AT27,AU27),ValoresReferenciales!$A:$D,4,FALSE)) -> 17.37168537 | AW27: =IF(VLOOKUP($B27,Formulacion!$A:$BE,MATCH(AW$1,Formulacion!$1:$1,0),FALSE)="NA","NA",HLOOKUP(VLOOKUP($B27,Formulacion!$A:$BE,MATCH(AW$1,Formulacion!$1:$1,0),FALSE),$Q:$Z,ROW(AW27),FALSE)) -> 1846 | AX27: 16.05091008 | AY27: 1 | AZ27: =IF(VLOOKUP($B27,Formulacion!$A:$BE,MATCH(AZ$1,Formulacion!$1:$1,0),FALSE)="NA",1,VLOOKUP($B27,Formulacion!$A:$BE,MATCH(AZ$1,Formulacion!$1:$1,0),FALSE)) -> 1 | BA27: =IF(VLOOKUP($B27,Formulacion!$A:$BE,MATCH(BA$1,Formulacion!$1:$1,0),FALSE)="NA",1,VLOOKUP($B27,Formulacion!$A:$BE,MATCH(BA$1,Formulacion!$1:$1,0),FALSE)) -> 1 | BB27: 29629.98 | BC27: 29629.98
A28: CC-01-AD EDECHI 2011.xls | B28: DLABT | C28: 301012009060315 | D28: DLABTM101103P014HOC3ALA1/0 | E28: 2011-12-31 | F28: DAVID (CABECERA | G28: 1103 | H28: 11743.45 | I28: 5335.45 | J28: 0 | K28: 0 | L28: 0 | M28: 0 | N28: 17078.9 | O28: 586 | P28: 0 | Q28: =IF(OR(VLOOKUP($B28,Formulacion!$A:$BE,MATCH(Q$1,Formulacion!$1:$1,0),FALSE)="NA",$D28=0),"NA",IF($B28="DLABT",MID($D28,PosteInicioBT,PosteFinBT-PosteInicioBT+1)*1,MID($D28,PosteInicio,PosteFin-PosteInicio+1)*1)) -> 14 | R28: =IF(OR(VLOOKUP($B28,Formulacion!$A:$BE,MATCH(R$1,Formulacion!$1:$1,0),FALSE)="NA",$D28=0),"NA",IF(OR($B28="DLABT",$B28="DLSBT"),MID($D28,CondInicioBT,CondFinBT-CondInicioBT+1)*1,MID($D28,CondInicio,CondFin-CondInicio+1)*1)) -> 1103 | S28: 78.78571429 | T28: =IF(OR(VLOOKUP($B28,Formulacion!$A:$BE,MATCH(T$1,Formulacion!$1:$1,0),FALSE)="NA",$D28=0),"NA",IF($B28="DLSBT",MID($D28,ZanjaInicioBT,ZanjaFinBT-ZanjaInicioBT+1)*1,MID($D28,ZanjaInicio,ZanjaFin-ZanjaInicio+1)*1)) -> NA | U28: 1 | V28: =IF(OR(VLOOKUP($B28,Formulacion!$A:$BE,MATCH(V$1,Formulacion!$1:$1,0),FALSE)="NA",$D28=0),"NA",MID($D28,m2Inicio+INDIRECT(B28),m2Fin-m2Inicio+1)*1) -> NA | W28: =IF(OR(VLOOKUP($B28,Formulacion!$A:$BE,MATCH(W$1,Formulacion!$1:$1,0),FALSE)="NA",$D28=0),"NA",RIGHT($D28,4)*1) -> NA | X28: =IF(OR(VLOOKUP($B28,Formulacion!$A:$BE,MATCH(X$1,Formulacion!$1:$1,0),FALSE)="NA",$D28=0),"NA",RIGHT($D28,3)*1) -> NA | Y28: 1 | Z28: =IF(VLOOKUP($B28,Formulacion!$A:$BE,MATCH(Z$1,Formulacion!$1:$1,0),FALSE)="NA",1,IF(V28<=m2Min,0,1)) -> 1 | AA28: =IF(VLOOKUP($B28,Formulacion!$A:$BE,MATCH(AA$1,Formulacion!$1:$1,0),FALSE)="NA",1,IF(OR(E28<=FechaMin,E28>FechaMax),0,1)) -> 1 | AB28: =IF(VLOOKUP($B28,Formulacion!$A:$BE,MATCH(AB$1,Formulacion!$1:$1,0),FALSE)="NA",1,IF(H28<=MaterialesMin,0,1)) -> 1 | AC28: =IF(VLOOKUP($B28,Formulacion!$A:$BE,MATCH(AC$1,Formulacion!$1:$1,0),FALSE)="NA",1,IF(N28=0,0,IF(OR(I28/N28<=MObraMin,I28/N28>=MObraMax),MDOmin,1))) -> 1 | AD28: =IF(VLOOKUP($B28,Formulacion!$A:$BE,MATCH(AD$1,Formulacion!$1:$1,0),FALSE)="NA",1,IF(N28<=CostoTotalMin,0,1)) -> 1 | AE28: =IF(VLOOKUP($B28,Formulacion!$A:$BE,MATCH(AE$1,Formulacion!$1:$1,0),FALSE)="NA",1,IF(Q28<=PostesMin,0,1)) -> 1 | AF28: =IF(VLOOKUP($B28,Formulacion!$A:$BE,MATCH(AF$1,Formulacion!$1:$1,0),FALSE)="NA",1,IF(R28<=INDIRECT(VLOOKUP(B28,Formulacion!$A:$BE,2,FALSE)),0,1)) -> 1 | AG28: 1 | AH28: 17078.9 | AJ28: =IF(VLOOKUP($B28,Formulacion!$A:$BE,MATCH(AJ$1,Formulacion!$1:$1,0),FALSE)="NA","NA",HLOOKUP(VLOOKUP($B28,Formulacion!$A:$BE,MATCH(AJ$1,Formulacion!$1:$1,0),FALSE),$Q:$Z,ROW(AJ28),FALSE)) -> 78.78571429 | AK28: =IF(VLOOKUP($B28,Formulacion!$A:$BE,MATCH(AK$1,Formulacion!$1:$1,0),FALSE)="NA",1,VLOOKUP($B28,Formulacion!$A:$BE,MATCH(AK$1,Formulacion!$1:$1,0),FALSE)) -> 30 | AL28: =IF(VLOOKUP($B28,Formulacion!$A:$BE,MATCH(AL$1,Formulacion!$1:$1,0),FALSE)="NA",1,VLOOKUP($B28,Formulacion!$A:$BE,MATCH(AL$1,Formulacion!$1:$1,0),FALSE)) -> 0.3 | AM28: NC | AN28: =IF(VLOOKUP($B28,Formulacion!$A:$BE,MATCH(AN$1,Formulacion!$1:$1,0),FALSE)="NA","NA",IF(D28=0,"",VLOOKUP($B28,Formulacion!$A:$BE,MATCH(AN$1,Formulacion!$1:$1,0),FALSE))) -> 0206170220032403 | AO28: LABTM1 | AP28: HO | AQ28: 3AL | AR28: 1/0 | AV28: =IF(VLOOKUP($B28,Formulacion!$A:$BE,MATCH(AV$1,Formulacion!$1:$1,0),FALSE)="NA","NA",VLOOKUP(CONCATENATE(AO28,AP28,AQ28,AR28,AS28,AT28,AU28),ValoresReferenciales!$A:$D,4,FALSE)) -> 17.37168537 | AW28: =IF(VLOOKUP($B28,Formulacion!$A:$BE,MATCH(AW$1,Formulacion!$1:$1,0),FALSE)="NA","NA",HLOOKUP(VLOOKUP($B28,Formulacion!$A:$BE,MATCH(AW$1,Formulacion!$1:$1,0),FALSE),$Q:$Z,ROW(AW28),FALSE)) -> 1103 | AX28: 15.48404352 | AY28: 1 | AZ28: =IF(VLOOKUP($B28,Formulacion!$A:$BE,MATCH(AZ$1,Formulacion!$1:$1,0),FALSE)="NA",1,VLOOKUP($B28,Formulacion!$A:$BE,MATCH(AZ$1,Formulacion!$1:$1,0),FALSE)) -> 1 | BA28: =IF(VLOOKUP($B28,Formulacion!$A:$BE,MATCH(BA$1,Formulacion!$1:$1,0),FALSE)="NA",1,VLOOKUP($B28,Formulacion!$A:$BE,MATCH(BA$1,Formulacion!$1:$1,0),FALSE)) -> 1 | BB28: 17078.9 | BC28: 17078.9
A29: CC-01-AD EDECHI 2011.xls | B29: DLABT | C29: 301012009120490 | D29: DLABTM100008P000HOC3ALA006 | E29: 2011-12-31 | F29: ALTOS DE SAN VI | G29: 8 | H29: 38.06 | I29: 34.08 | J29: 0 | K29: 0 | L29: 0 | M29: 0 | N29: 72.14 | O29: 831 | P29: 0 | Q29: =IF(OR(VLOOKUP($B29,Formulacion!$A:$BE,MATCH(Q$1,Formulacion!$1:$1,0),FALSE)="NA",$D29=0),"NA",IF($B29="DLABT",MID($D29,PosteInicioBT,PosteFinBT-PosteInicioBT+1)*1,MID($D29,PosteInicio,PosteFin-PosteInicio+1)*1)) -> 0 | R29: =IF(OR(VLOOKUP($B29,Formulacion!$A:$BE,MATCH(R$1,Formulacion!$1:$1,0),FALSE)="NA",$D29=0),"NA",IF(OR($B29="DLABT",$B29="DLSBT"),MID($D29,CondInicioBT,CondFinBT-CondInicioBT+1)*1,MID($D29,CondInicio,CondFin-CondInicio+1)*1)) -> 8 | S29: SP | T29: =IF(OR(VLOOKUP($B29,Formulacion!$A:$BE,MATCH(T$1,Formulacion!$1:$1,0),FALSE)="NA",$D29=0),"NA",IF($B29="DLSBT",MID($D29,ZanjaInicioBT,ZanjaFinBT-ZanjaInicioBT+1)*1,MID($D29,ZanjaInicio,ZanjaFin-ZanjaInicio+1)*1)) -> NA | U29: 1 | V29: =IF(OR(VLOOKUP($B29,Formulacion!$A:$BE,MATCH(V$1,Formulacion!$1:$1,0),FALSE)="NA",$D29=0),"NA",MID($D29,m2Inicio+INDIRECT(B29),m2Fin-m2Inicio+1)*1) -> NA | W29: =IF(OR(VLOOKUP($B29,Formulacion!$A:$BE,MATCH(W$1,Formulacion!$1:$1,0),FALSE)="NA",$D29=0),"NA",RIGHT($D29,4)*1) -> NA | X29: =IF(OR(VLOOKUP($B29,Formulacion!$A:$BE,MATCH(X$1,Formulacion!$1:$1,0),FALSE)="NA",$D29=0),"NA",RIGHT($D29,3)*1) -> NA | Y29: 1 | Z29: =IF(VLOOKUP($B29,Formulacion!$A:$BE,MATCH(Z$1,Formulacion!$1:$1,0),FALSE)="NA",1,IF(V29<=m2Min,0,1)) -> 1 | AA29: =IF(VLOOKUP($B29,Formulacion!$A:$BE,MATCH(AA$1,Formulacion!$1:$1,0),FALSE)="NA",1,IF(OR(E29<=FechaMin,E29>FechaMax),0,1)) -> 1 | AB29: =IF(VLOOKUP($B29,Formulacion!$A:$BE,MATCH(AB$1,Formulacion!$1:$1,0),FALSE)="NA",1,IF(H29<=MaterialesMin,0,1)) -> 1 | AC29: =IF(VLOOKUP($B29,Formulacion!$A:$BE,MATCH(AC$1,Formulacion!$1:$1,0),FALSE)="NA",1,IF(N29=0,0,IF(OR(I29/N29<=MObraMin,I29/N29>=MObraMax),MDOmin,1))) -> 1 | AD29: =IF(VLOOKUP($B29,Formulacion!$A:$BE,MATCH(AD$1,Formulacion!$1:$1,0),FALSE)="NA",1,IF(N29<=CostoTotalMin,0,1)) -> 0 | AE29: =IF(VLOOKUP($B29,Formulacion!$A:$BE,MATCH(AE$1,Formulacion!$1:$1,0),FALSE)="NA",1,IF(Q29<=PostesMin,0,1)) -> 0 | AF29: =IF(VLOOKUP($B29,Formulacion!$A:$BE,MATCH(AF$1,Formulacion!$1:$1,0),FALSE)="NA",1,IF(R29<=INDIRECT(VLOOKUP(B29,Formulacion!$A:$BE,2,FALSE)),0,1)) -> 0 | AG29: 0 | AH29: 0 | AJ29: =IF(VLOOKUP($B29,Formulacion!$A:$BE,MATCH(AJ$1,Formulacion!$1:$1,0),FALSE)="NA","NA",HLOOKUP(VLOOKUP($B29,Formulacion!$A:$BE,MATCH(AJ$1,Formulacion!$1:$1,0),FALSE),$Q:$Z,ROW(AJ29),FALSE)) -> SP | AK29: =IF(VLOOKUP($B29,Formulacion!$A:$BE,MATCH(AK$1,Formulacion!$1:$1,0),FALSE)="NA",1,VLOOKUP($B29,Formulacion!$A:$BE,MATCH(AK$1,Formulacion!$1:$1,0),FALSE)) -> 30 | AL29: =IF(VLOOKUP($B29,Formulacion!$A:$BE,MATCH(AL$1,Formulacion!$1:$1,0),FALSE)="NA",1,VLOOKUP($B29,Formulacion!$A:$BE,MATCH(AL$1,Formulacion!$1:$1,0),FALSE)) -> 0.3 | AM29: NC | AN29: =IF(VLOOKUP($B29,Formulacion!$A:$BE,MATCH(AN$1,Formulacion!$1:$1,0),FALSE)="NA","NA",IF(D29=0,"",VLOOKUP($B29,Formulacion!$A:$BE,MATCH(AN$1,Formulacion!$1:$1,0),FALSE))) -> 0206170220032403 | AO29: LABTM1 | AP29: HO | AQ29: 3AL | AR29: 006 | AV29: =IF(VLOOKUP($B29,Formulacion!$A:$BE,MATCH(AV$1,Formulacion!$1:$1,0),FALSE)="NA","NA",VLOOKUP(CONCATENATE(AO29,AP29,AQ29,AR29,AS29,AT29,AU29),ValoresReferenciales!$A:$D,4,FALSE)) -> 14.76593257 | AW29: =IF(VLOOKUP($B29,Formulacion!$A:$BE,MATCH(AW$1,Formulacion!$1:$1,0),FALSE)="NA","NA",HLOOKUP(VLOOKUP($B29,Formulacion!$A:$BE,MATCH(AW$1,Formulacion!$1:$1,0),FALSE),$Q:$Z,ROW(AW29),FALSE)) -> 8 | AX29: 9.0175 | AY29: 1 | AZ29: =IF(VLOOKUP($B29,Formulacion!$A:$BE,MATCH(AZ$1,Formulacion!$1:$1,0),FALSE)="NA",1,VLOOKUP($B29,Formulacion!$A:$BE,MATCH(AZ$1,Formulacion!$1:$1,0),FALSE)) -> 1 | BA29: =IF(VLOOKUP($B29,Formulacion!$A:$BE,MATCH(BA$1,Formulacion!$1:$1,0),FALSE)="NA",1,VLOOKUP($B29,Formulacion!$A:$BE,MATCH(BA$1,Formulacion!$1:$1,0),FALSE)) -> 1 | BB29: 0 | BC29: 72.14
A30: CC-01-AD EDECHI 2011.xls | B30: DLABT | C30: 301012009120490 | D30: DLABTM100413P001HOC3ALA002 | E30: 2011-12-31 | F30: ALTOS DE SAN VI | G30: 413 | H30: 1964.73 | I30: 1759.29 | J30: 0 | K30: 0 | L30: 0 | M30: 0 | N30: 3724.02 | O30: 832 | P30: 0 | Q30: =IF(OR(VLOOKUP($B30,Formulacion!$A:$BE,MATCH(Q$1,Formulacion!$1:$1,0),FALSE)="NA",$D30=0),"NA",IF($B30="DLABT",MID($D30,PosteInicioBT,PosteFinBT-PosteInicioBT+1)*1,MID($D30,PosteInicio,PosteFin-PosteInicio+1)*1)) -> 1 | R30: =IF(OR(VLOOKUP($B30,Formulacion!$A:$BE,MATCH(R$1,Formulacion!$1:$1,0),FALSE)="NA",$D30=0),"NA",IF(OR($B30="DLABT",$B30="DLSBT"),MID($D30,CondInicioBT,CondFinBT-CondInicioBT+1)*1,MID($D30,CondInicio,CondFin-CondInicio+1)*1)) -> 413 | S30: 413 | T30: =IF(OR(VLOOKUP($B30,Formulacion!$A:$BE,MATCH(T$1,Formulacion!$1:$1,0),FALSE)="NA",$D30=0),"NA",IF($B30="DLSBT",MID($D30,ZanjaInicioBT,ZanjaFinBT-ZanjaInicioBT+1)*1,MID($D30,ZanjaInicio,ZanjaFin-ZanjaInicio+1)*1)) -> NA | U30: 1 | V30: =IF(OR(VLOOKUP($B30,Formulacion!$A:$BE,MATCH(V$1,Formulacion!$1:$1,0),FALSE)="NA",$D30=0),"NA",MID($D30,m2Inicio+INDIRECT(B30),m2Fin-m2Inicio+1)*1) -> NA | W30: =IF(OR(VLOOKUP($B30,Formulacion!$A:$BE,MATCH(W$1,Formulacion!$1:$1,0),FALSE)="NA",$D30=0),"NA",RIGHT($D30,4)*1) -> NA | X30: =IF(OR(VLOOKUP($B30,Formulacion!$A:$BE,MATCH(X$1,Formulacion!$1:$1,0),FALSE)="NA",$D30=0),"NA",RIGHT($D30,3)*1) -> NA | Y30: 1 | Z30: =IF(VLOOKUP($B30,Formulacion!$A:$BE,MATCH(Z$1,Formulacion!$1:$1,0),FALSE)="NA",1,IF(V30<=m2Min,0,1)) -> 1 | AA30: =IF(VLOOKUP($B30,Formulacion!$A:$BE,MATCH(AA$1,Formulacion!$1:$1,0),FALSE)="NA",1,IF(OR(E30<=FechaMin,E30>FechaMax),0,1)) -> 1 | AB30: =IF(VLOOKUP($B30,Formulacion!$A:$BE,MATCH(AB$1,Formulacion!$1:$1,0),FALSE)="NA",1,IF(H30<=MaterialesMin,0,1)) -> 1 | AC30: =IF(VLOOKUP($B30,Formulacion!$A:$BE,MATCH(AC$1,Formulacion!$1:$1,0),FALSE)="NA",1,IF(N30=0,0,IF(OR(I30/N30<=MObraMin,I30/N30>=MObraMax),MDOmin,1))) -> 1 | AD30: =IF(VLOOKUP($B30,Formulacion!$A:$BE,MATCH(AD$1,Formulacion!$1:$1,0),FALSE)="NA",1,IF(N30<=CostoTotalMin,0,1)) -> 1 | AE30: =IF(VLOOKUP($B30,Formulacion!$A:$BE,MATCH(AE$1,Formulacion!$1:$1,0),FALSE)="NA",1,IF(Q30<=PostesMin,0,1)) -> 0 | AF30: =IF(VLOOKUP($B30,Formulacion!$A:$BE,MATCH(AF$1,Formulacion!$1:$1,0),FALSE)="NA",1,IF(R30<=INDIRECT(VLOOKUP(B30,Formulacion!$A:$BE,2,FALSE)),0,1)) -> 1 | AG30: 1 | AH30: 3724.02 | AJ30: =IF(VLOOKUP($B30,Formulacion!$A:$BE,MATCH(AJ$1,Formulacion!$1:$1,0),FALSE)="NA","NA",HLOOKUP(VLOOKUP($B30,Formulacion!$A:$BE,MATCH(AJ$1,Formulacion!$1:$1,0),FALSE),$Q:$Z,ROW(AJ30),FALSE)) -> 413 | AK30: =IF(VLOOKUP($B30,Formulacion!$A:$BE,MATCH(AK$1,Formulacion!$1:$1,0),FALSE)="NA",1,VLOOKUP($B30,Formulacion!$A:$BE,MATCH(AK$1,Formulacion!$1:$1,0),FALSE)) -> 30 | AL30: =IF(VLOOKUP($B30,Formulacion!$A:$BE,MATCH(AL$1,Formulacion!$1:$1,0),FALSE)="NA",1,VLOOKUP($B30,Formulacion!$A:$BE,MATCH(AL$1,Formulacion!$1:$1,0),FALSE)) -> 0.3 | AM30: NC | AN30: =IF(VLOOKUP($B30,Formulacion!$A:$BE,MATCH(AN$1,Formulacion!$1:$1,0),FALSE)="NA","NA",IF(D30=0,"",VLOOKUP($B30,Formulacion!$A:$BE,MATCH(AN$1,Formulacion!$1:$1,0),FALSE))) -> 0206170220032403 | AO30: LABTM1 | AP30: HO | AQ30: 3AL | AR30: 002 | AV30: =IF(VLOOKUP($B30,Formulacion!$A:$BE,MATCH(AV$1,Formulacion!$1:$1,0),FALSE)="NA","NA",VLOOKUP(CONCATENATE(AO30,AP30,AQ30,AR30,AS30,AT30,AU30),ValoresReferenciales!$A:$D,4,FALSE)) -> 15.63451684 | AW30: =IF(VLOOKUP($B30,Formulacion!$A:$BE,MATCH(AW$1,Formulacion!$1:$1,0),FALSE)="NA","NA",HLOOKUP(VLOOKUP($B30,Formulacion!$A:$BE,MATCH(AW$1,Formulacion!$1:$1,0),FALSE),$Q:$Z,ROW(AW30),FALSE)) -> 413 | AX30: 9.016997579 | AY30: 1 | AZ30: =IF(VLOOKUP($B30,Formulacion!$A:$BE,MATCH(AZ$1,Formulacion!$1:$1,0),FALSE)="NA",1,VLOOKUP($B30,Formulacion!$A:$BE,MATCH(AZ$1,Formulacion!$1:$1,0),FALSE)) -> 1 | BA30: =IF(VLOOKUP($B30,Formulacion!$A:$BE,MATCH(BA$1,Formulacion!$1:$1,0),FALSE)="NA",1,VLOOKUP($B30,Formulacion!$A:$BE,MATCH(BA$1,Formulacion!$1:$1,0),FALSE)) -> 1 | BB30: 3724.02 | BC30: 3724.02
A31: CC-01-AD EDECHI 2011.xls | B31: DLABT | C31: 301012010020292 | D31: DLABTM100015P000HOC3ALA1/0 | E31: 2011-03-03 | F31: LOS ZAMBRANOS | G31: 15 | H31: 88.3 | I31: 36.77 | J31: 0 | K31: 0 | L31: 0 | M31: 0 | N31: 125.07 | O31: 265 | P31: 0 | Q31: =IF(OR(VLOOKUP($B31,Formulacion!$A:$BE,MATCH(Q$1,Formulacion!$1:$1,0),FALSE)="NA",$D31=0),"NA",IF($B31="DLABT",MID($D31,PosteInicioBT,PosteFinBT-PosteInicioBT+1)*1,MID($D31,PosteInicio,PosteFin-PosteInicio+1)*1)) -> 0 | R31: =IF(OR(VLOOKUP($B31,Formulacion!$A:$BE,MATCH(R$1,Formulacion!$1:$1,0),FALSE)="NA",$D31=0),"NA",IF(OR($B31="DLABT",$B31="DLSBT"),MID($D31,CondInicioBT,CondFinBT-CondInicioBT+1)*1,MID($D31,CondInicio,CondFin-CondInicio+1)*1)) -> 15 | S31: SP | T31: =IF(OR(VLOOKUP($B31,Formulacion!$A:$BE,MATCH(T$1,Formulacion!$1:$1,0),FALSE)="NA",$D31=0),"NA",IF($B31="DLSBT",MID($D31,ZanjaInicioBT,ZanjaFinBT-ZanjaInicioBT+1)*1,MID($D31,ZanjaInicio,ZanjaFin-ZanjaInicio+1)*1)) -> NA | U31: 1 | V31: =IF(OR(VLOOKUP($B31,Formulacion!$A:$BE,MATCH(V$1,Formulacion!$1:$1,0),FALSE)="NA",$D31=0),"NA",MID($D31,m2Inicio+INDIRECT(B31),m2Fin-m2Inicio+1)*1) -> NA | W31: =IF(OR(VLOOKUP($B31,Formulacion!$A:$BE,MATCH(W$1,Formulacion!$1:$1,0),FALSE)="NA",$D31=0),"NA",RIGHT($D31,4)*1) -> NA | X31: =IF(OR(VLOOKUP($B31,Formulacion!$A:$BE,MATCH(X$1,Formulacion!$1:$1,0),FALSE)="NA",$D31=0),"NA",RIGHT($D31,3)*1) -> NA | Y31: 1 | Z31: =IF(VLOOKUP($B31,Formulacion!$A:$BE,MATCH(Z$1,Formulacion!$1:$1,0),FALSE)="NA",1,IF(V31<=m2Min,0,1)) -> 1 | AA31: =IF(VLOOKUP($B31,Formulacion!$A:$BE,MATCH(AA$1,Formulacion!$1:$1,0),FALSE)="NA",1,IF(OR(E31<=FechaMin,E31>FechaMax),0,1)) -> 1 | AB31: =IF(VLOOKUP($B31,Formulacion!$A:$BE,MATCH(AB$1,Formulacion!$1:$1,0),FALSE)="NA",1,IF(H31<=MaterialesMin,0,1)) -> 1 | AC31: =IF(VLOOKUP($B31,Formulacion!$A:$BE,MATCH(AC$1,Formulacion!$1:$1,0),FALSE)="NA",1,IF(N31=0,0,IF(OR(I31/N31<=MObraMin,I31/N31>=MObraMax),MDOmin,1))) -> 1 | AD31: =IF(VLOOKUP($B31,Formulacion!$A:$BE,MATCH(AD$1,Formulacion!$1:$1,0),FALSE)="NA",1,IF(N31<=CostoTotalMin,0,1)) -> 1 | AE31: =IF(VLOOKUP($B31,Formulacion!$A:$BE,MATCH(AE$1,Formulacion!$1:$1,0),FALSE)="NA",1,IF(Q31<=PostesMin,0,1)) -> 0 | AF31: =IF(VLOOKUP($B31,Formulacion!$A:$BE,MATCH(AF$1,Formulacion!$1:$1,0),FALSE)="NA",1,IF(R31<=INDIRECT(VLOOKUP(B31,Formulacion!$A:$BE,2,FALSE)),0,1)) -> 0 | AG31: 0 | AH31: 0 | AJ31: =IF(VLOOKUP($B31,Formulacion!$A:$BE,MATCH(AJ$1,Formulacion!$1:$1,0),FALSE)="NA","NA",HLOOKUP(VLOOKUP($B31,Formulacion!$A:$BE,MATCH(AJ$1,Formulacion!$1:$1,0),FALSE),$Q:$Z,ROW(AJ31),FALSE)) -> SP | AK31: =IF(VLOOKUP($B31,Formulacion!$A:$BE,MATCH(AK$1,Formulacion!$1:$1,0),FALSE)="NA",1,VLOOKUP($B31,Formulacion!$A:$BE,MATCH(AK$1,Formulacion!$1:$1,0),FALSE)) -> 30 | AL31: =IF(VLOOKUP($B31,Formulacion!$A:$BE,MATCH(AL$1,Formulacion!$1:$1,0),FALSE)="NA",1,VLOOKUP($B31,Formulacion!$A:$BE,MATCH(AL$1,Formulacion!$1:$1,0),FALSE)) -> 0.3 | AM31: NC | AN31: =IF(VLOOKUP($B31,Formulacion!$A:$BE,MATCH(AN$1,Formulacion!$1:$1,0),FALSE)="NA","NA",IF(D31=0,"",VLOOKUP($B31,Formulacion!$A:$BE,MATCH(AN$1,Formulacion!$1:$1,0),FALSE))) -> 0206170220032403 | AO31: LABTM1 | AP31: HO | AQ31: 3AL | AR31: 1/0 | AV31: =IF(VLOOKUP($B31,Formulacion!$A:$BE,MATCH(AV$1,Formulacion!$1:$1,0),FALSE)="NA","NA",VLOOKUP(CONCATENATE(AO31,AP31,AQ31,AR31,AS31,AT31,AU31),ValoresReferenciales!$A:$D,4,FALSE)) -> 17.37168537 | AW31: =IF(VLOOKUP($B31,Formulacion!$A:$BE,MATCH(AW$1,Formulacion!$1:$1,0),FALSE)="NA","NA",HLOOKUP(VLOOKUP($B31,Formulacion!$A:$BE,MATCH(AW$1,Formulacion!$1:$1,0),FALSE),$Q:$Z,ROW(AW31),FALSE)) -> 15 | AX31: 8.338 | AY31: 1 | AZ31: =IF(VLOOKUP($B31,Formulacion!$A:$BE,MATCH(AZ$1,Formulacion!$1:$1,0),FALSE)="NA",1,VLOOKUP($B31,Formulacion!$A:$BE,MATCH(AZ$1,Formulacion!$1:$1,0),FALSE)) -> 1 | BA31: =IF(VLOOKUP($B31,Formulacion!$A:$BE,MATCH(BA$1,Formulacion!$1:$1,0),FALSE)="NA",1,VLOOKUP($B31,Formulacion!$A:$BE,MATCH(BA$1,Formulacion!$1:$1,0),FALSE)) -> 1 | BB31: 0 | BC31: 125.07
A32: CC-01-AD EDECHI 2011.xls | B32: DLABT | C32: 301012010040264 | D32: DLABTM100934P015HOC3ALA1/0 | E32: 2011-08-16 | F32: SAN CARLITOS | G32: 934 | H32: 12443.8 | I32: 2381.5 | J32: 0 | K32: 1204.33 | L32: 0 | M32: 0 | N32: 16029.63 | O32: 588 | P32: 0 | Q32: =IF(OR(VLOOKUP($B32,Formulacion!$A:$BE,MATCH(Q$1,Formulacion!$1:$1,0),FALSE)="NA",$D32=0),"NA",IF($B32="DLABT",MID($D32,PosteInicioBT,PosteFinBT-PosteInicioBT+1)*1,MID($D32,PosteInicio,PosteFin-PosteInicio+1)*1)) -> 15 | R32: =IF(OR(VLOOKUP($B32,Formulacion!$A:$BE,MATCH(R$1,Formulacion!$1:$1,0),FALSE)="NA",$D32=0),"NA",IF(OR($B32="DLABT",$B32="DLSBT"),MID($D32,CondInicioBT,CondFinBT-CondInicioBT+1)*1,MID($D32,CondInicio,CondFin-CondInicio+1)*1)) -> 934 | S32: 62.26666667 | T32: =IF(OR(VLOOKUP($B32,Formulacion!$A:$BE,MATCH(T$1,Formulacion!$1:$1,0),FALSE)="NA",$D32=0),"NA",IF($B32="DLSBT",MID($D32,ZanjaInicioBT,ZanjaFinBT-ZanjaInicioBT+1)*1,MID($D32,ZanjaInicio,ZanjaFin-ZanjaInicio+1)*1)) -> NA | U32: 1 | V32: =IF(OR(VLOOKUP($B32,Formulacion!$A:$BE,MATCH(V$1,Formulacion!$1:$1,0),FALSE)="NA",$D32=0),"NA",MID($D32,m2Inicio+INDIRECT(B32),m2Fin-m2Inicio+1)*1) -> NA | W32: =IF(OR(VLOOKUP($B32,Formulacion!$A:$BE,MATCH(W$1,Formulacion!$1:$1,0),FALSE)="NA",$D32=0),"NA",RIGHT($D32,4)*1) -> NA | X32: =IF(OR(VLOOKUP($B32,Formulacion!$A:$BE,MATCH(X$1,Formulacion!$1:$1,0),FALSE)="NA",$D32=0),"NA",RIGHT($D32,3)*1) -> NA | Y32: 1 | Z32: =IF(VLOOKUP($B32,Formulacion!$A:$BE,MATCH(Z$1,Formulacion!$1:$1,0),FALSE)="NA",1,IF(V32<=m2Min,0,1)) -> 1 | AA32: =IF(VLOOKUP($B32,Formulacion!$A:$BE,MATCH(AA$1,Formulacion!$1:$1,0),FALSE)="NA",1,IF(OR(E32<=FechaMin,E32>FechaMax),0,1)) -> 1 | AB32: =IF(VLOOKUP($B32,Formulacion!$A:$BE,MATCH(AB$1,Formulacion!$1:$1,0),FALSE)="NA",1,IF(H32<=MaterialesMin,0,1)) -> 1 | AC32: =IF(VLOOKUP($B32,Formulacion!$A:$BE,MATCH(AC$1,Formulacion!$1:$1,0),FALSE)="NA",1,IF(N32=0,0,IF(OR(I32/N32<=MObraMin,I32/N32>=MObraMax),MDOmin,1))) -> 1 | AD32: =IF(VLOOKUP($B32,Formulacion!$A:$BE,MATCH(AD$1,Formulacion!$1:$1,0),FALSE)="NA",1,IF(N32<=CostoTotalMin,0,1)) -> 1 | AE32: =IF(VLOOKUP($B32,Formulacion!$A:$BE,MATCH(AE$1,Formulacion!$1:$1,0),FALSE)="NA",1,IF(Q32<=PostesMin,0,1)) -> 1 | AF32: =IF(VLOOKUP($B32,Formulacion!$A:$BE,MATCH(AF$1,Formulacion!$1:$1,0),FALSE)="NA",1,IF(R32<=INDIRECT(VLOOKUP(B32,Formulacion!$A:$BE,2,FALSE)),0,1)) -> 1 | AG32: 1 | AH32: 16029.63 | AJ32: =IF(VLOOKUP($B32,Formulacion!$A:$BE,MATCH(AJ$1,Formulacion!$1:$1,0),FALSE)="NA","NA",HLOOKUP(VLOOKUP($B32,Formulacion!$A:$BE,MATCH(AJ$1,Formulacion!$1:$1,0),FALSE),$Q:$Z,ROW(AJ32),FALSE)) -> 62.26666667 | AK32: =IF(VLOOKUP($B32,Formulacion!$A:$BE,MATCH(AK$1,Formulacion!$1:$1,0),FALSE)="NA",1,VLOOKUP($B32,Formulacion!$A:$BE,MATCH(AK$1,Formulacion!$1:$1,0),FALSE)) -> 30 | AL32: =IF(VLOOKUP($B32,Formulacion!$A:$BE,MATCH(AL$1,Formulacion!$1:$1,0),FALSE)="NA",1,VLOOKUP($B32,Formulacion!$A:$BE,MATCH(AL$1,Formulacion!$1:$1,0),FALSE)) -> 0.3 | AM32: NC | AN32: =IF(VLOOKUP($B32,Formulacion!$A:$BE,MATCH(AN$1,Formulacion!$1:$1,0),FALSE)="NA","NA",IF(D32=0,"",VLOOKUP($B32,Formulacion!$A:$BE,MATCH(AN$1,Formulacion!$1:$1,0),FALSE))) -> 0206170220032403 | AO32: LABTM1 | AP32: HO | AQ32: 3AL | AR32: 1/0 | AV32: =IF(VLOOKUP($B32,Formulacion!$A:$BE,MATCH(AV$1,Formulacion!$1:$1,0),FALSE)="NA","NA",VLOOKUP(CONCATENATE(AO32,AP32,AQ32,AR32,AS32,AT32,AU32),ValoresReferenciales!$A:$D,4,FALSE)) -> 17.37168537 | AW32: =IF(VLOOKUP($B32,Formulacion!$A:$BE,MATCH(AW$1,Formulacion!$1:$1,0),FALSE)="NA","NA",HLOOKUP(VLOOKUP($B32,Formulacion!$A:$BE,MATCH(AW$1,Formulacion!$1:$1,0),FALSE),$Q:$Z,ROW(AW32),FALSE)) -> 934 | AX32: 17.16234475 | AY32: 1 | AZ32: =IF(VLOOKUP($B32,Formulacion!$A:$BE,MATCH(AZ$1,Formulacion!$1:$1,0),FALSE)="NA",1,VLOOKUP($B32,Formulacion!$A:$BE,MATCH(AZ$1,Formulacion!$1:$1,0),FALSE)) -> 1 | BA32: =IF(VLOOKUP($B32,Formulacion!$A:$BE,MATCH(BA$1,Formulacion!$1:$1,0),FALSE)="NA",1,VLOOKUP($B32,Formulacion!$A:$BE,MATCH(BA$1,Formulacion!$1:$1,0),FALSE)) -> 1 | BB32: 16029.63 | BC32: 16029.63
A33: CC-01-AD EDECHI 2011.xls | B33: DLABT | C33: 301012010060537 | D33: DLABTM100000P000HOC2ALA006 | E33: 2011-01-31 | F33: LOS ALGARROBOS | G33: 0 | H33: 8.68 | I33: 5.09 | J33: 0 | K33: 0 | L33: 0 | M33: 0 | N33: 13.77 | O33: 345 | P33: 0 | Q33: =IF(OR(VLOOKUP($B33,Formulacion!$A:$BE,MATCH(Q$1,Formulacion!$1:$1,0),FALSE)="NA",$D33=0),"NA",IF($B33="DLABT",MID($D33,PosteInicioBT,PosteFinBT-PosteInicioBT+1)*1,MID($D33,PosteInicio,PosteFin-PosteInicio+1)*1)) -> 0 | R33: =IF(OR(VLOOKUP($B33,Formulacion!$A:$BE,MATCH(R$1,Formulacion!$1:$1,0),FALSE)="NA",$D33=0),"NA",IF(OR($B33="DLABT",$B33="DLSBT"),MID($D33,CondInicioBT,CondFinBT-CondInicioBT+1)*1,MID($D33,CondInicio,CondFin-CondInicio+1)*1)) -> 0 | S33: SP | T33: =IF(OR(VLOOKUP($B33,Formulacion!$A:$BE,MATCH(T$1,Formulacion!$1:$1,0),FALSE)="NA",$D33=0),"NA",IF($B33="DLSBT",MID($D33,ZanjaInicioBT,ZanjaFinBT-ZanjaInicioBT+1)*1,MID($D33,ZanjaInicio,ZanjaFin-ZanjaInicio+1)*1)) -> NA | U33: 1 | V33: =IF(OR(VLOOKUP($B33,Formulacion!$A:$BE,MATCH(V$1,Formulacion!$1:$1,0),FALSE)="NA",$D33=0),"NA",MID($D33,m2Inicio+INDIRECT(B33),m2Fin-m2Inicio+1)*1) -> NA | W33: =IF(OR(VLOOKUP($B33,Formulacion!$A:$BE,MATCH(W$1,Formulacion!$1:$1,0),FALSE)="NA",$D33=0),"NA",RIGHT($D33,4)*1) -> NA | X33: =IF(OR(VLOOKUP($B33,Formulacion!$A:$BE,MATCH(X$1,Formulacion!$1:$1,0),FALSE)="NA",$D33=0),"NA",RIGHT($D33,3)*1) -> NA | Y33: 1 | Z33: =IF(VLOOKUP($B33,Formulacion!$A:$BE,MATCH(Z$1,Formulacion!$1:$1,0),FALSE)="NA",1,IF(V33<=m2Min,0,1)) -> 1 | AA33: =IF(VLOOKUP($B33,Formulacion!$A:$BE,MATCH(AA$1,Formulacion!$1:$1,0),FALSE)="NA",1,IF(OR(E33<=FechaMin,E33>FechaMax),0,1)) -> 1 | AB33: =IF(VLOOKUP($B33,Formulacion!$A:$BE,MATCH(AB$1,Formulacion!$1:$1,0),FALSE)="NA",1,IF(H33<=MaterialesMin,0,1)) -> 1 | AC33: =IF(VLOOKUP($B33,Formulacion!$A:$BE,MATCH(AC$1,Formulacion!$1:$1,0),FALSE)="NA",1,IF(N33=0,0,IF(OR(I33/N33<=MObraMin,I33/N33>=MObraMax),MDOmin,1))) -> 1 | AD33: =IF(VLOOKUP($B33,Formulacion!$A:$BE,MATCH(AD$1,Formulacion!$1:$1,0),FALSE)="NA",1,IF(N33<=CostoTotalMin,0,1)) -> 0 | AE33: =IF(VLOOKUP($B33,Formulacion!$A:$BE,MATCH(AE$1,Formulacion!$1:$1,0),FALSE)="NA",1,IF(Q33<=PostesMin,0,1)) -> 0 | AF33: =IF(VLOOKUP($B33,Formulacion!$A:$BE,MATCH(AF$1,Formulacion!$1:$1,0),FALSE)="NA",1,IF(R33<=INDIRECT(VLOOKUP(B33,Formulacion!$A:$BE,2,FALSE)),0,1)) -> 0 | AG33: 0 | AH33: 0 | AJ33: =IF(VLOOKUP($B33,Formulacion!$A:$BE,MATCH(AJ$1,Formulacion!$1:$1,0),FALSE)="NA","NA",HLOOKUP(VLOOKUP($B33,Formulacion!$A:$BE,MATCH(AJ$1,Formulacion!$1:$1,0),FALSE),$Q:$Z,ROW(AJ33),FALSE)) -> SP | AK33: =IF(VLOOKUP($B33,Formulacion!$A:$BE,MATCH(AK$1,Formulacion!$1:$1,0),FALSE)="NA",1,VLOOKUP($B33,Formulacion!$A:$BE,MATCH(AK$1,Formulacion!$1:$1,0),FALSE)) -> 30 | AL33: =IF(VLOOKUP($B33,Formulacion!$A:$BE,MATCH(AL$1,Formulacion!$1:$1,0),FALSE)="NA",1,VLOOKUP($B33,Formulacion!$A:$BE,MATCH(AL$1,Formulacion!$1:$1,0),FALSE)) -> 0.3 | AM33: NC | AN33: =IF(VLOOKUP($B33,Formulacion!$A:$BE,MATCH(AN$1,Formulacion!$1:$1,0),FALSE)="NA","NA",IF(D33=0,"",VLOOKUP($B33,Formulacion!$A:$BE,MATCH(AN$1,Formulacion!$1:$1,0),FALSE))) -> 0206170220032403 | AO33: LABTM1 | AP33: HO | AQ33: 2AL | AR33: 006 | AV33: =IF(VLOOKUP($B33,Formulacion!$A:$BE,MATCH(AV$1,Formulacion!$1:$1,0),FALSE)="NA","NA",VLOOKUP(CONCATENATE(AO33,AP33,AQ33,AR33,AS33,AT33,AU33),ValoresReferenciales!$A:$D,4,FALSE)) -> 18.09655661 | AW33: =IF(VLOOKUP($B33,Formulacion!$A:$BE,MATCH(AW$1,Formulacion!$1:$1,0),FALSE)="NA","NA",HLOOKUP(VLOOKUP($B33,Formulacion!$A:$BE,MATCH(AW$1,Formulacion!$1:$1,0),FALSE),$Q:$Z,ROW(AW33),FALSE)) -> 0 | AX33: 0 | AY33: 1 | AZ33: =IF(VLOOKUP($B33,Formulacion!$A:$BE,MATCH(AZ$1,Formulacion!$1:$1,0),FALSE)="NA",1,VLOOKUP($B33,Formulacion!$A:$BE,MATCH(AZ$1,Formulacion!$1:$1,0),FALSE)) -> 1 | BA33: =IF(VLOOKUP($B33,Formulacion!$A:$BE,MATCH(BA$1,Formulacion!$1:$1,0),FALSE)="NA",1,VLOOKUP($B33,Formulacion!$A:$BE,MATCH(BA$1,Formulacion!$1:$1,0),FALSE)) -> 1 | BB33: 0 | BC33: 13.77
A34: CC-01-AD EDECHI 2011.xls | B34: DLABT | C34: 301012010070258 | D34: DLABTM100010P002HOC3ALA004 | E34: 2011-03-31 | F34: PLAZA DE CAISAN | G34: 10 | H34: 68.24 | I34: 29.37 | J34: 0 | K34: 0 | L34: 0 | M34: 0 | N34: 97.61 | O34: 317 | P34: 0 | Q34: =IF(OR(VLOOKUP($B34,Formulacion!$A:$BE,MATCH(Q$1,Formulacion!$1:$1,0),FALSE)="NA",$D34=0),"NA",IF($B34="DLABT",MID($D34,PosteInicioBT,PosteFinBT-PosteInicioBT+1)*1,MID($D34,PosteInicio,PosteFin-PosteInicio+1)*1)) -> 2 | R34: =IF(OR(VLOOKUP($B34,Formulacion!$A:$BE,MATCH(R$1,Formulacion!$1:$1,0),FALSE)="NA",$D34=0),"NA",IF(OR($B34="DLABT",$B34="DLSBT"),MID($D34,CondInicioBT,CondFinBT-CondInicioBT+1)*1,MID($D34,CondInicio,CondFin-CondInicio+1)*1)) -> 10 | S34: 5 | T34: =IF(OR(VLOOKUP($B34,Formulacion!$A:$BE,MATCH(T$1,Formulacion!$1:$1,0),FALSE)="NA",$D34=0),"NA",IF($B34="DLSBT",MID($D34,ZanjaInicioBT,ZanjaFinBT-ZanjaInicioBT+1)*1,MID($D34,ZanjaInicio,ZanjaFin-ZanjaInicio+1)*1)) -> NA | U34: 1 | V34: =IF(OR(VLOOKUP($B34,Formulacion!$A:$BE,MATCH(V$1,Formulacion!$1:$1,0),FALSE)="NA",$D34=0),"NA",MID($D34,m2Inicio+INDIRECT(B34),m2Fin-m2Inicio+1)*1) -> NA | W34: =IF(OR(VLOOKUP($B34,Formulacion!$A:$BE,MATCH(W$1,Formulacion!$1:$1,0),FALSE)="NA",$D34=0),"NA",RIGHT($D34,4)*1) -> NA | X34: =IF(OR(VLOOKUP($B34,Formulacion!$A:$BE,MATCH(X$1,Formulacion!$1:$1,0),FALSE)="NA",$D34=0),"NA",RIGHT($D34,3)*1) -> NA | Y34: 1 | Z34: =IF(VLOOKUP($B34,Formulacion!$A:$BE,MATCH(Z$1,Formulacion!$1:$1,0),FALSE)="NA",1,IF(V34<=m2Min,0,1)) -> 1 | AA34: =IF(VLOOKUP($B34,Formulacion!$A:$BE,MATCH(AA$1,Formulacion!$1:$1,0),FALSE)="NA",1,IF(OR(E34<=FechaMin,E34>FechaMax),0,1)) -> 1 | AB34: =IF(VLOOKUP($B34,Formulacion!$A:$BE,MATCH(AB$1,Formulacion!$1:$1,0),FALSE)="NA",1,IF(H34<=MaterialesMin,0,1)) -> 1 | AC34: =IF(VLOOKUP($B34,Formulacion!$A:$BE,MATCH(AC$1,Formulacion!$1:$1,0),FALSE)="NA",1,IF(N34=0,0,IF(OR(I34/N34<=MObraMin,I34/N34>=MObraMax),MDOmin,1))) -> 1 | AD34: =IF(VLOOKUP($B34,Formulacion!$A:$BE,MATCH(AD$1,Formulacion!$1:$1,0),FALSE)="NA",1,IF(N34<=CostoTotalMin,0,1)) -> 0 | AE34: =IF(VLOOKUP($B34,Formulacion!$A:$BE,MATCH(AE$1,Formulacion!$1:$1,0),FALSE)="NA",1,IF(Q34<=PostesMin,0,1)) -> 0 | AF34: =IF(VLOOKUP($B34,Formulacion!$A:$BE,MATCH(AF$1,Formulacion!$1:$1,0),FALSE)="NA",1,IF(R34<=INDIRECT(VLOOKUP(B34,Formulacion!$A:$BE,2,FALSE)),0,1)) -> 0 | AG34: 0 | AH34: 0 | AJ34: =IF(VLOOKUP($B34,Formulacion!$A:$BE,MATCH(AJ$1,Formulacion!$1:$1,0),FALSE)="NA","NA",HLOOKUP(VLOOKUP($B34,Formulacion!$A:$BE,MATCH(AJ$1,Formulacion!$1:$1,0),FALSE),$Q:$Z,ROW(AJ34),FALSE)) -> 5 | AK34: =IF(VLOOKUP($B34,Formulacion!$A:$BE,MATCH(AK$1,Formulacion!$1:$1,0),FALSE)="NA",1,VLOOKUP($B34,Formulacion!$A:$BE,MATCH(AK$1,Formulacion!$1:$1,0),FALSE)) -> 30 | AL34: =IF(VLOOKUP($B34,Formulacion!$A:$BE,MATCH(AL$1,Formulacion!$1:$1,0),FALSE)="NA",1,VLOOKUP($B34,Formulacion!$A:$BE,MATCH(AL$1,Formulacion!$1:$1,0),FALSE)) -> 0.3 | AM34: CU | AN34: =IF(VLOOKUP($B34,Formulacion!$A:$BE,MATCH(AN$1,Formulacion!$1:$1,0),FALSE)="NA","NA",IF(D34=0,"",VLOOKUP($B34,Formulacion!$A:$BE,MATCH(AN$1,Formulacion!$1:$1,0),FALSE))) -> 0206170220032403 | AO34: LABTM1 | AP34: HO | AQ34: 3AL | AR34: 004 | AV34: =IF(VLOOKUP($B34,Formulacion!$A:$BE,MATCH(AV$1,Formulacion!$1:$1,0),FALSE)="NA","NA",VLOOKUP(CONCATENATE(AO34,AP34,AQ34,AR34,AS34,AT34,AU34),ValoresReferenciales!$A:$D,4,FALSE)) -> 15.2002247 | AW34: =IF(VLOOKUP($B34,Formulacion!$A:$BE,MATCH(AW$1,Formulacion!$1:$1,0),FALSE)="NA","NA",HLOOKUP(VLOOKUP($B34,Formulacion!$A:$BE,MATCH(AW$1,Formulacion!$1:$1,0),FALSE),$Q:$Z,ROW(AW34),FALSE)) -> 10 | AX34: 9.761 | AY34: 1 | AZ34: =IF(VLOOKUP($B34,Formulacion!$A:$BE,MATCH(AZ$1,Formulacion!$1:$1,0),FALSE)="NA",1,VLOOKUP($B34,Formulacion!$A:$BE,MATCH(AZ$1,Formulacion!$1:$1,0),FALSE)) -> 1 | BA34: =IF(VLOOKUP($B34,Formulacion!$A:$BE,MATCH(BA$1,Formulacion!$1:$1,0),FALSE)="NA",1,VLOOKUP($B34,Formulacion!$A:$BE,MATCH(BA$1,Formulacion!$1:$1,0),FALSE)) -> 1 | BB34: 0 | BC34: 97.61
A35: CC-01-AD EDECHI 2011.xls | B35: DLABT | C35: 301012010070258 | D35: DLABTM100286P002HOC3ALA002 | E35: 2011-03-31 | F35: PLAZA DE CAISAN | G35: 286 | H35: 1951.77 | I35: 839.85 | J35: 0 | K35: 0 | L35: 0 | M35: 0 | N35: 2791.62 | O35: 318 | P35: 0 | Q35: =IF(OR(VLOOKUP($B35,Formulacion!$A:$BE,MATCH(Q$1,Formulacion!$1:$1,0),FALSE)="NA",$D35=0),"NA",IF($B35="DLABT",MID($D35,PosteInicioBT,PosteFinBT-PosteInicioBT+1)*1,MID($D35,PosteInicio,PosteFin-PosteInicio+1)*1)) -> 2 | R35: =IF(OR(VLOOKUP($B35,Formulacion!$A:$BE,MATCH(R$1,Formulacion!$1:$1,0),FALSE)="NA",$D35=0),"NA",IF(OR($B35="DLABT",$B35="DLSBT"),MID($D35,CondInicioBT,CondFinBT-CondInicioBT+1)*1,MID($D35,CondInicio,CondFin-CondInicio+1)*1)) -> 286 | S35: 143 | T35: =IF(OR(VLOOKUP($B35,Formulacion!$A:$BE,MATCH(T$1,Formulacion!$1:$1,0),FALSE)="NA",$D35=0),"NA",IF($B35="DLSBT",MID($D35,ZanjaInicioBT,ZanjaFinBT-ZanjaInicioBT+1)*1,MID($D35,ZanjaInicio,ZanjaFin-ZanjaInicio+1)*1)) -> NA | U35: 1 | V35: =IF(OR(VLOOKUP($B35,Formulacion!$A:$BE,MATCH(V$1,Formulacion!$1:$1,0),FALSE)="NA",$D35=0),"NA",MID($D35,m2Inicio+INDIRECT(B35),m2Fin-m2Inicio+1)*1) -> NA | W35: =IF(OR(VLOOKUP($B35,Formulacion!$A:$BE,MATCH(W$1,Formulacion!$1:$1,0),FALSE)="NA",$D35=0),"NA",RIGHT($D35,4)*1) -> NA | X35: =IF(OR(VLOOKUP($B35,Formulacion!$A:$BE,MATCH(X$1,Formulacion!$1:$1,0),FALSE)="NA",$D35=0),"NA",RIGHT($D35,3)*1) -> NA | Y35: 1 | Z35: =IF(VLOOKUP($B35,Formulacion!$A:$BE,MATCH(Z$1,Formulacion!$1:$1,0),FALSE)="NA",1,IF(V35<=m2Min,0,1)) -> 1 | AA35: =IF(VLOOKUP($B35,Formulacion!$A:$BE,MATCH(AA$1,Formulacion!$1:$1,0),FALSE)="NA",1,IF(OR(E35<=FechaMin,E35>FechaMax),0,1)) -> 1 | AB35: =IF(VLOOKUP($B35,Formulacion!$A:$BE,MATCH(AB$1,Formulacion!$1:$1,0),FALSE)="NA",1,IF(H35<=MaterialesMin,0,1)) -> 1 | AC35: =IF(VLOOKUP($B35,Formulacion!$A:$BE,MATCH(AC$1,Formulacion!$1:$1,0),FALSE)="NA",1,IF(N35=0,0,IF(OR(I35/N35<=MObraMin,I35/N35>=MObraMax),MDOmin,1))) -> 1 | AD35: =IF(VLOOKUP($B35,Formulacion!$A:$BE,MATCH(AD$1,Formulacion!$1:$1,0),FALSE)="NA",1,IF(N35<=CostoTotalMin,0,1)) -> 1 | AE35: =IF(VLOOKUP($B35,Formulacion!$A:$BE,MATCH(AE$1,Formulacion!$1:$1,0),FALSE)="NA",1,IF(Q35<=PostesMin,0,1)) -> 0 | AF35: =IF(VLOOKUP($B35,Formulacion!$A:$BE,MATCH(AF$1,Formulacion!$1:$1,0),FALSE)="NA",1,IF(R35<=INDIRECT(VLOOKUP(B35,Formulacion!$A:$BE,2,FALSE)),0,1)) -> 1 | AG35: 1 | AH35: 2791.62 | AJ35: =IF(VLOOKUP($B35,Formulacion!$A:$BE,MATCH(AJ$1,Formulacion!$1:$1,0),FALSE)="NA","NA",HLOOKUP(VLOOKUP($B35,Formulacion!$A:$BE,MATCH(AJ$1,Formulacion!$1:$1,0),FALSE),$Q:$Z,ROW(AJ35),FALSE)) -> 143 | AK35: =IF(VLOOKUP($B35,Formulacion!$A:$BE,MATCH(AK$1,Formulacion!$1:$1,0),FALSE)="NA",1,VLOOKUP($B35,Formulacion!$A:$BE,MATCH(AK$1,Formulacion!$1:$1,0),FALSE)) -> 30 | AL35: =IF(VLOOKUP($B35,Formulacion!$A:$BE,MATCH(AL$1,Formulacion!$1:$1,0),FALSE)="NA",1,VLOOKUP($B35,Formulacion!$A:$BE,MATCH(AL$1,Formulacion!$1:$1,0),FALSE)) -> 0.3 | AM35: NC | AN35: =IF(VLOOKUP($B35,Formulacion!$A:$BE,MATCH(AN$1,Formulacion!$1:$1,0),FALSE)="NA","NA",IF(D35=0,"",VLOOKUP($B35,Formulacion!$A:$BE,MATCH(AN$1,Formulacion!$1:$1,0),FALSE))) -> 0206170220032403 | AO35: LABTM1 | AP35: HO | AQ35: 3AL | AR35: 002 | AV35: =IF(VLOOKUP($B35,Formulacion!$A:$BE,MATCH(AV$1,Formulacion!$1:$1,0),FALSE)="NA","NA",VLOOKUP(CONCATENATE(AO35,AP35,AQ35,AR35,AS35,AT35,AU35),ValoresReferenciales!$A:$D,4,FALSE)) -> 15.63451684 | AW35: =IF(VLOOKUP($B35,Formulacion!$A:$BE,MATCH(AW$1,Formulacion!$1:$1,0),FALSE)="NA","NA",HLOOKUP(VLOOKUP($B35,Formulacion!$A:$BE,MATCH(AW$1,Formulacion!$1:$1,0),FALSE),$Q:$Z,ROW(AW35),FALSE)) -> 286 | AX35: 9.760909091 | AY35: 1 | AZ35: =IF(VLOOKUP($B35,Formulacion!$A:$BE,MATCH(AZ$1,Formulacion!$1:$1,0),FALSE)="NA",1,VLOOKUP($B35,Formulacion!$A:$BE,MATCH(AZ$1,Formulacion!$1:$1,0),FALSE)) -> 1 | BA35: =IF(VLOOKUP($B35,Formulacion!$A:$BE,MATCH(BA$1,Formulacion!$1:$1,0),FALSE)="NA",1,VLOOKUP($B35,Formulacion!$A:$BE,MATCH(BA$1,Formulacion!$1:$1,0),FALSE)) -> 1 | BB35: 2791.62 | BC35: 2791.62
A36: CC-01-AD EDECHI 2011.xls | B36: DLABT | C36: 301012010070356 | D36: DLABTM100165P001HOC3ALA1/0 | E36: 2011-05-10 | F36: JACU | G36: 165 | H36: 988.45 | I36: 561.07 | J36: 0 | K36: 243.83 | L36: 0 | M36: 0 | N36: 1793.35 | O36: 305 | P36: 0 | Q36: =IF(OR(VLOOKUP($B36,Formulacion!$A:$BE,MATCH(Q$1,Formulacion!$1:$1,0),FALSE)="NA",$D36=0),"NA",IF($B36="DLABT",MID($D36,PosteInicioBT,PosteFinBT-PosteInicioBT+1)*1,MID($D36,PosteInicio,PosteFin-PosteInicio+1)*1)) -> 1 | R36: =IF(OR(VLOOKUP($B36,Formulacion!$A:$BE,MATCH(R$1,Formulacion!$1:$1,0),FALSE)="NA",$D36=0),"NA",IF(OR($B36="DLABT",$B36="DLSBT"),MID($D36,CondInicioBT,CondFinBT-CondInicioBT+1)*1,MID($D36,CondInicio,CondFin-CondInicio+1)*1)) -> 165 | S36: 165 | T36: =IF(OR(VLOOKUP($B36,Formulacion!$A:$BE,MATCH(T$1,Formulacion!$1:$1,0),FALSE)="NA",$D36=0),"NA",IF($B36="DLSBT",MID($D36,ZanjaInicioBT,ZanjaFinBT-ZanjaInicioBT+1)*1,MID($D36,ZanjaInicio,ZanjaFin-ZanjaInicio+1)*1)) -> NA | U36: 1 | V36: =IF(OR(VLOOKUP($B36,Formulacion!$A:$BE,MATCH(V$1,Formulacion!$1:$1,0),FALSE)="NA",$D36=0),"NA",MID($D36,m2Inicio+INDIRECT(B36),m2Fin-m2Inicio+1)*1) -> NA | W36: =IF(OR(VLOOKUP($B36,Formulacion!$A:$BE,MATCH(W$1,Formulacion!$1:$1,0),FALSE)="NA",$D36=0),"NA",RIGHT($D36,4)*1) -> NA | X36: =IF(OR(VLOOKUP($B36,Formulacion!$A:$BE,MATCH(X$1,Formulacion!$1:$1,0),FALSE)="NA",$D36=0),"NA",RIGHT($D36,3)*1) -> NA | Y36: 1 | Z36: =IF(VLOOKUP($B36,Formulacion!$A:$BE,MATCH(Z$1,Formulacion!$1:$1,0),FALSE)="NA",1,IF(V36<=m2Min,0,1)) -> 1 | AA36: =IF(VLOOKUP($B36,Formulacion!$A:$BE,MATCH(AA$1,Formulacion!$1:$1,0),FALSE)="NA",1,IF(OR(E36<=FechaMin,E36>FechaMax),0,1)) -> 1 | AB36: =IF(VLOOKUP($B36,Formulacion!$A:$BE,MATCH(AB$1,Formulacion!$1:$1,0),FALSE)="NA",1,IF(H36<=MaterialesMin,0,1)) -> 1 | AC36: =IF(VLOOKUP($B36,Formulacion!$A:$BE,MATCH(AC$1,Formulacion!$1:$1,0),FALSE)="NA",1,IF(N36=0,0,IF(OR(I36/N36<=MObraMin,I36/N36>=MObraMax),MDOmin,1))) -> 1 | AD36: =IF(VLOOKUP($B36,Formulacion!$A:$BE,MATCH(AD$1,Formulacion!$1:$1,0),FALSE)="NA",1,IF(N36<=CostoTotalMin,0,1)) -> 1 | AE36: =IF(VLOOKUP($B36,Formulacion!$A:$BE,MATCH(AE$1,Formulacion!$1:$1,0),FALSE)="NA",1,IF(Q36<=PostesMin,0,1)) -> 0 | AF36: =IF(VLOOKUP($B36,Formulacion!$A:$BE,MATCH(AF$1,Formulacion!$1:$1,0),FALSE)="NA",1,IF(R36<=INDIRECT(VLOOKUP(B36,Formulacion!$A:$BE,2,FALSE)),0,1)) -> 1 | AG36: 1 | AH36: 1793.35 | AJ36: =IF(VLOOKUP($B36,Formulacion!$A:$BE,MATCH(AJ$1,Formulacion!$1:$1,0),FALSE)="NA","NA",HLOOKUP(VLOOKUP($B36,Formulacion!$A:$BE,MATCH(AJ$1,Formulacion!$1:$1,0),FALSE),$Q:$Z,ROW(AJ36),FALSE)) -> 165 | AK36: =IF(VLOOKUP($B36,Formulacion!$A:$BE,MATCH(AK$1,Formulacion!$1:$1,0),FALSE)="NA",1,VLOOKUP($B36,Formulacion!$A:$BE,MATCH(AK$1,Formulacion!$1:$1,0),FALSE)) -> 30 | AL36: =IF(VLOOKUP($B36,Formulacion!$A:$BE,MATCH(AL$1,Formulacion!$1:$1,0),FALSE)="NA",1,VLOOKUP($B36,Formulacion!$A:$BE,MATCH(AL$1,Formulacion!$1:$1,0),FALSE)) -> 0.3 | AM36: NC | AN36: =IF(VLOOKUP($B36,Formulacion!$A:$BE,MATCH(AN$1,Formulacion!$1:$1,0),FALSE)="NA","NA",IF(D36=0,"",VLOOKUP($B36,Formulacion!$A:$BE,MATCH(AN$1,Formulacion!$1:$1,0),FALSE))) -> 0206170220032403 | AO36: LABTM1 | AP36: HO | AQ36: 3AL | AR36: 1/0 | AV36: =IF(VLOOKUP($B36,Formulacion!$A:$BE,MATCH(AV$1,Formulacion!$1:$1,0),FALSE)="NA","NA",VLOOKUP(CONCATENATE(AO36,AP36,AQ36,AR36,AS36,AT36,AU36),ValoresReferenciales!$A:$D,4,FALSE)) -> 17.37168537 | AW36: =IF(VLOOKUP($B36,Formulacion!$A:$BE,MATCH(AW$1,Formulacion!$1:$1,0),FALSE)="NA","NA",HLOOKUP(VLOOKUP($B36,Formulacion!$A:$BE,MATCH(AW$1,Formulacion!$1:$1,0),FALSE),$Q:$Z,ROW(AW36),FALSE)) -> 165 | AX36: 10.86878788 | AY36: 1 | AZ36: =IF(VLOOKUP($B36,Formulacion!$A:$BE,MATCH(AZ$1,Formulacion!$1:$1,0),FALSE)="NA",1,VLOOKUP($B36,Formulacion!$A:$BE,MATCH(AZ$1,Formulacion!$1:$1,0),FALSE)) -> 1 | BA36: =IF(VLOOKUP($B36,Formulacion!$A:$BE,MATCH(BA$1,Formulacion!$1:$1,0),FALSE)="NA",1,VLOOKUP($B36,Formulacion!$A:$BE,MATCH(BA$1,Formulacion!$1:$1,0),FALSE)) -> 1 | BB36: 1793.35 | BC36: 1793.35
A37: CC-01-AD EDECHI 2011.xls | B37: DLABT | C37: 301012010070598 | D37: DLABTM100010P001HOC3ALA006 | E37: 2011-01-20 | F37: DOLEGA (CABECER | G37: 10 | H37: 55.83 | I37: 25.28 | J37: 0 | K37: 10.55 | L37: 0 | M37: 0 | N37: 91.66 | O37: 381 | P37: 0 | Q37: =IF(OR(VLOOKUP($B37,Formulacion!$A:$BE,MATCH(Q$1,Formulacion!$1:$1,0),FALSE)="NA",$D37=0),"NA",IF($B37="DLABT",MID($D37,PosteInicioBT,PosteFinBT-PosteInicioBT+1)*1,MID($D37,PosteInicio,PosteFin-PosteInicio+1)*1)) -> 1 | R37: =IF(OR(VLOOKUP($B37,Formulacion!$A:$BE,MATCH(R$1,Formulacion!$1:$1,0),FALSE)="NA",$D37=0),"NA",IF(OR($B37="DLABT",$B37="DLSBT"),MID($D37,CondInicioBT,CondFinBT-CondInicioBT+1)*1,MID($D37,CondInicio,CondFin-CondInicio+1)*1)) -> 10 | S37: 10 | T37: =IF(OR(VLOOKUP($B37,Formulacion!$A:$BE,MATCH(T$1,Formulacion!$1:$1,0),FALSE)="NA",$D37=0),"NA",IF($B37="DLSBT",MID($D37,ZanjaInicioBT,ZanjaFinBT-ZanjaInicioBT+1)*1,MID($D37,ZanjaInicio,ZanjaFin-ZanjaInicio+1)*1)) -> NA | U37: 1 | V37: =IF(OR(VLOOKUP($B37,Formulacion!$A:$BE,MATCH(V$1,Formulacion!$1:$1,0),FALSE)="NA",$D37=0),"NA",MID($D37,m2Inicio+INDIRECT(B37),m2Fin-m2Inicio+1)*1) -> NA | W37: =IF(OR(VLOOKUP($B37,Formulacion!$A:$BE,MATCH(W$1,Formulacion!$1:$1,0),FALSE)="NA",$D37=0),"NA",RIGHT($D37,4)*1) -> NA | X37: =IF(OR(VLOOKUP($B37,Formulacion!$A:$BE,MATCH(X$1,Formulacion!$1:$1,0),FALSE)="NA",$D37=0),"NA",RIGHT($D37,3)*1) -> NA | Y37: 1 | Z37: =IF(VLOOKUP($B37,Formulacion!$A:$BE,MATCH(Z$1,Formulacion!$1:$1,0),FALSE)="NA",1,IF(V37<=m2Min,0,1)) -> 1 | AA37: =IF(VLOOKUP($B37,Formulacion!$A:$BE,MATCH(AA$1,Formulacion!$1:$1,0),FALSE)="NA",1,IF(OR(E37<=FechaMin,E37>FechaMax),0,1)) -> 1 | AB37: =IF(VLOOKUP($B37,Formulacion!$A:$BE,MATCH(AB$1,Formulacion!$1:$1,0),FALSE)="NA",1,IF(H37<=MaterialesMin,0,1)) -> 1 | AC37: =IF(VLOOKUP($B37,Formulacion!$A:$BE,MATCH(AC$1,Formulacion!$1:$1,0),FALSE)="NA",1,IF(N37=0,0,IF(OR(I37/N37<=MObraMin,I37/N37>=MObraMax),MDOmin,1))) -> 1 | AD37: =IF(VLOOKUP($B37,Formulacion!$A:$BE,MATCH(AD$1,Formulacion!$1:$1,0),FALSE)="NA",1,IF(N37<=CostoTotalMin,0,1)) -> 0 | AE37: =IF(VLOOKUP($B37,Formulacion!$A:$BE,MATCH(AE$1,Formulacion!$1:$1,0),FALSE)="NA",1,IF(Q37<=PostesMin,0,1)) -> 0 | AF37: =IF(VLOOKUP($B37,Formulacion!$A:$BE,MATCH(AF$1,Formulacion!$1:$1,0),FALSE)="NA",1,IF(R37<=INDIRECT(VLOOKUP(B37,Formulacion!$A:$BE,2,FALSE)),0,1)) -> 0 | AG37: 0 | AH37: 0 | AJ37: =IF(VLOOKUP($B37,Formulacion!$A:$BE,MATCH(AJ$1,Formulacion!$1:$1,0),FALSE)="NA","NA",HLOOKUP(VLOOKUP($B37,Formulacion!$A:$BE,MATCH(AJ$1,Formulacion!$1:$1,0),FALSE),$Q:$Z,ROW(AJ37),FALSE)) -> 10 | AK37: =IF(VLOOKUP($B37,Formulacion!$A:$BE,MATCH(AK$1,Formulacion!$1:$1,0),FALSE)="NA",1,VLOOKUP($B37,Formulacion!$A:$BE,MATCH(AK$1,Formulacion!$1:$1,0),FALSE)) -> 30 | AL37: =IF(VLOOKUP($B37,Formulacion!$A:$BE,MATCH(AL$1,Formulacion!$1:$1,0),FALSE)="NA",1,VLOOKUP($B37,Formulacion!$A:$BE,MATCH(AL$1,Formulacion!$1:$1,0),FALSE)) -> 0.3 | AM37: CU | AN37: =IF(VLOOKUP($B37,Formulacion!$A:$BE,MATCH(AN$1,Formulacion!$1:$1,0),FALSE)="NA","NA",IF(D37=0,"",VLOOKUP($B37,Formulacion!$A:$BE,MATCH(AN$1,Formulacion!$1:$1,0),FALSE))) -> 0206170220032403 | AO37: LABTM1 | AP37: HO | AQ37: 3AL | AR37: 006 | AV37: =IF(VLOOKUP($B37,Formulacion!$A:$BE,MATCH(AV$1,Formulacion!$1:$1,0),FALSE)="NA","NA",VLOOKUP(CONCATENATE(AO37,AP37,AQ37,AR37,AS37,AT37,AU37),ValoresReferenciales!$A:$D,4,FALSE)) -> 14.76593257 | AW37: =IF(VLOOKUP($B37,Formulacion!$A:$BE,MATCH(AW$1,Formulacion!$1:$1,0),FALSE)="NA","NA",HLOOKUP(VLOOKUP($B37,Formulacion!$A:$BE,MATCH(AW$1,Formulacion!$1:$1,0),FALSE),$Q:$Z,ROW(AW37),FALSE)) -> 10 | AX37: 9.166 | AY37: 1 | AZ37: =IF(VLOOKUP($B37,Formulacion!$A:$BE,MATCH(AZ$1,Formulacion!$1:$1,0),FALSE)="NA",1,VLOOKUP($B37,Formulacion!$A:$BE,MATCH(AZ$1,Formulacion!$1:$1,0),FALSE)) -> 1 | BA37: =IF(VLOOKUP($B37,Formulacion!$A:$BE,MATCH(BA$1,Formulacion!$1:$1,0),FALSE)="NA",1,VLOOKUP($B37,Formulacion!$A:$BE,MATCH(BA$1,Formulacion!$1:$1,0),FALSE)) -> 1 | BB37: 0 | BC37: 91.66
A38: CC-01-AD EDECHI 2011.xls | B38: DLABT | C38: 301012010070598 | D38: DLABTM100221P001HOC3ALA002 | E38: 2011-01-20 | F38: DOLEGA (CABECER | G38: 221 | H38: 1233.59 | I38: 558.69 | J38: 0 | K38: 233.28 | L38: 0 | M38: 0 | N38: 2025.56 | O38: 382 | P38: 0 | Q38: =IF(OR(VLOOKUP($B38,Formulacion!$A:$BE,MATCH(Q$1,Formulacion!$1:$1,0),FALSE)="NA",$D38=0),"NA",IF($B38="DLABT",MID($D38,PosteInicioBT,PosteFinBT-PosteInicioBT+1)*1,MID($D38,PosteInicio,PosteFin-PosteInicio+1)*1)) -> 1 | R38: =IF(OR(VLOOKUP($B38,Formulacion!$A:$BE,MATCH(R$1,Formulacion!$1:$1,0),FALSE)="NA",$D38=0),"NA",IF(OR($B38="DLABT",$B38="DLSBT"),MID($D38,CondInicioBT,CondFinBT-CondInicioBT+1)*1,MID($D38,CondInicio,CondFin-CondInicio+1)*1)) -> 221 | S38: 221 | T38: =IF(OR(VLOOKUP($B38,Formulacion!$A:$BE,MATCH(T$1,Formulacion!$1:$1,0),FALSE)="NA",$D38=0),"NA",IF($B38="DLSBT",MID($D38,ZanjaInicioBT,ZanjaFinBT-ZanjaInicioBT+1)*1,MID($D38,ZanjaInicio,ZanjaFin-ZanjaInicio+1)*1)) -> NA | U38: 1 | V38: =IF(OR(VLOOKUP($B38,Formulacion!$A:$BE,MATCH(V$1,Formulacion!$1:$1,0),FALSE)="NA",$D38=0),"NA",MID($D38,m2Inicio+INDIRECT(B38),m2Fin-m2Inicio+1)*1) -> NA | W38: =IF(OR(VLOOKUP($B38,Formulacion!$A:$BE,MATCH(W$1,Formulacion!$1:$1,0),FALSE)="NA",$D38=0),"NA",RIGHT($D38,4)*1) -> NA | X38: =IF(OR(VLOOKUP($B38,Formulacion!$A:$BE,MATCH(X$1,Formulacion!$1:$1,0),FALSE)="NA",$D38=0),"NA",RIGHT($D38,3)*1) -> NA | Y38: 1 | Z38: =IF(VLOOKUP($B38,Formulacion!$A:$BE,MATCH(Z$1,Formulacion!$1:$1,0),FALSE)="NA",1,IF(V38<=m2Min,0,1)) -> 1 | AA38: =IF(VLOOKUP($B38,Formulacion!$A:$BE,MATCH(AA$1,Formulacion!$1:$1,0),FALSE)="NA",1,IF(OR(E38<=FechaMin,E38>FechaMax),0,1)) -> 1 | AB38: =IF(VLOOKUP($B38,Formulacion!$A:$BE,MATCH(AB$1,Formulacion!$1:$1,0),FALSE)="NA",1,IF(H38<=MaterialesMin,0,1)) -> 1 | AC38: =IF(VLOOKUP($B38,Formulacion!$A:$BE,MATCH(AC$1,Formulacion!$1:$1,0),FALSE)="NA",1,IF(N38=0,0,IF(OR(I38/N38<=MObraMin,I38/N38>=MObraMax),MDOmin,1))) -> 1 | AD38: =IF(VLOOKUP($B38,Formulacion!$A:$BE,MATCH(AD$1,Formulacion!$1:$1,0),FALSE)="NA",1,IF(N38<=CostoTotalMin,0,1)) -> 1 | AE38: =IF(VLOOKUP($B38,Formulacion!$A:$BE,MATCH(AE$1,Formulacion!$1:$1,0),FALSE)="NA",1,IF(Q38<=PostesMin,0,1)) -> 0 | AF38: =IF(VLOOKUP($B38,Formulacion!$A:$BE,MATCH(AF$1,Formulacion!$1:$1,0),FALSE)="NA",1,IF(R38<=INDIRECT(VLOOKUP(B38,Formulacion!$A:$BE,2,FALSE)),0,1)) -> 1 | AG38: 1 | AH38: 2025.56 | AJ38: =IF(VLOOKUP($B38,Formulacion!$A:$BE,MATCH(AJ$1,Formulacion!$1:$1,0),FALSE)="NA","NA",HLOOKUP(VLOOKUP($B38,Formulacion!$A:$BE,MATCH(AJ$1,Formulacion!$1:$1,0),FALSE),$Q:$Z,ROW(AJ38),FALSE)) -> 221 | AK38: =IF(VLOOKUP($B38,Formulacion!$A:$BE,MATCH(AK$1,Formulacion!$1:$1,0),FALSE)="NA",1,VLOOKUP($B38,Formulacion!$A:$BE,MATCH(AK$1,Formulacion!$1:$1,0),FALSE)) -> 30 | AL38: =IF(VLOOKUP($B38,Formulacion!$A:$BE,MATCH(AL$1,Formulacion!$1:$1,0),FALSE)="NA",1,VLOOKUP($B38,Formulacion!$A:$BE,MATCH(AL$1,Formulacion!$1:$1,0),FALSE)) -> 0.3 | AM38: NC | AN38: =IF(VLOOKUP($B38,Formulacion!$A:$BE,MATCH(AN$1,Formulacion!$1:$1,0),FALSE)="NA","NA",IF(D38=0,"",VLOOKUP($B38,Formulacion!$A:$BE,MATCH(AN$1,Formulacion!$1:$1,0),FALSE))) -> 0206170220032403 | AO38: LABTM1 | AP38: HO | AQ38: 3AL | AR38: 002 | AV38: =IF(VLOOKUP($B38,Formulacion!$A:$BE,MATCH(AV$1,Formulacion!$1:$1,0),FALSE)="NA","NA",VLOOKUP(CONCATENATE(AO38,AP38,AQ38,AR38,AS38,AT38,AU38),ValoresReferenciales!$A:$D,4,FALSE)) -> 15.63451684 | AW38: =IF(VLOOKUP($B38,Formulacion!$A:$BE,MATCH(AW$1,Formulacion!$1:$1,0),FALSE)="NA","NA",HLOOKUP(VLOOKUP($B38,Formulacion!$A:$BE,MATCH(AW$1,Formulacion!$1:$1,0),FALSE),$Q:$Z,ROW(AW38),FALSE)) -> 221 | AX38: 9.165429864 | AY38: 1 | AZ38: =IF(VLOOKUP($B38,Formulacion!$A:$BE,MATCH(AZ$1,Formulacion!$1:$1,0),FALSE)="NA",1,VLOOKUP($B38,Formulacion!$A:$BE,MATCH(AZ$1,Formulacion!$1:$1,0),FALSE)) -> 1 | BA38: =IF(VLOOKUP($B38,Formulacion!$A:$BE,MATCH(BA$1,Formulacion!$1:$1,0),FALSE)="NA",1,VLOOKUP($B38,Formulacion!$A:$BE,MATCH(BA$1,Formulacion!$1:$1,0),FALSE)) -> 1 | BB38: 2025.56 | BC38: 2025.56
A39: CC-01-AD EDECHI 2011.xls | B39: DLABT | C39: 301012010070681 | D39: DLABTM100008P000HOC3ALA006 | E39: 2011-04-05 | F39: BAJO CHIRIQUI-B | G39: 8 | H39: 41.87 | I39: 41.12 | J39: 0 | K39: 0 | L39: 0 | M39: 0 | N39: 82.99 | O39: 915 | P39: 0 | Q39: =IF(OR(VLOOKUP($B39,Formulacion!$A:$BE,MATCH(Q$1,Formulacion!$1:$1,0),FALSE)="NA",$D39=0),"NA",IF($B39="DLABT",MID($D39,PosteInicioBT,PosteFinBT-PosteInicioBT+1)*1,MID($D39,PosteInicio,PosteFin-PosteInicio+1)*1)) -> 0 | R39: =IF(OR(VLOOKUP($B39,Formulacion!$A:$BE,MATCH(R$1,Formulacion!$1:$1,0),FALSE)="NA",$D39=0),"NA",IF(OR($B39="DLABT",$B39="DLSBT"),MID($D39,CondInicioBT,CondFinBT-CondInicioBT+1)*1,MID($D39,CondInicio,CondFin-CondInicio+1)*1)) -> 8 | S39: SP | T39: =IF(OR(VLOOKUP($B39,Formulacion!$A:$BE,MATCH(T$1,Formulacion!$1:$1,0),FALSE)="NA",$D39=0),"NA",IF($B39="DLSBT",MID($D39,ZanjaInicioBT,ZanjaFinBT-ZanjaInicioBT+1)*1,MID($D39,ZanjaInicio,ZanjaFin-ZanjaInicio+1)*1)) -> NA | U39: 1 | V39: =IF(OR(VLOOKUP($B39,Formulacion!$A:$BE,MATCH(V$1,Formulacion!$1:$1,0),FALSE)="NA",$D39=0),"NA",MID($D39,m2Inicio+INDIRECT(B39),m2Fin-m2Inicio+1)*1) -> NA | W39: =IF(OR(VLOOKUP($B39,Formulacion!$A:$BE,MATCH(W$1,Formulacion!$1:$1,0),FALSE)="NA",$D39=0),"NA",RIGHT($D39,4)*1) -> NA | X39: =IF(OR(VLOOKUP($B39,Formulacion!$A:$BE,MATCH(X$1,Formulacion!$1:$1,0),FALSE)="NA",$D39=0),"NA",RIGHT($D39,3)*1) -> NA | Y39: 1 | Z39: =IF(VLOOKUP($B39,Formulacion!$A:$BE,MATCH(Z$1,Formulacion!$1:$1,0),FALSE)="NA",1,IF(V39<=m2Min,0,1)) -> 1 | AA39: =IF(VLOOKUP($B39,Formulacion!$A:$BE,MATCH(AA$1,Formulacion!$1:$1,0),FALSE)="NA",1,IF(OR(E39<=FechaMin,E39>FechaMax),0,1)) -> 1 | AB39: =IF(VLOOKUP($B39,Formulacion!$A:$BE,MATCH(AB$1,Formulacion!$1:$1,0),FALSE)="NA",1,IF(H39<=MaterialesMin,0,1)) -> 1 | AC39: =IF(VLOOKUP($B39,Formulacion!$A:$BE,MATCH(AC$1,Formulacion!$1:$1,0),FALSE)="NA",1,IF(N39=0,0,IF(OR(I39/N39<=MObraMin,I39/N39>=MObraMax),MDOmin,1))) -> 1 | AD39: =IF(VLOOKUP($B39,Formulacion!$A:$BE,MATCH(AD$1,Formulacion!$1:$1,0),FALSE)="NA",1,IF(N39<=CostoTotalMin,0,1)) -> 0 | AE39: =IF(VLOOKUP($B39,Formulacion!$A:$BE,MATCH(AE$1,Formulacion!$1:$1,0),FALSE)="NA",1,IF(Q39<=PostesMin,0,1)) -> 0 | AF39: =IF(VLOOKUP($B39,Formulacion!$A:$BE,MATCH(AF$1,Formulacion!$1:$1,0),FALSE)="NA",1,IF(R39<=INDIRECT(VLOOKUP(B39,Formulacion!$A:$BE,2,FALSE)),0,1)) -> 0 | AG39: 0 | AH39: 0 | AJ39: =IF(VLOOKUP($B39,Formulacion!$A:$BE,MATCH(AJ$1,Formulacion!$1:$1,0),FALSE)="NA","NA",HLOOKUP(VLOOKUP($B39,Formulacion!$A:$BE,MATCH(AJ$1,Formulacion!$1:$1,0),FALSE),$Q:$Z,ROW(AJ39),FALSE)) -> SP | AK39: =IF(VLOOKUP($B39,Formulacion!$A:$BE,MATCH(AK$1,Formulacion!$1:$1,0),FALSE)="NA",1,VLOOKUP($B39,Formulacion!$A:$BE,MATCH(AK$1,Formulacion!$1:$1,0),FALSE)) -> 30 | AL39: =IF(VLOOKUP($B39,Formulacion!$A:$BE,MATCH(AL$1,Formulacion!$1:$1,0),FALSE)="NA",1,VLOOKUP($B39,Formulacion!$A:$BE,MATCH(AL$1,Formulacion!$1:$1,0),FALSE)) -> 0.3 | AM39: NC | AN39: =IF(VLOOKUP($B39,Formulacion!$A:$BE,MATCH(AN$1,Formulacion!$1:$1,0),FALSE)="NA","NA",IF(D39=0,"",VLOOKUP($B39,Formulacion!$A:$BE,MATCH(AN$1,Formulacion!$1:$1,0),FALSE))) -> 0206170220032403 | AO39: LABTM1 | AP39: HO | AQ39: 3AL | AR39: 006 | AV39: =IF(VLOOKUP($B39,Formulacion!$A:$BE,MATCH(AV$1,Formulacion!$1:$1,0),FALSE)="NA","NA",VLOOKUP(CONCATENATE(AO39,AP39,AQ39,AR39,AS39,AT39,AU39),ValoresReferenciales!$A:$D,4,FALSE)) -> 14.76593257 | AW39: =IF(VLOOKUP($B39,Formulacion!$A:$BE,MATCH(AW$1,Formulacion!$1:$1,0),FALSE)="NA","NA",HLOOKUP(VLOOKUP($B39,Formulacion!$A:$BE,MATCH(AW$1,Formulacion!$1:$1,0),FALSE),$Q:$Z,ROW(AW39),FALSE)) -> 8 | AX39: 10.37375 | AY39: 1 | AZ39: =IF(VLOOKUP($B39,Formulacion!$A:$BE,MATCH(AZ$1,Formulacion!$1:$1,0),FALSE)="NA",1,VLOOKUP($B39,Formulacion!$A:$BE,MATCH(AZ$1,Formulacion!$1:$1,0),FALSE)) -> 1 | BA39: =IF(VLOOKUP($B39,Formulacion!$A:$BE,MATCH(BA$1,Formulacion!$1:$1,0),FALSE)="NA",1,VLOOKUP($B39,Formulacion!$A:$BE,MATCH(BA$1,Formulacion!$1:$1,0),FALSE)) -> 1 | BB39: 0 | BC39: 82.99
A40: CC-01-AD EDECHI 2011.xls | B40: DLABT | C40: 301012010070684 | D40: DLABTM100001P001HOC3ALA1/0 | E40: 2011-06-15 | F40: LAS MERCEDES | G40: 1 | H40: 7.43 | I40: 4.85 | J40: 0 | K40: 1.04 | L40: 0 | M40: 0 | N40: 13.32 | O40: 208 | P40: 0 | Q40: =IF(OR(VLOOKUP($B40,Formulacion!$A:$BE,MATCH(Q$1,Formulacion!$1:$1,0),FALSE)="NA",$D40=0),"NA",IF($B40="DLABT",MID($D40,PosteInicioBT,PosteFinBT-PosteInicioBT+1)*1,MID($D40,PosteInicio,PosteFin-PosteInicio+1)*1)) -> 1 | R40: =IF(OR(VLOOKUP($B40,Formulacion!$A:$BE,MATCH(R$1,Formulacion!$1:$1,0),FALSE)="NA",$D40=0),"NA",IF(OR($B40="DLABT",$B40="DLSBT"),MID($D40,CondInicioBT,CondFinBT-CondInicioBT+1)*1,MID($D40,CondInicio,CondFin-CondInicio+1)*1)) -> 1 | S40: 1 | T40: =IF(OR(VLOOKUP($B40,Formulacion!$A:$BE,MATCH(T$1,Formulacion!$1:$1,0),FALSE)="NA",$D40=0),"NA",IF($B40="DLSBT",MID($D40,ZanjaInicioBT,ZanjaFinBT-ZanjaInicioBT+1)*1,MID($D40,ZanjaInicio,ZanjaFin-ZanjaInicio+1)*1)) -> NA | U40: 1 | V40: =IF(OR(VLOOKUP($B40,Formulacion!$A:$BE,MATCH(V$1,Formulacion!$1:$1,0),FALSE)="NA",$D40=0),"NA",MID($D40,m2Inicio+INDIRECT(B40),m2Fin-m2Inicio+1)*1) -> NA | W40: =IF(OR(VLOOKUP($B40,Formulacion!$A:$BE,MATCH(W$1,Formulacion!$1:$1,0),FALSE)="NA",$D40=0),"NA",RIGHT($D40,4)*1) -> NA | X40: =IF(OR(VLOOKUP($B40,Formulacion!$A:$BE,MATCH(X$1,Formulacion!$1:$1,0),FALSE)="NA",$D40=0),"NA",RIGHT($D40,3)*1) -> NA | Y40: 1 | Z40: =IF(VLOOKUP($B40,Formulacion!$A:$BE,MATCH(Z$1,Formulacion!$1:$1,0),FALSE)="NA",1,IF(V40<=m2Min,0,1)) -> 1 | AA40: =IF(VLOOKUP($B40,Formulacion!$A:$BE,MATCH(AA$1,Formulacion!$1:$1,0),FALSE)="NA",1,IF(OR(E40<=FechaMin,E40>FechaMax),0,1)) -> 1 | AB40: =IF(VLOOKUP($B40,Formulacion!$A:$BE,MATCH(AB$1,Formulacion!$1:$1,0),FALSE)="NA",1,IF(H40<=MaterialesMin,0,1)) -> 1 | AC40: =IF(VLOOKUP($B40,Formulacion!$A:$BE,MATCH(AC$1,Formulacion!$1:$1,0),FALSE)="NA",1,IF(N40=0,0,IF(OR(I40/N40<=MObraMin,I40/N40>=MObraMax),MDOmin,1))) -> 1 | AD40: =IF(VLOOKUP($B40,Formulacion!$A:$BE,MATCH(AD$1,Formulacion!$1:$1,0),FALSE)="NA",1,IF(N40<=CostoTotalMin,0,1)) -> 0 | AE40: =IF(VLOOKUP($B40,Formulacion!$A:$BE,MATCH(AE$1,Formulacion!$1:$1,0),FALSE)="NA",1,IF(Q40<=PostesMin,0,1)) -> 0 | AF40: =IF(VLOOKUP($B40,Formulacion!$A:$BE,MATCH(AF$1,Formulacion!$1:$1,0),FALSE)="NA",1,IF(R40<=INDIRECT(VLOOKUP(B40,Formulacion!$A:$BE,2,FALSE)),0,1)) -> 0 | AG40: 0 | AH40: 0 | AJ40: =IF(VLOOKUP($B40,Formulacion!$A:$BE,MATCH(AJ$1,Formulacion!$1:$1,0),FALSE)="NA","NA",HLOOKUP(VLOOKUP($B40,Formulacion!$A:$BE,MATCH(AJ$1,Formulacion!$1:$1,0),FALSE),$Q:$Z,ROW(AJ40),FALSE)) -> 1 | AK40: =IF(VLOOKUP($B40,Formulacion!$A:$BE,MATCH(AK$1,Formulacion!$1:$1,0),FALSE)="NA",1,VLOOKUP($B40,Formulacion!$A:$BE,MATCH(AK$1,Formulacion!$1:$1,0),FALSE)) -> 30 | AL40: =IF(VLOOKUP($B40,Formulacion!$A:$BE,MATCH(AL$1,Formulacion!$1:$1,0),FALSE)="NA",1,VLOOKUP($B40,Formulacion!$A:$BE,MATCH(AL$1,Formulacion!$1:$1,0),FALSE)) -> 0.3 | AM40: CU | AN40: =IF(VLOOKUP($B40,Formulacion!$A:$BE,MATCH(AN$1,Formulacion!$1:$1,0),FALSE)="NA","NA",IF(D40=0,"",VLOOKUP($B40,Formulacion!$A:$BE,MATCH(AN$1,Formulacion!$1:$1,0),FALSE))) -> 0206170220032403 | AO40: LABTM1 | AP40: HO | AQ40: 3AL | AR40: 1/0 | AV40: =IF(VLOOKUP($B40,Formulacion!$A:$BE,MATCH(AV$1,Formulacion!$1:$1,0),FALSE)="NA","NA",VLOOKUP(CONCATENATE(AO40,AP40,AQ40,AR40,AS40,AT40,AU40),ValoresReferenciales!$A:$D,4,FALSE)) -> 17.37168537 | AW40: =IF(VLOOKUP($B40,Formulacion!$A:$BE,MATCH(AW$1,Formulacion!$1:$1,0),FALSE)="NA","NA",HLOOKUP(VLOOKUP($B40,Formulacion!$A:$BE,MATCH(AW$1,Formulacion!$1:$1,0),FALSE),$Q:$Z,ROW(AW40),FALSE)) -> 1 | AX40: 13.32 | AY40: 1 | AZ40: =IF(VLOOKUP($B40,Formulacion!$A:$BE,MATCH(AZ$1,Formulacion!$1:$1,0),FALSE)="NA",1,VLOOKUP($B40,Formulacion!$A:$BE,MATCH(AZ$1,Formulacion!$1:$1,0),FALSE)) -> 1 | BA40: =IF(VLOOKUP($B40,Formulacion!$A:$BE,MATCH(BA$1,Formulacion!$1:$1,0),FALSE)="NA",1,VLOOKUP($B40,Formulacion!$A:$BE,MATCH(BA$1,Formulacion!$1:$1,0),FALSE)) -> 1 | BB40: 0 | BC40: 13.32
A41: CC-01-AD EDECHI 2011.xls | B41: DLABT | C41: 301012010070684 | D41: DLABTM100009P001HOC3ALA006 | E41: 2011-06-15 | F41: LAS MERCEDES | G41: 9 | H41: 66.87 | I41: 43.64 | J41: 0 | K41: 9.41 | L41: 0 | M41: 0 | N41: 119.92 | O41: 209 | P41: 0 | Q41: =IF(OR(VLOOKUP($B41,Formulacion!$A:$BE,MATCH(Q$1,Formulacion!$1:$1,0),FALSE)="NA",$D41=0),"NA",IF($B41="DLABT",MID($D41,PosteInicioBT,PosteFinBT-PosteInicioBT+1)*1,MID($D41,PosteInicio,PosteFin-PosteInicio+1)*1)) -> 1 | R41: =IF(OR(VLOOKUP($B41,Formulacion!$A:$BE,MATCH(R$1,Formulacion!$1:$1,0),FALSE)="NA",$D41=0),"NA",IF(OR($B41="DLABT",$B41="DLSBT"),MID($D41,CondInicioBT,CondFinBT-CondInicioBT+1)*1,MID($D41,CondInicio,CondFin-CondInicio+1)*1)) -> 9 | S41: 9 | T41: =IF(OR(VLOOKUP($B41,Formulacion!$A:$BE,MATCH(T$1,Formulacion!$1:$1,0),FALSE)="NA",$D41=0),"NA",IF($B41="DLSBT",MID($D41,ZanjaInicioBT,ZanjaFinBT-ZanjaInicioBT+1)*1,MID($D41,ZanjaInicio,ZanjaFin-ZanjaInicio+1)*1)) -> NA | U41: 1 | V41: =IF(OR(VLOOKUP($B41,Formulacion!$A:$BE,MATCH(V$1,Formulacion!$1:$1,0),FALSE)="NA",$D41=0),"NA",MID($D41,m2Inicio+INDIRECT(B41),m2Fin-m2Inicio+1)*1) -> NA | W41: =IF(OR(VLOOKUP($B41,Formulacion!$A:$BE,MATCH(W$1,Formulacion!$1:$1,0),FALSE)="NA",$D41=0),"NA",RIGHT($D41,4)*1) -> NA | X41: =IF(OR(VLOOKUP($B41,Formulacion!$A:$BE,MATCH(X$1,Formulacion!$1:$1,0),FALSE)="NA",$D41=0),"NA",RIGHT($D41,3)*1) -> NA | Y41: 1 | Z41: =IF(VLOOKUP($B41,Formulacion!$A:$BE,MATCH(Z$1,Formulacion!$1:$1,0),FALSE)="NA",1,IF(V41<=m2Min,0,1)) -> 1 | AA41: =IF(VLOOKUP($B41,Formulacion!$A:$BE,MATCH(AA$1,Formulacion!$1:$1,0),FALSE)="NA",1,IF(OR(E41<=FechaMin,E41>FechaMax),0,1)) -> 1 | AB41: =IF(VLOOKUP($B41,Formulacion!$A:$BE,MATCH(AB$1,Formulacion!$1:$1,0),FALSE)="NA",1,IF(H41<=MaterialesMin,0,1)) -> 1 | AC41: =IF(VLOOKUP($B41,Formulacion!$A:$BE,MATCH(AC$1,Formulacion!$1:$1,0),FALSE)="NA",1,IF(N41=0,0,IF(OR(I41/N41<=MObraMin,I41/N41>=MObraMax),MDOmin,1))) -> 1 | AD41: =IF(VLOOKUP($B41,Formulacion!$A:$BE,MATCH(AD$1,Formulacion!$1:$1,0),FALSE)="NA",1,IF(N41<=CostoTotalMin,0,1)) -> 1 | AE41: =IF(VLOOKUP($B41,Formulacion!$A:$BE,MATCH(AE$1,Formulacion!$1:$1,0),FALSE)="NA",1,IF(Q41<=PostesMin,0,1)) -> 0 | AF41: =IF(VLOOKUP($B41,Formulacion!$A:$BE,MATCH(AF$1,Formulacion!$1:$1,0),FALSE)="NA",1,IF(R41<=INDIRECT(VLOOKUP(B41,Formulacion!$A:$BE,2,FALSE)),0,1)) -> 0 | AG41: 0 | AH41: 0 | AJ41: =IF(VLOOKUP($B41,Formulacion!$A:$BE,MATCH(AJ$1,Formulacion!$1:$1,0),FALSE)="NA","NA",HLOOKUP(VLOOKUP($B41,Formulacion!$A:$BE,MATCH(AJ$1,Formulacion!$1:$1,0),FALSE),$Q:$Z,ROW(AJ41),FALSE)) -> 9 | AK41: =IF(VLOOKUP($B41,Formulacion!$A:$BE,MATCH(AK$1,Formulacion!$1:$1,0),FALSE)="NA",1,VLOOKUP($B41,Formulacion!$A:$BE,MATCH(AK$1,Formulacion!$1:$1,0),FALSE)) -> 30 | AL41: =IF(VLOOKUP($B41,Formulacion!$A:$BE,MATCH(AL$1,Formulacion!$1:$1,0),FALSE)="NA",1,VLOOKUP($B41,Formulacion!$A:$BE,MATCH(AL$1,Formulacion!$1:$1,0),FALSE)) -> 0.3 | AM41: CU | AN41: =IF(VLOOKUP($B41,Formulacion!$A:$BE,MATCH(AN$1,Formulacion!$1:$1,0),FALSE)="NA","NA",IF(D41=0,"",VLOOKUP($B41,Formulacion!$A:$BE,MATCH(AN$1,Formulacion!$1:$1,0),FALSE))) -> 0206170220032403 | AO41: LABTM1 | AP41: HO | AQ41: 3AL | AR41: 006 | AV41: =IF(VLOOKUP($B41,Formulacion!$A:$BE,MATCH(AV$1,Formulacion!$1:$1,0),FALSE)="NA","NA",VLOOKUP(CONCATENATE(AO41,AP41,AQ41,AR41,AS41,AT41,AU41),ValoresReferenciales!$A:$D,4,FALSE)) -> 14.76593257 | AW41: =IF(VLOOKUP($B41,Formulacion!$A:$BE,MATCH(AW$1,Formulacion!$1:$1,0),FALSE)="NA","NA",HLOOKUP(VLOOKUP($B41,Formulacion!$A:$BE,MATCH(AW$1,Formulacion!$1:$1,0),FALSE),$Q:$Z,ROW(AW41),FALSE)) -> 9 | AX41: 13.32444444 | AY41: 1 | AZ41: =IF(VLOOKUP($B41,Formulacion!$A:$BE,MATCH(AZ$1,Formulacion!$1:$1,0),FALSE)="NA",1,VLOOKUP($B41,Formulacion!$A:$BE,MATCH(AZ$1,Formulacion!$1:$1,0),FALSE)) -> 1 | BA41: =IF(VLOOKUP($B41,Formulacion!$A:$BE,MATCH(BA$1,Formulacion!$1:$1,0),FALSE)="NA",1,VLOOKUP($B41,Formulacion!$A:$BE,MATCH(BA$1,Formulacion!$1:$1,0),FALSE)) -> 1 | BB41: 0 | BC41: 119.92
A42: CC-01-AD EDECHI 2011.xls | B42: DLABT | C42: 301012010070684 | D42: DLABTM100264P002HOC3ALA002 | E42: 2011-06-15 | F42: LAS MERCEDES | G42: 264 | H42: 1961.8 | I42: 1280.04 | J42: 0 | K42: 276.05 | L42: 0 | M42: 0 | N42: 3517.89 | O42: 210 | P42: 0 | Q42: =IF(OR(VLOOKUP($B42,Formulacion!$A:$BE,MATCH(Q$1,Formulacion!$1:$1,0),FALSE)="NA",$D42=0),"NA",IF($B42="DLABT",MID($D42,PosteInicioBT,PosteFinBT-PosteInicioBT+1)*1,MID($D42,PosteInicio,PosteFin-PosteInicio+1)*1)) -> 2 | R42: =IF(OR(VLOOKUP($B42,Formulacion!$A:$BE,MATCH(R$1,Formulacion!$1:$1,0),FALSE)="NA",$D42=0),"NA",IF(OR($B42="DLABT",$B42="DLSBT"),MID($D42,CondInicioBT,CondFinBT-CondInicioBT+1)*1,MID($D42,CondInicio,CondFin-CondInicio+1)*1)) -> 264 | S42: 132 | T42: =IF(OR(VLOOKUP($B42,Formulacion!$A:$BE,MATCH(T$1,Formulacion!$1:$1,0),FALSE)="NA",$D42=0),"NA",IF($B42="DLSBT",MID($D42,ZanjaInicioBT,ZanjaFinBT-ZanjaInicioBT+1)*1,MID($D42,ZanjaInicio,ZanjaFin-ZanjaInicio+1)*1)) -> NA | U42: 1 | V42: =IF(OR(VLOOKUP($B42,Formulacion!$A:$BE,MATCH(V$1,Formulacion!$1:$1,0),FALSE)="NA",$D42=0),"NA",MID($D42,m2Inicio+INDIRECT(B42),m2Fin-m2Inicio+1)*1) -> NA | W42: =IF(OR(VLOOKUP($B42,Formulacion!$A:$BE,MATCH(W$1,Formulacion!$1:$1,0),FALSE)="NA",$D42=0),"NA",RIGHT($D42,4)*1) -> NA | X42: =IF(OR(VLOOKUP($B42,Formulacion!$A:$BE,MATCH(X$1,Formulacion!$1:$1,0),FALSE)="NA",$D42=0),"NA",RIGHT($D42,3)*1) -> NA | Y42: 1 | Z42: =IF(VLOOKUP($B42,Formulacion!$A:$BE,MATCH(Z$1,Formulacion!$1:$1,0),FALSE)="NA",1,IF(V42<=m2Min,0,1)) -> 1 | AA42: =IF(VLOOKUP($B42,Formulacion!$A:$BE,MATCH(AA$1,Formulacion!$1:$1,0),FALSE)="NA",1,IF(OR(E42<=FechaMin,E42>FechaMax),0,1)) -> 1 | AB42: =IF(VLOOKUP($B42,Formulacion!$A:$BE,MATCH(AB$1,Formulacion!$1:$1,0),FALSE)="NA",1,IF(H42<=MaterialesMin,0,1)) -> 1 | AC42: =IF(VLOOKUP($B42,Formulacion!$A:$BE,MATCH(AC$1,Formulacion!$1:$1,0),FALSE)="NA",1,IF(N42=0,0,IF(OR(I42/N42<=MObraMin,I42/N42>=MObraMax),MDOmin,1))) -> 1 | AD42: =IF(VLOOKUP($B42,Formulacion!$A:$BE,MATCH(AD$1,Formulacion!$1:$1,0),FALSE)="NA",1,IF(N42<=CostoTotalMin,0,1)) -> 1 | AE42: =IF(VLOOKUP($B42,Formulacion!$A:$BE,MATCH(AE$1,Formulacion!$1:$1,0),FALSE)="NA",1,IF(Q42<=PostesMin,0,1)) -> 0 | AF42: =IF(VLOOKUP($B42,Formulacion!$A:$BE,MATCH(AF$1,Formulacion!$1:$1,0),FALSE)="NA",1,IF(R42<=INDIRECT(VLOOKUP(B42,Formulacion!$A:$BE,2,FALSE)),0,1)) -> 1 | AG42: 1 | AH42: 3517.89 | AJ42: =IF(VLOOKUP($B42,Formulacion!$A:$BE,MATCH(AJ$1,Formulacion!$1:$1,0),FALSE)="NA","NA",HLOOKUP(VLOOKUP($B42,Formulacion!$A:$BE,MATCH(AJ$1,Formulacion!$1:$1,0),FALSE),$Q:$Z,ROW(AJ42),FALSE)) -> 132 | AK42: =IF(VLOOKUP($B42,Formulacion!$A:$BE,MATCH(AK$1,Formulacion!$1:$1,0),FALSE)="NA",1,VLOOKUP($B42,Formulacion!$A:$BE,MATCH(AK$1,Formulacion!$1:$1,0),FALSE)) -> 30 | AL42: =IF(VLOOKUP($B42,Formulacion!$A:$BE,MATCH(AL$1,Formulacion!$1:$1,0),FALSE)="NA",1,VLOOKUP($B42,Formulacion!$A:$BE,MATCH(AL$1,Formulacion!$1:$1,0),FALSE)) -> 0.3 | AM42: NC | AN42: =IF(VLOOKUP($B42,Formulacion!$A:$BE,MATCH(AN$1,Formulacion!$1:$1,0),FALSE)="NA","NA",IF(D42=0,"",VLOOKUP($B42,Formulacion!$A:$BE,MATCH(AN$1,Formulacion!$1:$1,0),FALSE))) -> 0206170220032403 | AO42: LABTM1 | AP42: HO | AQ42: 3AL | AR42: 002 | AV42: =IF(VLOOKUP($B42,Formulacion!$A:$BE,MATCH(AV$1,Formulacion!$1:$1,0),FALSE)="NA","NA",VLOOKUP(CONCATENATE(AO42,AP42,AQ42,AR42,AS42,AT42,AU42),ValoresReferenciales!$A:$D,4,FALSE)) -> 15.63451684 | AW42: =IF(VLOOKUP($B42,Formulacion!$A:$BE,MATCH(AW$1,Formulacion!$1:$1,0),FALSE)="NA","NA",HLOOKUP(VLOOKUP($B42,Formulacion!$A:$BE,MATCH(AW$1,Formulacion!$1:$1,0),FALSE),$Q:$Z,ROW(AW42),FALSE)) -> 264 | AX42: 13.32534091 | AY42: 1 | AZ42: =IF(VLOOKUP($B42,Formulacion!$A:$BE,MATCH(AZ$1,Formulacion!$1:$1,0),FALSE)="NA",1,VLOOKUP($B42,Formulacion!$A:$BE,MATCH(AZ$1,Formulacion!$1:$1,0),FALSE)) -> 1 | BA42: =IF(VLOOKUP($B42,Formulacion!$A:$BE,MATCH(BA$1,Formulacion!$1:$1,0),FALSE)="NA",1,VLOOKUP($B42,Formulacion!$A:$BE,MATCH(BA$1,Formulacion!$1:$1,0),FALSE)) -> 1 | BB42: 3517.89 | BC42: 3517.89
A43: CC-01-AD EDECHI 2011.xls | B43: DLABT | C43: 301012010070715 | D43: DLABTM100078P001HOC3ALA4/0 | E43: 2011-04-05 | F43: DAVID (CABECERA | G43: 78 | H43: 1128.17 | I43: 664.93 | J43: 0 | K43: 286.5 | L43: 0 | M43: 0 | N43: 2079.6 | O43: 64 | P43: 0 | Q43: =IF(OR(VLOOKUP($B43,Formulacion!$A:$BE,MATCH(Q$1,Formulacion!$1:$1,0),FALSE)="NA",$D43=0),"NA",IF($B43="DLABT",MID($D43,PosteInicioBT,PosteFinBT-PosteInicioBT+1)*1,MID($D43,PosteInicio,PosteFin-PosteInicio+1)*1)) -> 1 | R43: =IF(OR(VLOOKUP($B43,Formulacion!$A:$BE,MATCH(R$1,Formulacion!$1:$1,0),FALSE)="NA",$D43=0),"NA",IF(OR($B43="DLABT",$B43="DLSBT"),MID($D43,CondInicioBT,CondFinBT-CondInicioBT+1)*1,MID($D43,CondInicio,CondFin-CondInicio+1)*1)) -> 78 | S43: 78 | T43: =IF(OR(VLOOKUP($B43,Formulacion!$A:$BE,MATCH(T$1,Formulacion!$1:$1,0),FALSE)="NA",$D43=0),"NA",IF($B43="DLSBT",MID($D43,ZanjaInicioBT,ZanjaFinBT-ZanjaInicioBT+1)*1,MID($D43,ZanjaInicio,ZanjaFin-ZanjaInicio+1)*1)) -> NA | U43: 1 | V43: =IF(OR(VLOOKUP($B43,Formulacion!$A:$BE,MATCH(V$1,Formulacion!$1:$1,0),FALSE)="NA",$D43=0),"NA",MID($D43,m2Inicio+INDIRECT(B43),m2Fin-m2Inicio+1)*1) -> NA | W43: =IF(OR(VLOOKUP($B43,Formulacion!$A:$BE,MATCH(W$1,Formulacion!$1:$1,0),FALSE)="NA",$D43=0),"NA",RIGHT($D43,4)*1) -> NA | X43: =IF(OR(VLOOKUP($B43,Formulacion!$A:$BE,MATCH(X$1,Formulacion!$1:$1,0),FALSE)="NA",$D43=0),"NA",RIGHT($D43,3)*1) -> NA | Y43: 1 | Z43: =IF(VLOOKUP($B43,Formulacion!$A:$BE,MATCH(Z$1,Formulacion!$1:$1,0),FALSE)="NA",1,IF(V43<=m2Min,0,1)) -> 1 | AA43: =IF(VLOOKUP($B43,Formulacion!$A:$BE,MATCH(AA$1,Formulacion!$1:$1,0),FALSE)="NA",1,IF(OR(E43<=FechaMin,E43>FechaMax),0,1)) -> 1 | AB43: =IF(VLOOKUP($B43,Formulacion!$A:$BE,MATCH(AB$1,Formulacion!$1:$1,0),FALSE)="NA",1,IF(H43<=MaterialesMin,0,1)) -> 1 | AC43: =IF(VLOOKUP($B43,Formulacion!$A:$BE,MATCH(AC$1,Formulacion!$1:$1,0),FALSE)="NA",1,IF(N43=0,0,IF(OR(I43/N43<=MObraMin,I43/N43>=MObraMax),MDOmin,1))) -> 1 | AD43: =IF(VLOOKUP($B43,Formulacion!$A:$BE,MATCH(AD$1,Formulacion!$1:$1,0),FALSE)="NA",1,IF(N43<=CostoTotalMin,0,1)) -> 1 | AE43: =IF(VLOOKUP($B43,Formulacion!$A:$BE,MATCH(AE$1,Formulacion!$1:$1,0),FALSE)="NA",1,IF(Q43<=PostesMin,0,1)) -> 0 | AF43: =IF(VLOOKUP($B43,Formulacion!$A:$BE,MATCH(AF$1,Formulacion!$1:$1,0),FALSE)="NA",1,IF(R43<=INDIRECT(VLOOKUP(B43,Formulacion!$A:$BE,2,FALSE)),0,1)) -> 1 | AG43: 1 | AH43: 2079.6 | AJ43: =IF(VLOOKUP($B43,Formulacion!$A:$BE,MATCH(AJ$1,Formulacion!$1:$1,0),FALSE)="NA","NA",HLOOKUP(VLOOKUP($B43,Formulacion!$A:$BE,MATCH(AJ$1,Formulacion!$1:$1,0),FALSE),$Q:$Z,ROW(AJ43),FALSE)) -> 78 | AK43: =IF(VLOOKUP($B43,Formulacion!$A:$BE,MATCH(AK$1,Formulacion!$1:$1,0),FALSE)="NA",1,VLOOKUP($B43,Formulacion!$A:$BE,MATCH(AK$1,Formulacion!$1:$1,0),FALSE)) -> 30 | AL43: =IF(VLOOKUP($B43,Formulacion!$A:$BE,MATCH(AL$1,Formulacion!$1:$1,0),FALSE)="NA",1,VLOOKUP($B43,Formulacion!$A:$BE,MATCH(AL$1,Formulacion!$1:$1,0),FALSE)) -> 0.3 | AM43: NC | AN43: =IF(VLOOKUP($B43,Formulacion!$A:$BE,MATCH(AN$1,Formulacion!$1:$1,0),FALSE)="NA","NA",IF(D43=0,"",VLOOKUP($B43,Formulacion!$A:$BE,MATCH(AN$1,Formulacion!$1:$1,0),FALSE))) -> 0206170220032403 | AO43: LABTM1 | AP43: HO | AQ43: 3AL | AR43: 4/0 | AV43: =IF(VLOOKUP($B43,Formulacion!$A:$BE,MATCH(AV$1,Formulacion!$1:$1,0),FALSE)="NA","NA",VLOOKUP(CONCATENATE(AO43,AP43,AQ43,AR43,AS43,AT43,AU43),ValoresReferenciales!$A:$D,4,FALSE)) -> 19.10885391 | AW43: =IF(VLOOKUP($B43,Formulacion!$A:$BE,MATCH(AW$1,Formulacion!$1:$1,0),FALSE)="NA","NA",HLOOKUP(VLOOKUP($B43,Formulacion!$A:$BE,MATCH(AW$1,Formulacion!$1:$1,0),FALSE),$Q:$Z,ROW(AW43),FALSE)) -> 78 | AX43: 26.66153846 | AY43: 1 | AZ43: =IF(VLOOKUP($B43,Formulacion!$A:$BE,MATCH(AZ$1,Formulacion!$1:$1,0),FALSE)="NA",1,VLOOKUP($B43,Formulacion!$A:$BE,MATCH(AZ$1,Formulacion!$1:$1,0),FALSE)) -> 1 | BA43: =IF(VLOOKUP($B43,Formulacion!$A:$BE,MATCH(BA$1,Formulacion!$1:$1,0),FALSE)="NA",1,VLOOKUP($B43,Formulacion!$A:$BE,MATCH(BA$1,Formulacion!$1:$1,0),FALSE)) -> 1 | BB43: 2079.6 | BC43: 2079.6
A44: CC-01-AD EDECHI 2011.xls | B44: DLABT | C44: 301012010080587 | D44: DLABTM100315P007HOC3ALA1/0 | E44: 2011-08-10 | F44: DAVID (CABECERA | G44: 315 | H44: 3982.92 | I44: 944.69 | J44: 0 | K44: 0 | L44: 0 | M44: 0 | N44: 4927.61 | O44: 512 | P44: 0 | Q44: =IF(OR(VLOOKUP($B44,Formulacion!$A:$BE,MATCH(Q$1,Formulacion!$1:$1,0),FALSE)="NA",$D44=0),"NA",IF($B44="DLABT",MID($D44,PosteInicioBT,PosteFinBT-PosteInicioBT+1)*1,MID($D44,PosteInicio,PosteFin-PosteInicio+1)*1)) -> 7 | R44: =IF(OR(VLOOKUP($B44,Formulacion!$A:$BE,MATCH(R$1,Formulacion!$1:$1,0),FALSE)="NA",$D44=0),"NA",IF(OR($B44="DLABT",$B44="DLSBT"),MID($D44,CondInicioBT,CondFinBT-CondInicioBT+1)*1,MID($D44,CondInicio,CondFin-CondInicio+1)*1)) -> 315 | S44: 45 | T44: =IF(OR(VLOOKUP($B44,Formulacion!$A:$BE,MATCH(T$1,Formulacion!$1:$1,0),FALSE)="NA",$D44=0),"NA",IF($B44="DLSBT",MID($D44,ZanjaInicioBT,ZanjaFinBT-ZanjaInicioBT+1)*1,MID($D44,ZanjaInicio,ZanjaFin-ZanjaInicio+1)*1)) -> NA | U44: 1 | V44: =IF(OR(VLOOKUP($B44,Formulacion!$A:$BE,MATCH(V$1,Formulacion!$1:$1,0),FALSE)="NA",$D44=0),"NA",MID($D44,m2Inicio+INDIRECT(B44),m2Fin-m2Inicio+1)*1) -> NA | W44: =IF(OR(VLOOKUP($B44,Formulacion!$A:$BE,MATCH(W$1,Formulacion!$1:$1,0),FALSE)="NA",$D44=0),"NA",RIGHT($D44,4)*1) -> NA | X44: =IF(OR(VLOOKUP($B44,Formulacion!$A:$BE,MATCH(X$1,Formulacion!$1:$1,0),FALSE)="NA",$D44=0),"NA",RIGHT($D44,3)*1) -> NA | Y44: 1 | Z44: =IF(VLOOKUP($B44,Formulacion!$A:$BE,MATCH(Z$1,Formulacion!$1:$1,0),FALSE)="NA",1,IF(V44<=m2Min,0,1)) -> 1 | AA44: =IF(VLOOKUP($B44,Formulacion!$A:$BE,MATCH(AA$1,Formulacion!$1:$1,0),FALSE)="NA",1,IF(OR(E44<=FechaMin,E44>FechaMax),0,1)) -> 1 | AB44: =IF(VLOOKUP($B44,Formulacion!$A:$BE,MATCH(AB$1,Formulacion!$1:$1,0),FALSE)="NA",1,IF(H44<=MaterialesMin,0,1)) -> 1 | AC44: =IF(VLOOKUP($B44,Formulacion!$A:$BE,MATCH(AC$1,Formulacion!$1:$1,0),FALSE)="NA",1,IF(N44=0,0,IF(OR(I44/N44<=MObraMin,I44/N44>=MObraMax),MDOmin,1))) -> 1 | AD44: =IF(VLOOKUP($B44,Formulacion!$A:$BE,MATCH(AD$1,Formulacion!$1:$1,0),FALSE)="NA",1,IF(N44<=CostoTotalMin,0,1)) -> 1 | AE44: =IF(VLOOKUP($B44,Formulacion!$A:$BE,MATCH(AE$1,Formulacion!$1:$1,0),FALSE)="NA",1,IF(Q44<=PostesMin,0,1)) -> 1 | AF44: =IF(VLOOKUP($B44,Formulacion!$A:$BE,MATCH(AF$1,Formulacion!$1:$1,0),FALSE)="NA",1,IF(R44<=INDIRECT(VLOOKUP(B44,Formulacion!$A:$BE,2,FALSE)),0,1)) -> 1 | AG44: 1 | AH44: 4927.61 | AJ44: =IF(VLOOKUP($B44,Formulacion!$A:$BE,MATCH(AJ$1,Formulacion!$1:$1,0),FALSE)="NA","NA",HLOOKUP(VLOOKUP($B44,Formulacion!$A:$BE,MATCH(AJ$1,Formulacion!$1:$1,0),FALSE),$Q:$Z,ROW(AJ44),FALSE)) -> 45 | AK44: =IF(VLOOKUP($B44,Formulacion!$A:$BE,MATCH(AK$1,Formulacion!$1:$1,0),FALSE)="NA",1,VLOOKUP($B44,Formulacion!$A:$BE,MATCH(AK$1,Formulacion!$1:$1,0),FALSE)) -> 30 | AL44: =IF(VLOOKUP($B44,Formulacion!$A:$BE,MATCH(AL$1,Formulacion!$1:$1,0),FALSE)="NA",1,VLOOKUP($B44,Formulacion!$A:$BE,MATCH(AL$1,Formulacion!$1:$1,0),FALSE)) -> 0.3 | AM44: NC | AN44: =IF(VLOOKUP($B44,Formulacion!$A:$BE,MATCH(AN$1,Formulacion!$1:$1,0),FALSE)="NA","NA",IF(D44=0,"",VLOOKUP($B44,Formulacion!$A:$BE,MATCH(AN$1,Formulacion!$1:$1,0),FALSE))) -> 0206170220032403 | AO44: LABTM1 | AP44: HO | AQ44: 3AL | AR44: 1/0 | AV44: =IF(VLOOKUP($B44,Formulacion!$A:$BE,MATCH(AV$1,Formulacion!$1:$1,0),FALSE)="NA","NA",VLOOKUP(CONCATENATE(AO44,AP44,AQ44,AR44,AS44,AT44,AU44),ValoresReferenciales!$A:$D,4,FALSE)) -> 17.37168537 | AW44: =IF(VLOOKUP($B44,Formulacion!$A:$BE,MATCH(AW$1,Formulacion!$1:$1,0),FALSE)="NA","NA",HLOOKUP(VLOOKUP($B44,Formulacion!$A:$BE,MATCH(AW$1,Formulacion!$1:$1,0),FALSE),$Q:$Z,ROW(AW44),FALSE)) -> 315 | AX44: 15.64320635 | AY44: 1 | AZ44: =IF(VLOOKUP($B44,Formulacion!$A:$BE,MATCH(AZ$1,Formulacion!$1:$1,0),FALSE)="NA",1,VLOOKUP($B44,Formulacion!$A:$BE,MATCH(AZ$1,Formulacion!$1:$1,0),FALSE)) -> 1 | BA44: =IF(VLOOKUP($B44,Formulacion!$A:$BE,MATCH(BA$1,Formulacion!$1:$1,0),FALSE)="NA",1,VLOOKUP($B44,Formulacion!$A:$BE,MATCH(BA$1,Formulacion!$1:$1,0),FALSE)) -> 1 | BB44: 4927.61 | BC44: 4927.61
A45: CC-01-AD EDECHI 2011.xls | B45: DLABT | C45: 301012010080700 | D45: DLABTM100020P002HOC3ALA006 | E45: 2011-04-05 | F45: LOS AZULES | G45: 20 | H45: 95.69 | I45: 39.77 | J45: 0 | K45: 12.32 | L45: 0 | M45: 0 | N45: 147.78 | O45: 340 | P45: 0 | Q45: =IF(OR(VLOOKUP($B45,Formulacion!$A:$BE,MATCH(Q$1,Formulacion!$1:$1,0),FALSE)="NA",$D45=0),"NA",IF($B45="DLABT",MID($D45,PosteInicioBT,PosteFinBT-PosteInicioBT+1)*1,MID($D45,PosteInicio,PosteFin-PosteInicio+1)*1)) -> 2 | R45: =IF(OR(VLOOKUP($B45,Formulacion!$A:$BE,MATCH(R$1,Formulacion!$1:$1,0),FALSE)="NA",$D45=0),"NA",IF(OR($B45="DLABT",$B45="DLSBT"),MID($D45,CondInicioBT,CondFinBT-CondInicioBT+1)*1,MID($D45,CondInicio,CondFin-CondInicio+1)*1)) -> 20 | S45: 10 | T45: =IF(OR(VLOOKUP($B45,Formulacion!$A:$BE,MATCH(T$1,Formulacion!$1:$1,0),FALSE)="NA",$D45=0),"NA",IF($B45="DLSBT",MID($D45,ZanjaInicioBT,ZanjaFinBT-ZanjaInicioBT+1)*1,MID($D45,ZanjaInicio,ZanjaFin-ZanjaInicio+1)*1)) -> NA | U45: 1 | V45: =IF(OR(VLOOKUP($B45,Formulacion!$A:$BE,MATCH(V$1,Formulacion!$1:$1,0),FALSE)="NA",$D45=0),"NA",MID($D45,m2Inicio+INDIRECT(B45),m2Fin-m2Inicio+1)*1) -> NA | W45: =IF(OR(VLOOKUP($B45,Formulacion!$A:$BE,MATCH(W$1,Formulacion!$1:$1,0),FALSE)="NA",$D45=0),"NA",RIGHT($D45,4)*1) -> NA | X45: =IF(OR(VLOOKUP($B45,Formulacion!$A:$BE,MATCH(X$1,Formulacion!$1:$1,0),FALSE)="NA",$D45=0),"NA",RIGHT($D45,3)*1) -> NA | Y45: 1 | Z45: =IF(VLOOKUP($B45,Formulacion!$A:$BE,MATCH(Z$1,Formulacion!$1:$1,0),FALSE)="NA",1,IF(V45<=m2Min,0,1)) -> 1 | AA45: =IF(VLOOKUP($B45,Formulacion!$A:$BE,MATCH(AA$1,Formulacion!$1:$1,0),FALSE)="NA",1,IF(OR(E45<=FechaMin,E45>FechaMax),0,1)) -> 1 | AB45: =IF(VLOOKUP($B45,Formulacion!$A:$BE,MATCH(AB$1,Formulacion!$1:$1,0),FALSE)="NA",1,IF(H45<=MaterialesMin,0,1)) -> 1 | AC45: =IF(VLOOKUP($B45,Formulacion!$A:$BE,MATCH(AC$1,Formulacion!$1:$1,0),FALSE)="NA",1,IF(N45=0,0,IF(OR(I45/N45<=MObraMin,I45/N45>=MObraMax),MDOmin,1))) -> 1 | AD45: =IF(VLOOKUP($B45,Formulacion!$A:$BE,MATCH(AD$1,Formulacion!$1:$1,0),FALSE)="NA",1,IF(N45<=CostoTotalMin,0,1)) -> 1 | AE45: =IF(VLOOKUP($B45,Formulacion!$A:$BE,MATCH(AE$1,Formulacion!$1:$1,0),FALSE)="NA",1,IF(Q45<=PostesMin,0,1)) -> 0 | AF45: =IF(VLOOKUP($B45,Formulacion!$A:$BE,MATCH(AF$1,Formulacion!$1:$1,0),FALSE)="NA",1,IF(R45<=INDIRECT(VLOOKUP(B45,Formulacion!$A:$BE,2,FALSE)),0,1)) -> 0 | AG45: 0 | AH45: 0 | AJ45: =IF(VLOOKUP($B45,Formulacion!$A:$BE,MATCH(AJ$1,Formulacion!$1:$1,0),FALSE)="NA","NA",HLOOKUP(VLOOKUP($B45,Formulacion!$A:$BE,MATCH(AJ$1,Formulacion!$1:$1,0),FALSE),$Q:$Z,ROW(AJ45),FALSE)) -> 10 | AK45: =IF(VLOOKUP($B45,Formulacion!$A:$BE,MATCH(AK$1,Formulacion!$1:$1,0),FALSE)="NA",1,VLOOKUP($B45,Formulacion!$A:$BE,MATCH(AK$1,Formulacion!$1:$1,0),FALSE)) -> 30 | AL45: =IF(VLOOKUP($B45,Formulacion!$A:$BE,MATCH(AL$1,Formulacion!$1:$1,0),FALSE)="NA",1,VLOOKUP($B45,Formulacion!$A:$BE,MATCH(AL$1,Formulacion!$1:$1,0),FALSE)) -> 0.3 | AM45: CU | AN45: =IF(VLOOKUP($B45,Formulacion!$A:$BE,MATCH(AN$1,Formulacion!$1:$1,0),FALSE)="NA","NA",IF(D45=0,"",VLOOKUP($B45,Formulacion!$A:$BE,MATCH(AN$1,Formulacion!$1:$1,0),FALSE))) -> 0206170220032403 | AO45: LABTM1 | AP45: HO | AQ45: 3AL | AR45: 006 | AV45: =IF(VLOOKUP($B45,Formulacion!$A:$BE,MATCH(AV$1,Formulacion!$1:$1,0),FALSE)="NA","NA",VLOOKUP(CONCATENATE(AO45,AP45,AQ45,AR45,AS45,AT45,AU45),ValoresReferenciales!$A:$D,4,FALSE)) -> 14.76593257 | AW45: =IF(VLOOKUP($B45,Formulacion!$A:$BE,MATCH(AW$1,Formulacion!$1:$1,0),FALSE)="NA","NA",HLOOKUP(VLOOKUP($B45,Formulacion!$A:$BE,MATCH(AW$1,Formulacion!$1:$1,0),FALSE),$Q:$Z,ROW(AW45),FALSE)) -> 20 | AX45: 7.389 | AY45: 1 | AZ45: =IF(VLOOKUP($B45,Formulacion!$A:$BE,MATCH(AZ$1,Formulacion!$1:$1,0),FALSE)="NA",1,VLOOKUP($B45,Formulacion!$A:$BE,MATCH(AZ$1,Formulacion!$1:$1,0),FALSE)) -> 1 | BA45: =IF(VLOOKUP($B45,Formulacion!$A:$BE,MATCH(BA$1,Formulacion!$1:$1,0),FALSE)="NA",1,VLOOKUP($B45,Formulacion!$A:$BE,MATCH(BA$1,Formulacion!$1:$1,0),FALSE)) -> 1 | BB45: 0 | BC45: 147.78
A46: CC-01-AD EDECHI 2011.xls | B46: DLABT | C46: 301012010080700 | D46: DLABTM100445P002HOC3ALA002 | E46: 2011-04-05 | F46: LOS AZULES | G46: 445 | H46: 2129.34 | I46: 884.82 | J46: 0 | K46: 274.18 | L46: 0 | M46: 0 | N46: 3288.34 | O46: 341 | P46: 0 | Q46: =IF(OR(VLOOKUP($B46,Formulacion!$A:$BE,MATCH(Q$1,Formulacion!$1:$1,0),FALSE)="NA",$D46=0),"NA",IF($B46="DLABT",MID($D46,PosteInicioBT,PosteFinBT-PosteInicioBT+1)*1,MID($D46,PosteInicio,PosteFin-PosteInicio+1)*1)) -> 2 | R46: =IF(OR(VLOOKUP($B46,Formulacion!$A:$BE,MATCH(R$1,Formulacion!$1:$1,0),FALSE)="NA",$D46=0),"NA",IF(OR($B46="DLABT",$B46="DLSBT"),MID($D46,CondInicioBT,CondFinBT-CondInicioBT+1)*1,MID($D46,CondInicio,CondFin-CondInicio+1)*1)) -> 445 | S46: 222.5 | T46: =IF(OR(VLOOKUP($B46,Formulacion!$A:$BE,MATCH(T$1,Formulacion!$1:$1,0),FALSE)="NA",$D46=0),"NA",IF($B46="DLSBT",MID($D46,ZanjaInicioBT,ZanjaFinBT-ZanjaInicioBT+1)*1,MID($D46,ZanjaInicio,ZanjaFin-ZanjaInicio+1)*1)) -> NA | U46: 1 | V46: =IF(OR(VLOOKUP($B46,Formulacion!$A:$BE,MATCH(V$1,Formulacion!$1:$1,0),FALSE)="NA",$D46=0),"NA",MID($D46,m2Inicio+INDIRECT(B46),m2Fin-m2Inicio+1)*1) -> NA | W46: =IF(OR(VLOOKUP($B46,Formulacion!$A:$BE,MATCH(W$1,Formulacion!$1:$1,0),FALSE)="NA",$D46=0),"NA",RIGHT($D46,4)*1) -> NA | X46: =IF(OR(VLOOKUP($B46,Formulacion!$A:$BE,MATCH(X$1,Formulacion!$1:$1,0),FALSE)="NA",$D46=0),"NA",RIGHT($D46,3)*1) -> NA | Y46: 1 | Z46: =IF(VLOOKUP($B46,Formulacion!$A:$BE,MATCH(Z$1,Formulacion!$1:$1,0),FALSE)="NA",1,IF(V46<=m2Min,0,1)) -> 1 | AA46: =IF(VLOOKUP($B46,Formulacion!$A:$BE,MATCH(AA$1,Formulacion!$1:$1,0),FALSE)="NA",1,IF(OR(E46<=FechaMin,E46>FechaMax),0,1)) -> 1 | AB46: =IF(VLOOKUP($B46,Formulacion!$A:$BE,MATCH(AB$1,Formulacion!$1:$1,0),FALSE)="NA",1,IF(H46<=MaterialesMin,0,1)) -> 1 | AC46: =IF(VLOOKUP($B46,Formulacion!$A:$BE,MATCH(AC$1,Formulacion!$1:$1,0),FALSE)="NA",1,IF(N46=0,0,IF(OR(I46/N46<=MObraMin,I46/N46>=MObraMax),MDOmin,1))) -> 1 | AD46: =IF(VLOOKUP($B46,Formulacion!$A:$BE,MATCH(AD$1,Formulacion!$1:$1,0),FALSE)="NA",1,IF(N46<=CostoTotalMin,0,1)) -> 1 | AE46: =IF(VLOOKUP($B46,Formulacion!$A:$BE,MATCH(AE$1,Formulacion!$1:$1,0),FALSE)="NA",1,IF(Q46<=PostesMin,0,1)) -> 0 | AF46: =IF(VLOOKUP($B46,Formulacion!$A:$BE,MATCH(AF$1,Formulacion!$1:$1,0),FALSE)="NA",1,IF(R46<=INDIRECT(VLOOKUP(B46,Formulacion!$A:$BE,2,FALSE)),0,1)) -> 1 | AG46: 1 | AH46: 3288.34 | AJ46: =IF(VLOOKUP($B46,Formulacion!$A:$BE,MATCH(AJ$1,Formulacion!$1:$1,0),FALSE)="NA","NA",HLOOKUP(VLOOKUP($B46,Formulacion!$A:$BE,MATCH(AJ$1,Formulacion!$1:$1,0),FALSE),$Q:$Z,ROW(AJ46),FALSE)) -> 222.5 | AK46: =IF(VLOOKUP($B46,Formulacion!$A:$BE,MATCH(AK$1,Formulacion!$1:$1,0),FALSE)="NA",1,VLOOKUP($B46,Formulacion!$A:$BE,MATCH(AK$1,Formulacion!$1:$1,0),FALSE)) -> 30 | AL46: =IF(VLOOKUP($B46,Formulacion!$A:$BE,MATCH(AL$1,Formulacion!$1:$1,0),FALSE)="NA",1,VLOOKUP($B46,Formulacion!$A:$BE,MATCH(AL$1,Formulacion!$1:$1,0),FALSE)) -> 0.3 | AM46: NC | AN46: =IF(VLOOKUP($B46,Formulacion!$A:$BE,MATCH(AN$1,Formulacion!$1:$1,0),FALSE)="NA","NA",IF(D46=0,"",VLOOKUP($B46,Formulacion!$A:$BE,MATCH(AN$1,Formulacion!$1:$1,0),FALSE))) -> 0206170220032403 | AO46: LABTM1 | AP46: HO | AQ46: 3AL | AR46: 002 | AV46: =IF(VLOOKUP($B46,Formulacion!$A:$BE,MATCH(AV$1,Formulacion!$1:$1,0),FALSE)="NA","NA",VLOOKUP(CONCATENATE(AO46,AP46,AQ46,AR46,AS46,AT46,AU46),ValoresReferenciales!$A:$D,4,FALSE)) -> 15.63451684 | AW46: =IF(VLOOKUP($B46,Formulacion!$A:$BE,MATCH(AW$1,Formulacion!$1:$1,0),FALSE)="NA","NA",HLOOKUP(VLOOKUP($B46,Formulacion!$A:$BE,MATCH(AW$1,Formulacion!$1:$1,0),FALSE),$Q:$Z,ROW(AW46),FALSE)) -> 445 | AX46: 7.38952809 | AY46: 1 | AZ46: =IF(VLOOKUP($B46,Formulacion!$A:$BE,MATCH(AZ$1,Formulacion!$1:$1,0),FALSE)="NA",1,VLOOKUP($B46,Formulacion!$A:$BE,MATCH(AZ$1,Formulacion!$1:$1,0),FALSE)) -> 1 | BA46: =IF(VLOOKUP($B46,Formulacion!$A:$BE,MATCH(BA$1,Formulacion!$1:$1,0),FALSE)="NA",1,VLOOKUP($B46,Formulacion!$A:$BE,MATCH(BA$1,Formulacion!$1:$1,0),FALSE)) -> 1 | BB46: 3288.34 | BC46: 3288.34
A47: CC-01-AD EDECHI 2011.xls | B47: DLABT | C47: 301012010090229 | D47: DLABTM100012P002HOC3ALA006 | E47: 2011-03-14 | F47: CAÑAS GORDAS | G47: 12 | H47: 99.89 | I47: 56.56 | J47: 0 | K47: 0 | L47: 0 | M47: 0 | N47: 156.45 | O47: 198 | P47: 0 | Q47: =IF(OR(VLOOKUP($B47,Formulacion!$A:$BE,MATCH(Q$1,Formulacion!$1:$1,0),FALSE)="NA",$D47=0),"NA",IF($B47="DLABT",MID($D47,PosteInicioBT,PosteFinBT-PosteInicioBT+1)*1,MID($D47,PosteInicio,PosteFin-PosteInicio+1)*1)) -> 2 | R47: =IF(OR(VLOOKUP($B47,Formulacion!$A:$BE,MATCH(R$1,Formulacion!$1:$1,0),FALSE)="NA",$D47=0),"NA",IF(OR($B47="DLABT",$B47="DLSBT"),MID($D47,CondInicioBT,CondFinBT-CondInicioBT+1)*1,MID($D47,CondInicio,CondFin-CondInicio+1)*1)) -> 12 | S47: 6 | T47: =IF(OR(VLOOKUP($B47,Formulacion!$A:$BE,MATCH(T$1,Formulacion!$1:$1,0),FALSE)="NA",$D47=0),"NA",IF($B47="DLSBT",MID($D47,ZanjaInicioBT,ZanjaFinBT-ZanjaInicioBT+1)*1,MID($D47,ZanjaInicio,ZanjaFin-ZanjaInicio+1)*1)) -> NA | U47: 1 | V47: =IF(OR(VLOOKUP($B47,Formulacion!$A:$BE,MATCH(V$1,Formulacion!$1:$1,0),FALSE)="NA",$D47=0),"NA",MID($D47,m2Inicio+INDIRECT(B47),m2Fin-m2Inicio+1)*1) -> NA | W47: =IF(OR(VLOOKUP($B47,Formulacion!$A:$BE,MATCH(W$1,Formulacion!$1:$1,0),FALSE)="NA",$D47=0),"NA",RIGHT($D47,4)*1) -> NA | X47: =IF(OR(VLOOKUP($B47,Formulacion!$A:$BE,MATCH(X$1,Formulacion!$1:$1,0),FALSE)="NA",$D47=0),"NA",RIGHT($D47,3)*1) -> NA | Y47: 1 | Z47: =IF(VLOOKUP($B47,Formulacion!$A:$BE,MATCH(Z$1,Formulacion!$1:$1,0),FALSE)="NA",1,IF(V47<=m2Min,0,1)) -> 1 | AA47: =IF(VLOOKUP($B47,Formulacion!$A:$BE,MATCH(AA$1,Formulacion!$1:$1,0),FALSE)="NA",1,IF(OR(E47<=FechaMin,E47>FechaMax),0,1)) -> 1 | AB47: =IF(VLOOKUP($B47,Formulacion!$A:$BE,MATCH(AB$1,Formulacion!$1:$1,0),FALSE)="NA",1,IF(H47<=MaterialesMin,0,1)) -> 1 | AC47: =IF(VLOOKUP($B47,Formulacion!$A:$BE,MATCH(AC$1,Formulacion!$1:$1,0),FALSE)="NA",1,IF(N47=0,0,IF(OR(I47/N47<=MObraMin,I47/N47>=MObraMax),MDOmin,1))) -> 1 | AD47: =IF(VLOOKUP($B47,Formulacion!$A:$BE,MATCH(AD$1,Formulacion!$1:$1,0),FALSE)="NA",1,IF(N47<=CostoTotalMin,0,1)) -> 1 | AE47: =IF(VLOOKUP($B47,Formulacion!$A:$BE,MATCH(AE$1,Formulacion!$1:$1,0),FALSE)="NA",1,IF(Q47<=PostesMin,0,1)) -> 0 | AF47: =IF(VLOOKUP($B47,Formulacion!$A:$BE,MATCH(AF$1,Formulacion!$1:$1,0),FALSE)="NA",1,IF(R47<=INDIRECT(VLOOKUP(B47,Formulacion!$A:$BE,2,FALSE)),0,1)) -> 0 | AG47: 0 | AH47: 0 | AJ47: =IF(VLOOKUP($B47,Formulacion!$A:$BE,MATCH(AJ$1,Formulacion!$1:$1,0),FALSE)="NA","NA",HLOOKUP(VLOOKUP($B47,Formulacion!$A:$BE,MATCH(AJ$1,Formulacion!$1:$1,0),FALSE),$Q:$Z,ROW(AJ47),FALSE)) -> 6 | AK47: =IF(VLOOKUP($B47,Formulacion!$A:$BE,MATCH(AK$1,Formulacion!$1:$1,0),FALSE)="NA",1,VLOOKUP($B47,Formulacion!$A:$BE,MATCH(AK$1,Formulacion!$1:$1,0),FALSE)) -> 30 | AL47: =IF(VLOOKUP($B47,Formulacion!$A:$BE,MATCH(AL$1,Formulacion!$1:$1,0),FALSE)="NA",1,VLOOKUP($B47,Formulacion!$A:$BE,MATCH(AL$1,Formulacion!$1:$1,0),FALSE)) -> 0.3 | AM47: CU | AN47: =IF(VLOOKUP($B47,Formulacion!$A:$BE,MATCH(AN$1,Formulacion!$1:$1,0),FALSE)="NA","NA",IF(D47=0,"",VLOOKUP($B47,Formulacion!$A:$BE,MATCH(AN$1,Formulacion!$1:$1,0),FALSE))) -> 0206170220032403 | AO47: LABTM1 | AP47: HO | AQ47: 3AL | AR47: 006 | AV47: =IF(VLOOKUP($B47,Formulacion!$A:$BE,MATCH(AV$1,Formulacion!$1:$1,0),FALSE)="NA","NA",VLOOKUP(CONCATENATE(AO47,AP47,AQ47,AR47,AS47,AT47,AU47),ValoresReferenciales!$A:$D,4,FALSE)) -> 14.76593257 | AW47: =IF(VLOOKUP($B47,Formulacion!$A:$BE,MATCH(AW$1,Formulacion!$1:$1,0),FALSE)="NA","NA",HLOOKUP(VLOOKUP($B47,Formulacion!$A:$BE,MATCH(AW$1,Formulacion!$1:$1,0),FALSE),$Q:$Z,ROW(AW47),FALSE)) -> 12 | AX47: 13.0375 | AY47: 1 | AZ47: =IF(VLOOKUP($B47,Formulacion!$A:$BE,MATCH(AZ$1,Formulacion!$1:$1,0),FALSE)="NA",1,VLOOKUP($B47,Formulacion!$A:$BE,MATCH(AZ$1,Formulacion!$1:$1,0),FALSE)) -> 1 | BA47: =IF(VLOOKUP($B47,Formulacion!$A:$BE,MATCH(BA$1,Formulacion!$1:$1,0),FALSE)="NA",1,VLOOKUP($B47,Formulacion!$A:$BE,MATCH(BA$1,Formulacion!$1:$1,0),FALSE)) -> 1 | BB47: 0 | BC47: 156.45
A48: CC-01-AD EDECHI 2011.xls | B48: DLABT | C48: 301012010090229 | D48: DLABTM100245P002HOC3ALA002 | E48: 2011-03-14 | F48: CAÑAS GORDAS | G48: 245 | H48: 2039.52 | I48: 1154.77 | J48: 0 | K48: 0 | L48: 0 | M48: 0 | N48: 3194.29 | O48: 199 | P48: 0 | Q48: =IF(OR(VLOOKUP($B48,Formulacion!$A:$BE,MATCH(Q$1,Formulacion!$1:$1,0),FALSE)="NA",$D48=0),"NA",IF($B48="DLABT",MID($D48,PosteInicioBT,PosteFinBT-PosteInicioBT+1)*1,MID($D48,PosteInicio,PosteFin-PosteInicio+1)*1)) -> 2 | R48: =IF(OR(VLOOKUP($B48,Formulacion!$A:$BE,MATCH(R$1,Formulacion!$1:$1,0),FALSE)="NA",$D48=0),"NA",IF(OR($B48="DLABT",$B48="DLSBT"),MID($D48,CondInicioBT,CondFinBT-CondInicioBT+1)*1,MID($D48,CondInicio,CondFin-CondInicio+1)*1)) -> 245 | S48: 122.5 | T48: =IF(OR(VLOOKUP($B48,Formulacion!$A:$BE,MATCH(T$1,Formulacion!$1:$1,0),FALSE)="NA",$D48=0),"NA",IF($B48="DLSBT",MID($D48,ZanjaInicioBT,ZanjaFinBT-ZanjaInicioBT+1)*1,MID($D48,ZanjaInicio,ZanjaFin-ZanjaInicio+1)*1)) -> NA | U48: 1 | V48: =IF(OR(VLOOKUP($B48,Formulacion!$A:$BE,MATCH(V$1,Formulacion!$1:$1,0),FALSE)="NA",$D48=0),"NA",MID($D48,m2Inicio+INDIRECT(B48),m2Fin-m2Inicio+1)*1) -> NA | W48: =IF(OR(VLOOKUP($B48,Formulacion!$A:$BE,MATCH(W$1,Formulacion!$1:$1,0),FALSE)="NA",$D48=0),"NA",RIGHT($D48,4)*1) -> NA | X48: =IF(OR(VLOOKUP($B48,Formulacion!$A:$BE,MATCH(X$1,Formulacion!$1:$1,0),FALSE)="NA",$D48=0),"NA",RIGHT($D48,3)*1) -> NA | Y48: 1 | Z48: =IF(VLOOKUP($B48,Formulacion!$A:$BE,MATCH(Z$1,Formulacion!$1:$1,0),FALSE)="NA",1,IF(V48<=m2Min,0,1)) -> 1 | AA48: =IF(VLOOKUP($B48,Formulacion!$A:$BE,MATCH(AA$1,Formulacion!$1:$1,0),FALSE)="NA",1,IF(OR(E48<=FechaMin,E48>FechaMax),0,1)) -> 1 | AB48: =IF(VLOOKUP($B48,Formulacion!$A:$BE,MATCH(AB$1,Formulacion!$1:$1,0),FALSE)="NA",1,IF(H48<=MaterialesMin,0,1)) -> 1 | AC48: =IF(VLOOKUP($B48,Formulacion!$A:$BE,MATCH(AC$1,Formulacion!$1:$1,0),FALSE)="NA",1,IF(N48=0,0,IF(OR(I48/N48<=MObraMin,I48/N48>=MObraMax),MDOmin,1))) -> 1 | AD48: =IF(VLOOKUP($B48,Formulacion!$A:$BE,MATCH(AD$1,Formulacion!$1:$1,0),FALSE)="NA",1,IF(N48<=CostoTotalMin,0,1)) -> 1 | AE48: =IF(VLOOKUP($B48,Formulacion!$A:$BE,MATCH(AE$1,Formulacion!$1:$1,0),FALSE)="NA",1,IF(Q48<=PostesMin,0,1)) -> 0 | AF48: =IF(VLOOKUP($B48,Formulacion!$A:$BE,MATCH(AF$1,Formulacion!$1:$1,0),FALSE)="NA",1,IF(R48<=INDIRECT(VLOOKUP(B48,Formulacion!$A:$BE,2,FALSE)),0,1)) -> 1 | AG48: 1 | AH48: 3194.29 | AJ48: =IF(VLOOKUP($B48,Formulacion!$A:$BE,MATCH(AJ$1,Formulacion!$1:$1,0),FALSE)="NA","NA",HLOOKUP(VLOOKUP($B48,Formulacion!$A:$BE,MATCH(AJ$1,Formulacion!$1:$1,0),FALSE),$Q:$Z,ROW(AJ48),FALSE)) -> 122.5 | AK48: =IF(VLOOKUP($B48,Formulacion!$A:$BE,MATCH(AK$1,Formulacion!$1:$1,0),FALSE)="NA",1,VLOOKUP($B48,Formulacion!$A:$BE,MATCH(AK$1,Formulacion!$1:$1,0),FALSE)) -> 30 | AL48: =IF(VLOOKUP($B48,Formulacion!$A:$BE,MATCH(AL$1,Formulacion!$1:$1,0),FALSE)="NA",1,VLOOKUP($B48,Formulacion!$A:$BE,MATCH(AL$1,Formulacion!$1:$1,0),FALSE)) -> 0.3 | AM48: NC | AN48: =IF(VLOOKUP($B48,Formulacion!$A:$BE,MATCH(AN$1,Formulacion!$1:$1,0),FALSE)="NA","NA",IF(D48=0,"",VLOOKUP($B48,Formulacion!$A:$BE,MATCH(AN$1,Formulacion!$1:$1,0),FALSE))) -> 0206170220032403 | AO48: LABTM1 | AP48: HO | AQ48: 3AL | AR48: 002 | AV48: =IF(VLOOKUP($B48,Formulacion!$A:$BE,MATCH(AV$1,Formulacion!$1:$1,0),FALSE)="NA","NA",VLOOKUP(CONCATENATE(AO48,AP48,AQ48,AR48,AS48,AT48,AU48),ValoresReferenciales!$A:$D,4,FALSE)) -> 15.63451684 | AW48: =IF(VLOOKUP($B48,Formulacion!$A:$BE,MATCH(AW$1,Formulacion!$1:$1,0),FALSE)="NA","NA",HLOOKUP(VLOOKUP($B48,Formulacion!$A:$BE,MATCH(AW$1,Formulacion!$1:$1,0),FALSE),$Q:$Z,ROW(AW48),FALSE)) -> 245 | AX48: 13.03791837 | AY48: 1 | AZ48: =IF(VLOOKUP($B48,Formulacion!$A:$BE,MATCH(AZ$1,Formulacion!$1:$1,0),FALSE)="NA",1,VLOOKUP($B48,Formulacion!$A:$BE,MATCH(AZ$1,Formulacion!$1:$1,0),FALSE)) -> 1 | BA48: =IF(VLOOKUP($B48,Formulacion!$A:$BE,MATCH(BA$1,Formulacion!$1:$1,0),FALSE)="NA",1,VLOOKUP($B48,Formulacion!$A:$BE,MATCH(BA$1,Formulacion!$1:$1,0),FALSE)) -> 1 | BB48: 3194.29 | BC48: 3194.29
A49: CC-01-AD EDECHI 2011.xls | B49: DLABT | C49: 301012010090301 | D49: DLABTM100008P002HOC3ALA006 | E49: 2011-11-23 | F49: EL SANTO | G49: 8 | H49: 115.56 | I49: 46.06 | J49: 0 | K49: 14.89 | L49: 0 | M49: 0 | N49: 176.51 | O49: 168 | P49: 0 | Q49: =IF(OR(VLOOKUP($B49,Formulacion!$A:$BE,MATCH(Q$1,Formulacion!$1:$1,0),FALSE)="NA",$D49=0),"NA",IF($B49="DLABT",MID($D49,PosteInicioBT,PosteFinBT-PosteInicioBT+1)*1,MID($D49,PosteInicio,PosteFin-PosteInicio+1)*1)) -> 2 | R49: =IF(OR(VLOOKUP($B49,Formulacion!$A:$BE,MATCH(R$1,Formulacion!$1:$1,0),FALSE)="NA",$D49=0),"NA",IF(OR($B49="DLABT",$B49="DLSBT"),MID($D49,CondInicioBT,CondFinBT-CondInicioBT+1)*1,MID($D49,CondInicio,CondFin-CondInicio+1)*1)) -> 8 | S49: 4 | T49: =IF(OR(VLOOKUP($B49,Formulacion!$A:$BE,MATCH(T$1,Formulacion!$1:$1,0),FALSE)="NA",$D49=0),"NA",IF($B49="DLSBT",MID($D49,ZanjaInicioBT,ZanjaFinBT-ZanjaInicioBT+1)*1,MID($D49,ZanjaInicio,ZanjaFin-ZanjaInicio+1)*1)) -> NA | U49: 1 | V49: =IF(OR(VLOOKUP($B49,Formulacion!$A:$BE,MATCH(V$1,Formulacion!$1:$1,0),FALSE)="NA",$D49=0),"NA",MID($D49,m2Inicio+INDIRECT(B49),m2Fin-m2Inicio+1)*1) -> NA | W49: =IF(OR(VLOOKUP($B49,Formulacion!$A:$BE,MATCH(W$1,Formulacion!$1:$1,0),FALSE)="NA",$D49=0),"NA",RIGHT($D49,4)*1) -> NA | X49: =IF(OR(VLOOKUP($B49,Formulacion!$A:$BE,MATCH(X$1,Formulacion!$1:$1,0),FALSE)="NA",$D49=0),"NA",RIGHT($D49,3)*1) -> NA | Y49: 1 | Z49: =IF(VLOOKUP($B49,Formulacion!$A:$BE,MATCH(Z$1,Formulacion!$1:$1,0),FALSE)="NA",1,IF(V49<=m2Min,0,1)) -> 1 | AA49: =IF(VLOOKUP($B49,Formulacion!$A:$BE,MATCH(AA$1,Formulacion!$1:$1,0),FALSE)="NA",1,IF(OR(E49<=FechaMin,E49>FechaMax),0,1)) -> 1 | AB49: =IF(VLOOKUP($B49,Formulacion!$A:$BE,MATCH(AB$1,Formulacion!$1:$1,0),FALSE)="NA",1,IF(H49<=MaterialesMin,0,1)) -> 1 | AC49: =IF(VLOOKUP($B49,Formulacion!$A:$BE,MATCH(AC$1,Formulacion!$1:$1,0),FALSE)="NA",1,IF(N49=0,0,IF(OR(I49/N49<=MObraMin,I49/N49>=MObraMax),MDOmin,1))) -> 1 | AD49: =IF(VLOOKUP($B49,Formulacion!$A:$BE,MATCH(AD$1,Formulacion!$1:$1,0),FALSE)="NA",1,IF(N49<=CostoTotalMin,0,1)) -> 1 | AE49: =IF(VLOOKUP($B49,Formulacion!$A:$BE,MATCH(AE$1,Formulacion!$1:$1,0),FALSE)="NA",1,IF(Q49<=PostesMin,0,1)) -> 0 | AF49: =IF(VLOOKUP($B49,Formulacion!$A:$BE,MATCH(AF$1,Formulacion!$1:$1,0),FALSE)="NA",1,IF(R49<=INDIRECT(VLOOKUP(B49,Formulacion!$A:$BE,2,FALSE)),0,1)) -> 0 | AG49: 0 | AH49: 0 | AJ49: =IF(VLOOKUP($B49,Formulacion!$A:$BE,MATCH(AJ$1,Formulacion!$1:$1,0),FALSE)="NA","NA",HLOOKUP(VLOOKUP($B49,Formulacion!$A:$BE,MATCH(AJ$1,Formulacion!$1:$1,0),FALSE),$Q:$Z,ROW(AJ49),FALSE)) -> 4 | AK49: =IF(VLOOKUP($B49,Formulacion!$A:$BE,MATCH(AK$1,Formulacion!$1:$1,0),FALSE)="NA",1,VLOOKUP($B49,Formulacion!$A:$BE,MATCH(AK$1,Formulacion!$1:$1,0),FALSE)) -> 30 | AL49: =IF(VLOOKUP($B49,Formulacion!$A:$BE,MATCH(AL$1,Formulacion!$1:$1,0),FALSE)="NA",1,VLOOKUP($B49,Formulacion!$A:$BE,MATCH(AL$1,Formulacion!$1:$1,0),FALSE)) -> 0.3 | AM49: CU | AN49: =IF(VLOOKUP($B49,Formulacion!$A:$BE,MATCH(AN$1,Formulacion!$1:$1,0),FALSE)="NA","NA",IF(D49=0,"",VLOOKUP($B49,Formulacion!$A:$BE,MATCH(AN$1,Formulacion!$1:$1,0),FALSE))) -> 0206170220032403 | AO49: LABTM1 | AP49: HO | AQ49: 3AL | AR49: 006 | AV49: =IF(VLOOKUP($B49,Formulacion!$A:$BE,MATCH(AV$1,Formulacion!$1:$1,0),FALSE)="NA","NA",VLOOKUP(CONCATENATE(AO49,AP49,AQ49,AR49,AS49,AT49,AU49),ValoresReferenciales!$A:$D,4,FALSE)) -> 14.76593257 | AW49: =IF(VLOOKUP($B49,Formulacion!$A:$BE,MATCH(AW$1,Formulacion!$1:$1,0),FALSE)="NA","NA",HLOOKUP(VLOOKUP($B49,Formulacion!$A:$BE,MATCH(AW$1,Formulacion!$1:$1,0),FALSE),$Q:$Z,ROW(AW49),FALSE)) -> 8 | AX49: 22.06375 | AY49: 0.6692394795 | AZ49: =IF(VLOOKUP($B49,Formulacion!$A:$BE,MATCH(AZ$1,Formulacion!$1:$1,0),FALSE)="NA",1,VLOOKUP($B49,Formulacion!$A:$BE,MATCH(AZ$1,Formulacion!$1:$1,0),FALSE)) -> 1 | BA49: =IF(VLOOKUP($B49,Formulacion!$A:$BE,MATCH(BA$1,Formulacion!$1:$1,0),FALSE)="NA",1,VLOOKUP($B49,Formulacion!$A:$BE,MATCH(BA$1,Formulacion!$1:$1,0),FALSE)) -> 1 | BB49: 0 | BC49: 176.51
A50: CC-01-AD EDECHI 2011.xls | B50: DLABT | C50: 301012010090301 | D50: DLABTM100123P002HOC3ALA002 | E50: 2011-11-23 | F50: EL SANTO | G50: 123 | H50: 1776.82 | I50: 708.29 | J50: 0 | K50: 228.93 | L50: 0 | M50: 0 | N50: 2714.04 | O50: 169 | P50: 0 | Q50: =IF(OR(VLOOKUP($B50,Formulacion!$A:$BE,MATCH(Q$1,Formulacion!$1:$1,0),FALSE)="NA",$D50=0),"NA",IF($B50="DLABT",MID($D50,PosteInicioBT,PosteFinBT-PosteInicioBT+1)*1,MID($D50,PosteInicio,PosteFin-PosteInicio+1)*1)) -> 2 | R50: =IF(OR(VLOOKUP($B50,Formulacion!$A:$BE,MATCH(R$1,Formulacion!$1:$1,0),FALSE)="NA",$D50=0),"NA",IF(OR($B50="DLABT",$B50="DLSBT"),MID($D50,CondInicioBT,CondFinBT-CondInicioBT+1)*1,MID($D50,CondInicio,CondFin-CondInicio+1)*1)) -> 123 | S50: 61.5 | T50: =IF(OR(VLOOKUP($B50,Formulacion!$A:$BE,MATCH(T$1,Formulacion!$1:$1,0),FALSE)="NA",$D50=0),"NA",IF($B50="DLSBT",MID($D50,ZanjaInicioBT,ZanjaFinBT-ZanjaInicioBT+1)*1,MID($D50,ZanjaInicio,ZanjaFin-ZanjaInicio+1)*1)) -> NA | U50: 1 | V50: =IF(OR(VLOOKUP($B50,Formulacion!$A:$BE,MATCH(V$1,Formulacion!$1:$1,0),FALSE)="NA",$D50=0),"NA",MID($D50,m2Inicio+INDIRECT(B50),m2Fin-m2Inicio+1)*1) -> NA | W50: =IF(OR(VLOOKUP($B50,Formulacion!$A:$BE,MATCH(W$1,Formulacion!$1:$1,0),FALSE)="NA",$D50=0),"NA",RIGHT($D50,4)*1) -> NA | X50: =IF(OR(VLOOKUP($B50,Formulacion!$A:$BE,MATCH(X$1,Formulacion!$1:$1,0),FALSE)="NA",$D50=0),"NA",RIGHT($D50,3)*1) -> NA | Y50: 1 | Z50: =IF(VLOOKUP($B50,Formulacion!$A:$BE,MATCH(Z$1,Formulacion!$1:$1,0),FALSE)="NA",1,IF(V50<=m2Min,0,1)) -> 1 | AA50: =IF(VLOOKUP($B50,Formulacion!$A:$BE,MATCH(AA$1,Formulacion!$1:$1,0),FALSE)="NA",1,IF(OR(E50<=FechaMin,E50>FechaMax),0,1)) -> 1 | AB50: =IF(VLOOKUP($B50,Formulacion!$A:$BE,MATCH(AB$1,Formulacion!$1:$1,0),FALSE)="NA",1,IF(H50<=MaterialesMin,0,1)) -> 1 | AC50: =IF(VLOOKUP($B50,Formulacion!$A:$BE,MATCH(AC$1,Formulacion!$1:$1,0),FALSE)="NA",1,IF(N50=0,0,IF(OR(I50/N50<=MObraMin,I50/N50>=MObraMax),MDOmin,1))) -> 1 | AD50: =IF(VLOOKUP($B50,Formulacion!$A:$BE,MATCH(AD$1,Formulacion!$1:$1,0),FALSE)="NA",1,IF(N50<=CostoTotalMin,0,1)) -> 1 | AE50: =IF(VLOOKUP($B50,Formulacion!$A:$BE,MATCH(AE$1,Formulacion!$1:$1,0),FALSE)="NA",1,IF(Q50<=PostesMin,0,1)) -> 0 | AF50: =IF(VLOOKUP($B50,Formulacion!$A:$BE,MATCH(AF$1,Formulacion!$1:$1,0),FALSE)="NA",1,IF(R50<=INDIRECT(VLOOKUP(B50,Formulacion!$A:$BE,2,FALSE)),0,1)) -> 1 | AG50: 1 | AH50: 2714.04 | AJ50: =IF(VLOOKUP($B50,Formulacion!$A:$BE,MATCH(AJ$1,Formulacion!$1:$1,0),FALSE)="NA","NA",HLOOKUP(VLOOKUP($B50,Formulacion!$A:$BE,MATCH(AJ$1,Formulacion!$1:$1,0),FALSE),$Q:$Z,ROW(AJ50),FALSE)) -> 61.5 | AK50: =IF(VLOOKUP($B50,Formulacion!$A:$BE,MATCH(AK$1,Formulacion!$1:$1,0),FALSE)="NA",1,VLOOKUP($B50,Formulacion!$A:$BE,MATCH(AK$1,Formulacion!$1:$1,0),FALSE)) -> 30 | AL50: =IF(VLOOKUP($B50,Formulacion!$A:$BE,MATCH(AL$1,Formulacion!$1:$1,0),FALSE)="NA",1,VLOOKUP($B50,Formulacion!$A:$BE,MATCH(AL$1,Formulacion!$1:$1,0),FALSE)) -> 0.3 | AM50: NC | AN50: =IF(VLOOKUP($B50,Formulacion!$A:$BE,MATCH(AN$1,Formulacion!$1:$1,0),FALSE)="NA","NA",IF(D50=0,"",VLOOKUP($B50,Formulacion!$A:$BE,MATCH(AN$1,Formulacion!$1:$1,0),FALSE))) -> 0206170220032403 | AO50: LABTM1 | AP50: HO | AQ50: 3AL | AR50: 002 | AV50: =IF(VLOOKUP($B50,Formulacion!$A:$BE,MATCH(AV$1,Formulacion!$1:$1,0),FALSE)="NA","NA",VLOOKUP(CONCATENATE(AO50,AP50,AQ50,AR50,AS50,AT50,AU50),ValoresReferenciales!$A:$D,4,FALSE)) -> 15.63451684 | AW50: =IF(VLOOKUP($B50,Formulacion!$A:$BE,MATCH(AW$1,Formulacion!$1:$1,0),FALSE)="NA","NA",HLOOKUP(VLOOKUP($B50,Formulacion!$A:$BE,MATCH(AW$1,Formulacion!$1:$1,0),FALSE),$Q:$Z,ROW(AW50),FALSE)) -> 123 | AX50: 22.06536585 | AY50: 1 | AZ50: =IF(VLOOKUP($B50,Formulacion!$A:$BE,MATCH(AZ$1,Formulacion!$1:$1,0),FALSE)="NA",1,VLOOKUP($B50,Formulacion!$A:$BE,MATCH(AZ$1,Formulacion!$1:$1,0),FALSE)) -> 1 | BA50: =IF(VLOOKUP($B50,Formulacion!$A:$BE,MATCH(BA$1,Formulacion!$1:$1,0),FALSE)="NA",1,VLOOKUP($B50,Formulacion!$A:$BE,MATCH(BA$1,Formulacion!$1:$1,0),FALSE)) -> 1 | BB50: 2714.04 | BC50: 2714.04
A51: CC-01-AD EDECHI 2011.xls | B51: DLABT | C51: 301012010090314 | D51: DLABTM100000P000HOC2ALA006 | E51: 2011-02-16 | F51: DAVID (CABECERA | G51: 0 | H51: 51.5 | I51: 88.4 | J51: 0 | K51: 0 | L51: 0 | M51: 0 | N51: 139.9 | O51: 578 | P51: 0 | Q51: =IF(OR(VLOOKUP($B51,Formulacion!$A:$BE,MATCH(Q$1,Formulacion!$1:$1,0),FALSE)="NA",$D51=0),"NA",IF($B51="DLABT",MID($D51,PosteInicioBT,PosteFinBT-PosteInicioBT+1)*1,MID($D51,PosteInicio,PosteFin-PosteInicio+1)*1)) -> 0 | R51: =IF(OR(VLOOKUP($B51,Formulacion!$A:$BE,MATCH(R$1,Formulacion!$1:$1,0),FALSE)="NA",$D51=0),"NA",IF(OR($B51="DLABT",$B51="DLSBT"),MID($D51,CondInicioBT,CondFinBT-CondInicioBT+1)*1,MID($D51,CondInicio,CondFin-CondInicio+1)*1)) -> 0 | S51: SP | T51: =IF(OR(VLOOKUP($B51,Formulacion!$A:$BE,MATCH(T$1,Formulacion!$1:$1,0),FALSE)="NA",$D51=0),"NA",IF($B51="DLSBT",MID($D51,ZanjaInicioBT,ZanjaFinBT-ZanjaInicioBT+1)*1,MID($D51,ZanjaInicio,ZanjaFin-ZanjaInicio+1)*1)) -> NA | U51: 1 | V51: =IF(OR(VLOOKUP($B51,Formulacion!$A:$BE,MATCH(V$1,Formulacion!$1:$1,0),FALSE)="NA",$D51=0),"NA",MID($D51,m2Inicio+INDIRECT(B51),m2Fin-m2Inicio+1)*1) -> NA | W51: =IF(OR(VLOOKUP($B51,Formulacion!$A:$BE,MATCH(W$1,Formulacion!$1:$1,0),FALSE)="NA",$D51=0),"NA",RIGHT($D51,4)*1) -> NA | X51: =IF(OR(VLOOKUP($B51,Formulacion!$A:$BE,MATCH(X$1,Formulacion!$1:$1,0),FALSE)="NA",$D51=0),"NA",RIGHT($D51,3)*1) -> NA | Y51: 1 | Z51: =IF(VLOOKUP($B51,Formulacion!$A:$BE,MATCH(Z$1,Formulacion!$1:$1,0),FALSE)="NA",1,IF(V51<=m2Min,0,1)) -> 1 | AA51: =IF(VLOOKUP($B51,Formulacion!$A:$BE,MATCH(AA$1,Formulacion!$1:$1,0),FALSE)="NA",1,IF(OR(E51<=FechaMin,E51>FechaMax),0,1)) -> 1 | AB51: =IF(VLOOKUP($B51,Formulacion!$A:$BE,MATCH(AB$1,Formulacion!$1:$1,0),FALSE)="NA",1,IF(H51<=MaterialesMin,0,1)) -> 1 | AC51: =IF(VLOOKUP($B51,Formulacion!$A:$BE,MATCH(AC$1,Formulacion!$1:$1,0),FALSE)="NA",1,IF(N51=0,0,IF(OR(I51/N51<=MObraMin,I51/N51>=MObraMax),MDOmin,1))) -> 1 | AD51: =IF(VLOOKUP($B51,Formulacion!$A:$BE,MATCH(AD$1,Formulacion!$1:$1,0),FALSE)="NA",1,IF(N51<=CostoTotalMin,0,1)) -> 1 | AE51: =IF(VLOOKUP($B51,Formulacion!$A:$BE,MATCH(AE$1,Formulacion!$1:$1,0),FALSE)="NA",1,IF(Q51<=PostesMin,0,1)) -> 0 | AF51: =IF(VLOOKUP($B51,Formulacion!$A:$BE,MATCH(AF$1,Formulacion!$1:$1,0),FALSE)="NA",1,IF(R51<=INDIRECT(VLOOKUP(B51,Formulacion!$A:$BE,2,FALSE)),0,1)) -> 0 | AG51: 0 | AH51: 0 | AJ51: =IF(VLOOKUP($B51,Formulacion!$A:$BE,MATCH(AJ$1,Formulacion!$1:$1,0),FALSE)="NA","NA",HLOOKUP(VLOOKUP($B51,Formulacion!$A:$BE,MATCH(AJ$1,Formulacion!$1:$1,0),FALSE),$Q:$Z,ROW(AJ51),FALSE)) -> SP | AK51: =IF(VLOOKUP($B51,Formulacion!$A:$BE,MATCH(AK$1,Formulacion!$1:$1,0),FALSE)="NA",1,VLOOKUP($B51,Formulacion!$A:$BE,MATCH(AK$1,Formulacion!$1:$1,0),FALSE)) -> 30 | AL51: =IF(VLOOKUP($B51,Formulacion!$A:$BE,MATCH(AL$1,Formulacion!$1:$1,0),FALSE)="NA",1,VLOOKUP($B51,Formulacion!$A:$BE,MATCH(AL$1,Formulacion!$1:$1,0),FALSE)) -> 0.3 | AM51: NC | AN51: =IF(VLOOKUP($B51,Formulacion!$A:$BE,MATCH(AN$1,Formulacion!$1:$1,0),FALSE)="NA","NA",IF(D51=0,"",VLOOKUP($B51,Formulacion!$A:$BE,MATCH(AN$1,Formulacion!$1:$1,0),FALSE))) -> 0206170220032403 | AO51: LABTM1 | AP51: HO | AQ51: 2AL | AR51: 006 | AV51: =IF(VLOOKUP($B51,Formulacion!$A:$BE,MATCH(AV$1,Formulacion!$1:$1,0),FALSE)="NA","NA",VLOOKUP(CONCATENATE(AO51,AP51,AQ51,AR51,AS51,AT51,AU51),ValoresReferenciales!$A:$D,4,FALSE)) -> 18.09655661 | AW51: =IF(VLOOKUP($B51,Formulacion!$A:$BE,MATCH(AW$1,Formulacion!$1:$1,0),FALSE)="NA","NA",HLOOKUP(VLOOKUP($B51,Formulacion!$A:$BE,MATCH(AW$1,Formulacion!$1:$1,0),FALSE),$Q:$Z,ROW(AW51),FALSE)) -> 0 | AX51: 0 | AY51: 1 | AZ51: =IF(VLOOKUP($B51,Formulacion!$A:$BE,MATCH(AZ$1,Formulacion!$1:$1,0),FALSE)="NA",1,VLOOKUP($B51,Formulacion!$A:$BE,MATCH(AZ$1,Formulacion!$1:$1,0),FALSE)) -> 1 | BA51: =IF(VLOOKUP($B51,Formulacion!$A:$BE,MATCH(BA$1,Formulacion!$1:$1,0),FALSE)="NA",1,VLOOKUP($B51,Formulacion!$A:$BE,MATCH(BA$1,Formulacion!$1:$1,0),FALSE)) -> 1 | BB51: 0 | BC51: 139.9
A52: CC-01-AD EDECHI 2011.xls | B52: DLABT | C52: 301012010090394 | D52: DLABTM100000P000HOC2ALA006 | E52: 2011-02-16 | F52: DAVID (CABECERA | G52: 0 | H52: 0 | I52: 142.38 | J52: 0 | K52: 0 | L52: 0 | M52: 0 | N52: 142.38 | O52: 731 | P52: 0 | Q52: =IF(OR(VLOOKUP($B52,Formulacion!$A:$BE,MATCH(Q$1,Formulacion!$1:$1,0),FALSE)="NA",$D52=0),"NA",IF($B52="DLABT",MID($D52,PosteInicioBT,PosteFinBT-PosteInicioBT+1)*1,MID($D52,PosteInicio,PosteFin-PosteInicio+1)*1)) -> 0 | R52: =IF(OR(VLOOKUP($B52,Formulacion!$A:$BE,MATCH(R$1,Formulacion!$1:$1,0),FALSE)="NA",$D52=0),"NA",IF(OR($B52="DLABT",$B52="DLSBT"),MID($D52,CondInicioBT,CondFinBT-CondInicioBT+1)*1,MID($D52,CondInicio,CondFin-CondInicio+1)*1)) -> 0 | S52: SP | T52: =IF(OR(VLOOKUP($B52,Formulacion!$A:$BE,MATCH(T$1,Formulacion!$1:$1,0),FALSE)="NA",$D52=0),"NA",IF($B52="DLSBT",MID($D52,ZanjaInicioBT,ZanjaFinBT-ZanjaInicioBT+1)*1,MID($D52,ZanjaInicio,ZanjaFin-ZanjaInicio+1)*1)) -> NA | U52: 1 | V52: =IF(OR(VLOOKUP($B52,Formulacion!$A:$BE,MATCH(V$1,Formulacion!$1:$1,0),FALSE)="NA",$D52=0),"NA",MID($D52,m2Inicio+INDIRECT(B52),m2Fin-m2Inicio+1)*1) -> NA | W52: =IF(OR(VLOOKUP($B52,Formulacion!$A:$BE,MATCH(W$1,Formulacion!$1:$1,0),FALSE)="NA",$D52=0),"NA",RIGHT($D52,4)*1) -> NA | X52: =IF(OR(VLOOKUP($B52,Formulacion!$A:$BE,MATCH(X$1,Formulacion!$1:$1,0),FALSE)="NA",$D52=0),"NA",RIGHT($D52,3)*1) -> NA | Y52: 1 | Z52: =IF(VLOOKUP($B52,Formulacion!$A:$BE,MATCH(Z$1,Formulacion!$1:$1,0),FALSE)="NA",1,IF(V52<=m2Min,0,1)) -> 1 | AA52: =IF(VLOOKUP($B52,Formulacion!$A:$BE,MATCH(AA$1,Formulacion!$1:$1,0),FALSE)="NA",1,IF(OR(E52<=FechaMin,E52>FechaMax),0,1)) -> 1 | AB52: =IF(VLOOKUP($B52,Formulacion!$A:$BE,MATCH(AB$1,Formulacion!$1:$1,0),FALSE)="NA",1,IF(H52<=MaterialesMin,0,1)) -> 0 | AC52: =IF(VLOOKUP($B52,Formulacion!$A:$BE,MATCH(AC$1,Formulacion!$1:$1,0),FALSE)="NA",1,IF(N52=0,0,IF(OR(I52/N52<=MObraMin,I52/N52>=MObraMax),MDOmin,1))) -> 0 | AD52: =IF(VLOOKUP($B52,Formulacion!$A:$BE,MATCH(AD$1,Formulacion!$1:$1,0),FALSE)="NA",1,IF(N52<=CostoTotalMin,0,1)) -> 1 | AE52: =IF(VLOOKUP($B52,Formulacion!$A:$BE,MATCH(AE$1,Formulacion!$1:$1,0),FALSE)="NA",1,IF(Q52<=PostesMin,0,1)) -> 0 | AF52: =IF(VLOOKUP($B52,Formulacion!$A:$BE,MATCH(AF$1,Formulacion!$1:$1,0),FALSE)="NA",1,IF(R52<=INDIRECT(VLOOKUP(B52,Formulacion!$A:$BE,2,FALSE)),0,1)) -> 0 | AG52: 0 | AH52: 0 | AJ52: =IF(VLOOKUP($B52,Formulacion!$A:$BE,MATCH(AJ$1,Formulacion!$1:$1,0),FALSE)="NA","NA",HLOOKUP(VLOOKUP($B52,Formulacion!$A:$BE,MATCH(AJ$1,Formulacion!$1:$1,0),FALSE),$Q:$Z,ROW(AJ52),FALSE)) -> SP | AK52: =IF(VLOOKUP($B52,Formulacion!$A:$BE,MATCH(AK$1,Formulacion!$1:$1,0),FALSE)="NA",1,VLOOKUP($B52,Formulacion!$A:$BE,MATCH(AK$1,Formulacion!$1:$1,0),FALSE)) -> 30 | AL52: =IF(VLOOKUP($B52,Formulacion!$A:$BE,MATCH(AL$1,Formulacion!$1:$1,0),FALSE)="NA",1,VLOOKUP($B52,Formulacion!$A:$BE,MATCH(AL$1,Formulacion!$1:$1,0),FALSE)) -> 0.3 | AM52: NC | AN52: =IF(VLOOKUP($B52,Formulacion!$A:$BE,MATCH(AN$1,Formulacion!$1:$1,0),FALSE)="NA","NA",IF(D52=0,"",VLOOKUP($B52,Formulacion!$A:$BE,MATCH(AN$1,Formulacion!$1:$1,0),FALSE))) -> 0206170220032403 | AO52: LABTM1 | AP52: HO | AQ52: 2AL | AR52: 006 | AV52: =IF(VLOOKUP($B52,Formulacion!$A:$BE,MATCH(AV$1,Formulacion!$1:$1,0),FALSE)="NA","NA",VLOOKUP(CONCATENATE(AO52,AP52,AQ52,AR52,AS52,AT52,AU52),ValoresReferenciales!$A:$D,4,FALSE)) -> 18.09655661 | AW52: =IF(VLOOKUP($B52,Formulacion!$A:$BE,MATCH(AW$1,Formulacion!$1:$1,0),FALSE)="NA","NA",HLOOKUP(VLOOKUP($B52,Formulacion!$A:$BE,MATCH(AW$1,Formulacion!$1:$1,0),FALSE),$Q:$Z,ROW(AW52),FALSE)) -> 0 | AX52: 0 | AY52: 1 | AZ52: =IF(VLOOKUP($B52,Formulacion!$A:$BE,MATCH(AZ$1,Formulacion!$1:$1,0),FALSE)="NA",1,VLOOKUP($B52,Formulacion!$A:$BE,MATCH(AZ$1,Formulacion!$1:$1,0),FALSE)) -> 1 | BA52: =IF(VLOOKUP($B52,Formulacion!$A:$BE,MATCH(BA$1,Formulacion!$1:$1,0),FALSE)="NA",1,VLOOKUP($B52,Formulacion!$A:$BE,MATCH(BA$1,Formulacion!$1:$1,0),FALSE)) -> 1 | BB52: 0 | BC52: 142.38
A53: CC-01-AD EDECHI 2011.xls | B53: DLABT | C53: 301012010090438 | D53: DLABTM100000P000HOC2ALA006 | E53: 2011-03-31 | F53: HATO VIEJO O EL | G53: 0 | H53: 27.64 | I53: 457.78 | J53: 0 | K53: 0 | L53: 0 | M53: 0 | N53: 485.42 | O53: 806 | P53: 0 | Q53: =IF(OR(VLOOKUP($B53,Formulacion!$A:$BE,MATCH(Q$1,Formulacion!$1:$1,0),FALSE)="NA",$D53=0),"NA",IF($B53="DLABT",MID($D53,PosteInicioBT,PosteFinBT-PosteInicioBT+1)*1,MID($D53,PosteInicio,PosteFin-PosteInicio+1)*1)) -> 0 | R53: =IF(OR(VLOOKUP($B53,Formulacion!$A:$BE,MATCH(R$1,Formulacion!$1:$1,0),FALSE)="NA",$D53=0),"NA",IF(OR($B53="DLABT",$B53="DLSBT"),MID($D53,CondInicioBT,CondFinBT-CondInicioBT+1)*1,MID($D53,CondInicio,CondFin-CondInicio+1)*1)) -> 0 | S53: SP | T53: =IF(OR(VLOOKUP($B53,Formulacion!$A:$BE,MATCH(T$1,Formulacion!$1:$1,0),FALSE)="NA",$D53=0),"NA",IF($B53="DLSBT",MID($D53,ZanjaInicioBT,ZanjaFinBT-ZanjaInicioBT+1)*1,MID($D53,ZanjaInicio,ZanjaFin-ZanjaInicio+1)*1)) -> NA | U53: 1 | V53: =IF(OR(VLOOKUP($B53,Formulacion!$A:$BE,MATCH(V$1,Formulacion!$1:$1,0),FALSE)="NA",$D53=0),"NA",MID($D53,m2Inicio+INDIRECT(B53),m2Fin-m2Inicio+1)*1) -> NA | W53: =IF(OR(VLOOKUP($B53,Formulacion!$A:$BE,MATCH(W$1,Formulacion!$1:$1,0),FALSE)="NA",$D53=0),"NA",RIGHT($D53,4)*1) -> NA | X53: =IF(OR(VLOOKUP($B53,Formulacion!$A:$BE,MATCH(X$1,Formulacion!$1:$1,0),FALSE)="NA",$D53=0),"NA",RIGHT($D53,3)*1) -> NA | Y53: 1 | Z53: =IF(VLOOKUP($B53,Formulacion!$A:$BE,MATCH(Z$1,Formulacion!$1:$1,0),FALSE)="NA",1,IF(V53<=m2Min,0,1)) -> 1 | AA53: =IF(VLOOKUP($B53,Formulacion!$A:$BE,MATCH(AA$1,Formulacion!$1:$1,0),FALSE)="NA",1,IF(OR(E53<=FechaMin,E53>FechaMax),0,1)) -> 1 | AB53: =IF(VLOOKUP($B53,Formulacion!$A:$BE,MATCH(AB$1,Formulacion!$1:$1,0),FALSE)="NA",1,IF(H53<=MaterialesMin,0,1)) -> 1 | AC53: =IF(VLOOKUP($B53,Formulacion!$A:$BE,MATCH(AC$1,Formulacion!$1:$1,0),FALSE)="NA",1,IF(N53=0,0,IF(OR(I53/N53<=MObraMin,I53/N53>=MObraMax),MDOmin,1))) -> 1 | AD53: =IF(VLOOKUP($B53,Formulacion!$A:$BE,MATCH(AD$1,Formulacion!$1:$1,0),FALSE)="NA",1,IF(N53<=CostoTotalMin,0,1)) -> 1 | AE53: =IF(VLOOKUP($B53,Formulacion!$A:$BE,MATCH(AE$1,Formulacion!$1:$1,0),FALSE)="NA",1,IF(Q53<=PostesMin,0,1)) -> 0 | AF53: =IF(VLOOKUP($B53,Formulacion!$A:$BE,MATCH(AF$1,Formulacion!$1:$1,0),FALSE)="NA",1,IF(R53<=INDIRECT(VLOOKUP(B53,Formulacion!$A:$BE,2,FALSE)),0,1)) -> 0 | AG53: 0 | AH53: 0 | AJ53: =IF(VLOOKUP($B53,Formulacion!$A:$BE,MATCH(AJ$1,Formulacion!$1:$1,0),FALSE)="NA","NA",HLOOKUP(VLOOKUP($B53,Formulacion!$A:$BE,MATCH(AJ$1,Formulacion!$1:$1,0),FALSE),$Q:$Z,ROW(AJ53),FALSE)) -> SP | AK53: =IF(VLOOKUP($B53,Formulacion!$A:$BE,MATCH(AK$1,Formulacion!$1:$1,0),FALSE)="NA",1,VLOOKUP($B53,Formulacion!$A:$BE,MATCH(AK$1,Formulacion!$1:$1,0),FALSE)) -> 30 | AL53: =IF(VLOOKUP($B53,Formulacion!$A:$BE,MATCH(AL$1,Formulacion!$1:$1,0),FALSE)="NA",1,VLOOKUP($B53,Formulacion!$A:$BE,MATCH(AL$1,Formulacion!$1:$1,0),FALSE)) -> 0.3 | AM53: NC | AN53: =IF(VLOOKUP($B53,Formulacion!$A:$BE,MATCH(AN$1,Formulacion!$1:$1,0),FALSE)="NA","NA",IF(D53=0,"",VLOOKUP($B53,Formulacion!$A:$BE,MATCH(AN$1,Formulacion!$1:$1,0),FALSE))) -> 0206170220032403 | AO53: LABTM1 | AP53: HO | AQ53: 2AL | AR53: 006 | AV53: =IF(VLOOKUP($B53,Formulacion!$A:$BE,MATCH(AV$1,Formulacion!$1:$1,0),FALSE)="NA","NA",VLOOKUP(CONCATENATE(AO53,AP53,AQ53,AR53,AS53,AT53,AU53),ValoresReferenciales!$A:$D,4,FALSE)) -> 18.09655661 | AW53: =IF(VLOOKUP($B53,Formulacion!$A:$BE,MATCH(AW$1,Formulacion!$1:$1,0),FALSE)="NA","NA",HLOOKUP(VLOOKUP($B53,Formulacion!$A:$BE,MATCH(AW$1,Formulacion!$1:$1,0),FALSE),$Q:$Z,ROW(AW53),FALSE)) -> 0 | AX53: 0 | AY53: 1 | AZ53: =IF(VLOOKUP($B53,Formulacion!$A:$BE,MATCH(AZ$1,Formulacion!$1:$1,0),FALSE)="NA",1,VLOOKUP($B53,Formulacion!$A:$BE,MATCH(AZ$1,Formulacion!$1:$1,0),FALSE)) -> 1 | BA53: =IF(VLOOKUP($B53,Formulacion!$A:$BE,MATCH(BA$1,Formulacion!$1:$1,0),FALSE)="NA",1,VLOOKUP($B53,Formulacion!$A:$BE,MATCH(BA$1,Formulacion!$1:$1,0),FALSE)) -> 1 | BB53: 0 | BC53: 485.42
A54: CC-01-AD EDECHI 2011.xls | B54: DLABT | C54: 301012010090459 | D54: DLABTM100235P006HOC3ALA1/0 | E54: 2011-08-10 | F54: LA CONCEPCION ( | G54: 235 | H54: 3669.66 | I54: 833.29 | J54: 0 | K54: 499.85 | L54: 0 | M54: 0 | N54: 5002.8 | O54: 686 | P54: 0 | Q54: =IF(OR(VLOOKUP($B54,Formulacion!$A:$BE,MATCH(Q$1,Formulacion!$1:$1,0),FALSE)="NA",$D54=0),"NA",IF($B54="DLABT",MID($D54,PosteInicioBT,PosteFinBT-PosteInicioBT+1)*1,MID($D54,PosteInicio,PosteFin-PosteInicio+1)*1)) -> 6 | R54: =IF(OR(VLOOKUP($B54,Formulacion!$A:$BE,MATCH(R$1,Formulacion!$1:$1,0),FALSE)="NA",$D54=0),"NA",IF(OR($B54="DLABT",$B54="DLSBT"),MID($D54,CondInicioBT,CondFinBT-CondInicioBT+1)*1,MID($D54,CondInicio,CondFin-CondInicio+1)*1)) -> 235 | S54: 39.16666667 | T54: =IF(OR(VLOOKUP($B54,Formulacion!$A:$BE,MATCH(T$1,Formulacion!$1:$1,0),FALSE)="NA",$D54=0),"NA",IF($B54="DLSBT",MID($D54,ZanjaInicioBT,ZanjaFinBT-ZanjaInicioBT+1)*1,MID($D54,ZanjaInicio,ZanjaFin-ZanjaInicio+1)*1)) -> NA | U54: 1 | V54: =IF(OR(VLOOKUP($B54,Formulacion!$A:$BE,MATCH(V$1,Formulacion!$1:$1,0),FALSE)="NA",$D54=0),"NA",MID($D54,m2Inicio+INDIRECT(B54),m2Fin-m2Inicio+1)*1) -> NA | W54: =IF(OR(VLOOKUP($B54,Formulacion!$A:$BE,MATCH(W$1,Formulacion!$1:$1,0),FALSE)="NA",$D54=0),"NA",RIGHT($D54,4)*1) -> NA | X54: =IF(OR(VLOOKUP($B54,Formulacion!$A:$BE,MATCH(X$1,Formulacion!$1:$1,0),FALSE)="NA",$D54=0),"NA",RIGHT($D54,3)*1) -> NA | Y54: 1 | Z54: =IF(VLOOKUP($B54,Formulacion!$A:$BE,MATCH(Z$1,Formulacion!$1:$1,0),FALSE)="NA",1,IF(V54<=m2Min,0,1)) -> 1 | AA54: =IF(VLOOKUP($B54,Formulacion!$A:$BE,MATCH(AA$1,Formulacion!$1:$1,0),FALSE)="NA",1,IF(OR(E54<=FechaMin,E54>FechaMax),0,1)) -> 1 | AB54: =IF(VLOOKUP($B54,Formulacion!$A:$BE,MATCH(AB$1,Formulacion!$1:$1,0),FALSE)="NA",1,IF(H54<=MaterialesMin,0,1)) -> 1 | AC54: =IF(VLOOKUP($B54,Formulacion!$A:$BE,MATCH(AC$1,Formulacion!$1:$1,0),FALSE)="NA",1,IF(N54=0,0,IF(OR(I54/N54<=MObraMin,I54/N54>=MObraMax),MDOmin,1))) -> 1 | AD54: =IF(VLOOKUP($B54,Formulacion!$A:$BE,MATCH(AD$1,Formulacion!$1:$1,0),FALSE)="NA",1,IF(N54<=CostoTotalMin,0,1)) -> 1 | AE54: =IF(VLOOKUP($B54,Formulacion!$A:$BE,MATCH(AE$1,Formulacion!$1:$1,0),FALSE)="NA",1,IF(Q54<=PostesMin,0,1)) -> 1 | AF54: =IF(VLOOKUP($B54,Formulacion!$A:$BE,MATCH(AF$1,Formulacion!$1:$1,0),FALSE)="NA",1,IF(R54<=INDIRECT(VLOOKUP(B54,Formulacion!$A:$BE,2,FALSE)),0,1)) -> 1 | AG54: 1 | AH54: 5002.8 | AJ54: =IF(VLOOKUP($B54,Formulacion!$A:$BE,MATCH(AJ$1,Formulacion!$1:$1,0),FALSE)="NA","NA",HLOOKUP(VLOOKUP($B54,Formulacion!$A:$BE,MATCH(AJ$1,Formulacion!$1:$1,0),FALSE),$Q:$Z,ROW(AJ54),FALSE)) -> 39.16666667 | AK54: =IF(VLOOKUP($B54,Formulacion!$A:$BE,MATCH(AK$1,Formulacion!$1:$1,0),FALSE)="NA",1,VLOOKUP($B54,Formulacion!$A:$BE,MATCH(AK$1,Formulacion!$1:$1,0),FALSE)) -> 30 | AL54: =IF(VLOOKUP($B54,Formulacion!$A:$BE,MATCH(AL$1,Formulacion!$1:$1,0),FALSE)="NA",1,VLOOKUP($B54,Formulacion!$A:$BE,MATCH(AL$1,Formulacion!$1:$1,0),FALSE)) -> 0.3 | AM54: NC | AN54: =IF(VLOOKUP($B54,Formulacion!$A:$BE,MATCH(AN$1,Formulacion!$1:$1,0),FALSE)="NA","NA",IF(D54=0,"",VLOOKUP($B54,Formulacion!$A:$BE,MATCH(AN$1,Formulacion!$1:$1,0),FALSE))) -> 0206170220032403 | AO54: LABTM1 | AP54: HO | AQ54: 3AL | AR54: 1/0 | AV54: =IF(VLOOKUP($B54,Formulacion!$A:$BE,MATCH(AV$1,Formulacion!$1:$1,0),FALSE)="NA","NA",VLOOKUP(CONCATENATE(AO54,AP54,AQ54,AR54,AS54,AT54,AU54),ValoresReferenciales!$A:$D,4,FALSE)) -> 17.37168537 | AW54: =IF(VLOOKUP($B54,Formulacion!$A:$BE,MATCH(AW$1,Formulacion!$1:$1,0),FALSE)="NA","NA",HLOOKUP(VLOOKUP($B54,Formulacion!$A:$BE,MATCH(AW$1,Formulacion!$1:$1,0),FALSE),$Q:$Z,ROW(AW54),FALSE)) -> 235 | AX54: 21.28851064 | AY54: 1 | AZ54: =IF(VLOOKUP($B54,Formulacion!$A:$BE,MATCH(AZ$1,Formulacion!$1:$1,0),FALSE)="NA",1,VLOOKUP($B54,Formulacion!$A:$BE,MATCH(AZ$1,Formulacion!$1:$1,0),FALSE)) -> 1 | BA54: =IF(VLOOKUP($B54,Formulacion!$A:$BE,MATCH(BA$1,Formulacion!$1:$1,0),FALSE)="NA",1,VLOOKUP($B54,Formulacion!$A:$BE,MATCH(BA$1,Formulacion!$1:$1,0),FALSE)) -> 1 | BB54: 5002.8 | BC54: 5002.8
A55: CC-01-AD EDECHI 2011.xls | B55: DLABT | C55: 301012010090495 | D55: DLABTM100017P001HOC3ALA006 | E55: 2011-04-15 | F55: MONTE LIRIO | G55: 17 | H55: 158.98 | I55: 75.97 | J55: 0 | K55: 36.21 | L55: 0 | M55: 0 | N55: 271.16 | O55: 53 | P55: 0 | Q55: =IF(OR(VLOOKUP($B55,Formulacion!$A:$BE,MATCH(Q$1,Formulacion!$1:$1,0),FALSE)="NA",$D55=0),"NA",IF($B55="DLABT",MID($D55,PosteInicioBT,PosteFinBT-PosteInicioBT+1)*1,MID($D55,PosteInicio,PosteFin-PosteInicio+1)*1)) -> 1 | R55: =IF(OR(VLOOKUP($B55,Formulacion!$A:$BE,MATCH(R$1,Formulacion!$1:$1,0),FALSE)="NA",$D55=0),"NA",IF(OR($B55="DLABT",$B55="DLSBT"),MID($D55,CondInicioBT,CondFinBT-CondInicioBT+1)*1,MID($D55,CondInicio,CondFin-CondInicio+1)*1)) -> 17 | S55: 17 | T55: =IF(OR(VLOOKUP($B55,Formulacion!$A:$BE,MATCH(T$1,Formulacion!$1:$1,0),FALSE)="NA",$D55=0),"NA",IF($B55="DLSBT",MID($D55,ZanjaInicioBT,ZanjaFinBT-ZanjaInicioBT+1)*1,MID($D55,ZanjaInicio,ZanjaFin-ZanjaInicio+1)*1)) -> NA | U55: 1 | V55: =IF(OR(VLOOKUP($B55,Formulacion!$A:$BE,MATCH(V$1,Formulacion!$1:$1,0),FALSE)="NA",$D55=0),"NA",MID($D55,m2Inicio+INDIRECT(B55),m2Fin-m2Inicio+1)*1) -> NA | W55: =IF(OR(VLOOKUP($B55,Formulacion!$A:$BE,MATCH(W$1,Formulacion!$1:$1,0),FALSE)="NA",$D55=0),"NA",RIGHT($D55,4)*1) -> NA | X55: =IF(OR(VLOOKUP($B55,Formulacion!$A:$BE,MATCH(X$1,Formulacion!$1:$1,0),FALSE)="NA",$D55=0),"NA",RIGHT($D55,3)*1) -> NA | Y55: 1 | Z55: =IF(VLOOKUP($B55,Formulacion!$A:$BE,MATCH(Z$1,Formulacion!$1:$1,0),FALSE)="NA",1,IF(V55<=m2Min,0,1)) -> 1 | AA55: =IF(VLOOKUP($B55,Formulacion!$A:$BE,MATCH(AA$1,Formulacion!$1:$1,0),FALSE)="NA",1,IF(OR(E55<=FechaMin,E55>FechaMax),0,1)) -> 1 | AB55: =IF(VLOOKUP($B55,Formulacion!$A:$BE,MATCH(AB$1,Formulacion!$1:$1,0),FALSE)="NA",1,IF(H55<=MaterialesMin,0,1)) -> 1 | AC55: =IF(VLOOKUP($B55,Formulacion!$A:$BE,MATCH(AC$1,Formulacion!$1:$1,0),FALSE)="NA",1,IF(N55=0,0,IF(OR(I55/N55<=MObraMin,I55/N55>=MObraMax),MDOmin,1))) -> 1 | AD55: =IF(VLOOKUP($B55,Formulacion!$A:$BE,MATCH(AD$1,Formulacion!$1:$1,0),FALSE)="NA",1,IF(N55<=CostoTotalMin,0,1)) -> 1 | AE55: =IF(VLOOKUP($B55,Formulacion!$A:$BE,MATCH(AE$1,Formulacion!$1:$1,0),FALSE)="NA",1,IF(Q55<=PostesMin,0,1)) -> 0 | AF55: =IF(VLOOKUP($B55,Formulacion!$A:$BE,MATCH(AF$1,Formulacion!$1:$1,0),FALSE)="NA",1,IF(R55<=INDIRECT(VLOOKUP(B55,Formulacion!$A:$BE,2,FALSE)),0,1)) -> 0 | AG55: 0 | AH55: 0 | AJ55: =IF(VLOOKUP($B55,Formulacion!$A:$BE,MATCH(AJ$1,Formulacion!$1:$1,0),FALSE)="NA","NA",HLOOKUP(VLOOKUP($B55,Formulacion!$A:$BE,MATCH(AJ$1,Formulacion!$1:$1,0),FALSE),$Q:$Z,ROW(AJ55),FALSE)) -> 17 | AK55: =IF(VLOOKUP($B55,Formulacion!$A:$BE,MATCH(AK$1,Formulacion!$1:$1,0),FALSE)="NA",1,VLOOKUP($B55,Formulacion!$A:$BE,MATCH(AK$1,Formulacion!$1:$1,0),FALSE)) -> 30 | AL55: =IF(VLOOKUP($B55,Formulacion!$A:$BE,MATCH(AL$1,Formulacion!$1:$1,0),FALSE)="NA",1,VLOOKUP($B55,Formulacion!$A:$BE,MATCH(AL$1,Formulacion!$1:$1,0),FALSE)) -> 0.3 | AM55: CU | AN55: =IF(VLOOKUP($B55,Formulacion!$A:$BE,MATCH(AN$1,Formulacion!$1:$1,0),FALSE)="NA","NA",IF(D55=0,"",VLOOKUP($B55,Formulacion!$A:$BE,MATCH(AN$1,Formulacion!$1:$1,0),FALSE))) -> 0206170220032403 | AO55: LABTM1 | AP55: HO | AQ55: 3AL | AR55: 006 | AV55: =IF(VLOOKUP($B55,Formulacion!$A:$BE,MATCH(AV$1,Formulacion!$1:$1,0),FALSE)="NA","NA",VLOOKUP(CONCATENATE(AO55,AP55,AQ55,AR55,AS55,AT55,AU55),ValoresReferenciales!$A:$D,4,FALSE)) -> 14.76593257 | AW55: =IF(VLOOKUP($B55,Formulacion!$A:$BE,MATCH(AW$1,Formulacion!$1:$1,0),FALSE)="NA","NA",HLOOKUP(VLOOKUP($B55,Formulacion!$A:$BE,MATCH(AW$1,Formulacion!$1:$1,0),FALSE),$Q:$Z,ROW(AW55),FALSE)) -> 17 | AX55: 15.95058824 | AY55: 0.9257296564 | AZ55: =IF(VLOOKUP($B55,Formulacion!$A:$BE,MATCH(AZ$1,Formulacion!$1:$1,0),FALSE)="NA",1,VLOOKUP($B55,Formulacion!$A:$BE,MATCH(AZ$1,Formulacion!$1:$1,0),FALSE)) -> 1 | BA55: =IF(VLOOKUP($B55,Formulacion!$A:$BE,MATCH(BA$1,Formulacion!$1:$1,0),FALSE)="NA",1,VLOOKUP($B55,Formulacion!$A:$BE,MATCH(BA$1,Formulacion!$1:$1,0),FALSE)) -> 1 | BB55: 0 | BC55: 271.16
A56: CC-01-AD EDECHI 2011.xls | B56: DLABT | C56: 301012010090495 | D56: DLABTM100170P002HOC3ALA002 | E56: 2011-04-15 | F56: MONTE LIRIO | G56: 170 | H56: 1589.74 | I56: 759.63 | J56: 0 | K56: 362.07 | L56: 0 | M56: 0 | N56: 2711.44 | O56: 54 | P56: 0 | Q56: =IF(OR(VLOOKUP($B56,Formulacion!$A:$BE,MATCH(Q$1,Formulacion!$1:$1,0),FALSE)="NA",$D56=0),"NA",IF($B56="DLABT",MID($D56,PosteInicioBT,PosteFinBT-PosteInicioBT+1)*1,MID($D56,PosteInicio,PosteFin-PosteInicio+1)*1)) -> 2 | R56: =IF(OR(VLOOKUP($B56,Formulacion!$A:$BE,MATCH(R$1,Formulacion!$1:$1,0),FALSE)="NA",$D56=0),"NA",IF(OR($B56="DLABT",$B56="DLSBT"),MID($D56,CondInicioBT,CondFinBT-CondInicioBT+1)*1,MID($D56,CondInicio,CondFin-CondInicio+1)*1)) -> 170 | S56: 85 | T56: =IF(OR(VLOOKUP($B56,Formulacion!$A:$BE,MATCH(T$1,Formulacion!$1:$1,0),FALSE)="NA",$D56=0),"NA",IF($B56="DLSBT",MID($D56,ZanjaInicioBT,ZanjaFinBT-ZanjaInicioBT+1)*1,MID($D56,ZanjaInicio,ZanjaFin-ZanjaInicio+1)*1)) -> NA | U56: 1 | V56: =IF(OR(VLOOKUP($B56,Formulacion!$A:$BE,MATCH(V$1,Formulacion!$1:$1,0),FALSE)="NA",$D56=0),"NA",MID($D56,m2Inicio+INDIRECT(B56),m2Fin-m2Inicio+1)*1) -> NA | W56: =IF(OR(VLOOKUP($B56,Formulacion!$A:$BE,MATCH(W$1,Formulacion!$1:$1,0),FALSE)="NA",$D56=0),"NA",RIGHT($D56,4)*1) -> NA | X56: =IF(OR(VLOOKUP($B56,Formulacion!$A:$BE,MATCH(X$1,Formulacion!$1:$1,0),FALSE)="NA",$D56=0),"NA",RIGHT($D56,3)*1) -> NA | Y56: 1 | Z56: =IF(VLOOKUP($B56,Formulacion!$A:$BE,MATCH(Z$1,Formulacion!$1:$1,0),FALSE)="NA",1,IF(V56<=m2Min,0,1)) -> 1 | AA56: =IF(VLOOKUP($B56,Formulacion!$A:$BE,MATCH(AA$1,Formulacion!$1:$1,0),FALSE)="NA",1,IF(OR(E56<=FechaMin,E56>FechaMax),0,1)) -> 1 | AB56: =IF(VLOOKUP($B56,Formulacion!$A:$BE,MATCH(AB$1,Formulacion!$1:$1,0),FALSE)="NA",1,IF(H56<=MaterialesMin,0,1)) -> 1 | AC56: =IF(VLOOKUP($B56,Formulacion!$A:$BE,MATCH(AC$1,Formulacion!$1:$1,0),FALSE)="NA",1,IF(N56=0,0,IF(OR(I56/N56<=MObraMin,I56/N56>=MObraMax),MDOmin,1))) -> 1 | AD56: =IF(VLOOKUP($B56,Formulacion!$A:$BE,MATCH(AD$1,Formulacion!$1:$1,0),FALSE)="NA",1,IF(N56<=CostoTotalMin,0,1)) -> 1 | AE56: =IF(VLOOKUP($B56,Formulacion!$A:$BE,MATCH(AE$1,Formulacion!$1:$1,0),FALSE)="NA",1,IF(Q56<=PostesMin,0,1)) -> 0 | AF56: =IF(VLOOKUP($B56,Formulacion!$A:$BE,MATCH(AF$1,Formulacion!$1:$1,0),FALSE)="NA",1,IF(R56<=INDIRECT(VLOOKUP(B56,Formulacion!$A:$BE,2,FALSE)),0,1)) -> 1 | AG56: 1 | AH56: 2711.44 | AJ56: =IF(VLOOKUP($B56,Formulacion!$A:$BE,MATCH(AJ$1,Formulacion!$1:$1,0),FALSE)="NA","NA",HLOOKUP(VLOOKUP($B56,Formulacion!$A:$BE,MATCH(AJ$1,Formulacion!$1:$1,0),FALSE),$Q:$Z,ROW(AJ56),FALSE)) -> 85 | AK56: =IF(VLOOKUP($B56,Formulacion!$A:$BE,MATCH(AK$1,Formulacion!$1:$1,0),FALSE)="NA",1,VLOOKUP($B56,Formulacion!$A:$BE,MATCH(AK$1,Formulacion!$1:$1,0),FALSE)) -> 30 | AL56: =IF(VLOOKUP($B56,Formulacion!$A:$BE,MATCH(AL$1,Formulacion!$1:$1,0),FALSE)="NA",1,VLOOKUP($B56,Formulacion!$A:$BE,MATCH(AL$1,Formulacion!$1:$1,0),FALSE)) -> 0.3 | AM56: NC | AN56: =IF(VLOOKUP($B56,Formulacion!$A:$BE,MATCH(AN$1,Formulacion!$1:$1,0),FALSE)="NA","NA",IF(D56=0,"",VLOOKUP($B56,Formulacion!$A:$BE,MATCH(AN$1,Formulacion!$1:$1,0),FALSE))) -> 0206170220032403 | AO56: LABTM1 | AP56: HO | AQ56: 3AL | AR56: 002 | AV56: =IF(VLOOKUP($B56,Formulacion!$A:$BE,MATCH(AV$1,Formulacion!$1:$1,0),FALSE)="NA","NA",VLOOKUP(CONCATENATE(AO56,AP56,AQ56,AR56,AS56,AT56,AU56),ValoresReferenciales!$A:$D,4,FALSE)) -> 15.63451684 | AW56: =IF(VLOOKUP($B56,Formulacion!$A:$BE,MATCH(AW$1,Formulacion!$1:$1,0),FALSE)="NA","NA",HLOOKUP(VLOOKUP($B56,Formulacion!$A:$BE,MATCH(AW$1,Formulacion!$1:$1,0),FALSE),$Q:$Z,ROW(AW56),FALSE)) -> 170 | AX56: 15.94964706 | AY56: 1 | AZ56: =IF(VLOOKUP($B56,Formulacion!$A:$BE,MATCH(AZ$1,Formulacion!$1:$1,0),FALSE)="NA",1,VLOOKUP($B56,Formulacion!$A:$BE,MATCH(AZ$1,Formulacion!$1:$1,0),FALSE)) -> 1 | BA56: =IF(VLOOKUP($B56,Formulacion!$A:$BE,MATCH(BA$1,Formulacion!$1:$1,0),FALSE)="NA",1,VLOOKUP($B56,Formulacion!$A:$BE,MATCH(BA$1,Formulacion!$1:$1,0),FALSE)) -> 1 | BB56: 2711.44 | BC56: 2711.44
A57: CC-01-AD EDECHI 2011.xls | B57: DLABT | C57: 301012010090578 | D57: DLABTT100091P001HOC4ALA4/0 | E57: 2011-03-03 | F57: DAVID (CABECERA | G57: 91 | H57: 1312.47 | I57: 460.58 | J57: 0 | K57: 0 | L57: 0 | M57: 0 | N57: 1773.05 | O57: 632 | P57: 0 | Q57: =IF(OR(VLOOKUP($B57,Formulacion!$A:$BE,MATCH(Q$1,Formulacion!$1:$1,0),FALSE)="NA",$D57=0),"NA",IF($B57="DLABT",MID($D57,PosteInicioBT,PosteFinBT-PosteInicioBT+1)*1,MID($D57,PosteInicio,PosteFin-PosteInicio+1)*1)) -> 1 | R57: =IF(OR(VLOOKUP($B57,Formulacion!$A:$BE,MATCH(R$1,Formulacion!$1:$1,0),FALSE)="NA",$D57=0),"NA",IF(OR($B57="DLABT",$B57="DLSBT"),MID($D57,CondInicioBT,CondFinBT-CondInicioBT+1)*1,MID($D57,CondInicio,CondFin-CondInicio+1)*1)) -> 91 | S57: 91 | T57: =IF(OR(VLOOKUP($B57,Formulacion!$A:$BE,MATCH(T$1,Formulacion!$1:$1,0),FALSE)="NA",$D57=0),"NA",IF($B57="DLSBT",MID($D57,ZanjaInicioBT,ZanjaFinBT-ZanjaInicioBT+1)*1,MID($D57,ZanjaInicio,ZanjaFin-ZanjaInicio+1)*1)) -> NA | U57: 1 | V57: =IF(OR(VLOOKUP($B57,Formulacion!$A:$BE,MATCH(V$1,Formulacion!$1:$1,0),FALSE)="NA",$D57=0),"NA",MID($D57,m2Inicio+INDIRECT(B57),m2Fin-m2Inicio+1)*1) -> NA | W57: =IF(OR(VLOOKUP($B57,Formulacion!$A:$BE,MATCH(W$1,Formulacion!$1:$1,0),FALSE)="NA",$D57=0),"NA",RIGHT($D57,4)*1) -> NA | X57: =IF(OR(VLOOKUP($B57,Formulacion!$A:$BE,MATCH(X$1,Formulacion!$1:$1,0),FALSE)="NA",$D57=0),"NA",RIGHT($D57,3)*1) -> NA | Y57: 1 | Z57: =IF(VLOOKUP($B57,Formulacion!$A:$BE,MATCH(Z$1,Formulacion!$1:$1,0),FALSE)="NA",1,IF(V57<=m2Min,0,1)) -> 1 | AA57: =IF(VLOOKUP($B57,Formulacion!$A:$BE,MATCH(AA$1,Formulacion!$1:$1,0),FALSE)="NA",1,IF(OR(E57<=FechaMin,E57>FechaMax),0,1)) -> 1 | AB57: =IF(VLOOKUP($B57,Formulacion!$A:$BE,MATCH(AB$1,Formulacion!$1:$1,0),FALSE)="NA",1,IF(H57<=MaterialesMin,0,1)) -> 1 | AC57: =IF(VLOOKUP($B57,Formulacion!$A:$BE,MATCH(AC$1,Formulacion!$1:$1,0),FALSE)="NA",1,IF(N57=0,0,IF(OR(I57/N57<=MObraMin,I57/N57>=MObraMax),MDOmin,1))) -> 1 | AD57: =IF(VLOOKUP($B57,Formulacion!$A:$BE,MATCH(AD$1,Formulacion!$1:$1,0),FALSE)="NA",1,IF(N57<=CostoTotalMin,0,1)) -> 1 | AE57: =IF(VLOOKUP($B57,Formulacion!$A:$BE,MATCH(AE$1,Formulacion!$1:$1,0),FALSE)="NA",1,IF(Q57<=PostesMin,0,1)) -> 0 | AF57: =IF(VLOOKUP($B57,Formulacion!$A:$BE,MATCH(AF$1,Formulacion!$1:$1,0),FALSE)="NA",1,IF(R57<=INDIRECT(VLOOKUP(B57,Formulacion!$A:$BE,2,FALSE)),0,1)) -> 1 | AG57: 1 | AH57: 1773.05 | AJ57: =IF(VLOOKUP($B57,Formulacion!$A:$BE,MATCH(AJ$1,Formulacion!$1:$1,0),FALSE)="NA","NA",HLOOKUP(VLOOKUP($B57,Formulacion!$A:$BE,MATCH(AJ$1,Formulacion!$1:$1,0),FALSE),$Q:$Z,ROW(AJ57),FALSE)) -> 91 | AK57: =IF(VLOOKUP($B57,Formulacion!$A:$BE,MATCH(AK$1,Formulacion!$1:$1,0),FALSE)="NA",1,VLOOKUP($B57,Formulacion!$A:$BE,MATCH(AK$1,Formulacion!$1:$1,0),FALSE)) -> 30 | AL57: =IF(VLOOKUP($B57,Formulacion!$A:$BE,MATCH(AL$1,Formulacion!$1:$1,0),FALSE)="NA",1,VLOOKUP($B57,Formulacion!$A:$BE,MATCH(AL$1,Formulacion!$1:$1,0),FALSE)) -> 0.3 | AM57: NC | AN57: =IF(VLOOKUP($B57,Formulacion!$A:$BE,MATCH(AN$1,Formulacion!$1:$1,0),FALSE)="NA","NA",IF(D57=0,"",VLOOKUP($B57,Formulacion!$A:$BE,MATCH(AN$1,Formulacion!$1:$1,0),FALSE))) -> 0206170220032403 | AO57: LABTT1 | AP57: HO | AQ57: 4AL | AR57: 4/0 | AV57: =IF(VLOOKUP($B57,Formulacion!$A:$BE,MATCH(AV$1,Formulacion!$1:$1,0),FALSE)="NA","NA",VLOOKUP(CONCATENATE(AO57,AP57,AQ57,AR57,AS57,AT57,AU57),ValoresReferenciales!$A:$D,4,FALSE)) -> 30.51534454 | AW57: =IF(VLOOKUP($B57,Formulacion!$A:$BE,MATCH(AW$1,Formulacion!$1:$1,0),FALSE)="NA","NA",HLOOKUP(VLOOKUP($B57,Formulacion!$A:$BE,MATCH(AW$1,Formulacion!$1:$1,0),FALSE),$Q:$Z,ROW(AW57),FALSE)) -> 91 | AX57: 19.48406593 | AY57: 1 | AZ57: =IF(VLOOKUP($B57,Formulacion!$A:$BE,MATCH(AZ$1,Formulacion!$1:$1,0),FALSE)="NA",1,VLOOKUP($B57,Formulacion!$A:$BE,MATCH(AZ$1,Formulacion!$1:$1,0),FALSE)) -> 1 | BA57: =IF(VLOOKUP($B57,Formulacion!$A:$BE,MATCH(BA$1,Formulacion!$1:$1,0),FALSE)="NA",1,VLOOKUP($B57,Formulacion!$A:$BE,MATCH(BA$1,Formulacion!$1:$1,0),FALSE)) -> 1 | BB57: 1773.05 | BC57: 1773.05
A58: CC-01-AD EDECHI 2011.xls | B58: DLABT | C58: 301012010090627 | D58: DLABTM100043P000HOC3ALA006 | E58: 2011-03-04 | F58: JUAY | G58: 43 | H58: 470.72 | I58: 244.43 | J58: 0 | K58: 0 | L58: 0 | M58: 0 | N58: 715.15 | O58: 302 | P58: 0 | Q58: =IF(OR(VLOOKUP($B58,Formulacion!$A:$BE,MATCH(Q$1,Formulacion!$1:$1,0),FALSE)="NA",$D58=0),"NA",IF($B58="DLABT",MID($D58,PosteInicioBT,PosteFinBT-PosteInicioBT+1)*1,MID($D58,PosteInicio,PosteFin-PosteInicio+1)*1)) -> 0 | R58: =IF(OR(VLOOKUP($B58,Formulacion!$A:$BE,MATCH(R$1,Formulacion!$1:$1,0),FALSE)="NA",$D58=0),"NA",IF(OR($B58="DLABT",$B58="DLSBT"),MID($D58,CondInicioBT,CondFinBT-CondInicioBT+1)*1,MID($D58,CondInicio,CondFin-CondInicio+1)*1)) -> 43 | S58: SP | T58: =IF(OR(VLOOKUP($B58,Formulacion!$A:$BE,MATCH(T$1,Formulacion!$1:$1,0),FALSE)="NA",$D58=0),"NA",IF($B58="DLSBT",MID($D58,ZanjaInicioBT,ZanjaFinBT-ZanjaInicioBT+1)*1,MID($D58,ZanjaInicio,ZanjaFin-ZanjaInicio+1)*1)) -> NA | U58: 1 | V58: =IF(OR(VLOOKUP($B58,Formulacion!$A:$BE,MATCH(V$1,Formulacion!$1:$1,0),FALSE)="NA",$D58=0),"NA",MID($D58,m2Inicio+INDIRECT(B58),m2Fin-m2Inicio+1)*1) -> NA | W58: =IF(OR(VLOOKUP($B58,Formulacion!$A:$BE,MATCH(W$1,Formulacion!$1:$1,0),FALSE)="NA",$D58=0),"NA",RIGHT($D58,4)*1) -> NA | X58: =IF(OR(VLOOKUP($B58,Formulacion!$A:$BE,MATCH(X$1,Formulacion!$1:$1,0),FALSE)="NA",$D58=0),"NA",RIGHT($D58,3)*1) -> NA | Y58: 1 | Z58: =IF(VLOOKUP($B58,Formulacion!$A:$BE,MATCH(Z$1,Formulacion!$1:$1,0),FALSE)="NA",1,IF(V58<=m2Min,0,1)) -> 1 | AA58: =IF(VLOOKUP($B58,Formulacion!$A:$BE,MATCH(AA$1,Formulacion!$1:$1,0),FALSE)="NA",1,IF(OR(E58<=FechaMin,E58>FechaMax),0,1)) -> 1 | AB58: =IF(VLOOKUP($B58,Formulacion!$A:$BE,MATCH(AB$1,Formulacion!$1:$1,0),FALSE)="NA",1,IF(H58<=MaterialesMin,0,1)) -> 1 | AC58: =IF(VLOOKUP($B58,Formulacion!$A:$BE,MATCH(AC$1,Formulacion!$1:$1,0),FALSE)="NA",1,IF(N58=0,0,IF(OR(I58/N58<=MObraMin,I58/N58>=MObraMax),MDOmin,1))) -> 1 | AD58: =IF(VLOOKUP($B58,Formulacion!$A:$BE,MATCH(AD$1,Formulacion!$1:$1,0),FALSE)="NA",1,IF(N58<=CostoTotalMin,0,1)) -> 1 | AE58: =IF(VLOOKUP($B58,Formulacion!$A:$BE,MATCH(AE$1,Formulacion!$1:$1,0),FALSE)="NA",1,IF(Q58<=PostesMin,0,1)) -> 0 | AF58: =IF(VLOOKUP($B58,Formulacion!$A:$BE,MATCH(AF$1,Formulacion!$1:$1,0),FALSE)="NA",1,IF(R58<=INDIRECT(VLOOKUP(B58,Formulacion!$A:$BE,2,FALSE)),0,1)) -> 0 | AG58: 0 | AH58: 0 | AJ58: =IF(VLOOKUP($B58,Formulacion!$A:$BE,MATCH(AJ$1,Formulacion!$1:$1,0),FALSE)="NA","NA",HLOOKUP(VLOOKUP($B58,Formulacion!$A:$BE,MATCH(AJ$1,Formulacion!$1:$1,0),FALSE),$Q:$Z,ROW(AJ58),FALSE)) -> SP | AK58: =IF(VLOOKUP($B58,Formulacion!$A:$BE,MATCH(AK$1,Formulacion!$1:$1,0),FALSE)="NA",1,VLOOKUP($B58,Formulacion!$A:$BE,MATCH(AK$1,Formulacion!$1:$1,0),FALSE)) -> 30 | AL58: =IF(VLOOKUP($B58,Formulacion!$A:$BE,MATCH(AL$1,Formulacion!$1:$1,0),FALSE)="NA",1,VLOOKUP($B58,Formulacion!$A:$BE,MATCH(AL$1,Formulacion!$1:$1,0),FALSE)) -> 0.3 | AM58: NC | AN58: =IF(VLOOKUP($B58,Formulacion!$A:$BE,MATCH(AN$1,Formulacion!$1:$1,0),FALSE)="NA","NA",IF(D58=0,"",VLOOKUP($B58,Formulacion!$A:$BE,MATCH(AN$1,Formulacion!$1:$1,0),FALSE))) -> 0206170220032403 | AO58: LABTM1 | AP58: HO | AQ58: 3AL | AR58: 006 | AV58: =IF(VLOOKUP($B58,Formulacion!$A:$BE,MATCH(AV$1,Formulacion!$1:$1,0),FALSE)="NA","NA",VLOOKUP(CONCATENATE(AO58,AP58,AQ58,AR58,AS58,AT58,AU58),ValoresReferenciales!$A:$D,4,FALSE)) -> 14.76593257 | AW58: =IF(VLOOKUP($B58,Formulacion!$A:$BE,MATCH(AW$1,Formulacion!$1:$1,0),FALSE)="NA","NA",HLOOKUP(VLOOKUP($B58,Formulacion!$A:$BE,MATCH(AW$1,Formulacion!$1:$1,0),FALSE),$Q:$Z,ROW(AW58),FALSE)) -> 43 | AX58: 16.63139535 | AY58: 1 | AZ58: =IF(VLOOKUP($B58,Formulacion!$A:$BE,MATCH(AZ$1,Formulacion!$1:$1,0),FALSE)="NA",1,VLOOKUP($B58,Formulacion!$A:$BE,MATCH(AZ$1,Formulacion!$1:$1,0),FALSE)) -> 1 | BA58: =IF(VLOOKUP($B58,Formulacion!$A:$BE,MATCH(BA$1,Formulacion!$1:$1,0),FALSE)="NA",1,VLOOKUP($B58,Formulacion!$A:$BE,MATCH(BA$1,Formulacion!$1:$1,0),FALSE)) -> 1 | BB58: 0 | BC58: 715.15
A59: CC-01-AD EDECHI 2011.xls | B59: DLABT | C59: 301012010090627 | D59: DLABTM100060P001HOC3ALA002 | E59: 2011-03-04 | F59: JUAY | G59: 60 | H59: 656.82 | I59: 341.06 | J59: 0 | K59: 0 | L59: 0 | M59: 0 | N59: 997.88 | O59: 303 | P59: 0 | Q59: =IF(OR(VLOOKUP($B59,Formulacion!$A:$BE,MATCH(Q$1,Formulacion!$1:$1,0),FALSE)="NA",$D59=0),"NA",IF($B59="DLABT",MID($D59,PosteInicioBT,PosteFinBT-PosteInicioBT+1)*1,MID($D59,PosteInicio,PosteFin-PosteInicio+1)*1)) -> 1 | R59: =IF(OR(VLOOKUP($B59,Formulacion!$A:$BE,MATCH(R$1,Formulacion!$1:$1,0),FALSE)="NA",$D59=0),"NA",IF(OR($B59="DLABT",$B59="DLSBT"),MID($D59,CondInicioBT,CondFinBT-CondInicioBT+1)*1,MID($D59,CondInicio,CondFin-CondInicio+1)*1)) -> 60 | S59: 60 | T59: =IF(OR(VLOOKUP($B59,Formulacion!$A:$BE,MATCH(T$1,Formulacion!$1:$1,0),FALSE)="NA",$D59=0),"NA",IF($B59="DLSBT",MID($D59,ZanjaInicioBT,ZanjaFinBT-ZanjaInicioBT+1)*1,MID($D59,ZanjaInicio,ZanjaFin-ZanjaInicio+1)*1)) -> NA | U59: 1 | V59: =IF(OR(VLOOKUP($B59,Formulacion!$A:$BE,MATCH(V$1,Formulacion!$1:$1,0),FALSE)="NA",$D59=0),"NA",MID($D59,m2Inicio+INDIRECT(B59),m2Fin-m2Inicio+1)*1) -> NA | W59: =IF(OR(VLOOKUP($B59,Formulacion!$A:$BE,MATCH(W$1,Formulacion!$1:$1,0),FALSE)="NA",$D59=0),"NA",RIGHT($D59,4)*1) -> NA | X59: =IF(OR(VLOOKUP($B59,Formulacion!$A:$BE,MATCH(X$1,Formulacion!$1:$1,0),FALSE)="NA",$D59=0),"NA",RIGHT($D59,3)*1) -> NA | Y59: 1 | Z59: =IF(VLOOKUP($B59,Formulacion!$A:$BE,MATCH(Z$1,Formulacion!$1:$1,0),FALSE)="NA",1,IF(V59<=m2Min,0,1)) -> 1 | AA59: =IF(VLOOKUP($B59,Formulacion!$A:$BE,MATCH(AA$1,Formulacion!$1:$1,0),FALSE)="NA",1,IF(OR(E59<=FechaMin,E59>FechaMax),0,1)) -> 1 | AB59: =IF(VLOOKUP($B59,Formulacion!$A:$BE,MATCH(AB$1,Formulacion!$1:$1,0),FALSE)="NA",1,IF(H59<=MaterialesMin,0,1)) -> 1 | AC59: =IF(VLOOKUP($B59,Formulacion!$A:$BE,MATCH(AC$1,Formulacion!$1:$1,0),FALSE)="NA",1,IF(N59=0,0,IF(OR(I59/N59<=MObraMin,I59/N59>=MObraMax),MDOmin,1))) -> 1 | AD59: =IF(VLOOKUP($B59,Formulacion!$A:$BE,MATCH(AD$1,Formulacion!$1:$1,0),FALSE)="NA",1,IF(N59<=CostoTotalMin,0,1)) -> 1 | AE59: =IF(VLOOKUP($B59,Formulacion!$A:$BE,MATCH(AE$1,Formulacion!$1:$1,0),FALSE)="NA",1,IF(Q59<=PostesMin,0,1)) -> 0 | AF59: =IF(VLOOKUP($B59,Formulacion!$A:$BE,MATCH(AF$1,Formulacion!$1:$1,0),FALSE)="NA",1,IF(R59<=INDIRECT(VLOOKUP(B59,Formulacion!$A:$BE,2,FALSE)),0,1)) -> 1 | AG59: 1 | AH59: 997.88 | AJ59: =IF(VLOOKUP($B59,Formulacion!$A:$BE,MATCH(AJ$1,Formulacion!$1:$1,0),FALSE)="NA","NA",HLOOKUP(VLOOKUP($B59,Formulacion!$A:$BE,MATCH(AJ$1,Formulacion!$1:$1,0),FALSE),$Q:$Z,ROW(AJ59),FALSE)) -> 60 | AK59: =IF(VLOOKUP($B59,Formulacion!$A:$BE,MATCH(AK$1,Formulacion!$1:$1,0),FALSE)="NA",1,VLOOKUP($B59,Formulacion!$A:$BE,MATCH(AK$1,Formulacion!$1:$1,0),FALSE)) -> 30 | AL59: =IF(VLOOKUP($B59,Formulacion!$A:$BE,MATCH(AL$1,Formulacion!$1:$1,0),FALSE)="NA",1,VLOOKUP($B59,Formulacion!$A:$BE,MATCH(AL$1,Formulacion!$1:$1,0),FALSE)) -> 0.3 | AM59: NC | AN59: =IF(VLOOKUP($B59,Formulacion!$A:$BE,MATCH(AN$1,Formulacion!$1:$1,0),FALSE)="NA","NA",IF(D59=0,"",VLOOKUP($B59,Formulacion!$A:$BE,MATCH(AN$1,Formulacion!$1:$1,0),FALSE))) -> 0206170220032403 | AO59: LABTM1 | AP59: HO | AQ59: 3AL | AR59: 002 | AV59: =IF(VLOOKUP($B59,Formulacion!$A:$BE,MATCH(AV$1,Formulacion!$1:$1,0),FALSE)="NA","NA",VLOOKUP(CONCATENATE(AO59,AP59,AQ59,AR59,AS59,AT59,AU59),ValoresReferenciales!$A:$D,4,FALSE)) -> 15.63451684 | AW59: =IF(VLOOKUP($B59,Formulacion!$A:$BE,MATCH(AW$1,Formulacion!$1:$1,0),FALSE)="NA","NA",HLOOKUP(VLOOKUP($B59,Formulacion!$A:$BE,MATCH(AW$1,Formulacion!$1:$1,0),FALSE),$Q:$Z,ROW(AW59),FALSE)) -> 60 | AX59: 16.63133333 | AY59: 1 | AZ59: =IF(VLOOKUP($B59,Formulacion!$A:$BE,MATCH(AZ$1,Formulacion!$1:$1,0),FALSE)="NA",1,VLOOKUP($B59,Formulacion!$A:$BE,MATCH(AZ$1,Formulacion!$1:$1,0),FALSE)) -> 1 | BA59: =IF(VLOOKUP($B59,Formulacion!$A:$BE,MATCH(BA$1,Formulacion!$1:$1,0),FALSE)="NA",1,VLOOKUP($B59,Formulacion!$A:$BE,MATCH(BA$1,Formulacion!$1:$1,0),FALSE)) -> 1 | BB59: 997.88 | BC59: 997.88
A60: CC-01-AD EDECHI 2011.xls | B60: DLABT | C60: 301012010100051 | D60: DLABTM100030P000HOC3ALA006 | E60: 2011-03-31 | F60: EL ARENAL | G60: 30 | H60: 140.13 | I60: 64.59 | J60: 0 | K60: 0 | L60: 0 | M60: 0 | N60: 204.72 | O60: 140 | P60: 0 | Q60: =IF(OR(VLOOKUP($B60,Formulacion!$A:$BE,MATCH(Q$1,Formulacion!$1:$1,0),FALSE)="NA",$D60=0),"NA",IF($B60="DLABT",MID($D60,PosteInicioBT,PosteFinBT-PosteInicioBT+1)*1,MID($D60,PosteInicio,PosteFin-PosteInicio+1)*1)) -> 0 | R60: =IF(OR(VLOOKUP($B60,Formulacion!$A:$BE,MATCH(R$1,Formulacion!$1:$1,0),FALSE)="NA",$D60=0),"NA",IF(OR($B60="DLABT",$B60="DLSBT"),MID($D60,CondInicioBT,CondFinBT-CondInicioBT+1)*1,MID($D60,CondInicio,CondFin-CondInicio+1)*1)) -> 30 | S60: SP | T60: =IF(OR(VLOOKUP($B60,Formulacion!$A:$BE,MATCH(T$1,Formulacion!$1:$1,0),FALSE)="NA",$D60=0),"NA",IF($B60="DLSBT",MID($D60,ZanjaInicioBT,ZanjaFinBT-ZanjaInicioBT+1)*1,MID($D60,ZanjaInicio,ZanjaFin-ZanjaInicio+1)*1)) -> NA | U60: 1 | V60: =IF(OR(VLOOKUP($B60,Formulacion!$A:$BE,MATCH(V$1,Formulacion!$1:$1,0),FALSE)="NA",$D60=0),"NA",MID($D60,m2Inicio+INDIRECT(B60),m2Fin-m2Inicio+1)*1) -> NA | W60: =IF(OR(VLOOKUP($B60,Formulacion!$A:$BE,MATCH(W$1,Formulacion!$1:$1,0),FALSE)="NA",$D60=0),"NA",RIGHT($D60,4)*1) -> NA | X60: =IF(OR(VLOOKUP($B60,Formulacion!$A:$BE,MATCH(X$1,Formulacion!$1:$1,0),FALSE)="NA",$D60=0),"NA",RIGHT($D60,3)*1) -> NA | Y60: 1 | Z60: =IF(VLOOKUP($B60,Formulacion!$A:$BE,MATCH(Z$1,Formulacion!$1:$1,0),FALSE)="NA",1,IF(V60<=m2Min,0,1)) -> 1 | AA60: =IF(VLOOKUP($B60,Formulacion!$A:$BE,MATCH(AA$1,Formulacion!$1:$1,0),FALSE)="NA",1,IF(OR(E60<=FechaMin,E60>FechaMax),0,1)) -> 1 | AB60: =IF(VLOOKUP($B60,Formulacion!$A:$BE,MATCH(AB$1,Formulacion!$1:$1,0),FALSE)="NA",1,IF(H60<=MaterialesMin,0,1)) -> 1 | AC60: =IF(VLOOKUP($B60,Formulacion!$A:$BE,MATCH(AC$1,Formulacion!$1:$1,0),FALSE)="NA",1,IF(N60=0,0,IF(OR(I60/N60<=MObraMin,I60/N60>=MObraMax),MDOmin,1))) -> 1 | AD60: =IF(VLOOKUP($B60,Formulacion!$A:$BE,MATCH(AD$1,Formulacion!$1:$1,0),FALSE)="NA",1,IF(N60<=CostoTotalMin,0,1)) -> 1 | AE60: =IF(VLOOKUP($B60,Formulacion!$A:$BE,MATCH(AE$1,Formulacion!$1:$1,0),FALSE)="NA",1,IF(Q60<=PostesMin,0,1)) -> 0 | AF60: =IF(VLOOKUP($B60,Formulacion!$A:$BE,MATCH(AF$1,Formulacion!$1:$1,0),FALSE)="NA",1,IF(R60<=INDIRECT(VLOOKUP(B60,Formulacion!$A:$BE,2,FALSE)),0,1)) -> 0 | AG60: 0 | AH60: 0 | AJ60: =IF(VLOOKUP($B60,Formulacion!$A:$BE,MATCH(AJ$1,Formulacion!$1:$1,0),FALSE)="NA","NA",HLOOKUP(VLOOKUP($B60,Formulacion!$A:$BE,MATCH(AJ$1,Formulacion!$1:$1,0),FALSE),$Q:$Z,ROW(AJ60),FALSE)) -> SP | AK60: =IF(VLOOKUP($B60,Formulacion!$A:$BE,MATCH(AK$1,Formulacion!$1:$1,0),FALSE)="NA",1,VLOOKUP($B60,Formulacion!$A:$BE,MATCH(AK$1,Formulacion!$1:$1,0),FALSE)) -> 30 | AL60: =IF(VLOOKUP($B60,Formulacion!$A:$BE,MATCH(AL$1,Formulacion!$1:$1,0),FALSE)="NA",1,VLOOKUP($B60,Formulacion!$A:$BE,MATCH(AL$1,Formulacion!$1:$1,0),FALSE)) -> 0.3 | AM60: NC | AN60: =IF(VLOOKUP($B60,Formulacion!$A:$BE,MATCH(AN$1,Formulacion!$1:$1,0),FALSE)="NA","NA",IF(D60=0,"",VLOOKUP($B60,Formulacion!$A:$BE,MATCH(AN$1,Formulacion!$1:$1,0),FALSE))) -> 0206170220032403 | AO60: LABTM1 | AP60: HO | AQ60: 3AL | AR60: 006 | AV60: =IF(VLOOKUP($B60,Formulacion!$A:$BE,MATCH(AV$1,Formulacion!$1:$1,0),FALSE)="NA","NA",VLOOKUP(CONCATENATE(AO60,AP60,AQ60,AR60,AS60,AT60,AU60),ValoresReferenciales!$A:$D,4,FALSE)) -> 14.76593257 | AW60: =IF(VLOOKUP($B60,Formulacion!$A:$BE,MATCH(AW$1,Formulacion!$1:$1,0),FALSE)="NA","NA",HLOOKUP(VLOOKUP($B60,Formulacion!$A:$BE,MATCH(AW$1,Formulacion!$1:$1,0),FALSE),$Q:$Z,ROW(AW60),FALSE)) -> 30 | AX60: 6.824 | AY60: 1 | AZ60: =IF(VLOOKUP($B60,Formulacion!$A:$BE,MATCH(AZ$1,Formulacion!$1:$1,0),FALSE)="NA",1,VLOOKUP($B60,Formulacion!$A:$BE,MATCH(AZ$1,Formulacion!$1:$1,0),FALSE)) -> 1 | BA60: =IF(VLOOKUP($B60,Formulacion!$A:$BE,MATCH(BA$1,Formulacion!$1:$1,0),FALSE)="NA",1,VLOOKUP($B60,Formulacion!$A:$BE,MATCH(BA$1,Formulacion!$1:$1,0),FALSE)) -> 1 | BB60: 0 | BC60: 204.72
A61: CC-01-AD EDECHI 2011.xls | B61: DLABT | C61: 301012010100051 | D61: DLABTM100096P000HOC3ALA1/0 | E61: 2011-03-31 | F61: EL ARENAL | G61: 96 | H61: 448.41 | I61: 206.68 | J61: 0 | K61: 0 | L61: 0 | M61: 0 | N61: 655.09 | O61: 141 | P61: 0 | Q61: =IF(OR(VLOOKUP($B61,Formulacion!$A:$BE,MATCH(Q$1,Formulacion!$1:$1,0),FALSE)="NA",$D61=0),"NA",IF($B61="DLABT",MID($D61,PosteInicioBT,PosteFinBT-PosteInicioBT+1)*1,MID($D61,PosteInicio,PosteFin-PosteInicio+1)*1)) -> 0 | R61: =IF(OR(VLOOKUP($B61,Formulacion!$A:$BE,MATCH(R$1,Formulacion!$1:$1,0),FALSE)="NA",$D61=0),"NA",IF(OR($B61="DLABT",$B61="DLSBT"),MID($D61,CondInicioBT,CondFinBT-CondInicioBT+1)*1,MID($D61,CondInicio,CondFin-CondInicio+1)*1)) -> 96 | S61: SP | T61: =IF(OR(VLOOKUP($B61,Formulacion!$A:$BE,MATCH(T$1,Formulacion!$1:$1,0),FALSE)="NA",$D61=0),"NA",IF($B61="DLSBT",MID($D61,ZanjaInicioBT,ZanjaFinBT-ZanjaInicioBT+1)*1,MID($D61,ZanjaInicio,ZanjaFin-ZanjaInicio+1)*1)) -> NA | U61: 1 | V61: =IF(OR(VLOOKUP($B61,Formulacion!$A:$BE,MATCH(V$1,Formulacion!$1:$1,0),FALSE)="NA",$D61=0),"NA",MID($D61,m2Inicio+INDIRECT(B61),m2Fin-m2Inicio+1)*1) -> NA | W61: =IF(OR(VLOOKUP($B61,Formulacion!$A:$BE,MATCH(W$1,Formulacion!$1:$1,0),FALSE)="NA",$D61=0),"NA",RIGHT($D61,4)*1) -> NA | X61: =IF(OR(VLOOKUP($B61,Formulacion!$A:$BE,MATCH(X$1,Formulacion!$1:$1,0),FALSE)="NA",$D61=0),"NA",RIGHT($D61,3)*1) -> NA | Y61: 1 | Z61: =IF(VLOOKUP($B61,Formulacion!$A:$BE,MATCH(Z$1,Formulacion!$1:$1,0),FALSE)="NA",1,IF(V61<=m2Min,0,1)) -> 1 | AA61: =IF(VLOOKUP($B61,Formulacion!$A:$BE,MATCH(AA$1,Formulacion!$1:$1,0),FALSE)="NA",1,IF(OR(E61<=FechaMin,E61>FechaMax),0,1)) -> 1 | AB61: =IF(VLOOKUP($B61,Formulacion!$A:$BE,MATCH(AB$1,Formulacion!$1:$1,0),FALSE)="NA",1,IF(H61<=MaterialesMin,0,1)) -> 1 | AC61: =IF(VLOOKUP($B61,Formulacion!$A:$BE,MATCH(AC$1,Formulacion!$1:$1,0),FALSE)="NA",1,IF(N61=0,0,IF(OR(I61/N61<=MObraMin,I61/N61>=MObraMax),MDOmin,1))) -> 1 | AD61: =IF(VLOOKUP($B61,Formulacion!$A:$BE,MATCH(AD$1,Formulacion!$1:$1,0),FALSE)="NA",1,IF(N61<=CostoTotalMin,0,1)) -> 1 | AE61: =IF(VLOOKUP($B61,Formulacion!$A:$BE,MATCH(AE$1,Formulacion!$1:$1,0),FALSE)="NA",1,IF(Q61<=PostesMin,0,1)) -> 0 | AF61: =IF(VLOOKUP($B61,Formulacion!$A:$BE,MATCH(AF$1,Formulacion!$1:$1,0),FALSE)="NA",1,IF(R61<=INDIRECT(VLOOKUP(B61,Formulacion!$A:$BE,2,FALSE)),0,1)) -> 1 | AG61: 1 | AH61: 655.09 | AJ61: =IF(VLOOKUP($B61,Formulacion!$A:$BE,MATCH(AJ$1,Formulacion!$1:$1,0),FALSE)="NA","NA",HLOOKUP(VLOOKUP($B61,Formulacion!$A:$BE,MATCH(AJ$1,Formulacion!$1:$1,0),FALSE),$Q:$Z,ROW(AJ61),FALSE)) -> SP | AK61: =IF(VLOOKUP($B61,Formulacion!$A:$BE,MATCH(AK$1,Formulacion!$1:$1,0),FALSE)="NA",1,VLOOKUP($B61,Formulacion!$A:$BE,MATCH(AK$1,Formulacion!$1:$1,0),FALSE)) -> 30 | AL61: =IF(VLOOKUP($B61,Formulacion!$A:$BE,MATCH(AL$1,Formulacion!$1:$1,0),FALSE)="NA",1,VLOOKUP($B61,Formulacion!$A:$BE,MATCH(AL$1,Formulacion!$1:$1,0),FALSE)) -> 0.3 | AM61: NC | AN61: =IF(VLOOKUP($B61,Formulacion!$A:$BE,MATCH(AN$1,Formulacion!$1:$1,0),FALSE)="NA","NA",IF(D61=0,"",VLOOKUP($B61,Formulacion!$A:$BE,MATCH(AN$1,Formulacion!$1:$1,0),FALSE))) -> 0206170220032403 | AO61: LABTM1 | AP61: HO | AQ61: 3AL | AR61: 1/0 | AV61: =IF(VLOOKUP($B61,Formulacion!$A:$BE,MATCH(AV$1,Formulacion!$1:$1,0),FALSE)="NA","NA",VLOOKUP(CONCATENATE(AO61,AP61,AQ61,AR61,AS61,AT61,AU61),ValoresReferenciales!$A:$D,4,FALSE)) -> 17.37168537 | AW61: =IF(VLOOKUP($B61,Formulacion!$A:$BE,MATCH(AW$1,Formulacion!$1:$1,0),FALSE)="NA","NA",HLOOKUP(VLOOKUP($B61,Formulacion!$A:$BE,MATCH(AW$1,Formulacion!$1:$1,0),FALSE),$Q:$Z,ROW(AW61),FALSE)) -> 96 | AX61: 6.823854167 | AY61: 1 | AZ61: =IF(VLOOKUP($B61,Formulacion!$A:$BE,MATCH(AZ$1,Formulacion!$1:$1,0),FALSE)="NA",1,VLOOKUP($B61,Formulacion!$A:$BE,MATCH(AZ$1,Formulacion!$1:$1,0),FALSE)) -> 1 | BA61: =IF(VLOOKUP($B61,Formulacion!$A:$BE,MATCH(BA$1,Formulacion!$1:$1,0),FALSE)="NA",1,VLOOKUP($B61,Formulacion!$A:$BE,MATCH(BA$1,Formulacion!$1:$1,0),FALSE)) -> 1 | BB61: 655.09 | BC61: 655.09
A62: CC-01-AD EDECHI 2011.xls | B62: DLABT | C62: 301012010100051 | D62: DLABTM100422P000HOC3ALA002 | E62: 2011-03-31 | F62: EL ARENAL | G62: 422 | H62: 1971.15 | I62: 908.52 | J62: 0 | K62: 0 | L62: 0 | M62: 0 | N62: 2879.67 | O62: 142 | P62: 0 | Q62: =IF(OR(VLOOKUP($B62,Formulacion!$A:$BE,MATCH(Q$1,Formulacion!$1:$1,0),FALSE)="NA",$D62=0),"NA",IF($B62="DLABT",MID($D62,PosteInicioBT,PosteFinBT-PosteInicioBT+1)*1,MID($D62,PosteInicio,PosteFin-PosteInicio+1)*1)) -> 0 | R62: =IF(OR(VLOOKUP($B62,Formulacion!$A:$BE,MATCH(R$1,Formulacion!$1:$1,0),FALSE)="NA",$D62=0),"NA",IF(OR($B62="DLABT",$B62="DLSBT"),MID($D62,CondInicioBT,CondFinBT-CondInicioBT+1)*1,MID($D62,CondInicio,CondFin-CondInicio+1)*1)) -> 422 | S62: SP | T62: =IF(OR(VLOOKUP($B62,Formulacion!$A:$BE,MATCH(T$1,Formulacion!$1:$1,0),FALSE)="NA",$D62=0),"NA",IF($B62="DLSBT",MID($D62,ZanjaInicioBT,ZanjaFinBT-ZanjaInicioBT+1)*1,MID($D62,ZanjaInicio,ZanjaFin-ZanjaInicio+1)*1)) -> NA | U62: 1 | V62: =IF(OR(VLOOKUP($B62,Formulacion!$A:$BE,MATCH(V$1,Formulacion!$1:$1,0),FALSE)="NA",$D62=0),"NA",MID($D62,m2Inicio+INDIRECT(B62),m2Fin-m2Inicio+1)*1) -> NA | W62: =IF(OR(VLOOKUP($B62,Formulacion!$A:$BE,MATCH(W$1,Formulacion!$1:$1,0),FALSE)="NA",$D62=0),"NA",RIGHT($D62,4)*1) -> NA | X62: =IF(OR(VLOOKUP($B62,Formulacion!$A:$BE,MATCH(X$1,Formulacion!$1:$1,0),FALSE)="NA",$D62=0),"NA",RIGHT($D62,3)*1) -> NA | Y62: 1 | Z62: =IF(VLOOKUP($B62,Formulacion!$A:$BE,MATCH(Z$1,Formulacion!$1:$1,0),FALSE)="NA",1,IF(V62<=m2Min,0,1)) -> 1 | AA62: =IF(VLOOKUP($B62,Formulacion!$A:$BE,MATCH(AA$1,Formulacion!$1:$1,0),FALSE)="NA",1,IF(OR(E62<=FechaMin,E62>FechaMax),0,1)) -> 1 | AB62: =IF(VLOOKUP($B62,Formulacion!$A:$BE,MATCH(AB$1,Formulacion!$1:$1,0),FALSE)="NA",1,IF(H62<=MaterialesMin,0,1)) -> 1 | AC62: =IF(VLOOKUP($B62,Formulacion!$A:$BE,MATCH(AC$1,Formulacion!$1:$1,0),FALSE)="NA",1,IF(N62=0,0,IF(OR(I62/N62<=MObraMin,I62/N62>=MObraMax),MDOmin,1))) -> 1 | AD62: =IF(VLOOKUP($B62,Formulacion!$A:$BE,MATCH(AD$1,Formulacion!$1:$1,0),FALSE)="NA",1,IF(N62<=CostoTotalMin,0,1)) -> 1 | AE62: =IF(VLOOKUP($B62,Formulacion!$A:$BE,MATCH(AE$1,Formulacion!$1:$1,0),FALSE)="NA",1,IF(Q62<=PostesMin,0,1)) -> 0 | AF62: =IF(VLOOKUP($B62,Formulacion!$A:$BE,MATCH(AF$1,Formulacion!$1:$1,0),FALSE)="NA",1,IF(R62<=INDIRECT(VLOOKUP(B62,Formulacion!$A:$BE,2,FALSE)),0,1)) -> 1 | AG62: 1 | AH62: 2879.67 | AJ62: =IF(VLOOKUP($B62,Formulacion!$A:$BE,MATCH(AJ$1,Formulacion!$1:$1,0),FALSE)="NA","NA",HLOOKUP(VLOOKUP($B62,Formulacion!$A:$BE,MATCH(AJ$1,Formulacion!$1:$1,0),FALSE),$Q:$Z,ROW(AJ62),FALSE)) -> SP | AK62: =IF(VLOOKUP($B62,Formulacion!$A:$BE,MATCH(AK$1,Formulacion!$1:$1,0),FALSE)="NA",1,VLOOKUP($B62,Formulacion!$A:$BE,MATCH(AK$1,Formulacion!$1:$1,0),FALSE)) -> 30 | AL62: =IF(VLOOKUP($B62,Formulacion!$A:$BE,MATCH(AL$1,Formulacion!$1:$1,0),FALSE)="NA",1,VLOOKUP($B62,Formulacion!$A:$BE,MATCH(AL$1,Formulacion!$1:$1,0),FALSE)) -> 0.3 | AM62: NC | AN62: =IF(VLOOKUP($B62,Formulacion!$A:$BE,MATCH(AN$1,Formulacion!$1:$1,0),FALSE)="NA","NA",IF(D62=0,"",VLOOKUP($B62,Formulacion!$A:$BE,MATCH(AN$1,Formulacion!$1:$1,0),FALSE))) -> 0206170220032403 | AO62: LABTM1 | AP62: HO | AQ62: 3AL | AR62: 002 | AV62: =IF(VLOOKUP($B62,Formulacion!$A:$BE,MATCH(AV$1,Formulacion!$1:$1,0),FALSE)="NA","NA",VLOOKUP(CONCATENATE(AO62,AP62,AQ62,AR62,AS62,AT62,AU62),ValoresReferenciales!$A:$D,4,FALSE)) -> 15.63451684 | AW62: =IF(VLOOKUP($B62,Formulacion!$A:$BE,MATCH(AW$1,Formulacion!$1:$1,0),FALSE)="NA","NA",HLOOKUP(VLOOKUP($B62,Formulacion!$A:$BE,MATCH(AW$1,Formulacion!$1:$1,0),FALSE),$Q:$Z,ROW(AW62),FALSE)) -> 422 | AX62: 6.823862559 | AY62: 1 | AZ62: =IF(VLOOKUP($B62,Formulacion!$A:$BE,MATCH(AZ$1,Formulacion!$1:$1,0),FALSE)="NA",1,VLOOKUP($B62,Formulacion!$A:$BE,MATCH(AZ$1,Formulacion!$1:$1,0),FALSE)) -> 1 | BA62: =IF(VLOOKUP($B62,Formulacion!$A:$BE,MATCH(BA$1,Formulacion!$1:$1,0),FALSE)="NA",1,VLOOKUP($B62,Formulacion!$A:$BE,MATCH(BA$1,Formulacion!$1:$1,0),FALSE)) -> 1 | BB62: 2879.67 | BC62: 2879.67
A63: CC-01-AD EDECHI 2011.xls | B63: DLABT | C63: 301012010100051 | D63: DLABTM101073P000HOC3ALA002 | E63: 2011-03-31 | F63: EL ARENAL | G63: 1073 | H63: 5011.96 | I63: 2310.05 | J63: 0 | K63: 0 | L63: 0 | M63: 0 | N63: 7322.01 | O63: 143 | P63: 0 | Q63: =IF(OR(VLOOKUP($B63,Formulacion!$A:$BE,MATCH(Q$1,Formulacion!$1:$1,0),FALSE)="NA",$D63=0),"NA",IF($B63="DLABT",MID($D63,PosteInicioBT,PosteFinBT-PosteInicioBT+1)*1,MID($D63,PosteInicio,PosteFin-PosteInicio+1)*1)) -> 0 | R63: =IF(OR(VLOOKUP($B63,Formulacion!$A:$BE,MATCH(R$1,Formulacion!$1:$1,0),FALSE)="NA",$D63=0),"NA",IF(OR($B63="DLABT",$B63="DLSBT"),MID($D63,CondInicioBT,CondFinBT-CondInicioBT+1)*1,MID($D63,CondInicio,CondFin-CondInicio+1)*1)) -> 1073 | S63: SP | T63: =IF(OR(VLOOKUP($B63,Formulacion!$A:$BE,MATCH(T$1,Formulacion!$1:$1,0),FALSE)="NA",$D63=0),"NA",IF($B63="DLSBT",MID($D63,ZanjaInicioBT,ZanjaFinBT-ZanjaInicioBT+1)*1,MID($D63,ZanjaInicio,ZanjaFin-ZanjaInicio+1)*1)) -> NA | U63: 1 | V63: =IF(OR(VLOOKUP($B63,Formulacion!$A:$BE,MATCH(V$1,Formulacion!$1:$1,0),FALSE)="NA",$D63=0),"NA",MID($D63,m2Inicio+INDIRECT(B63),m2Fin-m2Inicio+1)*1) -> NA | W63: =IF(OR(VLOOKUP($B63,Formulacion!$A:$BE,MATCH(W$1,Formulacion!$1:$1,0),FALSE)="NA",$D63=0),"NA",RIGHT($D63,4)*1) -> NA | X63: =IF(OR(VLOOKUP($B63,Formulacion!$A:$BE,MATCH(X$1,Formulacion!$1:$1,0),FALSE)="NA",$D63=0),"NA",RIGHT($D63,3)*1) -> NA | Y63: 1 | Z63: =IF(VLOOKUP($B63,Formulacion!$A:$BE,MATCH(Z$1,Formulacion!$1:$1,0),FALSE)="NA",1,IF(V63<=m2Min,0,1)) -> 1 | AA63: =IF(VLOOKUP($B63,Formulacion!$A:$BE,MATCH(AA$1,Formulacion!$1:$1,0),FALSE)="NA",1,IF(OR(E63<=FechaMin,E63>FechaMax),0,1)) -> 1 | AB63: =IF(VLOOKUP($B63,Formulacion!$A:$BE,MATCH(AB$1,Formulacion!$1:$1,0),FALSE)="NA",1,IF(H63<=MaterialesMin,0,1)) -> 1 | AC63: =IF(VLOOKUP($B63,Formulacion!$A:$BE,MATCH(AC$1,Formulacion!$1:$1,0),FALSE)="NA",1,IF(N63=0,0,IF(OR(I63/N63<=MObraMin,I63/N63>=MObraMax),MDOmin,1))) -> 1 | AD63: =IF(VLOOKUP($B63,Formulacion!$A:$BE,MATCH(AD$1,Formulacion!$1:$1,0),FALSE)="NA",1,IF(N63<=CostoTotalMin,0,1)) -> 1 | AE63: =IF(VLOOKUP($B63,Formulacion!$A:$BE,MATCH(AE$1,Formulacion!$1:$1,0),FALSE)="NA",1,IF(Q63<=PostesMin,0,1)) -> 0 | AF63: =IF(VLOOKUP($B63,Formulacion!$A:$BE,MATCH(AF$1,Formulacion!$1:$1,0),FALSE)="NA",1,IF(R63<=INDIRECT(VLOOKUP(B63,Formulacion!$A:$BE,2,FALSE)),0,1)) -> 1 | AG63: 1 | AH63: 7322.01 | AJ63: =IF(VLOOKUP($B63,Formulacion!$A:$BE,MATCH(AJ$1,Formulacion!$1:$1,0),FALSE)="NA","NA",HLOOKUP(VLOOKUP($B63,Formulacion!$A:$BE,MATCH(AJ$1,Formulacion!$1:$1,0),FALSE),$Q:$Z,ROW(AJ63),FALSE)) -> SP | AK63: =IF(VLOOKUP($B63,Formulacion!$A:$BE,MATCH(AK$1,Formulacion!$1:$1,0),FALSE)="NA",1,VLOOKUP($B63,Formulacion!$A:$BE,MATCH(AK$1,Formulacion!$1:$1,0),FALSE)) -> 30 | AL63: =IF(VLOOKUP($B63,Formulacion!$A:$BE,MATCH(AL$1,Formulacion!$1:$1,0),FALSE)="NA",1,VLOOKUP($B63,Formulacion!$A:$BE,MATCH(AL$1,Formulacion!$1:$1,0),FALSE)) -> 0.3 | AM63: NC | AN63: =IF(VLOOKUP($B63,Formulacion!$A:$BE,MATCH(AN$1,Formulacion!$1:$1,0),FALSE)="NA","NA",IF(D63=0,"",VLOOKUP($B63,Formulacion!$A:$BE,MATCH(AN$1,Formulacion!$1:$1,0),FALSE))) -> 0206170220032403 | AO63: LABTM1 | AP63: HO | AQ63: 3AL | AR63: 002 | AV63: =IF(VLOOKUP($B63,Formulacion!$A:$BE,MATCH(AV$1,Formulacion!$1:$1,0),FALSE)="NA","NA",VLOOKUP(CONCATENATE(AO63,AP63,AQ63,AR63,AS63,AT63,AU63),ValoresReferenciales!$A:$D,4,FALSE)) -> 15.63451684 | AW63: =IF(VLOOKUP($B63,Formulacion!$A:$BE,MATCH(AW$1,Formulacion!$1:$1,0),FALSE)="NA","NA",HLOOKUP(VLOOKUP($B63,Formulacion!$A:$BE,MATCH(AW$1,Formulacion!$1:$1,0),FALSE),$Q:$Z,ROW(AW63),FALSE)) -> 1073 | AX63: 6.823867661 | AY63: 1 | AZ63: =IF(VLOOKUP($B63,Formulacion!$A:$BE,MATCH(AZ$1,Formulacion!$1:$1,0),FALSE)="NA",1,VLOOKUP($B63,Formulacion!$A:$BE,MATCH(AZ$1,Formulacion!$1:$1,0),FALSE)) -> 1 | BA63: =IF(VLOOKUP($B63,Formulacion!$A:$BE,MATCH(BA$1,Formulacion!$1:$1,0),FALSE)="NA",1,VLOOKUP($B63,Formulacion!$A:$BE,MATCH(BA$1,Formulacion!$1:$1,0),FALSE)) -> 1 | BB63: 7322.01 | BC63: 7322.01
A64: CC-01-AD EDECHI 2011.xls | B64: DLABT | C64: 301012010100494 | D64: DLABTM100022P000HOC3ALA006 | E64: 2011-03-28 | F64: LOS ALGARROBOS | G64: 22 | H64: 52.6 | I64: 49.3 | J64: 0 | K64: 0 | L64: 0 | M64: 0 | N64: 101.9 | O64: 638 | P64: 0 | Q64: =IF(OR(VLOOKUP($B64,Formulacion!$A:$BE,MATCH(Q$1,Formulacion!$1:$1,0),FALSE)="NA",$D64=0),"NA",IF($B64="DLABT",MID($D64,PosteInicioBT,PosteFinBT-PosteInicioBT+1)*1,MID($D64,PosteInicio,PosteFin-PosteInicio+1)*1)) -> 0 | R64: =IF(OR(VLOOKUP($B64,Formulacion!$A:$BE,MATCH(R$1,Formulacion!$1:$1,0),FALSE)="NA",$D64=0),"NA",IF(OR($B64="DLABT",$B64="DLSBT"),MID($D64,CondInicioBT,CondFinBT-CondInicioBT+1)*1,MID($D64,CondInicio,CondFin-CondInicio+1)*1)) -> 22 | S64: SP | T64: =IF(OR(VLOOKUP($B64,Formulacion!$A:$BE,MATCH(T$1,Formulacion!$1:$1,0),FALSE)="NA",$D64=0),"NA",IF($B64="DLSBT",MID($D64,ZanjaInicioBT,ZanjaFinBT-ZanjaInicioBT+1)*1,MID($D64,ZanjaInicio,ZanjaFin-ZanjaInicio+1)*1)) -> NA | U64: 1 | V64: =IF(OR(VLOOKUP($B64,Formulacion!$A:$BE,MATCH(V$1,Formulacion!$1:$1,0),FALSE)="NA",$D64=0),"NA",MID($D64,m2Inicio+INDIRECT(B64),m2Fin-m2Inicio+1)*1) -> NA | W64: =IF(OR(VLOOKUP($B64,Formulacion!$A:$BE,MATCH(W$1,Formulacion!$1:$1,0),FALSE)="NA",$D64=0),"NA",RIGHT($D64,4)*1) -> NA | X64: =IF(OR(VLOOKUP($B64,Formulacion!$A:$BE,MATCH(X$1,Formulacion!$1:$1,0),FALSE)="NA",$D64=0),"NA",RIGHT($D64,3)*1) -> NA | Y64: 1 | Z64: =IF(VLOOKUP($B64,Formulacion!$A:$BE,MATCH(Z$1,Formulacion!$1:$1,0),FALSE)="NA",1,IF(V64<=m2Min,0,1)) -> 1 | AA64: =IF(VLOOKUP($B64,Formulacion!$A:$BE,MATCH(AA$1,Formulacion!$1:$1,0),FALSE)="NA",1,IF(OR(E64<=FechaMin,E64>FechaMax),0,1)) -> 1 | AB64: =IF(VLOOKUP($B64,Formulacion!$A:$BE,MATCH(AB$1,Formulacion!$1:$1,0),FALSE)="NA",1,IF(H64<=MaterialesMin,0,1)) -> 1 | AC64: =IF(VLOOKUP($B64,Formulacion!$A:$BE,MATCH(AC$1,Formulacion!$1:$1,0),FALSE)="NA",1,IF(N64=0,0,IF(OR(I64/N64<=MObraMin,I64/N64>=MObraMax),MDOmin,1))) -> 1 | AD64: =IF(VLOOKUP($B64,Formulacion!$A:$BE,MATCH(AD$1,Formulacion!$1:$1,0),FALSE)="NA",1,IF(N64<=CostoTotalMin,0,1)) -> 1 | AE64: =IF(VLOOKUP($B64,Formulacion!$A:$BE,MATCH(AE$1,Formulacion!$1:$1,0),FALSE)="NA",1,IF(Q64<=PostesMin,0,1)) -> 0 | AF64: =IF(VLOOKUP($B64,Formulacion!$A:$BE,MATCH(AF$1,Formulacion!$1:$1,0),FALSE)="NA",1,IF(R64<=INDIRECT(VLOOKUP(B64,Formulacion!$A:$BE,2,FALSE)),0,1)) -> 0 | AG64: 0 | AH64: 0 | AJ64: =IF(VLOOKUP($B64,Formulacion!$A:$BE,MATCH(AJ$1,Formulacion!$1:$1,0),FALSE)="NA","NA",HLOOKUP(VLOOKUP($B64,Formulacion!$A:$BE,MATCH(AJ$1,Formulacion!$1:$1,0),FALSE),$Q:$Z,ROW(AJ64),FALSE)) -> SP | AK64: =IF(VLOOKUP($B64,Formulacion!$A:$BE,MATCH(AK$1,Formulacion!$1:$1,0),FALSE)="NA",1,VLOOKUP($B64,Formulacion!$A:$BE,MATCH(AK$1,Formulacion!$1:$1,0),FALSE)) -> 30 | AL64: =IF(VLOOKUP($B64,Formulacion!$A:$BE,MATCH(AL$1,Formulacion!$1:$1,0),FALSE)="NA",1,VLOOKUP($B64,Formulacion!$A:$BE,MATCH(AL$1,Formulacion!$1:$1,0),FALSE)) -> 0.3 | AM64: NC | AN64: =IF(VLOOKUP($B64,Formulacion!$A:$BE,MATCH(AN$1,Formulacion!$1:$1,0),FALSE)="NA","NA",IF(D64=0,"",VLOOKUP($B64,Formulacion!$A:$BE,MATCH(AN$1,Formulacion!$1:$1,0),FALSE))) -> 0206170220032403 | AO64: LABTM1 | AP64: HO | AQ64: 3AL | AR64: 006 | AV64: =IF(VLOOKUP($B64,Formulacion!$A:$BE,MATCH(AV$1,Formulacion!$1:$1,0),FALSE)="NA","NA",VLOOKUP(CONCATENATE(AO64,AP64,AQ64,AR64,AS64,AT64,AU64),ValoresReferenciales!$A:$D,4,FALSE)) -> 14.76593257 | AW64: =IF(VLOOKUP($B64,Formulacion!$A:$BE,MATCH(AW$1,Formulacion!$1:$1,0),FALSE)="NA","NA",HLOOKUP(VLOOKUP($B64,Formulacion!$A:$BE,MATCH(AW$1,Formulacion!$1:$1,0),FALSE),$Q:$Z,ROW(AW64),FALSE)) -> 22 | AX64: 4.631818182 | AY64: 1 | AZ64: =IF(VLOOKUP($B64,Formulacion!$A:$BE,MATCH(AZ$1,Formulacion!$1:$1,0),FALSE)="NA",1,VLOOKUP($B64,Formulacion!$A:$BE,MATCH(AZ$1,Formulacion!$1:$1,0),FALSE)) -> 1 | BA64: =IF(VLOOKUP($B64,Formulacion!$A:$BE,MATCH(BA$1,Formulacion!$1:$1,0),FALSE)="NA",1,VLOOKUP($B64,Formulacion!$A:$BE,MATCH(BA$1,Formulacion!$1:$1,0),FALSE)) -> 1 | BB64: 0 | BC64: 101.9
A65: CC-01-AD EDECHI 2011.xls | B65: DLABT | C65: 301012010100512 | D65: DLABTM100007P001HOC3ALA006 | E65: 2011-02-18 | F65: MATA FRANCES | G65: 7 | H65: 75.79 | I65: 39.09 | J65: 0 | K65: 24.46 | L65: 0 | M65: 0 | N65: 139.34 | O65: 389 | P65: 0 | Q65: =IF(OR(VLOOKUP($B65,Formulacion!$A:$BE,MATCH(Q$1,Formulacion!$1:$1,0),FALSE)="NA",$D65=0),"NA",IF($B65="DLABT",MID($D65,PosteInicioBT,PosteFinBT-PosteInicioBT+1)*1,MID($D65,PosteInicio,PosteFin-PosteInicio+1)*1)) -> 1 | R65: =IF(OR(VLOOKUP($B65,Formulacion!$A:$BE,MATCH(R$1,Formulacion!$1:$1,0),FALSE)="NA",$D65=0),"NA",IF(OR($B65="DLABT",$B65="DLSBT"),MID($D65,CondInicioBT,CondFinBT-CondInicioBT+1)*1,MID($D65,CondInicio,CondFin-CondInicio+1)*1)) -> 7 | S65: 7 | T65: =IF(OR(VLOOKUP($B65,Formulacion!$A:$BE,MATCH(T$1,Formulacion!$1:$1,0),FALSE)="NA",$D65=0),"NA",IF($B65="DLSBT",MID($D65,ZanjaInicioBT,ZanjaFinBT-ZanjaInicioBT+1)*1,MID($D65,ZanjaInicio,ZanjaFin-ZanjaInicio+1)*1)) -> NA | U65: 1 | V65: =IF(OR(VLOOKUP($B65,Formulacion!$A:$BE,MATCH(V$1,Formulacion!$1:$1,0),FALSE)="NA",$D65=0),"NA",MID($D65,m2Inicio+INDIRECT(B65),m2Fin-m2Inicio+1)*1) -> NA | W65: =IF(OR(VLOOKUP($B65,Formulacion!$A:$BE,MATCH(W$1,Formulacion!$1:$1,0),FALSE)="NA",$D65=0),"NA",RIGHT($D65,4)*1) -> NA | X65: =IF(OR(VLOOKUP($B65,Formulacion!$A:$BE,MATCH(X$1,Formulacion!$1:$1,0),FALSE)="NA",$D65=0),"NA",RIGHT($D65,3)*1) -> NA | Y65: 1 | Z65: =IF(VLOOKUP($B65,Formulacion!$A:$BE,MATCH(Z$1,Formulacion!$1:$1,0),FALSE)="NA",1,IF(V65<=m2Min,0,1)) -> 1 | AA65: =IF(VLOOKUP($B65,Formulacion!$A:$BE,MATCH(AA$1,Formulacion!$1:$1,0),FALSE)="NA",1,IF(OR(E65<=FechaMin,E65>FechaMax),0,1)) -> 1 | AB65: =IF(VLOOKUP($B65,Formulacion!$A:$BE,MATCH(AB$1,Formulacion!$1:$1,0),FALSE)="NA",1,IF(H65<=MaterialesMin,0,1)) -> 1 | AC65: =IF(VLOOKUP($B65,Formulacion!$A:$BE,MATCH(AC$1,Formulacion!$1:$1,0),FALSE)="NA",1,IF(N65=0,0,IF(OR(I65/N65<=MObraMin,I65/N65>=MObraMax),MDOmin,1))) -> 1 | AD65: =IF(VLOOKUP($B65,Formulacion!$A:$BE,MATCH(AD$1,Formulacion!$1:$1,0),FALSE)="NA",1,IF(N65<=CostoTotalMin,0,1)) -> 1 | AE65: =IF(VLOOKUP($B65,Formulacion!$A:$BE,MATCH(AE$1,Formulacion!$1:$1,0),FALSE)="NA",1,IF(Q65<=PostesMin,0,1)) -> 0 | AF65: =IF(VLOOKUP($B65,Formulacion!$A:$BE,MATCH(AF$1,Formulacion!$1:$1,0),FALSE)="NA",1,IF(R65<=INDIRECT(VLOOKUP(B65,Formulacion!$A:$BE,2,FALSE)),0,1)) -> 0 | AG65: 0 | AH65: 0 | AJ65: =IF(VLOOKUP($B65,Formulacion!$A:$BE,MATCH(AJ$1,Formulacion!$1:$1,0),FALSE)="NA","NA",HLOOKUP(VLOOKUP($B65,Formulacion!$A:$BE,MATCH(AJ$1,Formulacion!$1:$1,0),FALSE),$Q:$Z,ROW(AJ65),FALSE)) -> 7 | AK65: =IF(VLOOKUP($B65,Formulacion!$A:$BE,MATCH(AK$1,Formulacion!$1:$1,0),FALSE)="NA",1,VLOOKUP($B65,Formulacion!$A:$BE,MATCH(AK$1,Formulacion!$1:$1,0),FALSE)) -> 30 | AL65: =IF(VLOOKUP($B65,Formulacion!$A:$BE,MATCH(AL$1,Formulacion!$1:$1,0),FALSE)="NA",1,VLOOKUP($B65,Formulacion!$A:$BE,MATCH(AL$1,Formulacion!$1:$1,0),FALSE)) -> 0.3 | AM65: CU | AN65: =IF(VLOOKUP($B65,Formulacion!$A:$BE,MATCH(AN$1,Formulacion!$1:$1,0),FALSE)="NA","NA",IF(D65=0,"",VLOOKUP($B65,Formulacion!$A:$BE,MATCH(AN$1,Formulacion!$1:$1,0),FALSE))) -> 0206170220032403 | AO65: LABTM1 | AP65: HO | AQ65: 3AL | AR65: 006 | AV65: =IF(VLOOKUP($B65,Formulacion!$A:$BE,MATCH(AV$1,Formulacion!$1:$1,0),FALSE)="NA","NA",VLOOKUP(CONCATENATE(AO65,AP65,AQ65,AR65,AS65,AT65,AU65),ValoresReferenciales!$A:$D,4,FALSE)) -> 14.76593257 | AW65: =IF(VLOOKUP($B65,Formulacion!$A:$BE,MATCH(AW$1,Formulacion!$1:$1,0),FALSE)="NA","NA",HLOOKUP(VLOOKUP($B65,Formulacion!$A:$BE,MATCH(AW$1,Formulacion!$1:$1,0),FALSE),$Q:$Z,ROW(AW65),FALSE)) -> 7 | AX65: 19.90571429 | AY65: 0.7417936556 | AZ65: =IF(VLOOKUP($B65,Formulacion!$A:$BE,MATCH(AZ$1,Formulacion!$1:$1,0),FALSE)="NA",1,VLOOKUP($B65,Formulacion!$A:$BE,MATCH(AZ$1,Formulacion!$1:$1,0),FALSE)) -> 1 | BA65: =IF(VLOOKUP($B65,Formulacion!$A:$BE,MATCH(BA$1,Formulacion!$1:$1,0),FALSE)="NA",1,VLOOKUP($B65,Formulacion!$A:$BE,MATCH(BA$1,Formulacion!$1:$1,0),FALSE)) -> 1 | BB65: 0 | BC65: 139.34
A66: CC-01-AD EDECHI 2011.xls | B66: DLABT | C66: 301012010100512 | D66: DLABTM100107P001HOC3ALA002 | E66: 2011-02-18 | F66: MATA FRANCES | G66: 107 | H66: 1158.51 | I66: 597.54 | J66: 0 | K66: 373.82 | L66: 0 | M66: 0 | N66: 2129.87 | O66: 390 | P66: 0 | Q66: =IF(OR(VLOOKUP($B66,Formulacion!$A:$BE,MATCH(Q$1,Formulacion!$1:$1,0),FALSE)="NA",$D66=0),"NA",IF($B66="DLABT",MID($D66,PosteInicioBT,PosteFinBT-PosteInicioBT+1)*1,MID($D66,PosteInicio,PosteFin-PosteInicio+1)*1)) -> 1 | R66: =IF(OR(VLOOKUP($B66,Formulacion!$A:$BE,MATCH(R$1,Formulacion!$1:$1,0),FALSE)="NA",$D66=0),"NA",IF(OR($B66="DLABT",$B66="DLSBT"),MID($D66,CondInicioBT,CondFinBT-CondInicioBT+1)*1,MID($D66,CondInicio,CondFin-CondInicio+1)*1)) -> 107 | S66: 107 | T66: =IF(OR(VLOOKUP($B66,Formulacion!$A:$BE,MATCH(T$1,Formulacion!$1:$1,0),FALSE)="NA",$D66=0),"NA",IF($B66="DLSBT",MID($D66,ZanjaInicioBT,ZanjaFinBT-ZanjaInicioBT+1)*1,MID($D66,ZanjaInicio,ZanjaFin-ZanjaInicio+1)*1)) -> NA | U66: 1 | V66: =IF(OR(VLOOKUP($B66,Formulacion!$A:$BE,MATCH(V$1,Formulacion!$1:$1,0),FALSE)="NA",$D66=0),"NA",MID($D66,m2Inicio+INDIRECT(B66),m2Fin-m2Inicio+1)*1) -> NA | W66: =IF(OR(VLOOKUP($B66,Formulacion!$A:$BE,MATCH(W$1,Formulacion!$1:$1,0),FALSE)="NA",$D66=0),"NA",RIGHT($D66,4)*1) -> NA | X66: =IF(OR(VLOOKUP($B66,Formulacion!$A:$BE,MATCH(X$1,Formulacion!$1:$1,0),FALSE)="NA",$D66=0),"NA",RIGHT($D66,3)*1) -> NA | Y66: =IF(OR(AND(W66="NA",X66="NA"),AND(W66="NA",X66>CantTrbtOtCMin),AND(W66>CantTrbtOtCMin,X66="NA")),1,0) -> 1 | Z66: =IF(VLOOKUP($B66,Formulacion!$A:$BE,MATCH(Z$1,Formulacion!$1:$1,0),FALSE)="NA",1,IF(V66<=m2Min,0,1)) -> 1 | AA66: =IF(VLOOKUP($B66,Formulacion!$A:$BE,MATCH(AA$1,Formulacion!$1:$1,0),FALSE)="NA",1,IF(OR(E66<=FechaMin,E66>FechaMax),0,1)) -> 1 | AB66: =IF(VLOOKUP($B66,Formulacion!$A:$BE,MATCH(AB$1,Formulacion!$1:$1,0),FALSE)="NA",1,IF(H66<=MaterialesMin,0,1)) -> 1 | AC66: =IF(VLOOKUP($B66,Formulacion!$A:$BE,MATCH(AC$1,Formulacion!$1:$1,0),FALSE)="NA",1,IF(N66=0,0,IF(OR(I66/N66<=MObraMin,I66/N66>=MObraMax),MDOmin,1))) -> 1 | AD66: =IF(VLOOKUP($B66,Formulacion!$A:$BE,MATCH(AD$1,Formulacion!$1:$1,0),FALSE)="NA",1,IF(N66<=CostoTotalMin,0,1)) -> 1 | AE66: =IF(VLOOKUP($B66,Formulacion!$A:$BE,MATCH(AE$1,Formulacion!$1:$1,0),FALSE)="NA",1,IF(Q66<=PostesMin,0,1)) -> 0 | AF66: =IF(VLOOKUP($B66,Formulacion!$A:$BE,MATCH(AF$1,Formulacion!$1:$1,0),FALSE)="NA",1,IF(R66<=INDIRECT(VLOOKUP(B66,Formulacion!$A:$BE,2,FALSE)),0,1)) -> 1 | AG66: 1 | AH66: 2129.87 | AJ66: =IF(VLOOKUP($B66,Formulacion!$A:$BE,MATCH(AJ$1,Formulacion!$1:$1,0),FALSE)="NA","NA",HLOOKUP(VLOOKUP($B66,Formulacion!$A:$BE,MATCH(AJ$1,Formulacion!$1:$1,0),FALSE),$Q:$Z,ROW(AJ66),FALSE)) -> 107 | AK66: =IF(VLOOKUP($B66,Formulacion!$A:$BE,MATCH(AK$1,Formulacion!$1:$1,0),FALSE)="NA",1,VLOOKUP($B66,Formulacion!$A:$BE,MATCH(AK$1,Formulacion!$1:$1,0),FALSE)) -> 30 | AL66: =IF(VLOOKUP($B66,Formulacion!$A:$BE,MATCH(AL$1,Formulacion!$1:$1,0),FALSE)="NA",1,VLOOKUP($B66,Formulacion!$A:$BE,MATCH(AL$1,Formulacion!$1:$1,0),FALSE)) -> 0.3 | AM66: =IF(AJ66="NA",1,IF(AJ66<=AK66*(1+AL66),"CU","NC")) -> NC | AN66: =IF(VLOOKUP($B66,Formulacion!$A:$BE,MATCH(AN$1,Formulacion!$1:$1,0),FALSE)="NA","NA",IF(D66=0,"",VLOOKUP($B66,Formulacion!$A:$BE,MATCH(AN$1,Formulacion!$1:$1,0),FALSE))) -> 0206170220032403 | AO66: LABTM1 | AP66: =IF(MID(AN66,5,2)="","",MID(D66,MID(AN66,5,2),MID(AN66,7,2))) -> HO | AQ66: =IF(MID(AN66,9,2)="","",MID(D66,MID(AN66,9,2),MID(AN66,11,2))) -> 3AL | AR66: =IF(MID(AN66,13,2)="","",MID(D66,MID(AN66,13,2),MID(AN66,15,2))) -> 002 | AS66: =IF(MID(AN66,17,2)="","",MID(D66,MID(AN66,17,2),MID(AN66,19,2))) ->  | AT66: =IF(MID(AN66,21,2)="","",MID(D66,MID(AN66,21,2),MID(AN66,23,2))) ->  | AU66: =IF(MID(AN66,25,2)="","",MID(D66,MID(AN66,25,2),MID(AN66,27,2))) ->  | AV66: =IF(VLOOKUP($B66,Formulacion!$A:$BE,MATCH(AV$1,Formulacion!$1:$1,0),FALSE)="NA","NA",VLOOKUP(CONCATENATE(AO66,AP66,AQ66,AR66,AS66,AT66,AU66),ValoresReferenciales!$A:$D,4,FALSE)) -> 15.63451684 | AW66: =IF(VLOOKUP($B66,Formulacion!$A:$BE,MATCH(AW$1,Formulacion!$1:$1,0),FALSE)="NA","NA",HLOOKUP(VLOOKUP($B66,Formulacion!$A:$BE,MATCH(AW$1,Formulacion!$1:$1,0),FALSE),$Q:$Z,ROW(AW66),FALSE)) -> 107 | AX66: =IF(AV66="NA","NA",IF(AW66=0,0,N66/AW66)) -> 19.9053271 | AY66: 1 | AZ66: =IF(VLOOKUP($B66,Formulacion!$A:$BE,MATCH(AZ$1,Formulacion!$1:$1,0),FALSE)="NA",1,VLOOKUP($B66,Formulacion!$A:$BE,MATCH(AZ$1,Formulacion!$1:$1,0),FALSE)) -> 1 | BA66: =IF(VLOOKUP($B66,Formulacion!$A:$BE,MATCH(BA$1,Formulacion!$1:$1,0),FALSE)="NA",1,VLOOKUP($B66,Formulacion!$A:$BE,MATCH(BA$1,Formulacion!$1:$1,0),FALSE)) -> 1 | BB66: 2129.87 | BC66: 2129.87
